Workbook

Sheet FMS6 Report

Sheet Summary Data (hidden)
A1: School No. | B1: ='3.Budget Update'!B3 -> 0 | C1: ='3.Budget Update'!C3 -> 
A2: Actuals to September
A3: Bal Bfwd | B3: B 01 | C3: ='3.Budget Update'!F5 -> 0
B4: B 01 | C4: ='3.Budget Update'!F6 -> 0
B5: B 02 | C5: ='3.Budget Update'!F7 -> 0
B6: B 03 | C6: ='3.Budget Update'!F8 -> 0
B7: B 05 | C7: ='3.Budget Update'!F9 -> 0
B8: B 06 | C8: ='3.Budget Update'!F10 -> 0
A9: INCOME | B9: I 01 | C9: ='3.Budget Update'!F13 -> 0
B10: I 02 | C10: ='3.Budget Update'!F14 -> 0
B11: I 03 | C11: ='3.Budget Update'!F15 -> 0
B12: I 04 | C12: ='3.Budget Update'!F16 -> 0
B13: I 05 | C13: ='3.Budget Update'!F17 -> 0
B14: I 06 | C14: ='3.Budget Update'!F18 -> 0
B15: I 07 | C15: ='3.Budget Update'!F19 -> 0
B16: I 08a | C16: ='3.Budget Update'!F20 -> 0
B17: I 08b | C17: ='3.Budget Update'!F21 -> 0
B18: I 09 | C18: ='3.Budget Update'!F22 -> 0
B19: I 10 | C19: ='3.Budget Update'!F23 -> 0
B20: I 11 | C20: ='3.Budget Update'!F24 -> 0
B21: I 12 | C21: ='3.Budget Update'!F25 -> 0
B22: I 13 | C22: ='3.Budget Update'!F26 -> 0
B23: I 15 | C23: ='3.Budget Update'!F27 -> 0
B24: I 16 | C24: ='3.Budget Update'!F28 -> 0
B25: I 17 | C25: ='3.Budget Update'!F29 -> 0
B26: I 18A | C26: ='3.Budget Update'!F30 -> 0
B27: I 18B | C27: ='3.Budget Update'!F31 -> 0
B28: I 18C | C28: ='3.Budget Update'!F32 -> 0
B29: I 18D | C29: ='3.Budget Update'!F33 -> 0
A30: EXPENDITURE | B30: E 01 | C30: ='3.Budget Update'!F36 -> 0
B31: E 02 | C31: ='3.Budget Update'!F37 -> 0
B32: E 03 | C32: ='3.Budget Update'!F38 -> 0
B33: E 04 | C33: ='3.Budget Update'!F39 -> 0
B34: E 05 | C34: ='3.Budget Update'!F40 -> 0
B35: E 06 | C35: ='3.Budget Update'!F41 -> 0
B36: E 07 | C36: ='3.Budget Update'!F42 -> 0
B37: E 08 | C37: ='3.Budget Update'!F43 -> 0
B38: E 09 | C38: ='3.Budget Update'!F44 -> 0
B39: E 10 | C39: ='3.Budget Update'!F45 -> 0
B40: E 11 | C40: ='3.Budget Update'!F46 -> 0
B41: E 12 | C41: ='3.Budget Update'!F47 -> 0
B42: E 13 | C42: ='3.Budget Update'!F48 -> 0
B43: E 14 | C43: ='3.Budget Update'!F49 -> 0
B44: E 15 | C44: ='3.Budget Update'!F50 -> 0
B45: E 16 | C45: ='3.Budget Update'!F51 -> 0
B46: E 17 | C46: ='3.Budget Update'!F52 -> 0
B47: E 18 | C47: ='3.Budget Update'!F53 -> 0
B48: E 19 | C48: ='3.Budget Update'!F54 -> 0
B49: E 20 | C49: ='3.Budget Update'!F55 -> 0
B50: E 20A | C50: ='3.Budget Update'!F56 -> 0
B51: E 20B | C51: ='3.Budget Update'!F57 -> 0
B52: E 20C | C52: ='3.Budget Update'!F58 -> 0
B53: E 20D | C53: ='3.Budget Update'!F59 -> 0
B54: E 20E | C54: ='3.Budget Update'!F60 -> 0
B55: E 20F | C55: ='3.Budget Update'!F61 -> 0
B56: E 20G | C56: ='3.Budget Update'!F62 -> 0
B57: E 21 | C57: ='3.Budget Update'!F63 -> 0
B58: E 22 | C58: ='3.Budget Update'!F64 -> 0
B59: E 23 | C59: ='3.Budget Update'!F65 -> 0
B60: E 24 | C60: ='3.Budget Update'!F66 -> 0
B61: E 25 | C61: ='3.Budget Update'!F67 -> 0
B62: E 26 | C62: ='3.Budget Update'!F68 -> 0
B63: E 27 | C63: ='3.Budget Update'!F69 -> 0
B64: E 28A | C64: ='3.Budget Update'!F70 -> 0
B65: E 28B | C65: ='3.Budget Update'!F71 -> 0
B66: E 29 | C66: ='3.Budget Update'!F72 -> 0
B67: E 30 | C67: ='3.Budget Update'!F73 -> 0
B68: E 31 | C68: ='3.Budget Update'!F74 -> 0
B69: E 32 | C69: ='3.Budget Update'!F75 -> 0
A70: CAPITAL INCOME | B70: CI 01 | C70: ='3.Budget Update'!F78 -> 0
B71: CI 03 | C71: ='3.Budget Update'!F79 -> 0
B72: CI 04 | C72: ='3.Budget Update'!F80 -> 0
A73: CAPITAL EXPENDITURE | B73: CE 01 | C73: ='3.Budget Update'!F83 -> 0
B74: CE 02 | C74: ='3.Budget Update'!F84 -> 0
B75: CE 03 | C75: ='3.Budget Update'!F85 -> 0
B76: CE 04 | C76: ='3.Budget Update'!F86 -> 0
B77: CE 04A | C77: ='3.Budget Update'!F87 -> 0
B78: CE 04B | C78: ='3.Budget Update'!F88 -> 0
B79: CE 04C | C79: ='3.Budget Update'!F89 -> 0
B80: CE 04D | C80: ='3.Budget Update'!F90 -> 0
B81: CE 04E | C81: ='3.Budget Update'!F91 -> 0
A82: Revised Budget
A83: Bal Bfwd | B83: B 01 | C83: ='3.Budget Update'!E5 -> 0
B84: B 01 | C84: ='3.Budget Update'!E6 -> 0
B85: B 02 | C85: ='3.Budget Update'!E7 -> 0
B86: B 03 | C86: ='3.Budget Update'!E8 -> 0
B87: B 05 | C87: ='3.Budget Update'!E9 -> 0
B88: B 06 | C88: ='3.Budget Update'!E10 -> 0
A89: INCOME | B89: I 01 | C89: ='3.Budget Update'!E13 -> 0
B90: I 02 | C90: ='3.Budget Update'!E14 -> 0
B91: I 03 | C91: ='3.Budget Update'!E15 -> 0
B92: I 04 | C92: ='3.Budget Update'!E16 -> 0
B93: I 05 | C93: ='3.Budget Update'!E17 -> 0
B94: I 06 | C94: ='3.Budget Update'!E18 -> 0
B95: I 07 | C95: ='3.Budget Update'!E19 -> 0
B96: I 08a | C96: ='3.Budget Update'!E20 -> 0
B97: I 08b | C97: ='3.Budget Update'!E21 -> 0
B98: I 09 | C98: ='3.Budget Update'!E22 -> 0
B99: I 10 | C99: ='3.Budget Update'!E23 -> 0
B100: I 11 | C100: ='3.Budget Update'!E24 -> 0
B101: I 12 | C101: ='3.Budget Update'!E25 -> 0
B102: I 13 | C102: ='3.Budget Update'!E26 -> 0
B103: I 15 | C103: ='3.Budget Update'!E27 -> 0
B104: I 16 | C104: ='3.Budget Update'!E28 -> 0
B105: I 17 | C105: ='3.Budget Update'!E29 -> 0
B106: I 18A | C106: ='3.Budget Update'!E30 -> 0
B107: I 18B | C107: ='3.Budget Update'!E31 -> 0
B108: I 18C | C108: ='3.Budget Update'!E32 -> 0
B109: I 18D | C109: ='3.Budget Update'!E33 -> 0
A110: EXPENDITURE | B110: E 01 | C110: ='3.Budget Update'!E36 -> 0
B111: E 02 | C111: ='3.Budget Update'!E37 -> 0
B112: E 03 | C112: ='3.Budget Update'!E38 -> 0
B113: E 04 | C113: ='3.Budget Update'!E39 -> 0
B114: E 05 | C114: ='3.Budget Update'!E40 -> 0
B115: E 06 | C115: ='3.Budget Update'!E41 -> 0
B116: E 07 | C116: ='3.Budget Update'!E42 -> 0
B117: E 08 | C117: ='3.Budget Update'!E43 -> 0
B118: E 09 | C118: ='3.Budget Update'!E44 -> 0
B119: E 10 | C119: ='3.Budget Update'!E45 -> 0
B120: E 11 | C120: ='3.Budget Update'!E46 -> 0
B121: E 12 | C121: ='3.Budget Update'!E47 -> 0
B122: E 13 | C122: ='3.Budget Update'!E48 -> 0
B123: E 14 | C123: ='3.Budget Update'!E49 -> 0
B124: E 15 | C124: ='3.Budget Update'!E50 -> 0
B125: E 16 | C125: ='3.Budget Update'!E51 -> 0
B126: E 17 | C126: ='3.Budget Update'!E52 -> 0
B127: E 18 | C127: ='3.Budget Update'!E53 -> 0
B128: E 19 | C128: ='3.Budget Update'!E54 -> 0
B129: E 20 | C129: ='3.Budget Update'!E55 -> 0
B130: E 20A | C130: ='3.Budget Update'!E56 -> 0
B131: E 20B | C131: ='3.Budget Update'!E57 -> 0
B132: E 20C | C132: ='3.Budget Update'!E58 -> 0
B133: E 20D | C133: ='3.Budget Update'!E59 -> 0
B134: E 20E | C134: ='3.Budget Update'!E60 -> 0
B135: E 20F | C135: ='3.Budget Update'!E61 -> 0
B136: E 20G | C136: ='3.Budget Update'!E62 -> 0
B137: E 21 | C137: ='3.Budget Update'!E63 -> 0
B138: E 22 | C138: ='3.Budget Update'!E64 -> 0
B139: E 23 | C139: ='3.Budget Update'!E65 -> 0
B140: E 24 | C140: ='3.Budget Update'!E66 -> 0
B141: E 25 | C141: ='3.Budget Update'!E67 -> 0
B142: E 26 | C142: ='3.Budget Update'!E68 -> 0
B143: E 27 | C143: ='3.Budget Update'!E69 -> 0
B144: E 28A | C144: ='3.Budget Update'!E70 -> 0
B145: E 28B | C145: ='3.Budget Update'!E71 -> 0
B146: E 29 | C146: ='3.Budget Update'!E72 -> 0
B147: E 30 | C147: ='3.Budget Update'!E73 -> 0
B148: E 31 | C148: ='3.Budget Update'!E74 -> 0
B149: E 32 | C149: ='3.Budget Update'!E75 -> 0
A150: CAPITAL INCOME | B150: CI 01 | C150: ='3.Budget Update'!E78 -> 0
B151: CI 03 | C151: ='3.Budget Update'!E79 -> 0
B152: CI 04 | C152: ='3.Budget Update'!E80 -> 0
A153: CAPITAL EXPENDITURE | B153: CE 01 | C153: ='3.Budget Update'!E83 -> 0
B154: CE 02 | C154: ='3.Budget Update'!E84 -> 0
B155: CE 03 | C155: ='3.Budget Update'!E85 -> 0
B156: CE 04 | C156: ='3.Budget Update'!E86 -> 0
B157: CE 04A | C157: ='3.Budget Update'!E87 -> 0
B158: CE 04B | C158: ='3.Budget Update'!E88 -> 0
B159: CE 04C | C159: ='3.Budget Update'!E89 -> 0
B160: CE 04D | C160: ='3.Budget Update'!E90 -> 0
B161: CE 04E | C161: ='3.Budget Update'!E91 -> 0
A162: Bal Cfwd | B162: B 01 | C162: ='3.Budget Update'!E94 -> 0
B163: B 01 | C163: ='3.Budget Update'!E95 -> 0
B164: B 02 | C164: ='3.Budget Update'!E96 -> 0
B165: B 03 | C165: ='3.Budget Update'!E97 -> 0
B166: B 05 | C166: ='3.Budget Update'!E98 -> 0
B167: B 06 | C167: ='3.Budget Update'!E99 -> 0

Sheet 1.Notes Mthly
B2: Monthly Budget Monitoring in CFR Format 2025-26
B4: Please enter your School Number in the yellow box below: ê
D6: =IFERROR(INDEX(SchoolNames,MATCH(C6,SchoolLANumbers,0)),"") -> 
B8: The Monthly Budget Forecast can be completed from an FMS report in addition to your orginal GBP. Link to the instructions is shown below. The first step is to enter your school's number in the yellow box. Your original 2025-26 Governors' Budget Plan data will be seen in Column D on the '3. Budget Update' tab. Before importing data into the spreadsheet, review your current budgets and actuals and amend your budgets to reflect any changes, to give an updated 2025-26 year end position.
B10: If you use the L.A. Ledger Codes and wish to use the automation in this spreadsheet to complete this Monthly Budget Monitoring Report click this link for instructions.
B11: This can be used even if you can't access your C Drive see cell B22 below
B12: Link to instructions with automation
B16: The 'Budget Update' tab will automatically highlight any large profile variances between the 2025-26 plan and the actuals to date and any variances between actuals and your revised plan for your attention. Please review this and make the approproate changes to your forecast on your finance system and the spreadsheet adding comments when needed.
B18: Manual Entry
B19: Go to Tab 2. Code Order Input.
B20: Pick the period you are reporting to from the drop down list. Enter all the information for the actuals to that Period in column F and your revised Budget in Column G (needs to be entered even if not changed from original GBP budget).
D23: The box to the left is normally left empty. You only need to complete it if you do not have access to the C: drive on your computer. Use it by typing in an alternative folder location such as S:\GBP. You then need to substitue this location for the C:\GBP location when using the instructions.

Sheet 2.Code Order Input
C2: =IFERROR(CONCATENATE("Monthly Budget Monitoring Report 2025-26- ",ReturnType),"Monthly Budget Monitoring Report 2025-26") -> Monthly Budget Monitoring Report 2025-26
C4: School Name: | D4: =IF('1.Notes Mthly'!D6=0,"",'1.Notes Mthly'!D6) ->  | F4: Period | H4: Only select Period if not using FMS import file
F6: LA No: | G6: ='1.Notes Mthly'!C6 -> 0
C7: CFR REF: | D7: LEDGER CODE | E7: DESCRIPTION | F7: =IFERROR(CONCATENATE("Actuals to ",EndDate," ",Month),"Need to Import FMS6 Report") -> Need to Import FMS6 Report | G7: Revised 2025-26 Budget Forecast (Outturn) £ | H7: CFR Category | J7: Only select Period if not using FMS import file
A8: =IF(ISNUMBER(SEARCH("*Expenditure*",H8)),1,IF(OR(ISNUMBER(SEARCH("*Income*",H8)),ISNUMBER(SEARCH("*BFWD BALANCES*",H8))),-1,0)) -> 1 | C8: E 03 | D8: 10011 | E8: SCHOOL LIBRARIANS - Pay | F8: =SUMIF('FMS6 Report'!$B:$B,$D8&"*",'FMS6 Report'!$E:$E)*A8 -> 0 | G8: =SUMIF('FMS6 Report'!$B:$B,$D8&"*",'FMS6 Report'!$G:$G)*A8 -> 0 | H8: =IF(C8="","",IF(LEFT(C8,1)="E","Revenue Expenditure",IF(LEFT(C8,1)="I","Revenue Income",IF(LEFT(C8,2)="CI","Capital Income",IF(LEFT(C8,2)="CE","Capital Expenditure","Incorrect CFR REF"))))) -> Revenue Expenditure | J8: 1 | K8: Apr
A9: =IF(ISNUMBER(SEARCH("*Expenditure*",H9)),1,IF(OR(ISNUMBER(SEARCH("*Income*",H9)),ISNUMBER(SEARCH("*BFWD BALANCES*",H9))),-1,0)) -> 1 | C9: E 03 | D9: 10012 | E9: SCHOOL LIBRARIANS - Sick Pay | F9: =SUMIF('FMS6 Report'!$B:$B,$D9&"*",'FMS6 Report'!$E:$E)*A9 -> 0 | G9: =SUMIF('FMS6 Report'!$B:$B,$D9&"*",'FMS6 Report'!$G:$G)*A9 -> 0 | H9: Revenue Expenditure | J9: 2 | K9: May
A10: 1 | C10: E 03 | D10: 10014 | E10: SCHOOL LIBRARIANS - Overtime | F10: =SUMIF('FMS6 Report'!$B:$B,$D10&"*",'FMS6 Report'!$E:$E)*A10 -> 0 | G10: =SUMIF('FMS6 Report'!$B:$B,$D10&"*",'FMS6 Report'!$G:$G)*A10 -> 0 | H10: Revenue Expenditure | J10: 3 | K10: Jun
A11: 1 | C11: E 03 | D11: 10018 | E11: SCHOOL LIBRARIANS - Super | F11: =SUMIF('FMS6 Report'!$B:$B,$D11&"*",'FMS6 Report'!$E:$E)*A11 -> 0 | G11: =SUMIF('FMS6 Report'!$B:$B,$D11&"*",'FMS6 Report'!$G:$G)*A11 -> 0 | H11: Revenue Expenditure | J11: 4 | K11: Jul
A12: 1 | C12: E 03 | D12: 10019 | E12: SCHOOL LIBRARIANS - NI | F12: =SUMIF('FMS6 Report'!$B:$B,$D12&"*",'FMS6 Report'!$E:$E)*A12 -> 0 | G12: =SUMIF('FMS6 Report'!$B:$B,$D12&"*",'FMS6 Report'!$G:$G)*A12 -> 0 | H12: Revenue Expenditure | J12: 5 | K12: Aug
A13: 1 | C13: E 01 | D13: 10101 | E13: TEACHERS - Pay | F13: =SUMIF('FMS6 Report'!$B:$B,$D13&"*",'FMS6 Report'!$E:$E)*A13 -> 0 | G13: =SUMIF('FMS6 Report'!$B:$B,$D13&"*",'FMS6 Report'!$G:$G)*A13 -> 0 | H13: Revenue Expenditure | J13: 6 | K13: Sep
A14: 1 | C14: E 01 | D14: 10102 | E14: TEACHERS - Sick Pay | F14: =SUMIF('FMS6 Report'!$B:$B,$D14&"*",'FMS6 Report'!$E:$E)*A14 -> 0 | G14: =SUMIF('FMS6 Report'!$B:$B,$D14&"*",'FMS6 Report'!$G:$G)*A14 -> 0 | H14: Revenue Expenditure | J14: 7 | K14: Oct
A15: 1 | C15: E 01 | D15: 10104 | E15: TEACHERS - Overtime | F15: =SUMIF('FMS6 Report'!$B:$B,$D15&"*",'FMS6 Report'!$E:$E)*A15 -> 0 | G15: =SUMIF('FMS6 Report'!$B:$B,$D15&"*",'FMS6 Report'!$G:$G)*A15 -> 0 | H15: Revenue Expenditure | J15: 8 | K15: Nov
A16: 1 | C16: E 26 | D16: 10105 | E16: TEACHERS AGENCY SUPPLY STAFF | F16: =SUMIF('FMS6 Report'!$B:$B,$D16&"*",'FMS6 Report'!$E:$E)*A16 -> 0 | G16: =SUMIF('FMS6 Report'!$B:$B,$D16&"*",'FMS6 Report'!$G:$G)*A16 -> 0 | H16: Revenue Expenditure | J16: 9 | K16: Dec
A17: 1 | C17: E 01 | D17: 10108 | E17: TEACHERS - Super | F17: =SUMIF('FMS6 Report'!$B:$B,$D17&"*",'FMS6 Report'!$E:$E)*A17 -> 0 | G17: =SUMIF('FMS6 Report'!$B:$B,$D17&"*",'FMS6 Report'!$G:$G)*A17 -> 0 | H17: Revenue Expenditure | J17: 10 | K17: Jan
A18: 1 | C18: E 01 | D18: 10109 | E18: TEACHERS - NI | F18: =SUMIF('FMS6 Report'!$B:$B,$D18&"*",'FMS6 Report'!$E:$E)*A18 -> 0 | G18: =SUMIF('FMS6 Report'!$B:$B,$D18&"*",'FMS6 Report'!$G:$G)*A18 -> 0 | H18: Revenue Expenditure | J18: 11 | K18: Feb
A19: 1 | C19: E 02 | D19: 10111 | E19: TEACHERS SUPPLY - Pay | F19: =SUMIF('FMS6 Report'!$B:$B,$D19&"*",'FMS6 Report'!$E:$E)*A19 -> 0 | G19: =SUMIF('FMS6 Report'!$B:$B,$D19&"*",'FMS6 Report'!$G:$G)*A19 -> 0 | H19: Revenue Expenditure | J19: 12 | K19: Mar
A20: 1 | C20: E 02 | D20: 10112 | E20: TEACHERS SUPPLY - Sick Pay | F20: =SUMIF('FMS6 Report'!$B:$B,$D20&"*",'FMS6 Report'!$E:$E)*A20 -> 0 | G20: =SUMIF('FMS6 Report'!$B:$B,$D20&"*",'FMS6 Report'!$G:$G)*A20 -> 0 | H20: Revenue Expenditure
A21: 1 | C21: E 02 | D21: 10114 | E21: TEACHERS SUPPLY - Overtime | F21: =SUMIF('FMS6 Report'!$B:$B,$D21&"*",'FMS6 Report'!$E:$E)*A21 -> 0 | G21: =SUMIF('FMS6 Report'!$B:$B,$D21&"*",'FMS6 Report'!$G:$G)*A21 -> 0 | H21: Revenue Expenditure
A22: 1 | C22: E 02 | D22: 10118 | E22: TEACHERS SUPPLY - Super | F22: =SUMIF('FMS6 Report'!$B:$B,$D22&"*",'FMS6 Report'!$E:$E)*A22 -> 0 | G22: =SUMIF('FMS6 Report'!$B:$B,$D22&"*",'FMS6 Report'!$G:$G)*A22 -> 0 | H22: Revenue Expenditure
A23: 1 | C23: E 02 | D23: 10119 | E23: TEACHERS SUPPLY - NI | F23: =SUMIF('FMS6 Report'!$B:$B,$D23&"*",'FMS6 Report'!$E:$E)*A23 -> 0 | G23: =SUMIF('FMS6 Report'!$B:$B,$D23&"*",'FMS6 Report'!$G:$G)*A23 -> 0 | H23: Revenue Expenditure
A24: 1 | C24: E 03 | D24: 10121 | E24: SWIMMING INSTRUCTORS - Pay | F24: =SUMIF('FMS6 Report'!$B:$B,$D24&"*",'FMS6 Report'!$E:$E)*A24 -> 0 | G24: =SUMIF('FMS6 Report'!$B:$B,$D24&"*",'FMS6 Report'!$G:$G)*A24 -> 0 | H24: Revenue Expenditure
A25: 1 | C25: E 03 | D25: 10122 | E25: SWIMMING INSTRUCTORS - Sick Pay | F25: =SUMIF('FMS6 Report'!$B:$B,$D25&"*",'FMS6 Report'!$E:$E)*A25 -> 0 | G25: =SUMIF('FMS6 Report'!$B:$B,$D25&"*",'FMS6 Report'!$G:$G)*A25 -> 0 | H25: Revenue Expenditure
A26: 1 | C26: E 03 | D26: 10124 | E26: SWIMMING INSTRUCTORS - Overtime | F26: =SUMIF('FMS6 Report'!$B:$B,$D26&"*",'FMS6 Report'!$E:$E)*A26 -> 0 | G26: =SUMIF('FMS6 Report'!$B:$B,$D26&"*",'FMS6 Report'!$G:$G)*A26 -> 0 | H26: Revenue Expenditure
A27: 1 | C27: E 03 | D27: 10128 | E27: SWIMMING INSTRUCTORS - Super | F27: =SUMIF('FMS6 Report'!$B:$B,$D27&"*",'FMS6 Report'!$E:$E)*A27 -> 0 | G27: =SUMIF('FMS6 Report'!$B:$B,$D27&"*",'FMS6 Report'!$G:$G)*A27 -> 0 | H27: Revenue Expenditure
A28: 1 | C28: E 03 | D28: 10129 | E28: SWIMMING INSTRUCTORS - NI | F28: =SUMIF('FMS6 Report'!$B:$B,$D28&"*",'FMS6 Report'!$E:$E)*A28 -> 0 | G28: =SUMIF('FMS6 Report'!$B:$B,$D28&"*",'FMS6 Report'!$G:$G)*A28 -> 0 | H28: Revenue Expenditure
A29: 1 | C29: E 03 | D29: 10151 | E29: EDUCATION WELFARE OFFICERS - Pay | F29: =SUMIF('FMS6 Report'!$B:$B,$D29&"*",'FMS6 Report'!$E:$E)*A29 -> 0 | G29: =SUMIF('FMS6 Report'!$B:$B,$D29&"*",'FMS6 Report'!$G:$G)*A29 -> 0 | H29: Revenue Expenditure
A30: 1 | C30: E 03 | D30: 10152 | E30: EDUCATION WELFARE OFFICERS - Sick Pay | F30: =SUMIF('FMS6 Report'!$B:$B,$D30&"*",'FMS6 Report'!$E:$E)*A30 -> 0 | G30: =SUMIF('FMS6 Report'!$B:$B,$D30&"*",'FMS6 Report'!$G:$G)*A30 -> 0 | H30: Revenue Expenditure
A31: 1 | C31: E 03 | D31: 10154 | E31: EDUCATION WELFARE OFFICERS - Overtime | F31: =SUMIF('FMS6 Report'!$B:$B,$D31&"*",'FMS6 Report'!$E:$E)*A31 -> 0 | G31: =SUMIF('FMS6 Report'!$B:$B,$D31&"*",'FMS6 Report'!$G:$G)*A31 -> 0 | H31: Revenue Expenditure
A32: 1 | C32: E 03 | D32: 10158 | E32: EDUCATION WELFARE OFFICERS - Super | F32: =SUMIF('FMS6 Report'!$B:$B,$D32&"*",'FMS6 Report'!$E:$E)*A32 -> 0 | G32: =SUMIF('FMS6 Report'!$B:$B,$D32&"*",'FMS6 Report'!$G:$G)*A32 -> 0 | H32: Revenue Expenditure
A33: 1 | C33: E 03 | D33: 10159 | E33: EDUCATION WELFARE OFFICERS - NI | F33: =SUMIF('FMS6 Report'!$B:$B,$D33&"*",'FMS6 Report'!$E:$E)*A33 -> 0 | G33: =SUMIF('FMS6 Report'!$B:$B,$D33&"*",'FMS6 Report'!$G:$G)*A33 -> 0 | H33: Revenue Expenditure
A34: 1 | C34: E 03 | D34: 10161 | E34: TECHNICIANS - Pay | F34: =SUMIF('FMS6 Report'!$B:$B,$D34&"*",'FMS6 Report'!$E:$E)*A34 -> 0 | G34: =SUMIF('FMS6 Report'!$B:$B,$D34&"*",'FMS6 Report'!$G:$G)*A34 -> 0 | H34: Revenue Expenditure
A35: 1 | C35: E 03 | D35: 10162 | E35: TECHNICIANS - Sick Pay | F35: =SUMIF('FMS6 Report'!$B:$B,$D35&"*",'FMS6 Report'!$E:$E)*A35 -> 0 | G35: =SUMIF('FMS6 Report'!$B:$B,$D35&"*",'FMS6 Report'!$G:$G)*A35 -> 0 | H35: Revenue Expenditure
A36: 1 | C36: E 03 | D36: 10164 | E36: TECHNICIANS - Overtime | F36: =SUMIF('FMS6 Report'!$B:$B,$D36&"*",'FMS6 Report'!$E:$E)*A36 -> 0 | G36: =SUMIF('FMS6 Report'!$B:$B,$D36&"*",'FMS6 Report'!$G:$G)*A36 -> 0 | H36: Revenue Expenditure
A37: 1 | C37: E 03 | D37: 10168 | E37: TECHNICIANS - Super | F37: =SUMIF('FMS6 Report'!$B:$B,$D37&"*",'FMS6 Report'!$E:$E)*A37 -> 0 | G37: =SUMIF('FMS6 Report'!$B:$B,$D37&"*",'FMS6 Report'!$G:$G)*A37 -> 0 | H37: Revenue Expenditure
A38: 1 | C38: E 03 | D38: 10169 | E38: TECHNICIANS - NI | F38: =SUMIF('FMS6 Report'!$B:$B,$D38&"*",'FMS6 Report'!$E:$E)*A38 -> 0 | G38: =SUMIF('FMS6 Report'!$B:$B,$D38&"*",'FMS6 Report'!$G:$G)*A38 -> 0 | H38: Revenue Expenditure
A39: 1 | C39: E 07 | D39: 10171 | E39: MATRONS - Pay | F39: =SUMIF('FMS6 Report'!$B:$B,$D39&"*",'FMS6 Report'!$E:$E)*A39 -> 0 | G39: =SUMIF('FMS6 Report'!$B:$B,$D39&"*",'FMS6 Report'!$G:$G)*A39 -> 0 | H39: Revenue Expenditure
A40: 1 | C40: E 07 | D40: 10172 | E40: MATRONS - Sick Pay | F40: =SUMIF('FMS6 Report'!$B:$B,$D40&"*",'FMS6 Report'!$E:$E)*A40 -> 0 | G40: =SUMIF('FMS6 Report'!$B:$B,$D40&"*",'FMS6 Report'!$G:$G)*A40 -> 0 | H40: Revenue Expenditure
A41: 1 | C41: E 07 | D41: 10174 | E41: MATRONS - Overtime | F41: =SUMIF('FMS6 Report'!$B:$B,$D41&"*",'FMS6 Report'!$E:$E)*A41 -> 0 | G41: =SUMIF('FMS6 Report'!$B:$B,$D41&"*",'FMS6 Report'!$G:$G)*A41 -> 0 | H41: Revenue Expenditure
A42: 1 | C42: E 07 | D42: 10178 | E42: MATRONS - Super | F42: =SUMIF('FMS6 Report'!$B:$B,$D42&"*",'FMS6 Report'!$E:$E)*A42 -> 0 | G42: =SUMIF('FMS6 Report'!$B:$B,$D42&"*",'FMS6 Report'!$G:$G)*A42 -> 0 | H42: Revenue Expenditure
A43: 1 | C43: E 07 | D43: 10179 | E43: MATRONS - NI | F43: =SUMIF('FMS6 Report'!$B:$B,$D43&"*",'FMS6 Report'!$E:$E)*A43 -> 0 | G43: =SUMIF('FMS6 Report'!$B:$B,$D43&"*",'FMS6 Report'!$G:$G)*A43 -> 0 | H43: Revenue Expenditure
A44: 1 | C44: E 07 | D44: 10181 | E44: AFTER SCHOOL STAFF - Pay | F44: =SUMIF('FMS6 Report'!$B:$B,$D44&"*",'FMS6 Report'!$E:$E)*A44 -> 0 | G44: =SUMIF('FMS6 Report'!$B:$B,$D44&"*",'FMS6 Report'!$G:$G)*A44 -> 0 | H44: Revenue Expenditure
A45: 1 | C45: E 07 | D45: 10182 | E45: AFTER SCHOOL STAFF - Sick Pay | F45: =SUMIF('FMS6 Report'!$B:$B,$D45&"*",'FMS6 Report'!$E:$E)*A45 -> 0 | G45: =SUMIF('FMS6 Report'!$B:$B,$D45&"*",'FMS6 Report'!$G:$G)*A45 -> 0 | H45: Revenue Expenditure
A46: 1 | C46: E 07 | D46: 10184 | E46: AFTER SCHOOL STAFF - Overtime | F46: =SUMIF('FMS6 Report'!$B:$B,$D46&"*",'FMS6 Report'!$E:$E)*A46 -> 0 | G46: =SUMIF('FMS6 Report'!$B:$B,$D46&"*",'FMS6 Report'!$G:$G)*A46 -> 0 | H46: Revenue Expenditure
A47: 1 | C47: E 07 | D47: 10188 | E47: AFTER SCHOOL STAFF - Super | F47: =SUMIF('FMS6 Report'!$B:$B,$D47&"*",'FMS6 Report'!$E:$E)*A47 -> 0 | G47: =SUMIF('FMS6 Report'!$B:$B,$D47&"*",'FMS6 Report'!$G:$G)*A47 -> 0 | H47: Revenue Expenditure
A48: 1 | C48: E 07 | D48: 10189 | E48: AFTER SCHOOL STAFF - NI | F48: =SUMIF('FMS6 Report'!$B:$B,$D48&"*",'FMS6 Report'!$E:$E)*A48 -> 0 | G48: =SUMIF('FMS6 Report'!$B:$B,$D48&"*",'FMS6 Report'!$G:$G)*A48 -> 0 | H48: Revenue Expenditure
A49: 1 | C49: E 07 | D49: 10191 | E49: MIDDAY SUPERVISON - Pay | F49: =SUMIF('FMS6 Report'!$B:$B,$D49&"*",'FMS6 Report'!$E:$E)*A49 -> 0 | G49: =SUMIF('FMS6 Report'!$B:$B,$D49&"*",'FMS6 Report'!$G:$G)*A49 -> 0 | H49: Revenue Expenditure
A50: 1 | C50: E 07 | D50: 10192 | E50: MIDDAY SUPERVISON - Sick Pay | F50: =SUMIF('FMS6 Report'!$B:$B,$D50&"*",'FMS6 Report'!$E:$E)*A50 -> 0 | G50: =SUMIF('FMS6 Report'!$B:$B,$D50&"*",'FMS6 Report'!$G:$G)*A50 -> 0 | H50: Revenue Expenditure
A51: 1 | C51: E 07 | D51: 10194 | E51: MIDDAY SUPERVISON - Overtime | F51: =SUMIF('FMS6 Report'!$B:$B,$D51&"*",'FMS6 Report'!$E:$E)*A51 -> 0 | G51: =SUMIF('FMS6 Report'!$B:$B,$D51&"*",'FMS6 Report'!$G:$G)*A51 -> 0 | H51: Revenue Expenditure
A52: 1 | C52: E 07 | D52: 10198 | E52: MIDDAY SUPERVISON - Super | F52: =SUMIF('FMS6 Report'!$B:$B,$D52&"*",'FMS6 Report'!$E:$E)*A52 -> 0 | G52: =SUMIF('FMS6 Report'!$B:$B,$D52&"*",'FMS6 Report'!$G:$G)*A52 -> 0 | H52: Revenue Expenditure
A53: 1 | C53: E 07 | D53: 10199 | E53: MIDDAY SUPERVISON - NI | F53: =SUMIF('FMS6 Report'!$B:$B,$D53&"*",'FMS6 Report'!$E:$E)*A53 -> 0 | G53: =SUMIF('FMS6 Report'!$B:$B,$D53&"*",'FMS6 Report'!$G:$G)*A53 -> 0 | H53: Revenue Expenditure
A54: 1 | C54: E 03 | D54: 10201 | E54: PLAYWORKERS - Pay | F54: =SUMIF('FMS6 Report'!$B:$B,$D54&"*",'FMS6 Report'!$E:$E)*A54 -> 0 | G54: =SUMIF('FMS6 Report'!$B:$B,$D54&"*",'FMS6 Report'!$G:$G)*A54 -> 0 | H54: Revenue Expenditure
A55: 1 | C55: E 03 | D55: 10202 | E55: PLAYWORKERS - Sick Pay | F55: =SUMIF('FMS6 Report'!$B:$B,$D55&"*",'FMS6 Report'!$E:$E)*A55 -> 0 | G55: =SUMIF('FMS6 Report'!$B:$B,$D55&"*",'FMS6 Report'!$G:$G)*A55 -> 0 | H55: Revenue Expenditure
A56: 1 | C56: E 03 | D56: 10204 | E56: PLAYWORKERS - Overtime | F56: =SUMIF('FMS6 Report'!$B:$B,$D56&"*",'FMS6 Report'!$E:$E)*A56 -> 0 | G56: =SUMIF('FMS6 Report'!$B:$B,$D56&"*",'FMS6 Report'!$G:$G)*A56 -> 0 | H56: Revenue Expenditure
A57: 1 | C57: E 03 | D57: 10208 | E57: PLAYWORKERS - Super | F57: =SUMIF('FMS6 Report'!$B:$B,$D57&"*",'FMS6 Report'!$E:$E)*A57 -> 0 | G57: =SUMIF('FMS6 Report'!$B:$B,$D57&"*",'FMS6 Report'!$G:$G)*A57 -> 0 | H57: Revenue Expenditure
A58: 1 | C58: E 03 | D58: 10209 | E58: PLAYWORKERS - NI | F58: =SUMIF('FMS6 Report'!$B:$B,$D58&"*",'FMS6 Report'!$E:$E)*A58 -> 0 | G58: =SUMIF('FMS6 Report'!$B:$B,$D58&"*",'FMS6 Report'!$G:$G)*A58 -> 0 | H58: Revenue Expenditure
A59: 1 | C59: E 03 | D59: 10231 | E59: TEACHING ASSISTANTS INC EXAM INVIGILATORS & COVER SUPERVISORS - Pay | F59: =SUMIF('FMS6 Report'!$B:$B,$D59&"*",'FMS6 Report'!$E:$E)*A59 -> 0 | G59: =SUMIF('FMS6 Report'!$B:$B,$D59&"*",'FMS6 Report'!$G:$G)*A59 -> 0 | H59: Revenue Expenditure
A60: 1 | C60: E 03 | D60: 10232 | E60: TEACHING ASSISTANTS INC EXAM INVIGILATORS & COVER SUPERVISORS - Sick Pay | F60: =SUMIF('FMS6 Report'!$B:$B,$D60&"*",'FMS6 Report'!$E:$E)*A60 -> 0 | G60: =SUMIF('FMS6 Report'!$B:$B,$D60&"*",'FMS6 Report'!$G:$G)*A60 -> 0 | H60: Revenue Expenditure
A61: 1 | C61: E 03 | D61: 10234 | E61: TEACHING ASSISTANTS INC EXAM INVIGILATORS & COVER SUPERVISORS - Overtime | F61: =SUMIF('FMS6 Report'!$B:$B,$D61&"*",'FMS6 Report'!$E:$E)*A61 -> 0 | G61: =SUMIF('FMS6 Report'!$B:$B,$D61&"*",'FMS6 Report'!$G:$G)*A61 -> 0 | H61: Revenue Expenditure
A62: 1 | C62: E 03 | D62: 10238 | E62: TEACHING ASSISTANTS INC EXAM INVIGILATORS & COVER SUPERVISORS - Super | F62: =SUMIF('FMS6 Report'!$B:$B,$D62&"*",'FMS6 Report'!$E:$E)*A62 -> 0 | G62: =SUMIF('FMS6 Report'!$B:$B,$D62&"*",'FMS6 Report'!$G:$G)*A62 -> 0 | H62: Revenue Expenditure
A63: 1 | C63: E 03 | D63: 10239 | E63: TEACHING ASSISTANTS INC EXAM INVIGILATORS & COVER SUPERVISORS - NI | F63: =SUMIF('FMS6 Report'!$B:$B,$D63&"*",'FMS6 Report'!$E:$E)*A63 -> 0 | G63: =SUMIF('FMS6 Report'!$B:$B,$D63&"*",'FMS6 Report'!$G:$G)*A63 -> 0 | H63: Revenue Expenditure
A64: 1 | C64: E 31 | D64: 10241 | E64: ES COMMUNITY ACTIVITIES STAFF - Pay | F64: =SUMIF('FMS6 Report'!$B:$B,$D64&"*",'FMS6 Report'!$E:$E)*A64 -> 0 | G64: =SUMIF('FMS6 Report'!$B:$B,$D64&"*",'FMS6 Report'!$G:$G)*A64 -> 0 | H64: Revenue Expenditure
A65: 1 | C65: E 31 | D65: 10242 | E65: ES COMMUNITY ACTIVITIES STAFF - Sick Pay | F65: =SUMIF('FMS6 Report'!$B:$B,$D65&"*",'FMS6 Report'!$E:$E)*A65 -> 0 | G65: =SUMIF('FMS6 Report'!$B:$B,$D65&"*",'FMS6 Report'!$G:$G)*A65 -> 0 | H65: Revenue Expenditure
A66: 1 | C66: E 31 | D66: 10244 | E66: ES COMMUNITY ACTIVITIES STAFF - Overtime | F66: =SUMIF('FMS6 Report'!$B:$B,$D66&"*",'FMS6 Report'!$E:$E)*A66 -> 0 | G66: =SUMIF('FMS6 Report'!$B:$B,$D66&"*",'FMS6 Report'!$G:$G)*A66 -> 0 | H66: Revenue Expenditure
A67: 1 | C67: E 31 | D67: 10248 | E67: ES COMMUNITY ACTIVITIES STAFF - Super | F67: =SUMIF('FMS6 Report'!$B:$B,$D67&"*",'FMS6 Report'!$E:$E)*A67 -> 0 | G67: =SUMIF('FMS6 Report'!$B:$B,$D67&"*",'FMS6 Report'!$G:$G)*A67 -> 0 | H67: Revenue Expenditure
A68: 1 | C68: E 31 | D68: 10249 | E68: ES COMMUNITY ACTIVITIES STAFF - NI | F68: =SUMIF('FMS6 Report'!$B:$B,$D68&"*",'FMS6 Report'!$E:$E)*A68 -> 0 | G68: =SUMIF('FMS6 Report'!$B:$B,$D68&"*",'FMS6 Report'!$G:$G)*A68 -> 0 | H68: Revenue Expenditure
A69: 1 | C69: E 03 | D69: 10251 | E69: FOREIGN LANGUAGE ASSISTANTS - Pay | F69: =SUMIF('FMS6 Report'!$B:$B,$D69&"*",'FMS6 Report'!$E:$E)*A69 -> 0 | G69: =SUMIF('FMS6 Report'!$B:$B,$D69&"*",'FMS6 Report'!$G:$G)*A69 -> 0 | H69: Revenue Expenditure
A70: 1 | C70: E 03 | D70: 10252 | E70: FOREIGN LANGUAGE ASSISTANTS - Sick Pay | F70: =SUMIF('FMS6 Report'!$B:$B,$D70&"*",'FMS6 Report'!$E:$E)*A70 -> 0 | G70: =SUMIF('FMS6 Report'!$B:$B,$D70&"*",'FMS6 Report'!$G:$G)*A70 -> 0 | H70: Revenue Expenditure
A71: 1 | C71: E 03 | D71: 10254 | E71: FOREIGN LANGUAGE ASSISTANTS - Overtime | F71: =SUMIF('FMS6 Report'!$B:$B,$D71&"*",'FMS6 Report'!$E:$E)*A71 -> 0 | G71: =SUMIF('FMS6 Report'!$B:$B,$D71&"*",'FMS6 Report'!$G:$G)*A71 -> 0 | H71: Revenue Expenditure
A72: 1 | C72: E 03 | D72: 10258 | E72: FOREIGN LANGUAGE ASSISTANTS - Super | F72: =SUMIF('FMS6 Report'!$B:$B,$D72&"*",'FMS6 Report'!$E:$E)*A72 -> 0 | G72: =SUMIF('FMS6 Report'!$B:$B,$D72&"*",'FMS6 Report'!$G:$G)*A72 -> 0 | H72: =IF(C72="","",IF(LEFT(C72,1)="E","Revenue Expenditure",IF(LEFT(C72,1)="I","Revenue Income",IF(LEFT(C72,2)="CI","Capital Income",IF(LEFT(C72,2)="CE","Capital Expenditure","Incorrect CFR REF"))))) -> Revenue Expenditure
A73: =IF(ISNUMBER(SEARCH("*Expenditure*",H73)),1,IF(OR(ISNUMBER(SEARCH("*Income*",H73)),ISNUMBER(SEARCH("*BFWD BALANCES*",H73))),-1,0)) -> 1 | C73: E 03 | D73: 10259 | E73: FOREIGN LANGUAGE ASSISTANTS - NI | F73: =SUMIF('FMS6 Report'!$B:$B,$D73&"*",'FMS6 Report'!$E:$E)*A73 -> 0 | G73: =SUMIF('FMS6 Report'!$B:$B,$D73&"*",'FMS6 Report'!$G:$G)*A73 -> 0 | H73: Revenue Expenditure
A74: 1 | C74: E 07 | D74: 10261 | E74: SPECIAL FACILITY STAFF - Pay | F74: =SUMIF('FMS6 Report'!$B:$B,$D74&"*",'FMS6 Report'!$E:$E)*A74 -> 0 | G74: =SUMIF('FMS6 Report'!$B:$B,$D74&"*",'FMS6 Report'!$G:$G)*A74 -> 0 | H74: Revenue Expenditure
A75: 1 | C75: E 07 | D75: 10262 | E75: SPECIAL FACILITY STAFF - Sick Pay | F75: =SUMIF('FMS6 Report'!$B:$B,$D75&"*",'FMS6 Report'!$E:$E)*A75 -> 0 | G75: =SUMIF('FMS6 Report'!$B:$B,$D75&"*",'FMS6 Report'!$G:$G)*A75 -> 0 | H75: Revenue Expenditure
A76: 1 | C76: E 07 | D76: 10264 | E76: SPECIAL FACILITY STAFF - Overtime | F76: =SUMIF('FMS6 Report'!$B:$B,$D76&"*",'FMS6 Report'!$E:$E)*A76 -> 0 | G76: =SUMIF('FMS6 Report'!$B:$B,$D76&"*",'FMS6 Report'!$G:$G)*A76 -> 0 | H76: Revenue Expenditure
A77: 1 | C77: E 07 | D77: 10268 | E77: SPECIAL FACILITY STAFF - Super | F77: =SUMIF('FMS6 Report'!$B:$B,$D77&"*",'FMS6 Report'!$E:$E)*A77 -> 0 | G77: =SUMIF('FMS6 Report'!$B:$B,$D77&"*",'FMS6 Report'!$G:$G)*A77 -> 0 | H77: Revenue Expenditure
A78: 1 | C78: E 07 | D78: 10269 | E78: SPECIAL FACILITY STAFF - NI | F78: =SUMIF('FMS6 Report'!$B:$B,$D78&"*",'FMS6 Report'!$E:$E)*A78 -> 0 | G78: =SUMIF('FMS6 Report'!$B:$B,$D78&"*",'FMS6 Report'!$G:$G)*A78 -> 0 | H78: Revenue Expenditure
A79: 1 | C79: E 07 | D79: 10271 | E79: LAUNDRY WORKERS - Pay | F79: =SUMIF('FMS6 Report'!$B:$B,$D79&"*",'FMS6 Report'!$E:$E)*A79 -> 0 | G79: =SUMIF('FMS6 Report'!$B:$B,$D79&"*",'FMS6 Report'!$G:$G)*A79 -> 0 | H79: Revenue Expenditure
A80: 1 | C80: E 07 | D80: 10272 | E80: LAUNDRY WORKERS - Sick | F80: =SUMIF('FMS6 Report'!$B:$B,$D80&"*",'FMS6 Report'!$E:$E)*A80 -> 0 | G80: =SUMIF('FMS6 Report'!$B:$B,$D80&"*",'FMS6 Report'!$G:$G)*A80 -> 0 | H80: Revenue Expenditure
A81: 1 | C81: E 07 | D81: 10274 | E81: LAUNDRY WORKERS - Overtime | F81: =SUMIF('FMS6 Report'!$B:$B,$D81&"*",'FMS6 Report'!$E:$E)*A81 -> 0 | G81: =SUMIF('FMS6 Report'!$B:$B,$D81&"*",'FMS6 Report'!$G:$G)*A81 -> 0 | H81: Revenue Expenditure
A82: 1 | C82: E 07 | D82: 10278 | E82: LAUNDRY WORKERS - Super | F82: =SUMIF('FMS6 Report'!$B:$B,$D82&"*",'FMS6 Report'!$E:$E)*A82 -> 0 | G82: =SUMIF('FMS6 Report'!$B:$B,$D82&"*",'FMS6 Report'!$G:$G)*A82 -> 0 | H82: Revenue Expenditure
A83: 1 | C83: E 07 | D83: 10279 | E83: LAUNDRY WORKERS - NI | F83: =SUMIF('FMS6 Report'!$B:$B,$D83&"*",'FMS6 Report'!$E:$E)*A83 -> 0 | G83: =SUMIF('FMS6 Report'!$B:$B,$D83&"*",'FMS6 Report'!$G:$G)*A83 -> 0 | H83: Revenue Expenditure
A84: 1 | C84: E 07 | D84: 10281 | E84: DEPT SUPPORT - Pay | F84: =SUMIF('FMS6 Report'!$B:$B,$D84&"*",'FMS6 Report'!$E:$E)*A84 -> 0 | G84: =SUMIF('FMS6 Report'!$B:$B,$D84&"*",'FMS6 Report'!$G:$G)*A84 -> 0 | H84: Revenue Expenditure
A85: 1 | C85: E 07 | D85: 10282 | E85: DEPT SUPPORT - Sick Pay | F85: =SUMIF('FMS6 Report'!$B:$B,$D85&"*",'FMS6 Report'!$E:$E)*A85 -> 0 | G85: =SUMIF('FMS6 Report'!$B:$B,$D85&"*",'FMS6 Report'!$G:$G)*A85 -> 0 | H85: Revenue Expenditure
A86: 1 | C86: E 07 | D86: 10284 | E86: DEPT SUPPORT - Overtime | F86: =SUMIF('FMS6 Report'!$B:$B,$D86&"*",'FMS6 Report'!$E:$E)*A86 -> 0 | G86: =SUMIF('FMS6 Report'!$B:$B,$D86&"*",'FMS6 Report'!$G:$G)*A86 -> 0 | H86: Revenue Expenditure
A87: 1 | C87: E 07 | D87: 10288 | E87: DEPT SUPPORT - Super | F87: =SUMIF('FMS6 Report'!$B:$B,$D87&"*",'FMS6 Report'!$E:$E)*A87 -> 0 | G87: =SUMIF('FMS6 Report'!$B:$B,$D87&"*",'FMS6 Report'!$G:$G)*A87 -> 0 | H87: Revenue Expenditure
A88: 1 | C88: E 07 | D88: 10289 | E88: DEPT SUPPORT - NI | F88: =SUMIF('FMS6 Report'!$B:$B,$D88&"*",'FMS6 Report'!$E:$E)*A88 -> 0 | G88: =SUMIF('FMS6 Report'!$B:$B,$D88&"*",'FMS6 Report'!$G:$G)*A88 -> 0 | H88: Revenue Expenditure
A89: 1 | C89: E 07 | D89: 10401 | E89: SOCIAL WORKERS - Pay | F89: =SUMIF('FMS6 Report'!$B:$B,$D89&"*",'FMS6 Report'!$E:$E)*A89 -> 0 | G89: =SUMIF('FMS6 Report'!$B:$B,$D89&"*",'FMS6 Report'!$G:$G)*A89 -> 0 | H89: Revenue Expenditure
A90: 1 | C90: E 07 | D90: 10402 | E90: SOCIAL WORKERS - Sick Pay | F90: =SUMIF('FMS6 Report'!$B:$B,$D90&"*",'FMS6 Report'!$E:$E)*A90 -> 0 | G90: =SUMIF('FMS6 Report'!$B:$B,$D90&"*",'FMS6 Report'!$G:$G)*A90 -> 0 | H90: Revenue Expenditure
A91: 1 | C91: E 07 | D91: 10404 | E91: SOCIAL WORKERS - Overtime | F91: =SUMIF('FMS6 Report'!$B:$B,$D91&"*",'FMS6 Report'!$E:$E)*A91 -> 0 | G91: =SUMIF('FMS6 Report'!$B:$B,$D91&"*",'FMS6 Report'!$G:$G)*A91 -> 0 | H91: Revenue Expenditure
A92: 1 | C92: E 07 | D92: 10408 | E92: SOCIAL WORKERS - Super | F92: =SUMIF('FMS6 Report'!$B:$B,$D92&"*",'FMS6 Report'!$E:$E)*A92 -> 0 | G92: =SUMIF('FMS6 Report'!$B:$B,$D92&"*",'FMS6 Report'!$G:$G)*A92 -> 0 | H92: Revenue Expenditure
A93: 1 | C93: E 07 | D93: 10409 | E93: SOCIAL WORKERS - NI | F93: =SUMIF('FMS6 Report'!$B:$B,$D93&"*",'FMS6 Report'!$E:$E)*A93 -> 0 | G93: =SUMIF('FMS6 Report'!$B:$B,$D93&"*",'FMS6 Report'!$G:$G)*A93 -> 0 | H93: Revenue Expenditure
A94: 1 | C94: E 07 | D94: 10451 | E94: RESIDENTIAL SUPPORT WORKERS - Pay | F94: =SUMIF('FMS6 Report'!$B:$B,$D94&"*",'FMS6 Report'!$E:$E)*A94 -> 0 | G94: =SUMIF('FMS6 Report'!$B:$B,$D94&"*",'FMS6 Report'!$G:$G)*A94 -> 0 | H94: Revenue Expenditure
A95: 1 | C95: E 07 | D95: 10452 | E95: RESIDENTIAL SUPPORT WORKERS - Sick Pay | F95: =SUMIF('FMS6 Report'!$B:$B,$D95&"*",'FMS6 Report'!$E:$E)*A95 -> 0 | G95: =SUMIF('FMS6 Report'!$B:$B,$D95&"*",'FMS6 Report'!$G:$G)*A95 -> 0 | H95: Revenue Expenditure
A96: 1 | C96: E 07 | D96: 10454 | E96: RESIDENTIAL SUPPORT WORKERS - Overtime | F96: =SUMIF('FMS6 Report'!$B:$B,$D96&"*",'FMS6 Report'!$E:$E)*A96 -> 0 | G96: =SUMIF('FMS6 Report'!$B:$B,$D96&"*",'FMS6 Report'!$G:$G)*A96 -> 0 | H96: Revenue Expenditure
A97: 1 | C97: E 07 | D97: 10458 | E97: RESIDENTIAL SUPPORT WORKERS - Super | F97: =SUMIF('FMS6 Report'!$B:$B,$D97&"*",'FMS6 Report'!$E:$E)*A97 -> 0 | G97: =SUMIF('FMS6 Report'!$B:$B,$D97&"*",'FMS6 Report'!$G:$G)*A97 -> 0 | H97: Revenue Expenditure
A98: 1 | C98: E 07 | D98: 10459 | E98: RESIDENTIAL SUPPORT WORKERS - NI | F98: =SUMIF('FMS6 Report'!$B:$B,$D98&"*",'FMS6 Report'!$E:$E)*A98 -> 0 | G98: =SUMIF('FMS6 Report'!$B:$B,$D98&"*",'FMS6 Report'!$G:$G)*A98 -> 0 | H98: Revenue Expenditure
A99: 1 | C99: E 05 | D99: 10831 | E99: BURSARS, ADMIN & CLERICAL - Pay | F99: =SUMIF('FMS6 Report'!$B:$B,$D99&"*",'FMS6 Report'!$E:$E)*A99 -> 0 | G99: =SUMIF('FMS6 Report'!$B:$B,$D99&"*",'FMS6 Report'!$G:$G)*A99 -> 0 | H99: Revenue Expenditure
A100: 1 | C100: E 05 | D100: 10832 | E100: BURSARS, ADMIN & CLERICAL - Sick Pay | F100: =SUMIF('FMS6 Report'!$B:$B,$D100&"*",'FMS6 Report'!$E:$E)*A100 -> 0 | G100: =SUMIF('FMS6 Report'!$B:$B,$D100&"*",'FMS6 Report'!$G:$G)*A100 -> 0 | H100: Revenue Expenditure
A101: 1 | C101: E 05 | D101: 10834 | E101: BURSARS, ADMIN & CLERICAL - Overtime | F101: =SUMIF('FMS6 Report'!$B:$B,$D101&"*",'FMS6 Report'!$E:$E)*A101 -> 0 | G101: =SUMIF('FMS6 Report'!$B:$B,$D101&"*",'FMS6 Report'!$G:$G)*A101 -> 0 | H101: Revenue Expenditure
A102: 1 | C102: E 28A | D102: 10835 | E102: ADMIN & CLERICAL AGENCY SUPPLY | F102: =SUMIF('FMS6 Report'!$B:$B,$D102&"*",'FMS6 Report'!$E:$E)*A102 -> 0 | G102: =SUMIF('FMS6 Report'!$B:$B,$D102&"*",'FMS6 Report'!$G:$G)*A102 -> 0 | H102: Revenue Expenditure
A103: 1 | C103: E 05 | D103: 10838 | E103: BURSARS, ADMIN & CLERICAL - Super | F103: =SUMIF('FMS6 Report'!$B:$B,$D103&"*",'FMS6 Report'!$E:$E)*A103 -> 0 | G103: =SUMIF('FMS6 Report'!$B:$B,$D103&"*",'FMS6 Report'!$G:$G)*A103 -> 0 | H103: Revenue Expenditure
A104: 1 | C104: E 05 | D104: 10839 | E104: BURSARS, ADMIN & CLERICAL - NI | F104: =SUMIF('FMS6 Report'!$B:$B,$D104&"*",'FMS6 Report'!$E:$E)*A104 -> 0 | G104: =SUMIF('FMS6 Report'!$B:$B,$D104&"*",'FMS6 Report'!$G:$G)*A104 -> 0 | H104: Revenue Expenditure
A105: 1 | C105: E 04 | D105: 10841 | E105: MANUAL WORKERS - Pay | F105: =SUMIF('FMS6 Report'!$B:$B,$D105&"*",'FMS6 Report'!$E:$E)*A105 -> 0 | G105: =SUMIF('FMS6 Report'!$B:$B,$D105&"*",'FMS6 Report'!$G:$G)*A105 -> 0 | H105: Revenue Expenditure
A106: 1 | C106: E 04 | D106: 10842 | E106: MANUAL WORKERS - Sick Pay | F106: =SUMIF('FMS6 Report'!$B:$B,$D106&"*",'FMS6 Report'!$E:$E)*A106 -> 0 | G106: =SUMIF('FMS6 Report'!$B:$B,$D106&"*",'FMS6 Report'!$G:$G)*A106 -> 0 | H106: Revenue Expenditure
A107: 1 | C107: E 04 | D107: 10844 | E107: MANUAL WORKERS - Overtime | F107: =SUMIF('FMS6 Report'!$B:$B,$D107&"*",'FMS6 Report'!$E:$E)*A107 -> 0 | G107: =SUMIF('FMS6 Report'!$B:$B,$D107&"*",'FMS6 Report'!$G:$G)*A107 -> 0 | H107: Revenue Expenditure
A108: 1 | C108: E 04 | D108: 10848 | E108: MANUAL WORKERS - Super | F108: =SUMIF('FMS6 Report'!$B:$B,$D108&"*",'FMS6 Report'!$E:$E)*A108 -> 0 | G108: =SUMIF('FMS6 Report'!$B:$B,$D108&"*",'FMS6 Report'!$G:$G)*A108 -> 0 | H108: Revenue Expenditure
A109: 1 | C109: E 04 | D109: 10849 | E109: MANUAL WORKERS - NI | F109: =SUMIF('FMS6 Report'!$B:$B,$D109&"*",'FMS6 Report'!$E:$E)*A109 -> 0 | G109: =SUMIF('FMS6 Report'!$B:$B,$D109&"*",'FMS6 Report'!$G:$G)*A109 -> 0 | H109: Revenue Expenditure
A110: 1 | C110: E 06 | D110: 10851 | E110: CATERING STAFF - Pay | F110: =SUMIF('FMS6 Report'!$B:$B,$D110&"*",'FMS6 Report'!$E:$E)*A110 -> 0 | G110: =SUMIF('FMS6 Report'!$B:$B,$D110&"*",'FMS6 Report'!$G:$G)*A110 -> 0 | H110: Revenue Expenditure
A111: 1 | C111: E 06 | D111: 10852 | E111: CATERING STAFF - Sick Pay | F111: =SUMIF('FMS6 Report'!$B:$B,$D111&"*",'FMS6 Report'!$E:$E)*A111 -> 0 | G111: =SUMIF('FMS6 Report'!$B:$B,$D111&"*",'FMS6 Report'!$G:$G)*A111 -> 0 | H111: Revenue Expenditure
A112: 1 | C112: E 06 | D112: 10854 | E112: CATERING STAFF - Overtime | F112: =SUMIF('FMS6 Report'!$B:$B,$D112&"*",'FMS6 Report'!$E:$E)*A112 -> 0 | G112: =SUMIF('FMS6 Report'!$B:$B,$D112&"*",'FMS6 Report'!$G:$G)*A112 -> 0 | H112: Revenue Expenditure
A113: 1 | C113: E 06 | D113: 10858 | E113: CATERING STAFF - Super | F113: =SUMIF('FMS6 Report'!$B:$B,$D113&"*",'FMS6 Report'!$E:$E)*A113 -> 0 | G113: =SUMIF('FMS6 Report'!$B:$B,$D113&"*",'FMS6 Report'!$G:$G)*A113 -> 0 | H113: Revenue Expenditure
A114: 1 | C114: E 06 | D114: 10859 | E114: CATERING STAFF - NI | F114: =SUMIF('FMS6 Report'!$B:$B,$D114&"*",'FMS6 Report'!$E:$E)*A114 -> 0 | G114: =SUMIF('FMS6 Report'!$B:$B,$D114&"*",'FMS6 Report'!$G:$G)*A114 -> 0 | H114: Revenue Expenditure
A115: 1 | C115: E 04 | D115: 10861 | E115: PREMISES STAFF - Pay | F115: =SUMIF('FMS6 Report'!$B:$B,$D115&"*",'FMS6 Report'!$E:$E)*A115 -> 0 | G115: =SUMIF('FMS6 Report'!$B:$B,$D115&"*",'FMS6 Report'!$G:$G)*A115 -> 0 | H115: Revenue Expenditure
A116: 1 | C116: E 04 | D116: 10862 | E116: PREMISES STAFF - Sick Pay | F116: =SUMIF('FMS6 Report'!$B:$B,$D116&"*",'FMS6 Report'!$E:$E)*A116 -> 0 | G116: =SUMIF('FMS6 Report'!$B:$B,$D116&"*",'FMS6 Report'!$G:$G)*A116 -> 0 | H116: Revenue Expenditure
A117: 1 | C117: E 04 | D117: 10864 | E117: PREMISES STAFF - Overtime | F117: =SUMIF('FMS6 Report'!$B:$B,$D117&"*",'FMS6 Report'!$E:$E)*A117 -> 0 | G117: =SUMIF('FMS6 Report'!$B:$B,$D117&"*",'FMS6 Report'!$G:$G)*A117 -> 0 | H117: Revenue Expenditure
A118: 1 | C118: E 04 | D118: 10868 | E118: PREMISES STAFF - Super | F118: =SUMIF('FMS6 Report'!$B:$B,$D118&"*",'FMS6 Report'!$E:$E)*A118 -> 0 | G118: =SUMIF('FMS6 Report'!$B:$B,$D118&"*",'FMS6 Report'!$G:$G)*A118 -> 0 | H118: Revenue Expenditure
A119: 1 | C119: E 04 | D119: 10869 | E119: PREMISES STAFF - NI | F119: =SUMIF('FMS6 Report'!$B:$B,$D119&"*",'FMS6 Report'!$E:$E)*A119 -> 0 | G119: =SUMIF('FMS6 Report'!$B:$B,$D119&"*",'FMS6 Report'!$G:$G)*A119 -> 0 | H119: Revenue Expenditure
A120: 1 | C120: E 07 | D120: 10881 | E120: TRANSPORT STAFF - Pay | F120: =SUMIF('FMS6 Report'!$B:$B,$D120&"*",'FMS6 Report'!$E:$E)*A120 -> 0 | G120: =SUMIF('FMS6 Report'!$B:$B,$D120&"*",'FMS6 Report'!$G:$G)*A120 -> 0 | H120: Revenue Expenditure
A121: 1 | C121: E 07 | D121: 10882 | E121: TRANSPORT STAFF - Sick Pay | F121: =SUMIF('FMS6 Report'!$B:$B,$D121&"*",'FMS6 Report'!$E:$E)*A121 -> 0 | G121: =SUMIF('FMS6 Report'!$B:$B,$D121&"*",'FMS6 Report'!$G:$G)*A121 -> 0 | H121: Revenue Expenditure
A122: 1 | C122: E 07 | D122: 10884 | E122: TRANSPORT STAFF - Overtime | F122: =SUMIF('FMS6 Report'!$B:$B,$D122&"*",'FMS6 Report'!$E:$E)*A122 -> 0 | G122: =SUMIF('FMS6 Report'!$B:$B,$D122&"*",'FMS6 Report'!$G:$G)*A122 -> 0 | H122: Revenue Expenditure
A123: 1 | C123: E 07 | D123: 10888 | E123: TRANSPORT STAFF - Super | F123: =SUMIF('FMS6 Report'!$B:$B,$D123&"*",'FMS6 Report'!$E:$E)*A123 -> 0 | G123: =SUMIF('FMS6 Report'!$B:$B,$D123&"*",'FMS6 Report'!$G:$G)*A123 -> 0 | H123: Revenue Expenditure
A124: 1 | C124: E 07 | D124: 10889 | E124: TRANSPORT STAFF - NI | F124: =SUMIF('FMS6 Report'!$B:$B,$D124&"*",'FMS6 Report'!$E:$E)*A124 -> 0 | G124: =SUMIF('FMS6 Report'!$B:$B,$D124&"*",'FMS6 Report'!$G:$G)*A124 -> 0 | H124: Revenue Expenditure
A125: 1 | C125: E 07 | D125: 10901 | E125: OTHER (Sessional Support) STAFF - Pay | F125: =SUMIF('FMS6 Report'!$B:$B,$D125&"*",'FMS6 Report'!$E:$E)*A125 -> 0 | G125: =SUMIF('FMS6 Report'!$B:$B,$D125&"*",'FMS6 Report'!$G:$G)*A125 -> 0 | H125: Revenue Expenditure
A126: 1 | C126: E 07 | D126: 10902 | E126: OTHER (Sessional Support) STAFF - Sick Pay | F126: =SUMIF('FMS6 Report'!$B:$B,$D126&"*",'FMS6 Report'!$E:$E)*A126 -> 0 | G126: =SUMIF('FMS6 Report'!$B:$B,$D126&"*",'FMS6 Report'!$G:$G)*A126 -> 0 | H126: Revenue Expenditure
A127: 1 | C127: E 07 | D127: 10904 | E127: OTHER (Sessional Support) STAFF - Overtime | F127: =SUMIF('FMS6 Report'!$B:$B,$D127&"*",'FMS6 Report'!$E:$E)*A127 -> 0 | G127: =SUMIF('FMS6 Report'!$B:$B,$D127&"*",'FMS6 Report'!$G:$G)*A127 -> 0 | H127: Revenue Expenditure
A128: 1 | C128: E 07 | D128: 10908 | E128: OTHER (Sessional Support) STAFF - Super | F128: =SUMIF('FMS6 Report'!$B:$B,$D128&"*",'FMS6 Report'!$E:$E)*A128 -> 0 | G128: =SUMIF('FMS6 Report'!$B:$B,$D128&"*",'FMS6 Report'!$G:$G)*A128 -> 0 | H128: Revenue Expenditure
A129: 1 | C129: E 07 | D129: 10909 | E129: OTHER (Sessional Support) STAFF - NI | F129: =SUMIF('FMS6 Report'!$B:$B,$D129&"*",'FMS6 Report'!$E:$E)*A129 -> 0 | G129: =SUMIF('FMS6 Report'!$B:$B,$D129&"*",'FMS6 Report'!$G:$G)*A129 -> 0 | H129: Revenue Expenditure
A130: 1 | C130: E 07 | D130: 11010 | E130: HONORARIA - Pay | F130: =SUMIF('FMS6 Report'!$B:$B,$D130&"*",'FMS6 Report'!$E:$E)*A130 -> 0 | G130: =SUMIF('FMS6 Report'!$B:$B,$D130&"*",'FMS6 Report'!$G:$G)*A130 -> 0 | H130: Revenue Expenditure
A131: 1 | C131: E 07 | D131: 11018 | E131: HONORARIA - Super | F131: =SUMIF('FMS6 Report'!$B:$B,$D131&"*",'FMS6 Report'!$E:$E)*A131 -> 0 | G131: =SUMIF('FMS6 Report'!$B:$B,$D131&"*",'FMS6 Report'!$G:$G)*A131 -> 0 | H131: Revenue Expenditure
A132: 1 | C132: E 07 | D132: 11019 | E132: HONORARIA - NI | F132: =SUMIF('FMS6 Report'!$B:$B,$D132&"*",'FMS6 Report'!$E:$E)*A132 -> 0 | G132: =SUMIF('FMS6 Report'!$B:$B,$D132&"*",'FMS6 Report'!$G:$G)*A132 -> 0 | H132: Revenue Expenditure
A133: 1 | C133: E 08 | D133: 11020 | E133: EMPLOYEE PROFESSIONAL FEES | F133: =SUMIF('FMS6 Report'!$B:$B,$D133&"*",'FMS6 Report'!$E:$E)*A133 -> 0 | G133: =SUMIF('FMS6 Report'!$B:$B,$D133&"*",'FMS6 Report'!$G:$G)*A133 -> 0 | H133: Revenue Expenditure
A134: 1 | C134: E 08 | D134: 11030 | E134: INTERVIEW EXPENSES | F134: =SUMIF('FMS6 Report'!$B:$B,$D134&"*",'FMS6 Report'!$E:$E)*A134 -> 0 | G134: =SUMIF('FMS6 Report'!$B:$B,$D134&"*",'FMS6 Report'!$G:$G)*A134 -> 0 | H134: Revenue Expenditure
A135: 1 | C135: E 08 | D135: 11050 | E135: OPTICAL AID EXPENSES | F135: =SUMIF('FMS6 Report'!$B:$B,$D135&"*",'FMS6 Report'!$E:$E)*A135 -> 0 | G135: =SUMIF('FMS6 Report'!$B:$B,$D135&"*",'FMS6 Report'!$G:$G)*A135 -> 0 | H135: Revenue Expenditure
A136: 1 | C136: E 08 | D136: 11080 | E136: REDUNDANCY | F136: =SUMIF('FMS6 Report'!$B:$B,$D136&"*",'FMS6 Report'!$E:$E)*A136 -> 0 | G136: =SUMIF('FMS6 Report'!$B:$B,$D136&"*",'FMS6 Report'!$G:$G)*A136 -> 0 | H136: =IF(C136="","",IF(LEFT(C136,1)="E","Revenue Expenditure",IF(LEFT(C136,1)="I","Revenue Income",IF(LEFT(C136,2)="CI","Capital Income",IF(LEFT(C136,2)="CE","Capital Expenditure","Incorrect CFR REF"))))) -> Revenue Expenditure
A137: =IF(ISNUMBER(SEARCH("*Expenditure*",H137)),1,IF(OR(ISNUMBER(SEARCH("*Income*",H137)),ISNUMBER(SEARCH("*BFWD BALANCES*",H137))),-1,0)) -> 1 | C137: E 08 | D137: 11090 | E137: GRATUITIES Inc KIDDIE VOUCHER COSTS | F137: =SUMIF('FMS6 Report'!$B:$B,$D137&"*",'FMS6 Report'!$E:$E)*A137 -> 0 | G137: =SUMIF('FMS6 Report'!$B:$B,$D137&"*",'FMS6 Report'!$G:$G)*A137 -> 0 | H137: Revenue Expenditure
A138: 1 | C138: E 08 | D138: 11100 | E138: RECRUITMENT ADVERTISING | F138: =SUMIF('FMS6 Report'!$B:$B,$D138&"*",'FMS6 Report'!$E:$E)*A138 -> 0 | G138: =SUMIF('FMS6 Report'!$B:$B,$D138&"*",'FMS6 Report'!$G:$G)*A138 -> 0 | H138: Revenue Expenditure
A139: 1 | C139: E 08 | D139: 11110 | E139: POLICE CHECK FEES | F139: =SUMIF('FMS6 Report'!$B:$B,$D139&"*",'FMS6 Report'!$E:$E)*A139 -> 0 | G139: =SUMIF('FMS6 Report'!$B:$B,$D139&"*",'FMS6 Report'!$G:$G)*A139 -> 0 | H139: Revenue Expenditure
A140: 1 | C140: E 08 | D140: 11120 | E140: EMPLOYEE MEDICAL EXPS. | F140: =SUMIF('FMS6 Report'!$B:$B,$D140&"*",'FMS6 Report'!$E:$E)*A140 -> 0 | G140: =SUMIF('FMS6 Report'!$B:$B,$D140&"*",'FMS6 Report'!$G:$G)*A140 -> 0 | H140: Revenue Expenditure
A141: 1 | C141: E 08 | D141: 11140 | E141: RELOCATION EXPS. | F141: =SUMIF('FMS6 Report'!$B:$B,$D141&"*",'FMS6 Report'!$E:$E)*A141 -> 0 | G141: =SUMIF('FMS6 Report'!$B:$B,$D141&"*",'FMS6 Report'!$G:$G)*A141 -> 0 | H141: Revenue Expenditure
A142: 1 | C142: E 09 | D142: 11150 | E142: STAFF TRAINING | F142: =SUMIF('FMS6 Report'!$B:$B,$D142&"*",'FMS6 Report'!$E:$E)*A142 -> 0 | G142: =SUMIF('FMS6 Report'!$B:$B,$D142&"*",'FMS6 Report'!$G:$G)*A142 -> 0 | H142: Revenue Expenditure
A143: 1 | C143: E 11 | D143: 11170 | E143: OTHER STAFF RELATED INSURANCE PREMIUMS | F143: =SUMIF('FMS6 Report'!$B:$B,$D143&"*",'FMS6 Report'!$E:$E)*A143 -> 0 | G143: =SUMIF('FMS6 Report'!$B:$B,$D143&"*",'FMS6 Report'!$G:$G)*A143 -> 0 | H143: Revenue Expenditure
A144: 1 | C144: E 08 | D144: 11680 | E144: ENHANCED PENS.-LOCALLY FUNDED | F144: =SUMIF('FMS6 Report'!$B:$B,$D144&"*",'FMS6 Report'!$E:$E)*A144 -> 0 | G144: =SUMIF('FMS6 Report'!$B:$B,$D144&"*",'FMS6 Report'!$G:$G)*A144 -> 0 | H144: Revenue Expenditure
A145: 1 | C145: E 08 | D145: 11720 | E145: ER CHRG-PEN FUND | F145: =SUMIF('FMS6 Report'!$B:$B,$D145&"*",'FMS6 Report'!$E:$E)*A145 -> 0 | G145: =SUMIF('FMS6 Report'!$B:$B,$D145&"*",'FMS6 Report'!$G:$G)*A145 -> 0 | H145: Revenue Expenditure
A146: 1 | C146: E 08 | D146: 11770 | E146: SALARY OVERPAYMENT | F146: =SUMIF('FMS6 Report'!$B:$B,$D146&"*",'FMS6 Report'!$E:$E)*A146 -> 0 | G146: =SUMIF('FMS6 Report'!$B:$B,$D146&"*",'FMS6 Report'!$G:$G)*A146 -> 0 | H146: Revenue Expenditure
A147: 1 | C147: E 08 | D147: 11775 | E147: NET OVERPAYMENT CARRY FORWARD | F147: =SUMIF('FMS6 Report'!$B:$B,$D147&"*",'FMS6 Report'!$E:$E)*A147 -> 0 | G147: =SUMIF('FMS6 Report'!$B:$B,$D147&"*",'FMS6 Report'!$G:$G)*A147 -> 0 | H147: Revenue Expenditure
A148: 1 | C148: E 27 | D148: 13035 | E148: AGENCY SUPPLY - EDUCATIONAL SUPPORT STAFF | F148: =SUMIF('FMS6 Report'!$B:$B,$D148&"*",'FMS6 Report'!$E:$E)*A148 -> 0 | G148: =SUMIF('FMS6 Report'!$B:$B,$D148&"*",'FMS6 Report'!$G:$G)*A148 -> 0 | H148: Revenue Expenditure
A149: 1 | C149: E 12 | D149: 20060 | E149: PREMISES REPAIRS & MAINTENANCE | F149: =SUMIF('FMS6 Report'!$B:$B,$D149&"*",'FMS6 Report'!$E:$E)*A149 -> 0 | G149: =SUMIF('FMS6 Report'!$B:$B,$D149&"*",'FMS6 Report'!$G:$G)*A149 -> 0 | H149: Revenue Expenditure
A150: 1 | C150: E 13 | D150: 20110 | E150: GROUNDS MAINTENANCE | F150: =SUMIF('FMS6 Report'!$B:$B,$D150&"*",'FMS6 Report'!$E:$E)*A150 -> 0 | G150: =SUMIF('FMS6 Report'!$B:$B,$D150&"*",'FMS6 Report'!$G:$G)*A150 -> 0 | H150: Revenue Expenditure
A151: 1 | C151: CE 02 | D151: 20130 | E151: DEVOLVED FORMULA CAPITAL EXPENDITURE - CONSTRUCTION, CONVERSION & RENOVATION | F151: =SUMIF('FMS6 Report'!$B:$B,$D151&"*",'FMS6 Report'!$E:$E)*A151 -> 0 | G151: =SUMIF('FMS6 Report'!$B:$B,$D151&"*",'FMS6 Report'!$G:$G)*A151 -> 0 | H151: Capital Expenditure
A152: =IF(ISNUMBER(SEARCH("*Expenditure*",H152)),1,IF(OR(ISNUMBER(SEARCH("*Income*",H152)),ISNUMBER(SEARCH("*BFWD BALANCES*",H152))),-1,0)) -> 1 | C152: CE 04 | D152: 20140 | E152: CAPITAL EXPENDITURE - ICT | F152: =SUMIF('FMS6 Report'!$B:$B,$D152&"*",'FMS6 Report'!$E:$E)*A152 -> 0 | G152: =SUMIF('FMS6 Report'!$B:$B,$D152&"*",'FMS6 Report'!$G:$G)*A152 -> 0 | H152: =IF(C152="","",IF(LEFT(C152,1)="E","Revenue Expenditure",IF(LEFT(C152,1)="I","Revenue Income",IF(LEFT(C152,2)="CI","Capital Income",IF(LEFT(C152,2)="CE","Capital Expenditure","Incorrect CFR REF"))))) -> Capital Expenditure | I152: Balance should be ZERO, the reference and GL code will be removed
A153: 1 | C153: CE 04A | D153: 20141 | E153: Capital Connectivity | F153: =SUMIF('FMS6 Report'!$B:$B,$D153&"*",'FMS6 Report'!$E:$E)*A153 -> 0 | G153: =SUMIF('FMS6 Report'!$B:$B,$D153&"*",'FMS6 Report'!$G:$G)*A153 -> 0 | H153: Capital Expenditure
A154: 1 | C154: CE 04B | D154: 20142 | E154: Capital Onsite servers | F154: =SUMIF('FMS6 Report'!$B:$B,$D154&"*",'FMS6 Report'!$E:$E)*A154 -> 0 | G154: =SUMIF('FMS6 Report'!$B:$B,$D154&"*",'FMS6 Report'!$G:$G)*A154 -> 0 | H154: Capital Expenditure
A155: =IF(ISNUMBER(SEARCH("*Expenditure*",H155)),1,IF(OR(ISNUMBER(SEARCH("*Income*",H155)),ISNUMBER(SEARCH("*BFWD BALANCES*",H155))),-1,0)) -> 1 | C155: CE 04C | D155: 20143 | E155: Capital Administration software and systems | F155: =SUMIF('FMS6 Report'!$B:$B,$D155&"*",'FMS6 Report'!$E:$E)*A155 -> 0 | G155: =SUMIF('FMS6 Report'!$B:$B,$D155&"*",'FMS6 Report'!$G:$G)*A155 -> 0 | H155: =IF(C155="","",IF(LEFT(C155,1)="E","Revenue Expenditure",IF(LEFT(C155,1)="I","Revenue Income",IF(LEFT(C155,2)="CI","Capital Income",IF(LEFT(C155,2)="CE","Capital Expenditure","Incorrect CFR REF"))))) -> Capital Expenditure
A156: 1 | C156: CE 04D | D156: 20144 | E156: Capital Laptops, desktops, and tablets | F156: =SUMIF('FMS6 Report'!$B:$B,$D156&"*",'FMS6 Report'!$E:$E)*A156 -> 0 | G156: =SUMIF('FMS6 Report'!$B:$B,$D156&"*",'FMS6 Report'!$G:$G)*A156 -> 0 | H156: Capital Expenditure
A157: 1 | C157: CE 04E | D157: 20145 | E157: Capital Other hardware | F157: =SUMIF('FMS6 Report'!$B:$B,$D157&"*",'FMS6 Report'!$E:$E)*A157 -> 0 | G157: =SUMIF('FMS6 Report'!$B:$B,$D157&"*",'FMS6 Report'!$G:$G)*A157 -> 0 | H157: Capital Expenditure
A158: 1 | C158: CE 02 | D158: 20190 | E158: CAPITAL PROJECTS NON GCC | F158: =SUMIF('FMS6 Report'!$B:$B,$D158&"*",'FMS6 Report'!$E:$E)*A158 -> 0 | G158: =SUMIF('FMS6 Report'!$B:$B,$D158&"*",'FMS6 Report'!$G:$G)*A158 -> 0 | H158: Capital Expenditure
A159: 1 | C159: E 18 | D159: 20200 | E159: SECURITY, ALARMS ETC | F159: =SUMIF('FMS6 Report'!$B:$B,$D159&"*",'FMS6 Report'!$E:$E)*A159 -> 0 | G159: =SUMIF('FMS6 Report'!$B:$B,$D159&"*",'FMS6 Report'!$G:$G)*A159 -> 0 | H159: Revenue Expenditure
A160: 1 | C160: E 16 | D160: 21010 | E160: ELECTRICITY | F160: =SUMIF('FMS6 Report'!$B:$B,$D160&"*",'FMS6 Report'!$E:$E)*A160 -> 0 | G160: =SUMIF('FMS6 Report'!$B:$B,$D160&"*",'FMS6 Report'!$G:$G)*A160 -> 0 | H160: Revenue Expenditure
A161: 1 | C161: E 16 | D161: 21020 | E161: GAS | F161: =SUMIF('FMS6 Report'!$B:$B,$D161&"*",'FMS6 Report'!$E:$E)*A161 -> 0 | G161: =SUMIF('FMS6 Report'!$B:$B,$D161&"*",'FMS6 Report'!$G:$G)*A161 -> 0 | H161: Revenue Expenditure
A162: 1 | C162: E 16 | D162: 21030 | E162: OTHER FUEL (incl. Fuel Oil) | F162: =SUMIF('FMS6 Report'!$B:$B,$D162&"*",'FMS6 Report'!$E:$E)*A162 -> 0 | G162: =SUMIF('FMS6 Report'!$B:$B,$D162&"*",'FMS6 Report'!$G:$G)*A162 -> 0 | H162: Revenue Expenditure
A163: 1 | C163: E 18 | D163: 22000 | E163: RENTS | F163: =SUMIF('FMS6 Report'!$B:$B,$D163&"*",'FMS6 Report'!$E:$E)*A163 -> 0 | G163: =SUMIF('FMS6 Report'!$B:$B,$D163&"*",'FMS6 Report'!$G:$G)*A163 -> 0 | H163: Revenue Expenditure
A164: 1 | C164: E 18 | D164: 22030 | E164: HYGIENE MATERIALS/EQUIPMENT RENT/LEASE | F164: =SUMIF('FMS6 Report'!$B:$B,$D164&"*",'FMS6 Report'!$E:$E)*A164 -> 0 | G164: =SUMIF('FMS6 Report'!$B:$B,$D164&"*",'FMS6 Report'!$G:$G)*A164 -> 0 | H164: Revenue Expenditure
A165: 1 | C165: E 18 | D165: 22050 | E165: HIRE/USE OF ACCOMMODATION | F165: =SUMIF('FMS6 Report'!$B:$B,$D165&"*",'FMS6 Report'!$E:$E)*A165 -> 0 | G165: =SUMIF('FMS6 Report'!$B:$B,$D165&"*",'FMS6 Report'!$G:$G)*A165 -> 0 | H165: Revenue Expenditure
A166: 1 | C166: E 17 | D166: 22400 | E166: RATES | F166: =SUMIF('FMS6 Report'!$B:$B,$D166&"*",'FMS6 Report'!$E:$E)*A166 -> 0 | G166: =SUMIF('FMS6 Report'!$B:$B,$D166&"*",'FMS6 Report'!$G:$G)*A166 -> 0 | H166: Revenue Expenditure
A167: 1 | C167: E 15 | D167: 22700 | E167: WATER SERVICES | F167: =SUMIF('FMS6 Report'!$B:$B,$D167&"*",'FMS6 Report'!$E:$E)*A167 -> 0 | G167: =SUMIF('FMS6 Report'!$B:$B,$D167&"*",'FMS6 Report'!$G:$G)*A167 -> 0 | H167: Revenue Expenditure
A168: 1 | C168: E 18 | D168: 23020 | E168: FIRE EXTINGUISHER MAINTENANCE | F168: =SUMIF('FMS6 Report'!$B:$B,$D168&"*",'FMS6 Report'!$E:$E)*A168 -> 0 | G168: =SUMIF('FMS6 Report'!$B:$B,$D168&"*",'FMS6 Report'!$G:$G)*A168 -> 0 | H168: Revenue Expenditure
A169: 1 | C169: E 14 | D169: 25020 | E169: CLEANING & DOMESTIC SUPPLIES | F169: =SUMIF('FMS6 Report'!$B:$B,$D169&"*",'FMS6 Report'!$E:$E)*A169 -> 0 | G169: =SUMIF('FMS6 Report'!$B:$B,$D169&"*",'FMS6 Report'!$G:$G)*A169 -> 0 | H169: Revenue Expenditure
A170: 1 | C170: E 18 | D170: 25030 | E170: REFUSE COLLECTION & PEST CONTROL | F170: =SUMIF('FMS6 Report'!$B:$B,$D170&"*",'FMS6 Report'!$E:$E)*A170 -> 0 | G170: =SUMIF('FMS6 Report'!$B:$B,$D170&"*",'FMS6 Report'!$G:$G)*A170 -> 0 | H170: Revenue Expenditure
A171: 1 | C171: E 23 | D171: 25710 | E171: INSURANCE - PREMISES | F171: =SUMIF('FMS6 Report'!$B:$B,$D171&"*",'FMS6 Report'!$E:$E)*A171 -> 0 | G171: =SUMIF('FMS6 Report'!$B:$B,$D171&"*",'FMS6 Report'!$G:$G)*A171 -> 0 | H171: Revenue Expenditure
A172: 1 | C172: CE 03 | D172: 30010 | E172: VEHICLES, PLANT, EQUIPMENT AND MACHINERY | F172: =SUMIF('FMS6 Report'!$B:$B,$D172&"*",'FMS6 Report'!$E:$E)*A172 -> 0 | G172: =SUMIF('FMS6 Report'!$B:$B,$D172&"*",'FMS6 Report'!$G:$G)*A172 -> 0 | H172: Capital Expenditure
A173: 1 | C173: CE 03 | D173: 30011 | E173: DEVOLVED FORMULA CAPITAL EXPENDITURE - VEHICLES, PLANT, EQUIPMENT & MACHINERY | F173: =SUMIF('FMS6 Report'!$B:$B,$D173&"*",'FMS6 Report'!$E:$E)*A173 -> 0 | G173: =SUMIF('FMS6 Report'!$B:$B,$D173&"*",'FMS6 Report'!$G:$G)*A173 -> 0 | H173: Capital Expenditure
A174: =IF(ISNUMBER(SEARCH("*Expenditure*",H174)),1,IF(OR(ISNUMBER(SEARCH("*Income*",H174)),ISNUMBER(SEARCH("*BFWD BALANCES*",H174))),-1,0)) -> 1 | C174: E 16 | D174: 30070 | E174: FUEL/OIL | F174: =SUMIF('FMS6 Report'!$B:$B,$D174&"*",'FMS6 Report'!$E:$E)*A174 -> 0 | G174: =SUMIF('FMS6 Report'!$B:$B,$D174&"*",'FMS6 Report'!$G:$G)*A174 -> 0 | H174: =IF(C174="","",IF(LEFT(C174,1)="E","Revenue Expenditure",IF(LEFT(C174,1)="I","Revenue Income",IF(LEFT(C174,2)="CI","Capital Income",IF(LEFT(C174,2)="CE","Capital Expenditure","Incorrect CFR REF"))))) -> Revenue Expenditure
A175: 1 | C175: E 19 | D175: 30160 | E175: VEHICLES COSTS (Fuel/Lease/Hire/Insurance/Tax/Repairs) | F175: =SUMIF('FMS6 Report'!$B:$B,$D175&"*",'FMS6 Report'!$E:$E)*A175 -> 0 | G175: =SUMIF('FMS6 Report'!$B:$B,$D175&"*",'FMS6 Report'!$G:$G)*A175 -> 0 | H175: Revenue Expenditure
A176: 1 | C176: E 08 | D176: 32010 | E176: CAR CONTRACT HIRE/CHARGES | F176: =SUMIF('FMS6 Report'!$B:$B,$D176&"*",'FMS6 Report'!$E:$E)*A176 -> 0 | G176: =SUMIF('FMS6 Report'!$B:$B,$D176&"*",'FMS6 Report'!$G:$G)*A176 -> 0 | H176: Revenue Expenditure
A177: 1 | C177: E 08 | D177: 33020 | E177: BUSINESS TRAVEL EXPENSES | F177: =SUMIF('FMS6 Report'!$B:$B,$D177&"*",'FMS6 Report'!$E:$E)*A177 -> 0 | G177: =SUMIF('FMS6 Report'!$B:$B,$D177&"*",'FMS6 Report'!$G:$G)*A177 -> 0 | H177: Revenue Expenditure
A178: 1 | C178: E 23 | D178: 34010 | E178: VEHICLE/PLANT INSURANCES | F178: =SUMIF('FMS6 Report'!$B:$B,$D178&"*",'FMS6 Report'!$E:$E)*A178 -> 0 | G178: =SUMIF('FMS6 Report'!$B:$B,$D178&"*",'FMS6 Report'!$G:$G)*A178 -> 0 | H178: Revenue Expenditure
A179: 1 | C179: E 22 | D179: 40000 | E179: ADMIN FURNITURE/EQUIPMENT (inc computers & consumables) | F179: =SUMIF('FMS6 Report'!$B:$B,$D179&"*",'FMS6 Report'!$E:$E)*A179 -> 0 | G179: =SUMIF('FMS6 Report'!$B:$B,$D179&"*",'FMS6 Report'!$G:$G)*A179 -> 0 | H179: Revenue Expenditure
A180: =IF(ISNUMBER(SEARCH("*Expenditure*",H180)),1,IF(OR(ISNUMBER(SEARCH("*Income*",H180)),ISNUMBER(SEARCH("*BFWD BALANCES*",H180))),-1,0)) -> 1 | C180: CE 04 | D180: 40001 | E180: DEVOLVED FORMULA CAPITAL EXPENDITURE -ICT | F180: =SUMIF('FMS6 Report'!$B:$B,$D180&"*",'FMS6 Report'!$E:$E)*A180 -> 0 | G180: =SUMIF('FMS6 Report'!$B:$B,$D180&"*",'FMS6 Report'!$G:$G)*A180 -> 0 | H180: =IF(C180="","",IF(LEFT(C180,1)="E","Revenue Expenditure",IF(LEFT(C180,1)="I","Revenue Income",IF(LEFT(C180,2)="CI","Capital Income",IF(LEFT(C180,2)="CE","Capital Expenditure","Incorrect CFR REF"))))) -> Capital Expenditure | I180: Balance should be ZERO, the reference and GL code will be removed
A181: =IF(ISNUMBER(SEARCH("*Expenditure*",H181)),1,IF(OR(ISNUMBER(SEARCH("*Income*",H181)),ISNUMBER(SEARCH("*BFWD BALANCES*",H181))),-1,0)) -> 1 | C181: CE 04A | D181: 40002 | E181: Devolved Formula Capital - Connectivity | F181: =SUMIF('FMS6 Report'!$B:$B,$D181&"*",'FMS6 Report'!$E:$E)*A181 -> 0 | G181: =SUMIF('FMS6 Report'!$B:$B,$D181&"*",'FMS6 Report'!$G:$G)*A181 -> 0 | H181: =IF(C181="","",IF(LEFT(C181,1)="E","Revenue Expenditure",IF(LEFT(C181,1)="I","Revenue Income",IF(LEFT(C181,2)="CI","Capital Income",IF(LEFT(C181,2)="CE","Capital Expenditure","Incorrect CFR REF"))))) -> Capital Expenditure
A182: 1 | C182: CE 04B | D182: 40003 | E182: Devolved Formula Capital - Onsite servers | F182: =SUMIF('FMS6 Report'!$B:$B,$D182&"*",'FMS6 Report'!$E:$E)*A182 -> 0 | G182: =SUMIF('FMS6 Report'!$B:$B,$D182&"*",'FMS6 Report'!$G:$G)*A182 -> 0 | H182: Capital Expenditure
A183: =IF(ISNUMBER(SEARCH("*Expenditure*",H183)),1,IF(OR(ISNUMBER(SEARCH("*Income*",H183)),ISNUMBER(SEARCH("*BFWD BALANCES*",H183))),-1,0)) -> 1 | C183: CE 04C | D183: 40004 | E183: Devolved Formula Capital - Administration software and systems | F183: =SUMIF('FMS6 Report'!$B:$B,$D183&"*",'FMS6 Report'!$E:$E)*A183 -> 0 | G183: =SUMIF('FMS6 Report'!$B:$B,$D183&"*",'FMS6 Report'!$G:$G)*A183 -> 0 | H183: =IF(C183="","",IF(LEFT(C183,1)="E","Revenue Expenditure",IF(LEFT(C183,1)="I","Revenue Income",IF(LEFT(C183,2)="CI","Capital Income",IF(LEFT(C183,2)="CE","Capital Expenditure","Incorrect CFR REF"))))) -> Capital Expenditure
A184: 1 | C184: CE 04D | D184: 40005 | E184: Devloved Formula Capital - Laptops, desktops, and tablets | F184: =SUMIF('FMS6 Report'!$B:$B,$D184&"*",'FMS6 Report'!$E:$E)*A184 -> 0 | G184: =SUMIF('FMS6 Report'!$B:$B,$D184&"*",'FMS6 Report'!$G:$G)*A184 -> 0 | H184: Capital Expenditure
A185: 1 | C185: CE 04E | D185: 40006 | E185: Devloved Formula Capital - Laptops, desktops, and tablets | F185: =SUMIF('FMS6 Report'!$B:$B,$D185&"*",'FMS6 Report'!$E:$E)*A185 -> 0 | G185: =SUMIF('FMS6 Report'!$B:$B,$D185&"*",'FMS6 Report'!$G:$G)*A185 -> 0 | H185: Capital Expenditure
A186: 1 | C186: E 19 | D186: 40280 | E186: PUBLICATIONS, NEWSPAPERS & PERIODICALS (Non Curriculum) | F186: =SUMIF('FMS6 Report'!$B:$B,$D186&"*",'FMS6 Report'!$E:$E)*A186 -> 0 | G186: =SUMIF('FMS6 Report'!$B:$B,$D186&"*",'FMS6 Report'!$G:$G)*A186 -> 0 | H186: Revenue Expenditure
A187: 1 | C187: E 08 | D187: 40450 | E187: APPRENTICESHIP LEVY TRAINING | F187: =SUMIF('FMS6 Report'!$B:$B,$D187&"*",'FMS6 Report'!$E:$E)*A187 -> 0 | G187: =SUMIF('FMS6 Report'!$B:$B,$D187&"*",'FMS6 Report'!$G:$G)*A187 -> 0 | H187: Revenue Expenditure
A188: 1 | C188: E 19 | D188: 40510 | E188: MATERIALS, EDUCATIONAL & TRAINING | F188: =SUMIF('FMS6 Report'!$B:$B,$D188&"*",'FMS6 Report'!$E:$E)*A188 -> 0 | G188: =SUMIF('FMS6 Report'!$B:$B,$D188&"*",'FMS6 Report'!$G:$G)*A188 -> 0 | H188: Revenue Expenditure
A189: 1 | C189: E 22 | D189: 40540 | E189: MEDICAL SUPPLIES | F189: =SUMIF('FMS6 Report'!$B:$B,$D189&"*",'FMS6 Report'!$E:$E)*A189 -> 0 | G189: =SUMIF('FMS6 Report'!$B:$B,$D189&"*",'FMS6 Report'!$G:$G)*A189 -> 0 | H189: Revenue Expenditure
A190: 1 | C190: E 22 | D190: 41500 | E190: CLOTHES, UNIFORM & LAUNDRY | F190: =SUMIF('FMS6 Report'!$B:$B,$D190&"*",'FMS6 Report'!$E:$E)*A190 -> 0 | G190: =SUMIF('FMS6 Report'!$B:$B,$D190&"*",'FMS6 Report'!$G:$G)*A190 -> 0 | H190: Revenue Expenditure
A191: 1 | C191: E 22 | D191: 42000 | E191: PRINTING/STATIONERY/OFFICE EXPENSES | F191: =SUMIF('FMS6 Report'!$B:$B,$D191&"*",'FMS6 Report'!$E:$E)*A191 -> 0 | G191: =SUMIF('FMS6 Report'!$B:$B,$D191&"*",'FMS6 Report'!$G:$G)*A191 -> 0 | H191: Revenue Expenditure
A192: 1 | C192: E 19 | D192: 42040 | E192: REPROGRAPHIC RESOURCES AND EQUIP FOR TEACHING PURPOSES | F192: =SUMIF('FMS6 Report'!$B:$B,$D192&"*",'FMS6 Report'!$E:$E)*A192 -> 0 | G192: =SUMIF('FMS6 Report'!$B:$B,$D192&"*",'FMS6 Report'!$G:$G)*A192 -> 0 | H192: Revenue Expenditure
A193: 1 | C193: E 28A | D193: 43010 | E193: PROFESSIONAL FEES | F193: =SUMIF('FMS6 Report'!$B:$B,$D193&"*",'FMS6 Report'!$E:$E)*A193 -> 0 | G193: =SUMIF('FMS6 Report'!$B:$B,$D193&"*",'FMS6 Report'!$G:$G)*A193 -> 0 | H193: Revenue Expenditure
A194: 1 | C194: E 27 | D194: 43040 | E194: BOUGHT IN PROFESSIONAL SERVICES - CURRICULUM | F194: =SUMIF('FMS6 Report'!$B:$B,$D194&"*",'FMS6 Report'!$E:$E)*A194 -> 0 | G194: =SUMIF('FMS6 Report'!$B:$B,$D194&"*",'FMS6 Report'!$G:$G)*A194 -> 0 | H194: Revenue Expenditure
A195: 1 | C195: E 21 | D195: 43120 | E195: EXAMINATION FEES | F195: =SUMIF('FMS6 Report'!$B:$B,$D195&"*",'FMS6 Report'!$E:$E)*A195 -> 0 | G195: =SUMIF('FMS6 Report'!$B:$B,$D195&"*",'FMS6 Report'!$G:$G)*A195 -> 0 | H195: Revenue Expenditure
A196: 1 | C196: E 22 | D196: 44000 | E196: POSTAGE | F196: =SUMIF('FMS6 Report'!$B:$B,$D196&"*",'FMS6 Report'!$E:$E)*A196 -> 0 | G196: =SUMIF('FMS6 Report'!$B:$B,$D196&"*",'FMS6 Report'!$G:$G)*A196 -> 0 | H196: Revenue Expenditure
A197: 1 | C197: E 22 | D197: 44100 | E197: TELEPHONY | F197: =SUMIF('FMS6 Report'!$B:$B,$D197&"*",'FMS6 Report'!$E:$E)*A197 -> 0 | G197: =SUMIF('FMS6 Report'!$B:$B,$D197&"*",'FMS6 Report'!$G:$G)*A197 -> 0 | H197: Revenue Expenditure
A198: 1 | C198: E 20 | D198: 44280 | E198: COST OF BROADBAND, ISDN, ADSL or OTHER DEDICATED PHONE LINES | F198: =SUMIF('FMS6 Report'!$B:$B,$D198&"*",'FMS6 Report'!$E:$E)*A198 -> 0 | G198: =SUMIF('FMS6 Report'!$B:$B,$D198&"*",'FMS6 Report'!$G:$G)*A198 -> 0 | H198: Revenue Expenditure | I198: Balance should be ZERO, the reference and GL code will be removed
A199: =IF(ISNUMBER(SEARCH("*Expenditure*",H199)),1,IF(OR(ISNUMBER(SEARCH("*Income*",H199)),ISNUMBER(SEARCH("*BFWD BALANCES*",H199))),-1,0)) -> 1 | C199: E 20A | D199: 44281 | E199: Connectivity | F199: =SUMIF('FMS6 Report'!$B:$B,$D199&"*",'FMS6 Report'!$E:$E)*A199 -> 0 | G199: =SUMIF('FMS6 Report'!$B:$B,$D199&"*",'FMS6 Report'!$G:$G)*A199 -> 0 | H199: =IF(C199="","",IF(LEFT(C199,1)="E","Revenue Expenditure",IF(LEFT(C199,1)="I","Revenue Income",IF(LEFT(C199,2)="CI","Capital Income",IF(LEFT(C199,2)="CE","Capital Expenditure","Incorrect CFR REF"))))) -> Revenue Expenditure
A200: 1 | C200: E 20B | D200: 44282 | E200: Onsite servers | F200: =SUMIF('FMS6 Report'!$B:$B,$D200&"*",'FMS6 Report'!$E:$E)*A200 -> 0 | G200: =SUMIF('FMS6 Report'!$B:$B,$D200&"*",'FMS6 Report'!$G:$G)*A200 -> 0 | H200: Revenue Expenditure
A201: 1 | C201: E 20 | D201: 44600 | E201: CURRICULUM COMPUTER RELATED COSTS (inc Educational software) | F201: =SUMIF('FMS6 Report'!$B:$B,$D201&"*",'FMS6 Report'!$E:$E)*A201 -> 0 | G201: =SUMIF('FMS6 Report'!$B:$B,$D201&"*",'FMS6 Report'!$G:$G)*A201 -> 0 | H201: Revenue Expenditure | I201: Balance should be ZERO, the reference and GL code will be removed
A202: =IF(ISNUMBER(SEARCH("*Expenditure*",H202)),1,IF(OR(ISNUMBER(SEARCH("*Income*",H202)),ISNUMBER(SEARCH("*BFWD BALANCES*",H202))),-1,0)) -> 1 | C202: E 20C | D202: 44601 | E202: IT learning resources | F202: =SUMIF('FMS6 Report'!$B:$B,$D202&"*",'FMS6 Report'!$E:$E)*A202 -> 0 | G202: =SUMIF('FMS6 Report'!$B:$B,$D202&"*",'FMS6 Report'!$G:$G)*A202 -> 0 | H202: =IF(C202="","",IF(LEFT(C202,1)="E","Revenue Expenditure",IF(LEFT(C202,1)="I","Revenue Income",IF(LEFT(C202,2)="CI","Capital Income",IF(LEFT(C202,2)="CE","Capital Expenditure","Incorrect CFR REF"))))) -> Revenue Expenditure
A203: 1 | C203: E 20D | D203: 44602 | E203: Administration software and systems | F203: =SUMIF('FMS6 Report'!$B:$B,$D203&"*",'FMS6 Report'!$E:$E)*A203 -> 0 | G203: =SUMIF('FMS6 Report'!$B:$B,$D203&"*",'FMS6 Report'!$G:$G)*A203 -> 0 | H203: Revenue Expenditure
... 132 more rows

Sheet 3.Budget Update
A1: PERIOD | B1: =IF(ISBLANK('FMS6 Report'!$L$1),'2.Code Order Input'!G4,'FMS6 Report'!$L$1) -> 0 | AB1: Percentage Range: | AC1: 10 | AD1: 0.1
B2: =IFERROR(CONCATENATE("Monthly Budget Monitoring Report - ",ReturnType),"Monthly Budget Monitoring Report") -> Monthly Budget Monitoring Report | AC2: Range 1 | AD2: Range 2 | AG2: Range 1 | AH2: Range 2
A3: SCH No | B3: ='2.Code Order Input'!G6 -> 0 | C3: ='2.Code Order Input'!D4 ->  | D3: Original 2025-26 Budget | E3: Revised 2025-26 Budget Forecast | F3: =IFERROR(CONCATENATE("Actuals April to ",Month),"Need to Import FMS6 Report") -> Need to Import FMS6 Report | G3: Actual as % Revised Budget | J3: Pro-Rata Variance Warning | K3: Revised Budget Warning | M3: Please provide an explanation for any Warnings in the cells below | Q3: Look Up Ref | R3: Actual > Revised Budget | W3: Period | Y3: Month | Z3: Return | AA3: End Date | AB3: Percentage Pro-Rata | AC3: Lower Range | AD3: Higher Range | AF3: Percentage Pro-Rata 13 Months | AG3: Lower Range | AH3: Higher Range
B4: CFR | C4: BALANCES BROUGHT FORWARD FROM 2024-25 | D4: £ | E4: £ | F4: £ | P4: CFR different to GBP | W4: 1 | X4: Apr | Y4: April | Z4: 1 Month Return | AA4: 30th | AB4: 0.08333333333 | AC4: 0.075 | AD4: 0.09166666667 | AF4: 0.1666666667 | AG4: 0.15 | AH4: 0.1833333333
A5: ='GBP 2526'!I1 -> 9 | B5: B 01 | C5: Committed Revenue balance | D5: =IFERROR(VLOOKUP('3.Budget Update'!$B$3,'GBP 2526'!$A$5:$CX$160,$A5,FALSE),0) -> 0 | E5: ='2.Code Order Input'!$G$241 -> 0 | F5: ='2.Code Order Input'!$F$241 -> 0 | G5: CFR Brought Forward Balances | J5: =IF(OR(E5<D5-1,E5>D5+1),"CFR different to GBP","") ->  | K5: =IF(OR(E5<F5-1,E5>F5+1),"Actuals different to Org GBP","") ->  | O5: Actual high % budget | P5: Actuals different to Org GBP | Q5: 5 | T5: Report Date | U5: =IF(ISBLANK('FMS6 Report'!$L$1),'2.Code Order Input'!G4,'FMS6 Report'!$L$1) -> 0 | W5: 2 | X5: May | Y5: May | Z5: 2 Months Return | AA5: 31st | AB5: 0.1666666667 | AC5: 0.15 | AD5: 0.1833333333 | AF5: 0.25 | AG5: 0.225 | AH5: 0.275
A6: ='GBP 2526'!J1 -> 10 | B6: B 01 | C6: Committed revenue balance - revenue grants | D6: =IFERROR(VLOOKUP('3.Budget Update'!$B$3,'GBP 2526'!$A$5:$CX$160,$A6,FALSE),0) -> 0 | E6: ='2.Code Order Input'!$G$242 -> 0 | F6: ='2.Code Order Input'!$F$242 -> 0 | K6: =IF(OR(E6<F6-1,E6>F6+1),"Actuals different to Org GBP","") ->  | O6: Actual high % budget | P6: Increase Revised Budget? | Q6: 6 | W6: 3 | X6: Jun | Y6: June | Z6: Quarter-Year Return | AA6: 30th | AB6: 0.25 | AC6: 0.225 | AD6: 0.275 | AF6: 0.3333333333 | AG6: 0.3 | AH6: 0.3666666667
A7: 11 | B7: B 02 | C7: =IF(F7>0,"Revenue Balance subject to clawback hence will not carry forward","Uncommitted Revenue balance") -> Uncommitted Revenue balance | D7: =IFERROR(VLOOKUP('3.Budget Update'!$B$3,'GBP 2526'!$A$5:$CX$160,$A7,FALSE),0) -> 0 | E7: =SUMIF('2.Code Order Input'!$C$8:$C$327,B7,'2.Code Order Input'!$G$8:$G$327) -> 0 | F7: =SUMIF('2.Code Order Input'!$C$8:$C$327,B7,'2.Code Order Input'!$F$8:$F$327) -> 0 | O7: Actual but no budget | P7: Reduce Revised Budget? | Q7: 7 | T7: Month | U7: =INDEX(Y4:Y15,MATCH(B1,X4:X15,FALSE),1) ->  | W7: 4 | X7: Jul | Y7: July | Z7: 4 Months Return | AA7: 31st | AB7: 0.3333333333 | AC7: 0.3 | AD7: 0.3666666667 | AF7: 0.4166666667 | AG7: 0.375 | AH7: 0.4583333333
A8: 12 | B8: B 03 | C8: Devolved Formula Capital balance | D8: =IFERROR(VLOOKUP('3.Budget Update'!$B$3,'GBP 2526'!$A$5:$CX$160,$A8,FALSE),0) -> 0 | E8: =SUMIF('2.Code Order Input'!$C$8:$C$327,B8,'2.Code Order Input'!$G$8:$G$327) -> 0 | F8: =SUMIF('2.Code Order Input'!$C$8:$C$327,B8,'2.Code Order Input'!$F$8:$F$327) -> 0 | O8: Actual low % budget | P8: Actual but no Revised Budget? | Q8: 8 | T8: End Date | U8: =INDEX(EndDateRange,MATCH(Month,MonthRange,0)) ->  | W8: 5 | X8: Aug | Y8: August | Z8: 5 Months Return | AA8: 31st | AB8: 0.4166666667 | AC8: 0.375 | AD8: 0.4583333333 | AF8: 0.5 | AG8: 0.45 | AH8: 0.55
A9: 13 | B9: B 05 | C9: Other Capital balances | D9: =IFERROR(VLOOKUP('3.Budget Update'!$B$3,'GBP 2526'!$A$5:$CX$160,$A9,FALSE),0) -> 0 | E9: =SUMIF('2.Code Order Input'!$C$8:$C$327,B9,'2.Code Order Input'!$G$8:$G$327) -> 0 | F9: =SUMIF('2.Code Order Input'!$C$8:$C$327,B9,'2.Code Order Input'!$F$8:$F$327) -> 0 | P9: Actual Income % Higher than Pro-Rata % Income | Q9: 9 | W9: 6 | X9: Sep | Y9: September | Z9: Half-Year Return | AA9: 30th | AB9: 0.5 | AC9: 0.45 | AD9: 0.55 | AF9: 0.5833333333 | AG9: 0.525 | AH9: 0.6416666667
A10: 14 | B10: B 06 | C10: Community Focused extended school balances | D10: =IFERROR(VLOOKUP('3.Budget Update'!$B$3,'GBP 2526'!$A$5:$CX$160,$A10,FALSE),0) -> 0 | E10: =SUMIF('2.Code Order Input'!$C$8:$C$327,B10,'2.Code Order Input'!$G$8:$G$327) -> 0 | F10: =SUMIF('2.Code Order Input'!$C$8:$C$327,B10,'2.Code Order Input'!$F$8:$F$327) -> 0 | P10: Actual Income % Lower than Pro-Rata % Income | Q10: 10 | T10: Return | U10: =INDEX(ReturnRange,MATCH(Month,MonthRange,0)) ->  | W10: 7 | X10: Oct | Y10: October | Z10: 7 Months Return | AA10: 31st | AB10: 0.5833333333 | AC10: 0.525 | AD10: 0.6416666667 | AF10: 0.6666666667 | AG10: 0.6 | AH10: 0.7333333333
C11: TOTAL BALANCE BROUGHT FORWARD | D11: =SUM(D5:D10) -> 0 | E11: =SUM(E5:E10) -> 0 | F11: =SUM(F5:F10) -> 0 | P11: Actual Spent % Higher than Pro-Rata % Spent | W11: 8 | X11: Nov | Y11: November | Z11: 8 Months Return | AA11: 30th | AB11: 0.6666666667 | AC11: 0.6 | AD11: 0.7333333333 | AF11: 0.75 | AG11: 0.675 | AH11: 0.825
C12: REVENUE INCOME | P12: Actual Spent % Lower than Pro-Rata % Spent | W12: 9 | X12: Dec | Y12: December | Z12: 3 Quarters-Year Return | AA12: 31st | AB12: 0.75 | AC12: 0.675 | AD12: 0.825 | AF12: 0.8333333333 | AG12: 0.75 | AH12: 0.9166666667
A13: 16 | B13: I 01 | C13: Funds delegated by the LA | D13: =IFERROR(VLOOKUP('3.Budget Update'!$B$3,'GBP 2526'!$A$5:$CX$160,A13,FALSE),0) -> 0 | E13: =SUMIF('2.Code Order Input'!$C$8:$C$327,B13,'2.Code Order Input'!$G$8:$G$327) -> 0 | F13: =SUMIF('2.Code Order Input'!$C$8:$C$327,B13,'2.Code Order Input'!$F$8:$F$327) -> 0 | G13: =IF(AND(F13<>0,E13<>0),F13/E13,IF(F13<>0,"No Budget","")) ->  | I13: =IF(R13=1,"*","") ->  | J13: =IF(G13="","",IF(AND(E13=0,F13>0),"Actual but no budget",IF(G13>HigherRangeNew,"Actual Income % Higher than Pro-Rata % Income",IF(G13<LowerRangeNew,"Actual Income % Lower than Pro-Rata % Income","")))) ->  | K13: =IF(AND(J13=O$7,E13=0),"Actual but no Revised Budget?",IF(AND(J13=O$8,E13>=D13),"Reduce Revised Budget?",IF(AND(J13=O$6,E13<=D13),"Increase Revised Budget?",IF(AND(F13>0,E13=0),"Actual but no Revised Budget?",IF(E13<F13,"Increase Revised Budget?",""))))) ->  | P13: Actual but no budget | Q13: 11 | R13: =IF(E13<F13-5,1,"") ->  | T13: Range 1 | U13: =INDEX('AFO Lookup'!$G$5:$G$16,MATCH(Month,MonthRange,0)) ->  | W13: 10 | X13: Jan | Y13: January | Z13: 10 Months Return | AA13: 31st | AB13: 0.8333333333 | AC13: 0.75 | AD13: 0.9166666667 | AF13: 0.9166666667 | AG13: 0.825 | AH13: 1.008333333
A14: 17 | B14: I 02 | C14: Funding for sixth form students | D14: =IFERROR(VLOOKUP('3.Budget Update'!$B$3,'GBP 2526'!$A$5:$CX$160,A14,FALSE),0) -> 0 | E14: =SUMIF('2.Code Order Input'!$C$8:$C$327,B14,'2.Code Order Input'!$G$8:$G$327) -> 0 | F14: =SUMIF('2.Code Order Input'!$C$8:$C$327,B14,'2.Code Order Input'!$F$8:$F$327) -> 0 | G14: =IF(AND(F14<>0,E14<>0),F14/E14,IF(F14<>0,"No Budget","")) ->  | I14: =IF(R14=1,"*","") ->  | Q14: 12 | W14: 11 | X14: Feb | Y14: February | Z14: 11 Months Return | AA14: 28th | AB14: 0.9166666667 | AC14: 0.825 | AD14: 1.008333333 | AF14: 1 | AG14: 0.9 | AH14: 1.1
A15: 18 | B15: I 03 | C15: High needs top-up funding | D15: =IFERROR(VLOOKUP('3.Budget Update'!$B$3,'GBP 2526'!$A$5:$CX$160,A15,FALSE),0) -> 0 | E15: =SUMIF('2.Code Order Input'!$C$8:$C$327,B15,'2.Code Order Input'!$G$8:$G$327) -> 0 | F15: =SUMIF('2.Code Order Input'!$C$8:$C$327,B15,'2.Code Order Input'!$F$8:$F$327) -> 0 | G15: =IF(AND(F15<>0,E15<>0),F15/E15,IF(F15<>0,"No Budget","")) ->  | K15: =IF(AND(J15=O$7,E15=0),"Actual but no Revised Budget?",IF(AND(J15=O$8,E15>=D15),"Reduce Revised Budget?",IF(AND(J15=O$6,E15<=D15),"Increase Revised Budget?",IF(AND(F15>0,E15=0),"Actual but no Revised Budget?",IF(E15<F15,"Increase Revised Budget?",""))))) ->  | Q15: 13 | T15: Range 2 | U15: =INDEX('AFO Lookup'!$H$5:$H$16,MATCH(Month,MonthRange,0)) ->  | W15: 12 | X15: Mar | Y15: March | Z15: 1 Year Return | AA15: 31st | AB15: 1 | AC15: 0.9 | AD15: 1.1 | AF15: 1.083333333 | AG15: 0.975 | AH15: 1.191666667
A16: 19 | B16: I 04 | C16: Funding for minority ethnic pupils | D16: =IFERROR(VLOOKUP('3.Budget Update'!$B$3,'GBP 2526'!$A$5:$CX$160,A16,FALSE),0) -> 0 | E16: =SUMIF('2.Code Order Input'!$C$8:$C$327,B16,'2.Code Order Input'!$G$8:$G$327) -> 0 | F16: =SUMIF('2.Code Order Input'!$C$8:$C$327,B16,'2.Code Order Input'!$F$8:$F$327) -> 0 | G16: =IF(AND(F16<>0,E16<>0),F16/E16,IF(F16<>0,"No Budget","")) ->  | Q16: 14
A17: 20 | B17: I 05 | C17: Pupil Premium Grant | D17: =IFERROR(VLOOKUP('3.Budget Update'!$B$3,'GBP 2526'!$A$5:$CX$160,A17,FALSE),0) -> 0 | E17: =SUMIF('2.Code Order Input'!$C$8:$C$327,B17,'2.Code Order Input'!$G$8:$G$327) -> 0 | F17: =SUMIF('2.Code Order Input'!$C$8:$C$327,B17,'2.Code Order Input'!$F$8:$F$327) -> 0 | M17: If 25% Quarter 1 only received | Q17: 15 | T17: Range 1 | U17: =INDEX('AFO Lookup'!$K$5:$K$16,MATCH(Month,MonthRange,0)) -> 
A18: 21 | B18: I 06 | C18: Other government grants | D18: =IFERROR(VLOOKUP('3.Budget Update'!$B$3,'GBP 2526'!$A$5:$CX$160,A18,FALSE),0) -> 0 | E18: =SUMIF('2.Code Order Input'!$C$8:$C$327,B18,'2.Code Order Input'!$G$8:$G$327) -> 0 | F18: =SUMIF('2.Code Order Input'!$C$8:$C$327,B18,'2.Code Order Input'!$F$8:$F$327) -> 0 | Q18: 16
A19: 22 | B19: I 07 | C19: Other grants and payments received | D19: =IFERROR(VLOOKUP('3.Budget Update'!$B$3,'GBP 2526'!$A$5:$CX$160,A19,FALSE),0) -> 0 | E19: =SUMIF('2.Code Order Input'!$C$8:$C$327,B19,'2.Code Order Input'!$G$8:$G$327) -> 0 | F19: =SUMIF('2.Code Order Input'!$C$8:$C$327,B19,'2.Code Order Input'!$F$8:$F$327) -> 0 | Q19: 17 | T19: Range 2 | U19: =INDEX('AFO Lookup'!$L$5:$L$16,MATCH(Month,MonthRange,0)) -> 
A20: 23 | B20: I 08a | C20: Income from Letting Premises | D20: =IFERROR(VLOOKUP('3.Budget Update'!$B$3,'GBP 2526'!$A$5:$CX$160,A20,FALSE),0) -> 0 | E20: =SUMIF('2.Code Order Input'!$C$8:$C$327,B20,'2.Code Order Input'!$G$8:$G$327) -> 0 | F20: =SUMIF('2.Code Order Input'!$C$8:$C$327,B20,'2.Code Order Input'!$F$8:$F$327) -> 0 | G20: =IF(AND(F20<>0,E20<>0),F20/E20,IF(F20<>0,"No Budget","")) ->  | I20: =IF(R20=1,"*","") ->  | Q20: 18
A21: 24 | B21: I 08b | C21: Other Income from Facilities and Services | D21: =IFERROR(VLOOKUP('3.Budget Update'!$B$3,'GBP 2526'!$A$5:$CX$160,A21,FALSE),0) -> 0 | E21: =SUMIF('2.Code Order Input'!$C$8:$C$327,B21,'2.Code Order Input'!$G$8:$G$327) -> 0 | F21: =SUMIF('2.Code Order Input'!$C$8:$C$327,B21,'2.Code Order Input'!$F$8:$F$327) -> 0 | K21: =IF(AND(J21=O$7,E21=0),"Actual but no Revised Budget?",IF(AND(J21=O$8,E21>=D21),"Reduce Revised Budget?",IF(AND(J21=O$6,E21<=D21),"Increase Revised Budget?",IF(AND(F21>0,E21=0),"Actual but no Revised Budget?",IF(E21<F21,"Increase Revised Budget?",""))))) ->  | Q21: 19
A22: 25 | B22: I 09 | C22: Income from catering | D22: =IFERROR(VLOOKUP('3.Budget Update'!$B$3,'GBP 2526'!$A$5:$CX$160,A22,FALSE),0) -> 0 | E22: =SUMIF('2.Code Order Input'!$C$8:$C$327,B22,'2.Code Order Input'!$G$8:$G$327) -> 0 | F22: =SUMIF('2.Code Order Input'!$C$8:$C$327,B22,'2.Code Order Input'!$F$8:$F$327) -> 0 | Q22: 20
A23: 26 | B23: I 10 | C23: Receipts from supply teacher insurance claims | D23: =IFERROR(VLOOKUP('3.Budget Update'!$B$3,'GBP 2526'!$A$5:$CX$160,A23,FALSE),0) -> 0 | E23: =SUMIF('2.Code Order Input'!$C$8:$C$327,B23,'2.Code Order Input'!$G$8:$G$327) -> 0 | F23: =SUMIF('2.Code Order Input'!$C$8:$C$327,B23,'2.Code Order Input'!$F$8:$F$327) -> 0 | I23: =IF(R23=1,"*","") ->  | Q23: 21
A24: 27 | B24: I 11 | C24: Receipts from other insurance claims | D24: =IFERROR(VLOOKUP('3.Budget Update'!$B$3,'GBP 2526'!$A$5:$CX$160,A24,FALSE),0) -> 0 | E24: =SUMIF('2.Code Order Input'!$C$8:$C$327,B24,'2.Code Order Input'!$G$8:$G$327) -> 0 | F24: =SUMIF('2.Code Order Input'!$C$8:$C$327,B24,'2.Code Order Input'!$F$8:$F$327) -> 0 | Q24: 22
A25: 28 | B25: I 12 | C25: Income from contributions to visits etc. | D25: =IFERROR(VLOOKUP('3.Budget Update'!$B$3,'GBP 2526'!$A$5:$CX$160,A25,FALSE),0) -> 0 | E25: =SUMIF('2.Code Order Input'!$C$8:$C$327,B25,'2.Code Order Input'!$G$8:$G$327) -> 0 | F25: =SUMIF('2.Code Order Input'!$C$8:$C$327,B25,'2.Code Order Input'!$F$8:$F$327) -> 0 | Q25: 23
A26: 29 | B26: I 13 | C26: Donations and/or private funds | D26: =IFERROR(VLOOKUP('3.Budget Update'!$B$3,'GBP 2526'!$A$5:$CX$160,A26,FALSE),0) -> 0 | E26: =SUMIF('2.Code Order Input'!$C$8:$C$327,B26,'2.Code Order Input'!$G$8:$G$327) -> 0 | F26: =SUMIF('2.Code Order Input'!$C$8:$C$327,B26,'2.Code Order Input'!$F$8:$F$327) -> 0 | Q26: 24
A27: 30 | B27: I 15 | C27: Pupil focused extended school funding and/or grants | D27: =IFERROR(VLOOKUP('3.Budget Update'!$B$3,'GBP 2526'!$A$5:$CX$160,A27,FALSE),0) -> 0 | E27: =SUMIF('2.Code Order Input'!$C$8:$C$327,B27,'2.Code Order Input'!$G$8:$G$327) -> 0 | F27: =SUMIF('2.Code Order Input'!$C$8:$C$327,B27,'2.Code Order Input'!$F$8:$F$327) -> 0 | Q27: 25
A28: 31 | B28: I 16 | C28: Community focused extended school funding and/or grants | D28: =IFERROR(VLOOKUP('3.Budget Update'!$B$3,'GBP 2526'!$A$5:$CX$160,A28,FALSE),0) -> 0 | E28: =SUMIF('2.Code Order Input'!$C$8:$C$327,B28,'2.Code Order Input'!$G$8:$G$327) -> 0 | F28: =SUMIF('2.Code Order Input'!$C$8:$C$327,B28,'2.Code Order Input'!$F$8:$F$327) -> 0 | G28: =IF(AND(F28<>0,E28<>0),F28/E28,IF(F28<>0,"No Budget","")) ->  | Q28: 26
A29: 32 | B29: I 17 | C29: Community focused extended school facilities income | D29: =IFERROR(VLOOKUP('3.Budget Update'!$B$3,'GBP 2526'!$A$5:$CX$160,A29,FALSE),0) -> 0 | E29: =SUMIF('2.Code Order Input'!$C$8:$C$327,B29,'2.Code Order Input'!$G$8:$G$327) -> 0 | F29: =SUMIF('2.Code Order Input'!$C$8:$C$327,B29,'2.Code Order Input'!$F$8:$F$327) -> 0 | Q29: 27
A30: 33 | B30: I 18A | C30: COVID-19 Job Retention Scheme | D30: =IFERROR(VLOOKUP('3.Budget Update'!$B$3,'GBP 2526'!$A$5:$CX$160,A30,FALSE),0) -> 0 | E30: =SUMIF('2.Code Order Input'!$C$8:$C$327,B30,'2.Code Order Input'!$G$8:$G$327) -> 0 | F30: =SUMIF('2.Code Order Input'!$C$8:$C$327,B30,'2.Code Order Input'!$F$8:$F$327) -> 0 | Q30: 28 | R30: =IF(E30<F30-5,1,"") -> 
A31: 34 | B31: I 18B | C31: COVID-19 Exceptional Costs Grant | D31: =IFERROR(VLOOKUP('3.Budget Update'!$B$3,'GBP 2526'!$A$5:$CX$160,A31,FALSE),0) -> 0 | E31: =SUMIF('2.Code Order Input'!$C$8:$C$327,B31,'2.Code Order Input'!$G$8:$G$327) -> 0 | F31: =SUMIF('2.Code Order Input'!$C$8:$C$327,B31,'2.Code Order Input'!$F$8:$F$327) -> 0 | Q31: 29
A32: 35 | B32: I 18C | C32: COVID-19 Other Grants (Catch up and Digital Platforms) | D32: =IFERROR(VLOOKUP('3.Budget Update'!$B$3,'GBP 2526'!$A$5:$CX$160,A32,FALSE),0) -> 0 | E32: =SUMIF('2.Code Order Input'!$C$8:$C$327,B32,'2.Code Order Input'!$G$8:$G$327) -> 0 | F32: =SUMIF('2.Code Order Input'!$C$8:$C$327,B32,'2.Code Order Input'!$F$8:$F$327) -> 0 | Q32: 30
A33: 36 | B33: I 18D | C33: Additional grant for Schools (UIFSM, PE & Sports Grants) | D33: =IFERROR(VLOOKUP('3.Budget Update'!$B$3,'GBP 2526'!$A$5:$CX$160,A33,FALSE),0) -> 0 | E33: =SUMIF('2.Code Order Input'!$C$8:$C$327,B33,'2.Code Order Input'!$G$8:$G$327) -> 0 | F33: =SUMIF('2.Code Order Input'!$C$8:$C$327,B33,'2.Code Order Input'!$F$8:$F$327) -> 0 | Q33: 31
C34: TOTAL REVENUE INCOME | D34: =SUM(D13:D33) -> 0 | E34: =SUM(E13:E33) -> 0 | F34: =SUM(F13:F33) -> 0
C35: REVENUE EXPENDITURE
A36: 38 | B36: E 01 | C36: Teaching Staff | D36: =IFERROR(VLOOKUP('3.Budget Update'!$B$3,'GBP 2526'!$A$5:$CX$160,A36,FALSE),0) -> 0 | E36: =SUMIF('2.Code Order Input'!$C$8:$C$327,B36,'2.Code Order Input'!$G$8:$G$327) -> 0 | F36: =SUMIF('2.Code Order Input'!$C$8:$C$327,B36,'2.Code Order Input'!$F$8:$F$327) -> 0 | G36: =IF(AND(F36<>0,E36<>0),F36/E36,IF(F36<>0,"No Budget","")) ->  | I36: =IF(R36=1,"*","") ->  | J36: =IF(G36="","",IF(AND(E36=0,F36>0),"Actual but no budget",IF(G36>HigherRange,"Actual Spent % Higher than Pro-Rata % Spent",IF(G36<LowerRange,"Actual Spent % Lower than Pro-Rata % Spent","")))) ->  | K36: =IF(AND(J36=O$7,E36=0),"Actual but no Revised Budget?",IF(AND(J36=O$8,E36>=D36),"Reduce Revised Budget?",IF(AND(J36=O$6,E36<=D36),"Increase Revised Budget?",IF(AND(F36>0,E36=0),"Actual but no Revised Budget?",IF(E36<F36,"Increase Revised Budget?",""))))) ->  | Q36: 32 | R36: =IF(E36<F36-5,1,"") -> 
A37: 39 | B37: E 02 | C37: Supply staff | D37: =IFERROR(VLOOKUP('3.Budget Update'!$B$3,'GBP 2526'!$A$5:$CX$160,A37,FALSE),0) -> 0 | E37: =SUMIF('2.Code Order Input'!$C$8:$C$327,B37,'2.Code Order Input'!$G$8:$G$327) -> 0 | F37: =SUMIF('2.Code Order Input'!$C$8:$C$327,B37,'2.Code Order Input'!$F$8:$F$327) -> 0 | Q37: 33
A38: 40 | B38: E 03 | C38: Education support staff | D38: =IFERROR(VLOOKUP('3.Budget Update'!$B$3,'GBP 2526'!$A$5:$CX$160,A38,FALSE),0) -> 0 | E38: =SUMIF('2.Code Order Input'!$C$8:$C$327,B38,'2.Code Order Input'!$G$8:$G$327) -> 0 | F38: =SUMIF('2.Code Order Input'!$C$8:$C$327,B38,'2.Code Order Input'!$F$8:$F$327) -> 0 | Q38: 34 | R38: =IF(E38<F38-5,1,"") -> 
A39: 41 | B39: E 04 | C39: Premises staff | D39: =IFERROR(VLOOKUP('3.Budget Update'!$B$3,'GBP 2526'!$A$5:$CX$160,A39,FALSE),0) -> 0 | E39: =SUMIF('2.Code Order Input'!$C$8:$C$327,B39,'2.Code Order Input'!$G$8:$G$327) -> 0 | F39: =SUMIF('2.Code Order Input'!$C$8:$C$327,B39,'2.Code Order Input'!$F$8:$F$327) -> 0 | Q39: 35
A40: 42 | B40: E 05 | C40: Administrative & clerical staff | D40: =IFERROR(VLOOKUP('3.Budget Update'!$B$3,'GBP 2526'!$A$5:$CX$160,A40,FALSE),0) -> 0 | E40: =SUMIF('2.Code Order Input'!$C$8:$C$327,B40,'2.Code Order Input'!$G$8:$G$327) -> 0 | F40: =SUMIF('2.Code Order Input'!$C$8:$C$327,B40,'2.Code Order Input'!$F$8:$F$327) -> 0 | Q40: 36
A41: 43 | B41: E 06 | C41: Catering staff | D41: =IFERROR(VLOOKUP('3.Budget Update'!$B$3,'GBP 2526'!$A$5:$CX$160,A41,FALSE),0) -> 0 | E41: =SUMIF('2.Code Order Input'!$C$8:$C$327,B41,'2.Code Order Input'!$G$8:$G$327) -> 0 | F41: =SUMIF('2.Code Order Input'!$C$8:$C$327,B41,'2.Code Order Input'!$F$8:$F$327) -> 0 | G41: =IF(AND(F41<>0,E41<>0),F41/E41,IF(F41<>0,"No Budget","")) ->  | Q41: 37
A42: 44 | B42: E 07 | C42: Cost of other staff | D42: =IFERROR(VLOOKUP('3.Budget Update'!$B$3,'GBP 2526'!$A$5:$CX$160,A42,FALSE),0) -> 0 | E42: =SUMIF('2.Code Order Input'!$C$8:$C$327,B42,'2.Code Order Input'!$G$8:$G$327) -> 0 | F42: =SUMIF('2.Code Order Input'!$C$8:$C$327,B42,'2.Code Order Input'!$F$8:$F$327) -> 0 | Q42: 38
A43: 45 | B43: E 08 | C43: Indirect employee expenses | D43: =IFERROR(VLOOKUP('3.Budget Update'!$B$3,'GBP 2526'!$A$5:$CX$160,A43,FALSE),0) -> 0 | E43: =SUMIF('2.Code Order Input'!$C$8:$C$327,B43,'2.Code Order Input'!$G$8:$G$327) -> 0 | F43: =SUMIF('2.Code Order Input'!$C$8:$C$327,B43,'2.Code Order Input'!$F$8:$F$327) -> 0 | K43: =IF(AND(J43=O$7,E43=0),"Actual but no Revised Budget?",IF(AND(J43=O$8,E43>=D43),"Reduce Revised Budget?",IF(AND(J43=O$6,E43<=D43),"Increase Revised Budget?",IF(AND(F43>0,E43=0),"Actual but no Revised Budget?",IF(E43<F43,"Increase Revised Budget?",""))))) ->  | Q43: 39
A44: 46 | B44: E 09 | C44: Staff development & training | D44: =IFERROR(VLOOKUP('3.Budget Update'!$B$3,'GBP 2526'!$A$5:$CX$160,A44,FALSE),0) -> 0 | E44: =SUMIF('2.Code Order Input'!$C$8:$C$327,B44,'2.Code Order Input'!$G$8:$G$327) -> 0 | F44: =SUMIF('2.Code Order Input'!$C$8:$C$327,B44,'2.Code Order Input'!$F$8:$F$327) -> 0 | K44: =IF(AND(J44=O$7,E44=0),"Actual but no Revised Budget?",IF(AND(J44=O$8,E44>=D44),"Reduce Revised Budget?",IF(AND(J44=O$6,E44<=D44),"Increase Revised Budget?",IF(AND(F44>0,E44=0),"Actual but no Revised Budget?",IF(E44<F44,"Increase Revised Budget?",""))))) ->  | Q44: 40
A45: 47 | B45: E 10 | C45: Supply teacher insurance | D45: =IFERROR(VLOOKUP('3.Budget Update'!$B$3,'GBP 2526'!$A$5:$CX$160,A45,FALSE),0) -> 0 | E45: =SUMIF('2.Code Order Input'!$C$8:$C$327,B45,'2.Code Order Input'!$G$8:$G$327) -> 0 | F45: =SUMIF('2.Code Order Input'!$C$8:$C$327,B45,'2.Code Order Input'!$F$8:$F$327) -> 0 | Q45: 41
A46: 48 | B46: E 11 | C46: Staff related insurance | D46: =IFERROR(VLOOKUP('3.Budget Update'!$B$3,'GBP 2526'!$A$5:$CX$160,A46,FALSE),0) -> 0 | E46: =SUMIF('2.Code Order Input'!$C$8:$C$327,B46,'2.Code Order Input'!$G$8:$G$327) -> 0 | F46: =SUMIF('2.Code Order Input'!$C$8:$C$327,B46,'2.Code Order Input'!$F$8:$F$327) -> 0 | Q46: 42
A47: 49 | B47: E 12 | C47: Building maintenance and improvement | D47: =IFERROR(VLOOKUP('3.Budget Update'!$B$3,'GBP 2526'!$A$5:$CX$160,A47,FALSE),0) -> 0 | E47: =SUMIF('2.Code Order Input'!$C$8:$C$327,B47,'2.Code Order Input'!$G$8:$G$327) -> 0 | F47: =SUMIF('2.Code Order Input'!$C$8:$C$327,B47,'2.Code Order Input'!$F$8:$F$327) -> 0 | Q47: 43
A48: 50 | B48: E 13 | C48: Grounds maintenance and improvement | D48: =IFERROR(VLOOKUP('3.Budget Update'!$B$3,'GBP 2526'!$A$5:$CX$160,A48,FALSE),0) -> 0 | E48: =SUMIF('2.Code Order Input'!$C$8:$C$327,B48,'2.Code Order Input'!$G$8:$G$327) -> 0 | F48: =SUMIF('2.Code Order Input'!$C$8:$C$327,B48,'2.Code Order Input'!$F$8:$F$327) -> 0 | Q48: 44
A49: 51 | B49: E 14 | C49: Cleaning and caretaking | D49: =IFERROR(VLOOKUP('3.Budget Update'!$B$3,'GBP 2526'!$A$5:$CX$160,A49,FALSE),0) -> 0 | E49: =SUMIF('2.Code Order Input'!$C$8:$C$327,B49,'2.Code Order Input'!$G$8:$G$327) -> 0 | F49: =SUMIF('2.Code Order Input'!$C$8:$C$327,B49,'2.Code Order Input'!$F$8:$F$327) -> 0 | Q49: 45
A50: 52 | B50: E 15 | C50: Water & sewerage | D50: =IFERROR(VLOOKUP('3.Budget Update'!$B$3,'GBP 2526'!$A$5:$CX$160,A50,FALSE),0) -> 0 | E50: =SUMIF('2.Code Order Input'!$C$8:$C$327,B50,'2.Code Order Input'!$G$8:$G$327) -> 0 | F50: =SUMIF('2.Code Order Input'!$C$8:$C$327,B50,'2.Code Order Input'!$F$8:$F$327) -> 0 | Q50: 46
A51: 53 | B51: E 16 | C51: Energy | D51: =IFERROR(VLOOKUP('3.Budget Update'!$B$3,'GBP 2526'!$A$5:$CX$160,A51,FALSE),0) -> 0 | E51: =SUMIF('2.Code Order Input'!$C$8:$C$327,B51,'2.Code Order Input'!$G$8:$G$327) -> 0 | F51: =SUMIF('2.Code Order Input'!$C$8:$C$327,B51,'2.Code Order Input'!$F$8:$F$327) -> 0 | Q51: 47
A52: 54 | B52: E 17 | C52: Rates | D52: =IFERROR(VLOOKUP('3.Budget Update'!$B$3,'GBP 2526'!$A$5:$CX$160,A52,FALSE),0) -> 0 | E52: =SUMIF('2.Code Order Input'!$C$8:$C$327,B52,'2.Code Order Input'!$G$8:$G$327) -> 0 | F52: =SUMIF('2.Code Order Input'!$C$8:$C$327,B52,'2.Code Order Input'!$F$8:$F$327) -> 0 | Q52: 48
A53: 55 | B53: E 18 | C53: Other occupation costs | D53: =IFERROR(VLOOKUP('3.Budget Update'!$B$3,'GBP 2526'!$A$5:$CX$160,A53,FALSE),0) -> 0 | E53: =SUMIF('2.Code Order Input'!$C$8:$C$327,B53,'2.Code Order Input'!$G$8:$G$327) -> 0 | F53: =SUMIF('2.Code Order Input'!$C$8:$C$327,B53,'2.Code Order Input'!$F$8:$F$327) -> 0 | Q53: 49
A54: 56 | B54: E 19 | C54: Learning resources (not ICT) | D54: =IFERROR(VLOOKUP('3.Budget Update'!$B$3,'GBP 2526'!$A$5:$CX$160,A54,FALSE),0) -> 0 | E54: =SUMIF('2.Code Order Input'!$C$8:$C$327,B54,'2.Code Order Input'!$G$8:$G$327) -> 0 | F54: =SUMIF('2.Code Order Input'!$C$8:$C$327,B54,'2.Code Order Input'!$F$8:$F$327) -> 0 | J54: =IF(G54="","",IF(AND(E54=0,F54>0),"Actual but no budget",IF(G54>HigherRange,"Actual Spent % Higher than Pro-Rata % Spent",IF(G54<LowerRange,"Actual Spent % Lower than Pro-Rata % Spent","")))) ->  | Q54: 50
A55: =A54+1 -> 57 | B55: E 20 | C55: ICT learning resources | D55: =IFERROR(VLOOKUP('3.Budget Update'!$B$3,'GBP 2526'!$A$5:$CX$160,A55,FALSE),0) -> 0 | E55: =SUMIF('2.Code Order Input'!$C$8:$C$327,B55,'2.Code Order Input'!$G$8:$G$327) -> 0 | F55: =SUMIF('2.Code Order Input'!$C$8:$C$327,B55,'2.Code Order Input'!$F$8:$F$327) -> 0 | G55: =IF(AND(F55<>0,E55<>0),F55/E55,IF(F55<>0,"No Budget","")) ->  | I55: =IF(R55=1,"*","") ->  | J55: Does not exist anymore, must be equal to ZERO. Please split between E20A,E20B,E20C,E20D,E20E,E20F,E20G | K55: =IF(AND(J55=O$7,E55=0),"Actual but no Revised Budget?",IF(AND(J55=O$8,E55>=D55),"Reduce Revised Budget?",IF(AND(J55=O$6,E55<=D55),"Increase Revised Budget?",IF(AND(F55>0,E55=0),"Actual but no Revised Budget?",IF(E55<F55,"Increase Revised Budget?",""))))) ->  | Q55: 51 | R55: =IF(E55<F55-5,1,"") -> 
A56: =A55+1 -> 58 | B56: E 20A | C56: Connectivity | D56: =IFERROR(VLOOKUP('3.Budget Update'!$B$3,'GBP 2526'!$A$5:$CX$160,A56,FALSE),0) -> 0 | E56: =SUMIF('2.Code Order Input'!$C$8:$C$327,B56,'2.Code Order Input'!$G$8:$G$327) -> 0 | F56: =SUMIF('2.Code Order Input'!$C$8:$C$327,B56,'2.Code Order Input'!$F$8:$F$327) -> 0 | J56: =IF(G56="","",IF(AND(E56=0,F56>0),"Actual but no budget",IF(G56>HigherRange,"Actual Spent % Higher than Pro-Rata % Spent",IF(G56<LowerRange,"Actual Spent % Lower than Pro-Rata % Spent","")))) ->  | Q56: 52
A57: 59 | B57: E 20B | C57: Onsite servers | D57: =IFERROR(VLOOKUP('3.Budget Update'!$B$3,'GBP 2526'!$A$5:$CX$160,A57,FALSE),0) -> 0 | E57: =SUMIF('2.Code Order Input'!$C$8:$C$327,B57,'2.Code Order Input'!$G$8:$G$327) -> 0 | F57: =SUMIF('2.Code Order Input'!$C$8:$C$327,B57,'2.Code Order Input'!$F$8:$F$327) -> 0 | G57: =IF(AND(F57<>0,E57<>0),F57/E57,IF(F57<>0,"No Budget","")) ->  | I57: =IF(R57=1,"*","") ->  | J57: =IF(G57="","",IF(AND(E57=0,F57>0),"Actual but no budget",IF(G57>HigherRange,"Actual Spent % Higher than Pro-Rata % Spent",IF(G57<LowerRange,"Actual Spent % Lower than Pro-Rata % Spent","")))) ->  | K57: =IF(AND(J57=O$7,E57=0),"Actual but no Revised Budget?",IF(AND(J57=O$8,E57>=D57),"Reduce Revised Budget?",IF(AND(J57=O$6,E57<=D57),"Increase Revised Budget?",IF(AND(F57>0,E57=0),"Actual but no Revised Budget?",IF(E57<F57,"Increase Revised Budget?",""))))) ->  | Q57: 53 | R57: =IF(E57<F57-5,1,"") -> 
A58: 60 | B58: E 20C | C58: IT learning resources | D58: =IFERROR(VLOOKUP('3.Budget Update'!$B$3,'GBP 2526'!$A$5:$CX$160,A58,FALSE),0) -> 0 | E58: =SUMIF('2.Code Order Input'!$C$8:$C$327,B58,'2.Code Order Input'!$G$8:$G$327) -> 0 | F58: =SUMIF('2.Code Order Input'!$C$8:$C$327,B58,'2.Code Order Input'!$F$8:$F$327) -> 0 | G58: =IF(AND(F58<>0,E58<>0),F58/E58,IF(F58<>0,"No Budget","")) ->  | I58: =IF(R58=1,"*","") ->  | J58: =IF(G58="","",IF(AND(E58=0,F58>0),"Actual but no budget",IF(G58>HigherRange,"Actual Spent % Higher than Pro-Rata % Spent",IF(G58<LowerRange,"Actual Spent % Lower than Pro-Rata % Spent","")))) ->  | K58: =IF(AND(J58=O$7,E58=0),"Actual but no Revised Budget?",IF(AND(J58=O$8,E58>=D58),"Reduce Revised Budget?",IF(AND(J58=O$6,E58<=D58),"Increase Revised Budget?",IF(AND(F58>0,E58=0),"Actual but no Revised Budget?",IF(E58<F58,"Increase Revised Budget?",""))))) ->  | Q58: 54 | R58: =IF(E58<F58-5,1,"") -> 
A59: 61 | B59: E 20D | C59: Administration software and systems | D59: =IFERROR(VLOOKUP('3.Budget Update'!$B$3,'GBP 2526'!$A$5:$CX$160,A59,FALSE),0) -> 0 | E59: =SUMIF('2.Code Order Input'!$C$8:$C$327,B59,'2.Code Order Input'!$G$8:$G$327) -> 0 | F59: =SUMIF('2.Code Order Input'!$C$8:$C$327,B59,'2.Code Order Input'!$F$8:$F$327) -> 0 | Q59: 55
A60: 62 | B60: E 20E | C60: Laptops, desktops and tablets | D60: =IFERROR(VLOOKUP('3.Budget Update'!$B$3,'GBP 2526'!$A$5:$CX$160,A60,FALSE),0) -> 0 | E60: =SUMIF('2.Code Order Input'!$C$8:$C$327,B60,'2.Code Order Input'!$G$8:$G$327) -> 0 | F60: =SUMIF('2.Code Order Input'!$C$8:$C$327,B60,'2.Code Order Input'!$F$8:$F$327) -> 0 | Q60: 56
A61: 63 | B61: E 20F | C61: Other hardware | D61: =IFERROR(VLOOKUP('3.Budget Update'!$B$3,'GBP 2526'!$A$5:$CX$160,A61,FALSE),0) -> 0 | E61: =SUMIF('2.Code Order Input'!$C$8:$C$327,B61,'2.Code Order Input'!$G$8:$G$327) -> 0 | F61: =SUMIF('2.Code Order Input'!$C$8:$C$327,B61,'2.Code Order Input'!$F$8:$F$327) -> 0 | J61: =IF(G61="","",IF(AND(E61=0,F61>0),"Actual but no budget",IF(G61>HigherRange,"Actual Spent % Higher than Pro-Rata % Spent",IF(G61<LowerRange,"Actual Spent % Lower than Pro-Rata % Spent","")))) ->  | Q61: 57
A62: 64 | B62: E 20G | C62: IT support | D62: =IFERROR(VLOOKUP('3.Budget Update'!$B$3,'GBP 2526'!$A$5:$CX$160,A62,FALSE),0) -> 0 | E62: =SUMIF('2.Code Order Input'!$C$8:$C$327,B62,'2.Code Order Input'!$G$8:$G$327) -> 0 | F62: =SUMIF('2.Code Order Input'!$C$8:$C$327,B62,'2.Code Order Input'!$F$8:$F$327) -> 0 | Q62: 58
A63: 65 | B63: E 21 | C63: Examination fees | D63: =IFERROR(VLOOKUP('3.Budget Update'!$B$3,'GBP 2526'!$A$5:$CX$160,A63,FALSE),0) -> 0 | E63: =SUMIF('2.Code Order Input'!$C$8:$C$327,B63,'2.Code Order Input'!$G$8:$G$327) -> 0 | F63: =SUMIF('2.Code Order Input'!$C$8:$C$327,B63,'2.Code Order Input'!$F$8:$F$327) -> 0 | Q63: 59
A64: 66 | B64: E 22 | C64: Administrative supplies | D64: =IFERROR(VLOOKUP('3.Budget Update'!$B$3,'GBP 2526'!$A$5:$CX$160,A64,FALSE),0) -> 0 | E64: =SUMIF('2.Code Order Input'!$C$8:$C$327,B64,'2.Code Order Input'!$G$8:$G$327) -> 0 | F64: =SUMIF('2.Code Order Input'!$C$8:$C$327,B64,'2.Code Order Input'!$F$8:$F$327) -> 0 | Q64: 60
A65: 67 | B65: E 23 | C65: Other insurance premiums | D65: =IFERROR(VLOOKUP('3.Budget Update'!$B$3,'GBP 2526'!$A$5:$CX$160,A65,FALSE),0) -> 0 | E65: =SUMIF('2.Code Order Input'!$C$8:$C$327,B65,'2.Code Order Input'!$G$8:$G$327) -> 0 | F65: =SUMIF('2.Code Order Input'!$C$8:$C$327,B65,'2.Code Order Input'!$F$8:$F$327) -> 0 | Q65: 61
A66: 68 | B66: E 24 | C66: Special facilities | D66: =IFERROR(VLOOKUP('3.Budget Update'!$B$3,'GBP 2526'!$A$5:$CX$160,A66,FALSE),0) -> 0 | E66: =SUMIF('2.Code Order Input'!$C$8:$C$327,B66,'2.Code Order Input'!$G$8:$G$327) -> 0 | F66: =SUMIF('2.Code Order Input'!$C$8:$C$327,B66,'2.Code Order Input'!$F$8:$F$327) -> 0 | Q66: 62
A67: 69 | B67: E 25 | C67: Catering supplies | D67: =IFERROR(VLOOKUP('3.Budget Update'!$B$3,'GBP 2526'!$A$5:$CX$160,A67,FALSE),0) -> 0 | E67: =SUMIF('2.Code Order Input'!$C$8:$C$327,B67,'2.Code Order Input'!$G$8:$G$327) -> 0 | F67: =SUMIF('2.Code Order Input'!$C$8:$C$327,B67,'2.Code Order Input'!$F$8:$F$327) -> 0 | Q67: 63
A68: 70 | B68: E 26 | C68: Agency supply teaching staff | D68: =IFERROR(VLOOKUP('3.Budget Update'!$B$3,'GBP 2526'!$A$5:$CX$160,A68,FALSE),0) -> 0 | E68: =SUMIF('2.Code Order Input'!$C$8:$C$327,B68,'2.Code Order Input'!$G$8:$G$327) -> 0 | F68: =SUMIF('2.Code Order Input'!$C$8:$C$327,B68,'2.Code Order Input'!$F$8:$F$327) -> 0 | Q68: 64
A69: 71 | B69: E 27 | C69: Bought in professional services - curriculum | D69: =IFERROR(VLOOKUP('3.Budget Update'!$B$3,'GBP 2526'!$A$5:$CX$160,A69,FALSE),0) -> 0 | E69: =SUMIF('2.Code Order Input'!$C$8:$C$327,B69,'2.Code Order Input'!$G$8:$G$327) -> 0 | F69: =SUMIF('2.Code Order Input'!$C$8:$C$327,B69,'2.Code Order Input'!$F$8:$F$327) -> 0 | Q69: 65
A70: 72 | B70: E 28A | C70: Bought in professional services - other (except PFI) | D70: =IFERROR(VLOOKUP('3.Budget Update'!$B$3,'GBP 2526'!$A$5:$CX$160,A70,FALSE),0) -> 0 | E70: =SUMIF('2.Code Order Input'!$C$8:$C$327,B70,'2.Code Order Input'!$G$8:$G$327) -> 0 | F70: =SUMIF('2.Code Order Input'!$C$8:$C$327,B70,'2.Code Order Input'!$F$8:$F$327) -> 0 | G70: =IF(AND(F70<>0,E70<>0),F70/E70,IF(F70<>0,"No Budget","")) ->  | I70: =IF(R70=1,"*","") ->  | Q70: 66
A71: 73 | B71: E 28B | C71: Bought in professional services - other (PFI) | D71: =IFERROR(VLOOKUP('3.Budget Update'!$B$3,'GBP 2526'!$A$5:$CX$160,A71,FALSE),0) -> 0 | E71: =SUMIF('2.Code Order Input'!$C$8:$C$327,B71,'2.Code Order Input'!$G$8:$G$327) -> 0 | F71: =SUMIF('2.Code Order Input'!$C$8:$C$327,B71,'2.Code Order Input'!$F$8:$F$327) -> 0 | J71: Does not exist anymore, must be equal to ZERO | Q71: 67
A72: 74 | B72: E 29 | C72: Loan interest | D72: =IFERROR(VLOOKUP('3.Budget Update'!$B$3,'GBP 2526'!$A$5:$CX$160,A72,FALSE),0) -> 0 | E72: =SUMIF('2.Code Order Input'!$C$8:$C$327,B72,'2.Code Order Input'!$G$8:$G$327) -> 0 | F72: =SUMIF('2.Code Order Input'!$C$8:$C$327,B72,'2.Code Order Input'!$F$8:$F$327) -> 0 | J72: =IF(G72="","",IF(AND(E72=0,F72>0),"Actual but no budget",IF(G72>HigherRange,"Actual Spent % Higher than Pro-Rata % Spent",IF(G72<LowerRange,"Actual Spent % Lower than Pro-Rata % Spent","")))) ->  | Q72: 68
A73: 75 | B73: E 30 | C73: Direct revenue financing (revenue contributions to capital) | D73: =IFERROR(VLOOKUP('3.Budget Update'!$B$3,'GBP 2526'!$A$5:$CX$160,A73,FALSE),0) -> 0 | E73: =SUMIF('2.Code Order Input'!$C$8:$C$327,B73,'2.Code Order Input'!$G$8:$G$327) -> 0 | F73: =SUMIF('2.Code Order Input'!$C$8:$C$327,B73,'2.Code Order Input'!$F$8:$F$327) -> 0 | Q73: 69
A74: 76 | B74: E 31 | C74: Community focused extended school staff | D74: =IFERROR(VLOOKUP('3.Budget Update'!$B$3,'GBP 2526'!$A$5:$CX$160,A74,FALSE),0) -> 0 | E74: =SUMIF('2.Code Order Input'!$C$8:$C$327,B74,'2.Code Order Input'!$G$8:$G$327) -> 0 | F74: =SUMIF('2.Code Order Input'!$C$8:$C$327,B74,'2.Code Order Input'!$F$8:$F$327) -> 0 | Q74: 70
A75: 77 | B75: E 32 | C75: Community focused extended school costs | D75: =IFERROR(VLOOKUP('3.Budget Update'!$B$3,'GBP 2526'!$A$5:$CX$160,A75,FALSE),0) -> 0 | E75: =SUMIF('2.Code Order Input'!$C$8:$C$327,B75,'2.Code Order Input'!$G$8:$G$327) -> 0 | F75: =SUMIF('2.Code Order Input'!$C$8:$C$327,B75,'2.Code Order Input'!$F$8:$F$327) -> 0 | J75: =IF(G75="","",IF(AND(E75=0,F75>0),"Actual but no budget",IF(G75>HigherRange,"Actual Spent % Higher than Pro-Rata % Spent",IF(G75<LowerRange,"Actual Spent % Lower than Pro-Rata % Spent","")))) ->  | K75: =IF(AND(J75=O$7,E75=0),"Actual but no Revised Budget?",IF(AND(J75=O$8,E75>=D75),"Reduce Revised Budget?",IF(AND(J75=O$6,E75<=D75),"Increase Revised Budget?",IF(AND(F75>0,E75=0),"Actual but no Revised Budget?",IF(E75<F75,"Increase Revised Budget?",""))))) ->  | Q75: 71 | R75: =IF(E75<F75-5,1,"") -> 
C76: TOTAL REVENUE EXPENDITURE | D76: =SUM(D36:D75) -> 0 | E76: =SUM(E36:E75) -> 0 | F76: =SUM(F36:F75) -> 0
C77: CAPITAL INCOME
A78: 80 | B78: CI 01 | C78: Capital income | D78: =IFERROR(VLOOKUP('3.Budget Update'!$B$3,'GBP 2526'!$A$5:$CX$231,A78,FALSE),0) -> 0 | E78: =SUMIF('2.Code Order Input'!$C$8:$C$327,B78,'2.Code Order Input'!$G$8:$G$327) -> 0 | F78: =SUMIF('2.Code Order Input'!$C$8:$C$327,B78,'2.Code Order Input'!$F$8:$F$327) -> 0 | G78: =IF(AND(F78<>0,E78<>0),F78/E78,IF(F78<>0,"No Budget","")) ->  | I78: =IF(R78=1,"*","") ->  | Q78: 72 | R78: =IF(E78<F78-5,1,"") -> 
A79: 81 | B79: CI 03 | C79: Private income | D79: =IFERROR(VLOOKUP('3.Budget Update'!$B$3,'GBP 2526'!$A$5:$CX$231,A79,FALSE),0) -> 0 | E79: =SUMIF('2.Code Order Input'!$C$8:$C$327,B79,'2.Code Order Input'!$G$8:$G$327) -> 0 | F79: =SUMIF('2.Code Order Input'!$C$8:$C$327,B79,'2.Code Order Input'!$F$8:$F$327) -> 0 | G79: =IF(AND(F79<>0,E79<>0),F79/E79,IF(F79<>0,"No Budget","")) ->  | I79: =IF(R79=1,"*","") ->  | Q79: 73 | R79: =IF(E79<F79-5,1,"") -> 
A80: 82 | B80: CI 04 | C80: Direct revenue financing (revenue contributions to capital) | D80: =IFERROR(VLOOKUP('3.Budget Update'!$B$3,'GBP 2526'!$A$5:$CX$231,A80,FALSE),0) -> 0 | E80: =SUMIF('2.Code Order Input'!$C$8:$C$327,B80,'2.Code Order Input'!$G$8:$G$327) -> 0 | F80: =SUMIF('2.Code Order Input'!$C$8:$C$327,B80,'2.Code Order Input'!$F$8:$F$327) -> 0 | G80: =IF(AND(F80<>0,E80<>0),F80/E80,IF(F80<>0,"No Budget","")) ->  | I80: =IF(R80=1,"*","") ->  | Q80: 74
C81: TOTAL CAPITAL INCOME | D81: =SUM(D78:D80) -> 0 | E81: =SUM(E78:E80) -> 0 | F81: =SUM(F78:F80) -> 0
C82: CAPITAL EXPENDITURE
A83: 85 | B83: CE 01 | C83: Acquisition of land and existing buildings | D83: =IFERROR(VLOOKUP('3.Budget Update'!$B$3,'GBP 2526'!$A$5:$CX$231,A83,FALSE),0) -> 0 | E83: =SUMIF('2.Code Order Input'!$C$8:$C$327,B83,'2.Code Order Input'!$G$8:$G$327) -> 0 | F83: =SUMIF('2.Code Order Input'!$C$8:$C$327,B83,'2.Code Order Input'!$F$8:$F$327) -> 0 | G83: =IF(AND(F83<>0,E83<>0),F83/E83,IF(F83<>0,"No Budget","")) ->  | I83: =IF(R83=1,"*","") ->  | Q83: 75 | R83: =IF(E83<F83-5,1,"") -> 
A84: 86 | B84: CE 02 | C84: New construction conversion and renovation | D84: =IFERROR(VLOOKUP('3.Budget Update'!$B$3,'GBP 2526'!$A$5:$CX$231,A84,FALSE),0) -> 0 | E84: =SUMIF('2.Code Order Input'!$C$8:$C$327,B84,'2.Code Order Input'!$G$8:$G$327) -> 0 | F84: =SUMIF('2.Code Order Input'!$C$8:$C$327,B84,'2.Code Order Input'!$F$8:$F$327) -> 0 | Q84: 76 | R84: =IF(E84<F84-5,1,"") -> 
A85: 87 | B85: CE 03 | C85: Vehicles, plant, equipment and machinery | D85: =IFERROR(VLOOKUP('3.Budget Update'!$B$3,'GBP 2526'!$A$5:$CX$231,A85,FALSE),0) -> 0 | E85: =SUMIF('2.Code Order Input'!$C$8:$C$327,B85,'2.Code Order Input'!$G$8:$G$327) -> 0 | F85: =SUMIF('2.Code Order Input'!$C$8:$C$327,B85,'2.Code Order Input'!$F$8:$F$327) -> 0 | Q85: 77
A86: 88 | B86: CE 04 | C86: Information and communication technology | D86: =IFERROR(VLOOKUP('3.Budget Update'!$B$3,'GBP 2526'!$A$5:$CX$231,A86,FALSE),0) -> 0 | E86: =SUMIF('2.Code Order Input'!$C$8:$C$327,B86,'2.Code Order Input'!$G$8:$G$327) -> 0 | F86: =SUMIF('2.Code Order Input'!$C$8:$C$327,B86,'2.Code Order Input'!$F$8:$F$327) -> 0 | J86: Does not exist anymore, must be equal to ZERO. Please split between CE04A,CE04B,CE04C,CE04D,CE04E | Q86: 78 | R86: =IF(E86<F86-5,1,"") -> 
A87: 89 | B87: CE 04A | C87: Capital Connectivity | D87: =IFERROR(VLOOKUP('3.Budget Update'!$B$3,'GBP 2526'!$A$5:$CX$231,A87,FALSE),0) -> 0 | E87: =SUMIF('2.Code Order Input'!$C$8:$C$327,B87,'2.Code Order Input'!$G$8:$G$327) -> 0 | F87: =SUMIF('2.Code Order Input'!$C$8:$C$327,B87,'2.Code Order Input'!$F$8:$F$327) -> 0 | Q87: 79
A88: 90 | B88: CE 04B | C88: Capital Onsite servers | D88: =IFERROR(VLOOKUP('3.Budget Update'!$B$3,'GBP 2526'!$A$5:$CX$231,A88,FALSE),0) -> 0 | E88: =SUMIF('2.Code Order Input'!$C$8:$C$327,B88,'2.Code Order Input'!$G$8:$G$327) -> 0 | F88: =SUMIF('2.Code Order Input'!$C$8:$C$327,B88,'2.Code Order Input'!$F$8:$F$327) -> 0 | Q88: 80
A89: 91 | B89: CE 04C | C89: Capital Administration software and systems | D89: =IFERROR(VLOOKUP('3.Budget Update'!$B$3,'GBP 2526'!$A$5:$CX$231,A89,FALSE),0) -> 0 | E89: =SUMIF('2.Code Order Input'!$C$8:$C$327,B89,'2.Code Order Input'!$G$8:$G$327) -> 0 | F89: =SUMIF('2.Code Order Input'!$C$8:$C$327,B89,'2.Code Order Input'!$F$8:$F$327) -> 0 | G89: =IF(AND(F89<>0,E89<>0),F89/E89,IF(F89<>0,"No Budget","")) ->  | Q89: 81
A90: 92 | B90: CE 04D | C90: Capital Laptops, desktops, and tablets | D90: =IFERROR(VLOOKUP('3.Budget Update'!$B$3,'GBP 2526'!$A$5:$CX$231,A90,FALSE),0) -> 0 | E90: =SUMIF('2.Code Order Input'!$C$8:$C$327,B90,'2.Code Order Input'!$G$8:$G$327) -> 0 | F90: =SUMIF('2.Code Order Input'!$C$8:$C$327,B90,'2.Code Order Input'!$F$8:$F$327) -> 0 | Q90: 82
A91: 93 | B91: CE 04E | C91: Capital Other hardware | D91: =IFERROR(VLOOKUP('3.Budget Update'!$B$3,'GBP 2526'!$A$5:$CX$231,A91,FALSE),0) -> 0 | E91: =SUMIF('2.Code Order Input'!$C$8:$C$327,B91,'2.Code Order Input'!$G$8:$G$327) -> 0 | F91: =SUMIF('2.Code Order Input'!$C$8:$C$327,B91,'2.Code Order Input'!$F$8:$F$327) -> 0 | Q91: 83 | R91: =IF(E91<F91-5,1,"") -> 
C92: TOTAL CAPITAL EXPENDITURE | D92: =SUM(D83:D91) -> 0 | E92: =SUM(E83:E91) -> 0 | F92: =SUM(F83:F91) -> 0
C93: BALANCES CARRIED FORWARD TO 2026-25
A94: 96 | B94: B 01 | C94: Committed revenue balance - non revenue grants | D94: =IFERROR(VLOOKUP('3.Budget Update'!$B$3,'GBP 2526'!$A$5:$CX$231,A94,FALSE),0) -> 0 | E94: =E5+E6+E7+E34-E28-E29-E76+E74+E75 -> 0 | Q94: 84
A95: 97 | B95: B 01 | C95: Committed revenue balance - revenue grants | D95: =IFERROR(VLOOKUP('3.Budget Update'!$B$3,'GBP 2526'!$A$5:$CX$231,A95,FALSE),0) -> 0 | G95: Please manually input: | Q95: 85
A96: 98 | B96: B 02 | C96: Uncommitted Revenue balance | D96: =IFERROR(VLOOKUP('3.Budget Update'!$B$3,'GBP 2526'!$A$5:$CX$231,A96,FALSE),0) -> 0 | G96: B 01 - Rev Grants cfwd | Q96: 86
A97: 99 | B97: B 03 | C97: Devolved formula capital balance | D97: =IFERROR(VLOOKUP('3.Budget Update'!$B$3,'GBP 2526'!$A$5:$CX$231,A97,FALSE),0) -> 0 | E97: =E8+E9+E81-E92-E98 -> 0 | G97: B 05 - Other Capital cfwd | Q97: 87
A98: 100 | B98: B 05 | C98: Other capital balances | D98: =IFERROR(VLOOKUP('3.Budget Update'!$B$3,'GBP 2526'!$A$5:$CX$231,A98,FALSE),0) -> 0 | Q98: 88
A99: 101 | B99: B 06 | C99: Community Focused extended school balances | D99: =IFERROR(VLOOKUP('3.Budget Update'!$B$3,'GBP 2526'!$A$5:$CX$231,A99,FALSE),0) -> 0 | E99: =E10+E28+E29-E74-E75 -> 0 | Q99: 89
C100: TOTAL BALANCE CARRIED FORWARD | D100: =SUM(D94:D99) -> 0 | E100: =SUM(E94:E99) -> 0
B102: WARNING MESSAGES:
B104: =IF(C104="","","*") ->  | C104: =IF(R105=0,"",R105&CONCATENATE("Lines where your Actual to ",Month," is greater than your Revised Budget Forecast - Please Revise")) ->  | Q104: Warning | R104: Count
C105: =IF(R106=0,"",R106&CONCATENATE("Lines where you have Actuals to ",Month," but have not revised your Budget Forecast - Please Revise")) ->  | Q105: Actual > Revised Budget | R105: =SUM(R13:R92) -> 0
Q106: Actual but no Revised Budget? | R106: =COUNTIF($K$13:$K$75,Q106) -> 0

Sheet AFO Lookup (hidden)
A2: Report = | B2: ='FMS6 Report'!$L$1 -> 0 | F2: Percentage Range: | G2: 10 | H2: =1/G2 -> 0.1
A4: Period | C4: Month | D4: Return | E4: End Date | F4: Percentage Pro-Rata | G4: Lower Range | H4: Higher Range | J4: Percentage Pro-Rata 13 Months | K4: Lower Range | L4: Higher Range
A5: 1 | B5: Apr | C5: April | D5: 1 Month Return | E5: 30th | F5: =(1/12)*A5 -> 0.08333333333 | G5: =F5*(1-$H$2) -> 0.075 | H5: =F5*(1+$H$2) -> 0.09166666667 | J5: =(1/12)*A6 -> 0.1666666667 | K5: =J5*(1-$H$2) -> 0.15 | L5: =J5*(1+$H$2) -> 0.1833333333 | T5: =INDEX('AFO Lookup'!C5:C16,match) -> 
A6: 2 | B6: May | C6: May | D6: 2 Months Return | E6: 31st | F6: =(1/12)*A6 -> 0.1666666667 | G6: =F6*(1-$H$2) -> 0.15 | H6: =F6*(1+$H$2) -> 0.1833333333 | J6: =(1/12)*A7 -> 0.25 | K6: =J6*(1-$H$2) -> 0.225 | L6: =J6*(1+$H$2) -> 0.275
A7: 3 | B7: Jun | C7: June | D7: Quarter-Year Return | E7: 30th | F7: 0.25 | G7: 0.225 | H7: 0.275 | J7: 0.3333333333 | K7: 0.3 | L7: 0.3666666667
A8: 4 | B8: Jul | C8: July | D8: 4 Months Return | E8: 31st | F8: 0.3333333333 | G8: 0.3 | H8: 0.3666666667 | J8: =(1/12)*A9 -> 0.4166666667 | K8: 0.375 | L8: 0.4583333333
A9: 5 | B9: Aug | C9: August | D9: 5 Months Return | E9: 31st | F9: 0.4166666667 | G9: 0.375 | H9: 0.4583333333 | J9: 0.5 | K9: 0.45 | L9: 0.55
A10: 6 | B10: Sep | C10: September | D10: Half-Year Return | E10: 30th | F10: 0.5 | G10: 0.45 | H10: 0.55 | J10: 0.5833333333 | K10: 0.525 | L10: 0.6416666667
A11: 7 | B11: Oct | C11: October | D11: 7 Months Return | E11: 31st | F11: 0.5833333333 | G11: 0.525 | H11: 0.6416666667 | J11: 0.6666666667 | K11: 0.6 | L11: 0.7333333333
A12: 8 | B12: Nov | C12: November | D12: 8 Months Return | E12: 30th | F12: 0.6666666667 | G12: 0.6 | H12: 0.7333333333 | J12: 0.75 | K12: 0.675 | L12: 0.825
A13: 9 | B13: Dec | C13: December | D13: 3 Quarters-Year Return | E13: 31st | F13: 0.75 | G13: 0.675 | H13: 0.825 | J13: 0.8333333333 | K13: 0.75 | L13: 0.9166666667
A14: 10 | B14: Jan | C14: January | D14: 10 Months Return | E14: 31st | F14: 0.8333333333 | G14: 0.75 | H14: 0.9166666667 | J14: 0.9166666667 | K14: 0.825 | L14: 1.008333333
A15: 11 | B15: Feb | C15: February | D15: 11 Months Return | E15: 29th | F15: 0.9166666667 | G15: 0.825 | H15: 1.008333333 | J15: 1 | K15: 0.9 | L15: 1.1
A16: 12 | B16: Mar | C16: March | D16: 1 Year Return | E16: 31st | F16: =(1/12)*A16 -> 1 | G16: 0.9 | H16: 1.1 | J16: =(1/12)*A17 -> 1.083333333 | K16: 0.975 | L16: 1.191666667
A17: 13

Sheet 4.GovApproval
B2: =IFERROR(CONCATENATE("Governors' Budget Plan ",Month," Budget Forecast 2025-26"),"Governors' Budget Plan Budget Forecast 2025-26") -> Governors' Budget Plan Budget Forecast 2025-26
C4: =IFERROR(CONCATENATE("I confirm that the submitted 'Governors' Budget Plan ",Month," Budget Forecast 2025-26' has been agreed by the Governing Body, and that the budget has been prepared in accordance with the Best Value principles as set out in Annex C of the Fair Funding Scheme for schools."),"I confirm that the submitted 'Governors' Budget Plan September Budget Forecast 2025-26' has been agreed by the Governing Body.") -> I confirm that the submitted 'Governors' Budget Plan September Budget Forecast 2025-26' has been agreed by the Governing Body.
C5: Scheme for financing maintained schools (gloucestershire.gov.uk)
C7: This slip should be signed by either your Chair of Governors or Chair of Finance Committee, but does not need to be approved at a Governors' meeting.
F9: School LA Cost Centre Number: | G9: ='1.Notes Mthly'!C6 -> 0
C10: ='3.Budget Update'!C3 -> 
D11: Approved on behalf of the Governing Body by:
C13: Signed: | E13: Date:
C15: The Monthly Governors' Budget Plan template and the scanned signed Governors Approval Slip should be completed and returned electronically via perspective lite. When submitting the files please ensure that you tag the files "GBP":
C16: https://perspective.angelsolutions.co.uk/perspective/login.aspx
C18: If you have any queries with regards to this template please submit an email to the following address:
D19: govbp@gloucestershire.gov.uk
B20: TO BE RETURNED AS SOON AS POSSIBLE BUT NO LATER THAN: SEPTEMBER CHEQUE BOOK RETURNS - FRIDAY 7th NOVEMBER 2025. P6 HALF YEAR RETURNS FRIDAY 7th NOVEMBER 2025. P7 HALF YEAR RETURNS FRIDAY 5th DECEMBER 2025. P8 HALF YEAR RETURNS FRIDAY 9th JANUARY 2026.
B21: =IF('3.Budget Update'!D102<>"","New planned deficit - please contact Victoria Chapman on 01452 583466","") -> 
B22: =IF(OR(B23<>"",B24<>"")," This Governors' Budget Plan contains warning messages - please refer to 3. Budget Update tab:","") -> 
B23: ='3.Budget Update'!C104 -> 
B24: ='3.Budget Update'!C105 -> 

Sheet Instructions to CC Summ by CC (hidden)
B2: Cost Centre Summary by Cost Centre Report
B6: On FMS access the report by following the route below:
B8: Reports/General Ledger/Transactions/Cost Centre Summary Transactions/ Cost Centre Summary by Cost Centre
B10: Do not change or choose any criteria and press ok
B38: Print and scan so you can email the document.
B40: Send with this report along with this spreadsheet to the email on the Notes tab

Sheet FMS6 Auto Mnthly
C2: Click here to return to '1.Notes'! tab
C4: Please print these instructions
C6: Monthly Budget Monitoring in CFR Format 2025-26
C8: It is intended that the completion of the return be automated as far as possible. I have detailed below instructions on how to produce the Monthly Budget Plan. The instructions need to be carried out on a computer that runs FMS6.
C10: If you wish to take advantage of the automation within the Monthly Budget Plan spreadsheet you must also check that a folder called GBP exists on the Local Disk C of the computer. If it does not you need to create it. The folder must be called GBP.
C11: If you can not access the C Drive you can change the Drive the spreadsheet looks at on Tab 1. Notes Monthly in cell B22. Then save the file there with the same name below.
C13: ** Note the folder may already exist if you have previously used the automation to complete a Budget Plan.**
C15: This is how to create the GBP folder if it is not already present on drive C: of the computer on which you will produce the Monthly Budget Plan.
C17: Open ‘My Computer’ from your desktop
C19: Double left click on your C: Drive to open it.
C21: Right click on a white area, Not an existing folder
C23: Left click on New followed by Folder.
C25: Overtype the name of the 'New Folder' with GBP.
C28: How to produce the Monthly Budget Plan
C30: There are two stages to the population of the Monthly Budget Plan with the Budget Allocations and Actuals recorded against Ledger Codes in FMS6.
C32: The first stage is to export a report from the FMS system. The second is to import the information in the report to this spreadsheet.
C34: To produce the report from the FMS system
C36: Open FMS in the current financial year
C38: Select Reports | General Ledger | Analysis | Cumulative Expense Analysis …
C40: The Report Criteria Screen is displayed.
C42: Leave the View as Ledger Code Summary.
C44: Leave the financial year as the current year.
C46: Leave the Fund box empty.
C48: Tick these 5 boxes.
C50: Use the Browse to select the period you
C51: require in this example period 6 - Sep.
C53: Click on the 'OK' Button.
C56: The report is shown on the screen.
C57: The upper left corner of the report looks like this.
C60: Click on the "TSV" Icon.
C62: The ‘Save As’ screen is displayed. The top of it looks like this. Delete whatever is shown in the folder and replace it with C:\GBP
C63: Then click the -> button
C68: The bottom of the screen should now look like this. Delete the contents of the File_name box and replace it with GBPMth.tsv
C69: Click on the [Save] Button.
C71: Close the Cumulative Expense Analysis Report.
C73: You have now produced the report from FMS6 needed to produce the Monthly Budget Plan.
C76: The second stage of the process is to import the FMS6 report to the Monthly Budget Plan Spreadsheet.
C78: To import the Ledger Code Actuals and Budget allocations from the FMS6 reports to the Monthly Budget Plan spreadsheet -
C80: Open the spreadsheet and go to tab '2. Code Order Input'
C81: Ignore the Period Box that is only there for manual entry
C83: Click on the Blue button at the top of the screen to import the Ledger Code Actuals and Budgets.
C85: Click on the Red button at the top of the screen to Validate the imported Ledger Code Actuals and Budgets. This may highlight problems such as an Actual or Budget against an 'invalid' or 'no longer used' Ledger Code in FMS6. If this is the case you can either:-
C86: A) Move the Actual or Budget to the correct Ledger Code in FMS6, and export the report again. Then repeat steps 1-3 on this page.
C88: OR
C90: B) Make the change in the spreadsheet only (not in FMS6). To do this:-
C91: 1. Print the list of used Ledger Codes that do not appear on the Standard code list. These appear on the 'Check Errors' tab.
C93: 2. Enter each Ledger code in the 'Ledger Code' column of the Green section at the top of tab 2. 'Code Order Input'.
C95: 3. You MUST also select the appropriate CFR line from the drop down menu in the 'CFR REF:' column to the left of each Ledger Code entered in the Green section. NOTE: There is a space between the letter and line number of the CFR Ref e.g. E 09.
C97: NOTE: With Option B you are not correcting FMS for the use of incorrect Ledger codes.You must subsequently address these miscodings in FMS.
C99: Once you are satisfied that you have completed tab '2. Code Order Input', you may continue with the completion of the remainder of the Monthly Budget Plan.
C101: Click here to return to '1.Notes'! tab

Sheet Income Check
B2: You only need to complete this tab if you completed the September Budget Plan Manually using IE reports from FMS6
E3: Actual
E4: to end of
B5: CFR | C5: Ledger | E5: September
B6: Line | C6: Code | D6: Code Description | E6: £
B8: I 01 | C8: 73012 | D8: Excluded Pupil Funding Adjustment | E8: ='2.Code Order Input'!F229 -> 0
B9: I 01 | C9: 73000 | D9: SCHOOL ORIGINAL DELEGATED BUDGET (I.S.B.) | E9: ='2.Code Order Input'!F222 -> 0
B10: I 01 | C10: 73002 | D10: I.S.B. CONTINGENCY BUDGET INCREASES | E10: ='2.Code Order Input'!F223 -> 0
B11: I 01 | C11: 73011 | D11: SPECIFIC SEN FUNDING | E11: ='2.Code Order Input'!F228 -> 0
B12: I 01 | C12: 73053 | D12: SCHOOL LOAN ALLOCATION | E12: ='2.Code Order Input'!F253 -> 0
B13: I 01 | C13: 73054 | D13: REPAYMENT OF LOAN (SCHOOLS) | E13: ='2.Code Order Input'!F254 -> 0
B14: I 01 | C14: 73055 | D14: EDUCATION FUNCTIONS (services formerly funded by ESG) | E14: ='2.Code Order Input'!F255 -> 0
B15: I 01 | C15: 73057 | D15: TEACHERS PAY GRANT | E15: ='2.Code Order Input'!F259 -> 0
B16: I 01 | C16: 73066 | D16: Mainstream Schools Additional Grant | E16: ='2.Code Order Input'!F256 -> 0
B17: I 01 | C17: 73067 | D17: CSBG Spec school Budget | E17: ='2.Code Order Input'!F257 -> 0
B18: I 01 | C18: 73068 | D18: National Insurance Grant | E18: ='2.Code Order Input'!F258 -> 0
D19: Totals for I01 | E19: =SUM(E8:E18) -> 0
B23: CI 01 | C23: 73031 | D23: FORMULA CAPITAL (CURRENT YEAR) | E23: ='2.Code Order Input'!F237 -> 0
B24: CI 01 | C24: 73036 | D24: OTHER CAPITAL GRANT GCC | E24: ='2.Code Order Input'!F240 -> 0
B25: CI 01 | C25: 73048 | D25: SALES OF FIXED ASSETS (Foundation Schools) | E25: ='2.Code Order Input'!F248 -> 0
B26: CI 01 | C26: 81306 | D26: CAPITAL GRANTS (Non GCC) | E26: ='2.Code Order Input'!F293 -> 0
D28: Totals for CI01 | E28: =SUM(E23:E27) -> 0

Sheet Check Errors
B2: Please print this sheet and return to your instructions
B4: Please investigate:- The following Ledger Code(s) do not appear on the standard code list.
B5: Ledger Code | C5: Code Centre | D5: Budget | G5: Actual

Sheet GBP 2526 (hidden)
A1: 1 | B1: 2 | C1: 3 | D1: 4 | E1: 5 | F1: 6 | G1: 7 | H1: 8 | I1: 9 | J1: 10 | K1: 11 | L1: 12 | M1: 13 | N1: 14 | O1: 15 | P1: 16 | Q1: 17 | R1: 18 | S1: 19 | T1: 20 | U1: 21 | V1: 22 | W1: 23 | X1: 24 | Y1: 25 | Z1: 26 | AA1: 27 | AB1: 28 | AC1: 29 | AD1: 30 | AE1: 31 | AF1: 32 | AG1: 33 | AH1: 34 | AI1: 35 | AJ1: 36 | AK1: 37 | AL1: 38 | AM1: 39 | AN1: 40 | AO1: 41 | AP1: 42 | AQ1: 43 | AR1: 44 | AS1: 45 | AT1: 46 | AU1: 47 | AV1: 48 | AW1: 49 | AX1: 50 | AY1: 51 | AZ1: 52 | BA1: 53 | BB1: 54 | BC1: 55 | BD1: 56 | BE1: =BD1+1 -> 57 | BF1: =BE1+1 -> 58 | BG1: 59 | BH1: 60 | BI1: =BH1+1 -> 61 | BJ1: 62 | BK1: 63 | BL1: 64 | BM1: 65 | BN1: 66 | BO1: 67 | BP1: 68 | BQ1: 69 | BR1: 70 | BS1: 71 | BT1: 72 | BU1: 73 | BV1: 74 | BW1: 75 | BX1: 76 | BY1: 77 | BZ1: 78 | CA1: 79 | CB1: 80 | CC1: 81 | CD1: 82 | CE1: 83 | CF1: 84 | CG1: 85 | CH1: 86 | CI1: 87 | CJ1: 88 | CK1: 89 | CL1: 90 | CM1: 91 | CN1: 92 | CO1: 93 | CP1: 94 | CQ1: 95 | CR1: 96 | CS1: 97 | CT1: 98 | CU1: 99 | CV1: 100 | CW1: 101 | CX1: 102 | CY1: 103 | CZ1: 104 | DA1: 105 | DB1: 106 | DC1: 107 | DD1: 108 | DE1: 109 | DF1: 110 | DG1: 111 | DH1: 112 | DI1: 113 | DJ1: 114 | DK1: 115 | DL1: 116 | DM1: 117 | DN1: 118 | DO1: 119 | DP1: 120 | DQ1: 121 | DR1: 122 | DS1: 123 | DT1: 124 | DU1: =DT1+1 -> 125 | DV1: 126 | DW1: 127 | DX1: 128 | DY1: 129 | DZ1: 130 | EA1: 131 | EB1: 132 | EC1: 133 | ED1: 134 | EE1: 135 | EF1: 136 | EG1: 137
P2: =Q2-1 -> 13 | Q2: 14 | R2: 15 | S2: 16 | T2: 17 | U2: 18 | V2: 19 | W2: 20 | X2: 21 | Y2: 22 | Z2: 23 | AA2: 24 | AB2: 25 | AC2: 26 | AD2: 27 | AE2: 28 | AF2: 29 | AG2: 30 | AH2: 31 | AI2: =AJ2-1 -> 32 | AJ2: 33 | AL2: 36 | AM2: =AL2+1 -> 37 | AN2: =AM2+1 -> 38 | AO2: 39 | AP2: 40 | AQ2: 41 | AR2: 42 | AS2: 43 | AT2: 44 | AU2: 45 | AV2: 46 | AW2: 47 | AX2: 48 | AY2: 49 | AZ2: 50 | BA2: 51 | BB2: 52 | BC2: 53 | BD2: 54 | BE2: =BD2+1 -> 55 | BF2: =BE2+1 -> 56 | BG2: 57 | BH2: 58 | BI2: =BH2+1 -> 59 | BJ2: 60 | BK2: 61 | BL2: 62 | BM2: 63 | BN2: 64 | BO2: 65 | BP2: 66 | BQ2: 67 | BR2: 68 | BS2: 69 | BT2: 70 | BU2: 71 | BV2: 72 | BW2: 73 | BX2: 74 | BY2: 75 | BZ2: 76 | CA2: 77 | CB2: 78 | CC2: 79 | CD2: 80 | CE2: 81 | CF2: 82 | CG2: 83 | CH2: 84 | CI2: 85 | CJ2: 86 | CK2: 87 | CL2: 88 | CM2: 89 | CN2: 90 | CO2: 91 | CP2: 92 | CQ2: 93 | CR2: 94 | CS2: 95 | CT2: 96 | CU2: 97 | CV2: 98 | CW2: 99 | CX2: 100 | CY2: 101 | CZ2: 102 | DA2: 103 | DB2: 104 | DC2: 105 | DD2: 106 | DE2: 107 | DF2: 108 | DG2: 109 | DH2: 110 | DI2: 111 | DJ2: 112 | DK2: 113 | DL2: 114 | DM2: 115 | DN2: 116 | DO2: 117 | DP2: 118 | DQ2: 119 | DR2: 120 | DS2: 121 | DT2: 122 | DU2: =DT2+1 -> 123 | DV2: 124 | DW2: 125 | DX2: 126 | DY2: 127 | DZ2: 128 | EA2: 129 | EB2: 130 | EC2: 131 | ED2: 132 | EE2: 133 | EF2: 134 | EG2: 135
I3: Balances Brought Forward | P3: Revenue Income | AL3: Revenue Expenditure | CB3: Capital Income | CG3: Capital Expenditure | CR3: Balances Carried Forward | DJ3: Opening Balances | DM3: Closing Balances | DQ3: & S/School/Spec Budget/1718/1718 budget estimate tool Final - April 2017
A4: School LA Number | B4: DfE No | C4: DfE No (shortened) | D4: URN | E4: School Name | F4: Type 2 | G4: EstablishmentTypeGroup (name) | H4: Bank Account | I4: B 01 | J4: B 01_01 | K4: B 02 | L4: B 03 | M4: B 05 | N4: B 06 | O4: Total | P4: I 01 | Q4: I 02 | R4: I 03 | S4: I 04 | T4: I 05 | U4: I 06 | V4: I 07 | W4: I 08a | X4: I 08b | Y4: I 09 | Z4: I 10 | AA4: I 11 | AB4: I 12 | AC4: I 13 | AD4: I 15 | AE4: I 16 | AF4: I 17 | AG4: I 18A | AH4: I 18B | AI4: I 18C | AJ4: I 18D | AK4: Total | AL4: E 01 | AM4: E 02 | AN4: E 03 | AO4: E 04 | AP4: E 05 | AQ4: E 06 | AR4: E 07 | AS4: E 08 | AT4: E 09 | AU4: E 10 | AV4: E 11 | AW4: E 12 | AX4: E 13 | AY4: E 14 | AZ4: E 15 | BA4: E 16 | BB4: E 17 | BC4: E 18 | BD4: E 19 | BE4: E 20 | BF4: E 20A | BG4: E 20B | BH4: E 20C | BI4: E 20D | BJ4: E 20E | BK4: E 20F | BL4: E 20G | BM4: E 21 | BN4: E 22 | BO4: E 23 | BP4: E 24 | BQ4: E 25 | BR4: E 26 | BS4: E 27 | BT4: E 28A | BU4: E 28B | BV4: E 29 | BW4: E 30 | BX4: E 31 | BY4: E 32 | BZ4: Total | CB4: CI 01 | CC4: CI 03 | CD4: CI 04 | CE4: Total | CG4: CE 01 | CH4: CE 02 | CI4: CE 03 | CJ4: CE 04 | CK4: CE 04A | CL4: CE 04B | CM4: CE 04C | CN4: CE 04D | CO4: CE 04E | CP4: Total | CR4: B 01 | CS4: B 01_01 | CT4: B 02 | CU4: B 03 | CV4: B 05 | CW4: B 06 | CX4: Total | DJ4: Revenue | DK4: Capital | DL4: Total | DM4: Revenue | DN4: Capital | DO4: Total | DQ4: ISB 22-23 | DR4: ISB vs Total Income % | DS4: Employees vs Core Income %
A5: 784 | B5: 9162066 | C5: 2066 | E5: Soudley School | I5: 67010.74 | J5: 2209.14 | K5: 0 | L5: 14446.21 | M5: 0 | N5: 1700.58 | O5: 85366.67 | P5: 416914 | Q5: 0 | R5: 61766 | S5: 0 | T5: 13235 | U5: 24866 | V5: 0 | W5: 0 | X5: 3200 | Y5: 0 | Z5: 0 | AA5: 0 | AB5: 0 | AC5: 0 | AD5: 0 | AE5: 21000 | AF5: 0 | AG5: 0 | AH5: 0 | AI5: 0 | AJ5: 0 | AK5: 540981 | AL5: 225329 | AM5: 14000 | AN5: 141974 | AO5: 21866 | AP5: 27935 | AQ5: 0 | AR5: 17210 | AS5: 2500 | AT5: 2500 | AU5: 844 | AV5: 0 | AW5: 11174 | AX5: 1895 | AY5: 0 | AZ5: 2100 | BA5: 11000 | BB5: 8883 | BC5: 1500 | BD5: 13722 | BE5: 0 | BF5: 5000 | BG5: 0 | BH5: 2159 | BI5: 1591 | BJ5: 0 | BK5: 2000 | BL5: 2500 | BM5: 0 | BN5: 625 | BO5: 1494 | BP5: 0 | BQ5: 12649 | BR5: 2000 | BS5: 9683 | BT5: 13970 | BU5: 0 | BV5: 0 | BW5: 0 | BX5: 22701 | BY5: 0 | BZ5: 580804 | CB5: 4630 | CC5: 0 | CD5: 0 | CE5: 4630 | CG5: 0 | CH5: 19076 | CI5: 0 | CJ5: 0 | CK5: 0 | CL5: 0 | CM5: 0 | CN5: 0 | CO5: 0 | CP5: 19076 | CR5: 31097.88 | CS5: 0 | CT5: 0 | CU5: 0.21 | CV5: 0 | CW5: -0.42 | CX5: 31097.67
A6: 583 | B6: 9162138 | C6: 2138 | E6: Cam Woodfield Infant School | I6: 14193.05 | J6: 9451.87 | K6: 0 | L6: 11438.56 | M6: 0 | N6: 0 | O6: 35083.48 | P6: 888165 | Q6: 0 | R6: 59786 | S6: 0 | T6: 48840 | U6: 58567 | V6: 0 | W6: 0 | X6: 0 | Y6: 5000 | Z6: 0 | AA6: 0 | AB6: 0 | AC6: 0 | AD6: 0 | AE6: 0 | AF6: 0 | AG6: 0 | AH6: 0 | AI6: 0 | AJ6: 0 | AK6: 1060358 | AL6: 545031 | AM6: 2000 | AN6: 294992 | AO6: 8490 | AP6: 37873 | AQ6: 0 | AR6: 12498 | AS6: 4541 | AT6: 4000 | AU6: 7488 | AV6: 0 | AW6: 11436 | AX6: 1562 | AY6: 18435 | AZ6: 2500 | BA6: 8500 | BB6: 12226 | BC6: 4442 | BD6: 28928 | BE6: 0 | BF6: 2700 | BG6: 0 | BH6: 8500 | BI6: 0 | BJ6: 3000 | BK6: 0 | BL6: 4002 | BM6: 0 | BN6: 3355 | BO6: 8151 | BP6: 0 | BQ6: 59252 | BR6: 13000 | BS6: 24124 | BT6: 11586 | BU6: 0 | BV6: 0 | BW6: 0 | BX6: 0 | BY6: 0 | BZ6: 1142612 | CB6: 5474 | CC6: 0 | CD6: 0 | CE6: 5474 | CG6: 0 | CH6: 12913 | CI6: 0 | CJ6: 0 | CK6: 0 | CL6: 0 | CM6: 1000 | CN6: 3000 | CO6: 0 | CP6: 16913 | CR6: -58609.08 | CS6: 0 | CT6: 0 | CU6: -0.44 | CV6: 0 | CW6: 0 | CX6: -58609.52
A7: 125 | B7: 9167019 | C7: 7019 | E7: Alderman Knight School | I7: 2753532.56 | J7: 22080.51 | K7: 0 | L7: 9700.84 | M7: 0 | N7: 0 | O7: 2785313.91 | P7: 2521029 | Q7: 0 | R7: 2677940 | S7: 0 | T7: 79550 | U7: 16386 | V7: 0 | W7: 0 | X7: 94500 | Y7: 0 | Z7: 0 | AA7: 0 | AB7: 40000 | AC7: 4500 | AD7: 0 | AE7: 0 | AF7: 0 | AG7: 0 | AH7: 0 | AI7: 0 | AJ7: 0 | AK7: 5433905 | AL7: 2682822 | AM7: 45390 | AN7: 1893494 | AO7: 87972 | AP7: 504044 | AQ7: 0 | AR7: 0 | AS7: 27745 | AT7: 20000 | AU7: 0 | AV7: 0 | AW7: 91300 | AX7: 5450 | AY7: 84150 | AZ7: 9000 | BA7: 63000 | BB7: 0 | BC7: 7800 | BD7: 176096 | BE7: 0 | BF7: 4962 | BG7: 0 | BH7: 10635 | BI7: 37675 | BJ7: 20000 | BK7: 4832 | BL7: 2596 | BM7: 30000 | BN7: 36161 | BO7: 36474 | BP7: 0 | BQ7: 23395 | BR7: 0 | BS7: 115952 | BT7: 90961 | BU7: 0 | BV7: 0 | BW7: 536980 | BX7: 0 | BY7: 0 | BZ7: 6648886 | CB7: 15188 | CC7: 0 | CD7: 536980 | CE7: 552168 | CG7: 0 | CH7: 561869 | CI7: 0 | CJ7: 0 | CK7: 0 | CL7: 0 | CM7: 0 | CN7: 0 | CO7: 0 | CP7: 561869 | CR7: 1560632.07 | CS7: 0 | CT7: 0 | CU7: -0.16 | CV7: 0 | CW7: 0 | CX7: 1560631.91
A8: 925 | B8: 9162034 | C8: 2034 | E8: Dinglewell Infant School | I8: 131799.76 | J8: 0 | K8: 0 | L8: 0 | M8: 0 | N8: 0 | O8: 131799.76 | P8: 1248660 | Q8: 0 | R8: 55721 | S8: 0 | T8: 23325 | U8: 152686 | V8: 0 | W8: 2300 | X8: 88800 | Y8: 0 | Z8: 0 | AA8: 0 | AB8: 0 | AC8: 0 | AD8: 0 | AE8: 0 | AF8: 0 | AG8: 0 | AH8: 0 | AI8: 0 | AJ8: 0 | AK8: 1571492 | AL8: 826396 | AM8: 15000 | AN8: 288745 | AO8: 20793 | AP8: 61546 | AQ8: 0 | AR8: 73484 | AS8: 6030 | AT8: 9360 | AU8: 769 | AV8: 0 | AW8: 16792 | AX8: 0 | AY8: 24183 | AZ8: 5300 | BA8: 11150 | BB8: 0 | BC8: 2484 | BD8: 43239 | BE8: 0 | BF8: 4194 | BG8: 0 | BH8: 6583 | BI8: 6139 | BJ8: 1000 | BK8: 18000 | BL8: 4975 | BM8: 0 | BN8: 7180 | BO8: 13933 | BP8: 0 | BQ8: 121995 | BR8: 0 | BS8: 0 | BT8: 16034 | BU8: 0 | BV8: 0 | BW8: 0 | BX8: 0 | BY8: 0 | BZ8: 1605304 | CB8: 7026 | CC8: 0 | CD8: 0 | CE8: 7026 | CG8: 0 | CH8: 7026 | CI8: 0 | CJ8: 0 | CK8: 0 | CL8: 0 | CM8: 0 | CN8: 0 | CO8: 0 | CP8: 7026 | CR8: 97987.76 | CS8: 0 | CT8: 0 | CU8: 0 | CV8: 0 | CW8: 0 | CX8: 97987.76
A9: 139 | B9: 9167017 | C9: 7017 | E9: The Shrubberies School | I9: 45813.04 | J9: 1174 | K9: 0 | L9: 0.25 | M9: 0 | N9: 0 | O9: 46987.29 | P9: 1552602 | Q9: 0 | R9: 2022642 | S9: 0 | T9: 79725 | U9: 24913 | V9: 0 | W9: 0 | X9: 40000 | Y9: 0 | Z9: 0 | AA9: 0 | AB9: 0 | AC9: 0 | AD9: 0 | AE9: 0 | AF9: 0 | AG9: 0 | AH9: 0 | AI9: 0 | AJ9: 0 | AK9: 3719882 | AL9: 1542730 | AM9: 0 | AN9: 1537632 | AO9: 39423 | AP9: 146969 | AQ9: 0 | AR9: 56877 | AS9: 15500 | AT9: 13000 | AU9: 5000 | AV9: 17000 | AW9: 12985 | AX9: 6500 | AY9: 69505 | AZ9: 8000 | BA9: 73000 | BB9: 0 | BC9: 16350 | BD9: 37825 | BE9: 0 | BF9: 6500 | BG9: 0 | BH9: 12200 | BI9: 600 | BJ9: 3000 | BK9: 0 | BL9: 7972 | BM9: 0 | BN9: 4050 | BO9: 23728 | BP9: 6400 | BQ9: 29525 | BR9: 0 | BS9: 18600 | BT9: 26502 | BU9: 0 | BV9: 0 | BW9: 0 | BX9: 0 | BY9: 0 | BZ9: 3737373 | CB9: 10784 | CC9: 0 | CD9: 0 | CE9: 10784 | CG9: 0 | CH9: 10784 | CI9: 0 | CJ9: 0 | CK9: 0 | CL9: 0 | CM9: 0 | CN9: 0 | CO9: 0 | CP9: 10784 | CR9: 29496.04 | CS9: 0 | CT9: 0 | CU9: 0.25 | CV9: 0 | CW9: 0 | CX9: 29496.29
A10: 827 | B10: 9162101 | C10: 2101 | E10: Twyning School | I10: 82874.32 | J10: 4018.5 | K10: 0 | L10: -1.818989404e-12 | M10: 0 | N10: 0 | O10: 86892.82 | P10: 792807 | Q10: 0 | R10: 92917 | S10: 0 | T10: 17780 | U10: 42430 | V10: 0 | W10: 380 | X10: 22720 | Y10: 0 | Z10: 3080 | AA10: 0 | AB10: 20500 | AC10: 500 | AD10: 0 | AE10: 0 | AF10: 0 | AG10: 0 | AH10: 0 | AI10: 0 | AJ10: 0 | AK10: 993114 | AL10: 473795 | AM10: 13000 | AN10: 168211 | AO10: 23015 | AP10: 58076 | AQ10: 0 | AR10: 47523 | AS10: 4114 | AT10: 2864 | AU10: 393 | AV10: 7132 | AW10: 8481 | AX10: 1700 | AY10: 2060 | AZ10: 3630 | BA10: 20000 | BB10: 12725 | BC10: 4400 | BD10: 55880 | BE10: 0 | BF10: 3090 | BG10: 0 | BH10: 12508 | BI10: 3527 | BJ10: 0 | BK10: 0 | BL10: 5355 | BM10: 0 | BN10: 2854 | BO10: 6963 | BP10: 0 | BQ10: 33617 | BR10: 0 | BS10: 13800 | BT10: 15016 | BU10: 0 | BV10: 0 | BW10: 0 | BX10: 0 | BY10: 0 | BZ10: 1003729 | CB10: 5451 | CC10: 0 | CD10: 0 | CE10: 5451 | CG10: 0 | CH10: 5451 | CI10: 0 | CJ10: 0 | CK10: 0 | CL10: 0 | CM10: 0 | CN10: 0 | CO10: 0 | CP10: 5451 | CR10: 76277.82 | CS10: 0 | CT10: 0 | CU10: -1.818989404e-12 | CV10: 0 | CW10: 0 | CX10: 76277.82
A11: 605 | B11: 9163053 | C11: 3053 | E11: Clearwell Church of England Primary School | I11: 26866.28 | J11: 6353.25 | K11: 0 | L11: 3479.05 | M11: 0 | N11: 0 | O11: 36698.58 | P11: 383685 | Q11: 0 | R11: 13516 | S11: 0 | T11: 21030 | U11: 24724 | V11: 0 | W11: 0 | X11: 7302 | Y11: 0 | Z11: 0 | AA11: 0 | AB11: 0 | AC11: 0 | AD11: 0 | AE11: 0 | AF11: 0 | AG11: 0 | AH11: 0 | AI11: 0 | AJ11: 0 | AK11: 450257 | AL11: 250430 | AM11: 7500 | AN11: 90111 | AO11: 12944 | AP11: 39343 | AQ11: 0 | AR11: 15753 | AS11: 1979 | AT11: 2000 | AU11: 2131 | AV11: 0 | AW11: 12041 | AX11: 600 | AY11: 1500 | AZ11: 1500 | BA11: 10500 | BB11: 5115 | BC11: 3760 | BD11: 8861 | BE11: 0 | BF11: 2950 | BG11: 0 | BH11: 3500 | BI11: 3750 | BJ11: 0 | BK11: 0 | BL11: 5598 | BM11: 0 | BN11: 800 | BO11: 2321 | BP11: 0 | BQ11: 13944 | BR11: 0 | BS11: 11758 | BT11: 12501 | BU11: 0 | BV11: 0 | BW11: 0 | BX11: 0 | BY11: 0 | BZ11: 523190 | CB11: 4518 | CC11: 0 | CD11: 0 | CE11: 4518 | CG11: 0 | CH11: 7997 | CI11: 0 | CJ11: 0 | CK11: 0 | CL11: 0 | CM11: 0 | CN11: 0 | CO11: 0 | CP11: 7997 | CR11: -39713.47 | CS11: 0 | CT11: 0 | CU11: 0.05 | CV11: 0 | CW11: 0 | CX11: -39713.42
A12: 145 | B12: 9167025 | C12: 7025 | E12: Heart of the Forest Community Special School | I12: 91400.98 | J12: 65598.64 | K12: 0 | L12: 19345.78 | M12: 0 | N12: 0 | O12: 176345.4 | P12: 1655307 | Q12: 1500 | R12: 2379541 | S12: 0 | T12: 115175 | U12: 21136 | V12: 0 | W12: 0 | X12: 8000 | Y12: 0 | Z12: 0 | AA12: 6000 | AB12: 0 | AC12: 500 | AD12: 0 | AE12: 0 | AF12: 0 | AG12: 0 | AH12: 0 | AI12: 0 | AJ12: 0 | AK12: 4187159 | AL12: 1362153 | AM12: 30000 | AN12: 1915703 | AO12: 155946 | AP12: 189462 | AQ12: 0 | AR12: 64576 | AS12: 36220 | AT12: 22700 | AU12: 19475 | AV12: 0 | AW12: 57888 | AX12: 13432 | AY12: 16500 | AZ12: 5000 | BA12: 89000 | BB12: 0 | BC12: 27500 | BD12: 134423 | BE12: 0 | BF12: 0 | BG12: 0 | BH12: 26350 | BI12: 4000 | BJ12: 0 | BK12: 0 | BL12: 2500 | BM12: 750 | BN12: 19500 | BO12: 24675 | BP12: 0 | BQ12: 22437 | BR12: 0 | BS12: 64419 | BT12: 31966 | BU12: 0 | BV12: 0 | BW12: 0 | BX12: 0 | BY12: 0 | BZ12: 4336575 | CB12: 10632 | CC12: 0 | CD12: 0 | CE12: 10632 | CG12: 0 | CH12: 29978 | CI12: 0 | CJ12: 0 | CK12: 0 | CL12: 0 | CM12: 0 | CN12: 0 | CO12: 0 | CP12: 29978 | CR12: 7583.62 | CS12: 0 | CT12: 0 | CU12: -0.22 | CV12: 0 | CW12: 0 | CX12: 7583.4
A13: 721 | B13: 9163338 | C13: 3338 | E13: Mitcheldean Endowed Primary School | I13: 168465.14 | J13: 283.02 | K13: 0 | L13: 0 | M13: 0 | N13: 0 | O13: 168748.16 | P13: 1160065 | Q13: 0 | R13: 138475 | S13: 0 | T13: 62765 | U13: 47440 | V13: 0 | W13: 0 | X13: 27053 | Y13: 0 | Z13: 0 | AA13: 0 | AB13: 7988 | AC13: 2000 | AD13: 0 | AE13: 0 | AF13: 0 | AG13: 0 | AH13: 0 | AI13: 0 | AJ13: 0 | AK13: 1445786 | AL13: 744244 | AM13: 22000 | AN13: 327575 | AO13: 34810 | AP13: 58061 | AQ13: 0 | AR13: 57405 | AS13: 200 | AT13: 2050 | AU13: 4274 | AV13: 300 | AW13: 7864 | AX13: 18397 | AY13: 2500 | AZ13: 4000 | BA13: 25500 | BB13: 5040 | BC13: 3860 | BD13: 36720 | BE13: 0 | BF13: 4650 | BG13: 0 | BH13: 6800 | BI13: 2600 | BJ13: 7100 | BK13: 0 | BL13: 6225 | BM13: 0 | BN13: 2620 | BO13: 11336 | BP13: 0 | BQ13: 54759 | BR13: 0 | BS13: 38416 | BT13: 19519 | BU13: 0 | BV13: 0 | BW13: 0 | BX13: 0 | BY13: 0 | BZ13: 1508825 | CB13: 0 | CC13: 0 | CD13: 0 | CE13: 0 | CG13: 0 | CH13: 0 | CI13: 0 | CJ13: 0 | CK13: 0 | CL13: 0 | CM13: 0 | CN13: 0 | CO13: 0 | CP13: 0 | CR13: 105709.16 | CS13: 0 | CT13: 0 | CU13: 0 | CV13: 0 | CW13: 0 | CX13: 105709.16
A14: 812 | B14: 9162180 | C14: 2180 | E14: The John Moore Primary School | I14: 68424.02 | J14: 7247.91 | K14: 0 | L14: 10786 | M14: 0 | N14: 25008.45 | O14: 111466.38 | P14: 1601387 | Q14: 0 | R14: 148213 | S14: 0 | T14: 90085 | U14: 76689 | V14: 0 | W14: 6870 | X14: 94500 | Y14: 0 | Z14: 0 | AA14: 0 | AB14: 30000 | AC14: 0 | AD14: 0 | AE14: 279279 | AF14: 5000 | AG14: 0 | AH14: 0 | AI14: 0 | AJ14: 0 | AK14: 2332023 | AL14: 1013773 | AM14: 15000 | AN14: 441265 | AO14: 39603 | AP14: 79455 | AQ14: 0 | AR14: 97260 | AS14: 10000 | AT14: 10250 | AU14: 915 | AV14: 0 | AW14: 18473 | AX14: 5516 | AY14: 13000 | AZ14: 5000 | BA14: 33000 | BB14: 51487 | BC14: 7000 | BD14: 75221 | BE14: 0 | BF14: 2615 | BG14: 0 | BH14: 3285 | BI14: 11515 | BJ14: 10000 | BK14: 10226 | BL14: 7263 | BM14: 0 | BN14: 5300 | BO14: 16194 | BP14: 9000 | BQ14: 91096 | BR14: 0 | BS14: 16996 | BT14: 19280 | BU14: 0 | BV14: 0 | BW14: 0 | BX14: 253393 | BY14: 34500 | BZ14: 2406881 | CB14: 7195 | CC14: 0 | CD14: 0 | CE14: 7195 | CG14: 0 | CH14: 17981 | CI14: 0 | CJ14: 0 | CK14: 0 | CL14: 0 | CM14: 0 | CN14: 0 | CO14: 0 | CP14: 17981 | CR14: 4427.93 | CS14: 0 | CT14: 0 | CU14: 0 | CV14: 0 | CW14: 21394.45 | CX14: 25822.38
A15: 591 | B15: 9163316 | C15: 3316 | E15: Holy Apostles' Church of England Primary School | I15: 54721.66 | J15: 15625.63 | K15: 0 | L15: 0 | M15: 0 | N15: 0 | O15: 70347.29 | P15: 1060947 | Q15: 0 | R15: 15420 | S15: 0 | T15: 24670 | U15: 50633 | V15: 0 | W15: 1900 | X15: 4500 | Y15: 0 | Z15: 0 | AA15: 0 | AB15: 22000 | AC15: 0 | AD15: 0 | AE15: 0 | AF15: 0 | AG15: 0 | AH15: 0 | AI15: 0 | AJ15: 0 | AK15: 1180070 | AL15: 669817 | AM15: 10000 | AN15: 151204 | AO15: 45249 | AP15: 77172 | AQ15: 0 | AR15: 26761 | AS15: 700 | AT15: 8053 | AU15: 631 | AV15: 0 | AW15: 10489 | AX15: 7974 | AY15: 2800 | AZ15: 4500 | BA15: 12700 | BB15: 3493 | BC15: 4800 | BD15: 73766 | BE15: 0 | BF15: 4700 | BG15: 0 | BH15: 350 | BI15: 3000 | BJ15: 2950 | BK15: 200 | BL15: 4424 | BM15: 0 | BN15: 6700 | BO15: 9462 | BP15: 0 | BQ15: 38456 | BR15: 0 | BS15: 22539 | BT15: 20625 | BU15: 0 | BV15: 0 | BW15: 3600 | BX15: 0 | BY15: 0 | BZ15: 1227115 | CB15: 0 | CC15: 0 | CD15: 3600 | CE15: 3600 | CG15: 0 | CH15: 3600 | CI15: 0 | CJ15: 0 | CK15: 0 | CL15: 0 | CM15: 0 | CN15: 0 | CO15: 0 | CP15: 3600 | CR15: 23302.29 | CS15: 0 | CT15: 0 | CU15: 0 | CV15: 0 | CW15: 0 | CX15: 23302.29
A16: 531 | B16: 9163308 | C16: 3308 | E16: Ampney Crucis Church of England Primary School | I16: 23760.8 | J16: 9498.4 | K16: 0 | L16: 0 | M16: 0 | N16: 0 | O16: 33259.2 | P16: 600306 | Q16: 0 | R16: 13516 | S16: 0 | T16: 12355 | U16: 30027 | V16: 0 | W16: 0 | X16: 23505 | Y16: 400 | Z16: 0 | AA16: 0 | AB16: 6000 | AC16: 8727 | AD16: 0 | AE16: 0 | AF16: 0 | AG16: 0 | AH16: 0 | AI16: 0 | AJ16: 0 | AK16: 694836 | AL16: 364508 | AM16: 1400 | AN16: 126661 | AO16: 6525 | AP16: 40939 | AQ16: 0 | AR16: 26229 | AS16: 490 | AT16: 3000 | AU16: 2802 | AV16: 630 | AW16: 13947 | AX16: 2662 | AY16: 3500 | AZ16: 1300 | BA16: 8000 | BB16: 1422 | BC16: 4200 | BD16: 47416 | BE16: 0 | BF16: 2500 | BG16: 0 | BH16: 4251 | BI16: 0 | BJ16: 0 | BK16: 0 | BL16: 6591 | BM16: 0 | BN16: 1550 | BO16: 4965 | BP16: 0 | BQ16: 19736 | BR16: 8200 | BS16: 20800 | BT16: 9992 | BU16: 0 | BV16: 0 | BW16: 1000 | BX16: 0 | BY16: 0 | BZ16: 735216 | CB16: 0 | CC16: 0 | CD16: 0 | CE16: 0 | CG16: 0 | CH16: 0 | CI16: 0 | CJ16: 0 | CK16: 0 | CL16: 0 | CM16: 0 | CN16: 0 | CO16: 0 | CP16: 0 | CR16: -7120.8 | CS16: 0 | CT16: 0 | CU16: 0 | CV16: 0 | CW16: 0 | CX16: -7120.8
A17: 714 | B17: 9163050 | C17: 3050 | E17: Meysey Hampton Church of England Primary School | I17: 188071.82 | J17: 27706.9 | K17: 0 | L17: 2429.07 | M17: 0 | N17: 0 | O17: 218207.79 | P17: 624954 | Q17: 0 | R17: 0 | S17: 0 | T17: 10140 | U17: 32470 | V17: 0 | W17: 0 | X17: 20050 | Y17: 0 | Z17: 0 | AA17: 0 | AB17: 0 | AC17: 0 | AD17: 0 | AE17: 0 | AF17: 0 | AG17: 0 | AH17: 0 | AI17: 0 | AJ17: 0 | AK17: 687614 | AL17: 379834 | AM17: 6000 | AN17: 80433 | AO17: 14904 | AP17: 52509 | AQ17: 0 | AR17: 26881 | AS17: 2746 | AT17: 6100 | AU17: 311 | AV17: 0 | AW17: 9069 | AX17: 400 | AY17: 1200 | AZ17: 1080 | BA17: 10000 | BB17: 2196 | BC17: 3830 | BD17: 42682 | BE17: 0 | BF17: 1200 | BG17: 0 | BH17: 3500 | BI17: 1000 | BJ17: 3000 | BK17: 0 | BL17: 1071 | BM17: 0 | BN17: 1100 | BO17: 5506 | BP17: 0 | BQ17: 20085 | BR17: 0 | BS17: 13400 | BT17: 16796 | BU17: 0 | BV17: 0 | BW17: 0 | BX17: 0 | BY17: 0 | BZ17: 706833 | CB17: 5046 | CC17: 0 | CD17: 0 | CE17: 5046 | CG17: 0 | CH17: 2429 | CI17: 0 | CJ17: 0 | CK17: 0 | CL17: 0 | CM17: 0 | CN17: 5046 | CO17: 0 | CP17: 7475 | CR17: 196559.72 | CS17: 0 | CT17: 0 | CU17: 0.07 | CV17: 0 | CW17: 0 | CX17: 196559.79
A18: 677 | B18: 9163328 | C18: 3328 | E18: Huntley Church of England Primary School | I18: 155210.31 | J18: 4910 | K18: 0 | L18: 468.64 | M18: 0 | N18: 0 | O18: 160588.95 | P18: 572650 | Q18: 0 | R18: 0 | S18: 0 | T18: 6060 | U18: 28310 | V18: 3000 | W18: 0 | X18: 26758 | Y18: 0 | Z18: 0 | AA18: 0 | AB18: 0 | AC18: 0 | AD18: 0 | AE18: 0 | AF18: 0 | AG18: 0 | AH18: 0 | AI18: 0 | AJ18: 0 | AK18: 636778 | AL18: 396888 | AM18: 8000 | AN18: 78704 | AO18: 0 | AP18: 34816 | AQ18: 0 | AR18: 31641 | AS18: 700 | AT18: 1000 | AU18: 2265 | AV18: 0 | AW18: 21400 | AX18: 3408 | AY18: 17557 | AZ18: 4500 | BA18: 15000 | BB18: 1821 | BC18: 1850 | BD18: 32677 | BE18: 0 | BF18: 2814 | BG18: 0 | BH18: 4500 | BI18: 0 | BJ18: 5000 | BK18: 0 | BL18: 3360 | BM18: 0 | BN18: 2250 | BO18: 4697 | BP18: 0 | BQ18: 19961 | BR18: 0 | BS18: 10713 | BT18: 20580 | BU18: 0 | BV18: 0 | BW18: 0 | BX18: 0 | BY18: 0 | BZ18: 726102 | CB18: 0 | CC18: 0 | CD18: 0 | CE18: 0 | CG18: 0 | CH18: 0 | CI18: 0 | CJ18: 0 | CK18: 0 | CL18: 0 | CM18: 0 | CN18: 0 | CO18: 0 | CP18: 0 | CR18: 70796.31 | CS18: 0 | CT18: 0 | CU18: 468.64 | CV18: 0 | CW18: 0 | CX18: 71264.95
A19: 619 | B19: 9163030 | C19: 3030 | E19: Deerhurst and Apperley Church of England Primary School | I19: 86162.68 | J19: 12591.3 | K19: 0 | L19: 13388.78 | M19: 0 | N19: 21818.03 | O19: 133960.79 | P19: 560226 | Q19: 0 | R19: 15883 | S19: 0 | T19: 10360 | U19: 30141 | V19: 0 | W19: 0 | X19: 7000 | Y19: 0 | Z19: 0 | AA19: 0 | AB19: 4000 | AC19: 6000 | AD19: 0 | AE19: 26418 | AF19: 9435 | AG19: 0 | AH19: 0 | AI19: 0 | AJ19: 0 | AK19: 669463 | AL19: 395662 | AM19: 2000 | AN19: 73281 | AO19: 200 | AP19: 29767 | AQ19: 0 | AR19: 16919 | AS19: 2150 | AT19: 2000 | AU19: 1003 | AV19: 0 | AW19: 5120 | AX19: 5098 | AY19: 16474 | AZ19: 1250 | BA19: 10500 | BB19: 6737 | BC19: 2173 | BD19: 42007 | BE19: 0 | BF19: 3000 | BG19: 0 | BH19: 0 | BI19: 0 | BJ19: 1100 | BK19: 0 | BL19: 2500 | BM19: 0 | BN19: 1250 | BO19: 4318 | BP19: 0 | BQ19: 17951 | BR19: 0 | BS19: 8060 | BT19: 16940 | BU19: 0 | BV19: 0 | BW19: 0 | BX19: 33268 | BY19: 8900 | BZ19: 709628 | CB19: 4900 | CC19: 0 | CD19: 0 | CE19: 4900 | CG19: 0 | CH19: 13389 | CI19: 0 | CJ19: 0 | CK19: 0 | CL19: 0 | CM19: 0 | CN19: 4900 | CO19: 0 | CP19: 18289 | CR19: 64903.98 | CS19: 0 | CT19: 0 | CU19: -0.22 | CV19: 0 | CW19: 15503.03 | CX19: 80406.79
A20: 579 | B20: 9162132 | C20: 2132 | E20: Castle Hill Primary School | I20: 259132 | J20: 21125.17 | K20: 0 | L20: 1.818989404e-12 | M20: 0 | N20: 0 | O20: 280257.17 | P20: 1170166 | Q20: 0 | R20: 69447 | S20: 0 | T20: 58170 | U20: 55545 | V20: 0 | W20: 10000 | X20: 13848 | Y20: 0 | Z20: 0 | AA20: 0 | AB20: 14000 | AC20: 0 | AD20: 0 | AE20: 0 | AF20: 0 | AG20: 0 | AH20: 0 | AI20: 0 | AJ20: 0 | AK20: 1391176 | AL20: 684441 | AM20: 6138 | AN20: 262397 | AO20: 24411 | AP20: 90634 | AQ20: 0 | AR20: 38059 | AS20: 5773 | AT20: 3000 | AU20: 3907 | AV20: 0 | AW20: 14633 | AX20: 4372 | AY20: 24773 | AZ20: 3750 | BA20: 19575 | BB20: 18214 | BC20: 6193 | BD20: 53934 | BE20: 0 | BF20: 6500 | BG20: 0 | BH20: 8417 | BI20: 4000 | BJ20: 5000 | BK20: 0 | BL20: 5275 | BM20: 0 | BN20: 16720 | BO20: 11389 | BP20: 0 | BQ20: 60103 | BR20: 0 | BS20: 58422 | BT20: 17476 | BU20: 0 | BV20: 0 | BW20: 0 | BX20: 0 | BY20: 0 | BZ20: 1457506 | CB20: 6295 | CC20: 0 | CD20: 0 | CE20: 6295 | CG20: 0 | CH20: 6295 | CI20: 0 | CJ20: 0 | CK20: 0 | CL20: 0 | CM20: 0 | CN20: 0 | CO20: 0 | CP20: 6295 | CR20: 213927.17 | CS20: 0 | CT20: 0 | CU20: 1.818989404e-12 | CV20: 0 | CW20: 0 | CX20: 213927.17
A21: 929 | B21: 9162200 | C21: 2200 | E21: Finlay Community School | I21: 186165.41 | J21: 32534 | K21: 0 | L21: 3091.45 | M21: 0 | N21: 0 | O21: 221790.86 | P21: 2363336 | Q21: 0 | R21: 337035 | S21: 0 | T21: 276360 | U21: 69753 | V21: 0 | W21: 1750 | X21: 19250 | Y21: 0 | Z21: 0 | AA21: 0 | AB21: 27000 | AC21: 0 | AD21: 0 | AE21: 0 | AF21: 0 | AG21: 0 | AH21: 0 | AI21: 0 | AJ21: 0 | AK21: 3094484 | AL21: 1455775 | AM21: 0 | AN21: 959270 | AO21: 64294 | AP21: 138837 | AQ21: 0 | AR21: 81123 | AS21: 500 | AT21: 10661 | AU21: 1272 | AV21: 0 | AW21: 18702 | AX21: 6362 | AY21: 48140 | AZ21: 7000 | BA21: 52000 | BB21: 7138 | BC21: 10500 | BD21: 200276 | BE21: 0 | BF21: 4000 | BG21: 0 | BH21: 0 | BI21: 3000 | BJ21: 0 | BK21: 4000 | BL21: 3780 | BM21: 0 | BN21: 11351 | BO21: 24714 | BP21: 0 | BQ21: 104010 | BR21: 4000 | BS21: 7000 | BT21: 32098 | BU21: 0 | BV21: 0 | BW21: 0 | BX21: 0 | BY21: 0 | BZ21: 3259803 | CB21: 8005 | CC21: 0 | CD21: 0 | CE21: 8005 | CG21: 0 | CH21: 11458 | CI21: 0 | CJ21: 0 | CK21: 0 | CL21: 0 | CM21: 0 | CN21: 0 | CO21: 0 | CP21: 11458 | CR21: 53380.41 | CS21: 0 | CT21: 0 | CU21: -361.55 | CV21: 0 | CW21: 0 | CX21: 53018.86
A22: 742 | B22: 9162130 | C22: 2130 | E22: The Croft Primary School | I22: 5372 | J22: 41129.01 | K22: 0 | L22: 7961.34 | M22: 0 | N22: 0 | O22: 54462.35 | P22: 792704 | Q22: 0 | R22: 9563 | S22: 0 | T22: 28460 | U22: 43661 | V22: 0 | W22: 590 | X22: 22054 | Y22: 0 | Z22: 0 | AA22: 0 | AB22: 0 | AC22: 0 | AD22: 0 | AE22: 0 | AF22: 0 | AG22: 0 | AH22: 0 | AI22: 0 | AJ22: 0 | AK22: 897032 | AL22: 595268 | AM22: 7000 | AN22: 76233 | AO22: 0 | AP22: 45728 | AQ22: 0 | AR22: 39115 | AS22: 3956 | AT22: 1200 | AU22: 2561 | AV22: 0 | AW22: 8130 | AX22: 5997 | AY22: 23545 | AZ22: 2091 | BA22: 16426 | BB22: 18663 | BC22: 2227 | BD22: 76195 | BE22: 0 | BF22: 1923 | BG22: 0 | BH22: 0 | BI22: 0 | BJ22: 0 | BK22: 0 | BL22: 1480 | BM22: 0 | BN22: 2184 | BO22: 7611 | BP22: 0 | BQ22: 39935 | BR22: 8823 | BS22: 519 | BT22: 13547 | BU22: 0 | BV22: 0 | BW22: 0 | BX22: 0 | BY22: 0 | BZ22: 1000357 | CB22: 5564 | CC22: 0 | CD22: 0 | CE22: 5564 | CG22: 0 | CH22: 13525 | CI22: 0 | CJ22: 0 | CK22: 0 | CL22: 0 | CM22: 0 | CN22: 0 | CO22: 0 | CP22: 13525 | CR22: -56823.99 | CS22: 0 | CT22: 0 | CU22: 0.34 | CV22: 0 | CW22: 0 | CX22: -56823.65
A23: 924 | B23: 9162175 | C23: 2175 | E23: Coney Hill Community Primary School | I23: 119910.32 | J23: 0 | K23: 0 | L23: 1503.22 | M23: 0 | N23: 0 | O23: 121413.54 | P23: 1278976 | Q23: 0 | R23: 126735 | S23: 0 | T23: 105965 | U23: 45023 | V23: 3430 | W23: 0 | X23: 26690 | Y23: 0 | Z23: 0 | AA23: 0 | AB23: 17500 | AC23: 0 | AD23: 0 | AE23: 92102 | AF23: 400 | AG23: 0 | AH23: 0 | AI23: 0 | AJ23: 0 | AK23: 1696821 | AL23: 722201 | AM23: 0 | AN23: 426268 | AO23: 37217 | AP23: 82552 | AQ23: 0 | AR23: 89655 | AS23: 7226 | AT23: 2760 | AU23: 647 | AV23: 0 | AW23: 16529 | AX23: 3658 | AY23: 29246 | AZ23: 3500 | BA23: 26100 | BB23: 54439 | BC23: 2885 | BD23: 46915 | BE23: 0 | BF23: 2393 | BG23: 0 | BH23: 8085 | BI23: 6357 | BJ23: 400 | BK23: 0 | BL23: 10624 | BM23: 0 | BN23: 2274 | BO23: 12804 | BP23: 0 | BQ23: 68444 | BR23: 0 | BS23: 31789 | BT23: 13506 | BU23: 0 | BV23: 0 | BW23: 0 | BX23: 84629 | BY23: 7873 | BZ23: 1800976 | CB23: 6706 | CC23: 0 | CD23: 0 | CE23: 6706 | CG23: 0 | CH23: 0 | CI23: 0 | CJ23: 0 | CK23: 0 | CL23: 4880 | CM23: 0 | CN23: 3329 | CO23: 0 | CP23: 8209 | CR23: 15755.32 | CS23: 0 | CT23: 0 | CU23: 0.22 | CV23: 0 | CW23: 0 | CX23: 15755.54
A24: 759 | B24: 9163063 | C24: 3063 | E24: Randwick Church of England Primary School | I24: -22128.49 | J24: 5422 | K24: 0 | L24: 4639.52 | M24: 0 | N24: 0 | O24: -12066.97 | P24: 542570 | Q24: 0 | R24: 55335 | S24: 0 | T24: 15890 | U24: 33662 | V24: 0 | W24: 0 | X24: 33037 | Y24: 7215 | Z24: 0 | AA24: 0 | AB24: 6000 | AC24: 3000 | AD24: 0 | AE24: 0 | AF24: 0 | AG24: 0 | AH24: 0 | AI24: 0 | AJ24: 0 | AK24: 696709 | AL24: 352226 | AM24: 1000 | AN24: 155075 | AO24: 0 | AP24: 51004 | AQ24: 15989 | AR24: 37737 | AS24: 2500 | AT24: 2876 | AU24: 4061 | AV24: 0 | AW24: 7853 | AX24: 476 | AY24: 14189 | AZ24: 2600 | BA24: 8112 | BB24: 5613 | BC24: 1486 | BD24: 33925 | BE24: 0 | BF24: 0 | BG24: 0 | BH24: 3000 | BI24: 2000 | BJ24: 500 | BK24: 0 | BL24: 3403 | BM24: 0 | BN24: 1156 | BO24: 4643 | BP24: 0 | BQ24: 14642 | BR24: 2000 | BS24: 19163 | BT24: 7811 | BU24: 0 | BV24: 0 | BW24: 0 | BX24: 0 | BY24: 0 | BZ24: 755040 | CB24: 4978 | CC24: 0 | CD24: 0 | CE24: 4978 | CG24: 0 | CH24: 9618 | CI24: 0 | CJ24: 0 | CK24: 0 | CL24: 0 | CM24: 0 | CN24: 0 | CO24: 0 | CP24: 9618 | CR24: -75037.49 | CS24: 0 | CT24: 0 | CU24: -0.48 | CV24: 0 | CW24: 0 | CX24: -75037.97
A25: 898 | B25: 9162155 | C25: 2155 | E25: Naunton Park Primary School | I25: -339709.74 | J25: 2791.12 | K25: 0 | L25: 13493.52 | M25: 0 | N25: 0 | O25: -323425.1 | P25: 2132947 | Q25: 0 | R25: 99851 | S25: 0 | T25: 50080 | U25: 93265 | V25: 0 | W25: 13500 | X25: 158700 | Y25: 0 | Z25: 8000 | AA25: 2000 | AB25: 48000 | AC25: 13000 | AD25: 0 | AE25: 0 | AF25: 0 | AG25: 0 | AH25: 0 | AI25: 0 | AJ25: 0 | AK25: 2619343 | AL25: 1335061 | AM25: 40000 | AN25: 464311 | AO25: 44188 | AP25: 141415 | AQ25: 0 | AR25: 146504 | AS25: 7293 | AT25: 10000 | AU25: 16467 | AV25: 0 | AW25: 22260 | AX25: 0 | AY25: 47593 | AZ25: 8268 | BA25: 37000 | BB25: 39585 | BC25: 3339 | BD25: 109946 | BE25: 0 | BF25: 2000 | BG25: 0 | BH25: 4120 | BI25: 6500 | BJ25: 0 | BK25: 0 | BL25: 10780 | BM25: 0 | BN25: 5945 | BO25: 22402 | BP25: 0 | BQ25: 92804 | BR25: 15000 | BS25: 8000 | BT25: 27349 | BU25: 0 | BV25: 0 | BW25: 0 | BX25: 0 | BY25: 0 | BZ25: 2668130 | CB25: 8703 | CC25: 0 | CD25: 0 | CE25: 8703 | CG25: 0 | CH25: 22197 | CI25: 0 | CJ25: 0 | CK25: 0 | CL25: 0 | CM25: 0 | CN25: 0 | CO25: 0 | CP25: 22197 | CR25: -385705.62 | CS25: 0 | CT25: 0 | CU25: -0.48 | CV25: 0 | CW25: 0 | CX25: -385706.1
A26: 782 | B26: 9162086 | C26: 2086 | E26: Slimbridge Primary School | I26: 157384.18 | J26: 8887.83 | K26: 0 | L26: 16160.16 | M26: 0 | N26: 23547.87 | O26: 205980.04 | P26: 817136 | Q26: 0 | R26: 94340 | S26: 0 | T26: 49860 | U26: 38332 | V26: 0 | W26: 0 | X26: 22800 | Y26: 8000 | Z26: 0 | AA26: 0 | AB26: 7700 | AC26: 0 | AD26: 0 | AE26: 64362 | AF26: 11282 | AG26: 0 | AH26: 0 | AI26: 0 | AJ26: 0 | AK26: 1113812 | AL26: 484567 | AM26: 9000 | AN26: 239549 | AO26: 16914 | AP26: 62685 | AQ26: 7415 | AR26: 63618 | AS26: 5573 | AT26: 3000 | AU26: 424 | AV26: 0 | AW26: 18384 | AX26: 3967 | AY26: 3150 | AZ26: 669 | BA26: 13950 | BB26: 10230 | BC26: 4001 | BD26: 41805 | BE26: 0 | BF26: 3061 | BG26: 0 | BH26: 1000 | BI26: 8240 | BJ26: 0 | BK26: 0 | BL26: 4460 | BM26: 0 | BN26: 2600 | BO26: 7503 | BP26: 0 | BQ26: 36002 | BR26: 0 | BS26: 29808 | BT26: 14384 | BU26: 0 | BV26: 0 | BW26: 0 | BX26: 74138 | BY26: 3605 | BZ26: 1173702 | CB26: 5586 | CC26: 0 | CD26: 0 | CE26: 5586 | CG26: 0 | CH26: 21746 | CI26: 0 | CJ26: 0 | CK26: 0 | CL26: 0 | CM26: 0 | CN26: 0 | CO26: 0 | CP26: 21746 | CR26: 108481.01 | CS26: 0 | CT26: 0 | CU26: 0.16 | CV26: 0 | CW26: 21448.87 | CX26: 129930.04
A27: 743 | B27: 9162108 | C27: 2108 | E27: Parkend Primary School | I27: 24937.32 | J27: 11615 | K27: 0 | L27: 1120.37 | M27: 0 | N27: 0 | O27: 37672.69 | P27: 501419 | Q27: 0 | R27: 25446 | S27: 0 | T27: 19695 | U27: 24909 | V27: 0 | W27: 2066 | X27: 0 | Y27: 0 | Z27: 0 | AA27: 0 | AB27: 2000 | AC27: 0 | AD27: 0 | AE27: 0 | AF27: 0 | AG27: 0 | AH27: 0 | AI27: 0 | AJ27: 0 | AK27: 575535 | AL27: 282636 | AM27: 0 | AN27: 122945 | AO27: 15135 | AP27: 37995 | AQ27: 0 | AR27: 15408 | AS27: 1200 | AT27: 1700 | AU27: 2695 | AV27: 0 | AW27: 6659 | AX27: 1362 | AY27: 1507 | AZ27: 1200 | BA27: 10675 | BB27: 7360 | BC27: 1700 | BD27: 30310 | BE27: 0 | BF27: 2343 | BG27: 0 | BH27: 0 | BI27: 2120 | BJ27: 0 | BK27: 0 | BL27: 2790 | BM27: 0 | BN27: 1199 | BO27: 3455 | BP27: 0 | BQ27: 16839 | BR27: 4500 | BS27: 3449 | BT27: 9022 | BU27: 0 | BV27: 0 | BW27: 0 | BX27: 0 | BY27: 0 | BZ27: 586204 | CB27: 4641 | CC27: 0 | CD27: 0 | CE27: 4641 | CG27: 0 | CH27: 5761 | CI27: 0 | CJ27: 0 | CK27: 0 | CL27: 0 | CM27: 0 | CN27: 0 | CO27: 0 | CP27: 5761 | CR27: 25883.32 | CS27: 0 | CT27: 0 | CU27: 0.37 | CV27: 0 | CW27: 0 | CX27: 25883.69
A28: 569 | B28: 9162105 | C28: 2105 | E28: Coalway Junior School | I28: 123381.74 | J28: 7692.34 | K28: 0 | L28: 20056.56 | M28: 0 | N28: 0 | O28: 151130.64 | P28: 1206838 | Q28: 0 | R28: 32278 | S28: 0 | T28: 103635 | U28: 18164 | V28: 0 | W28: 0 | X28: 3680 | Y28: 6000 | Z28: 0 | AA28: 0 | AB28: 30000 | AC28: 0 | AD28: 0 | AE28: 0 | AF28: 0 | AG28: 0 | AH28: 0 | AI28: 0 | AJ28: 0 | AK28: 1400595 | AL28: 725559 | AM28: 19000 | AN28: 278982 | AO28: 4255 | AP28: 122712 | AQ28: 0 | AR28: 38227 | AS28: 6000 | AT28: 4250 | AU28: 644 | AV28: 0 | AW28: 17029 | AX28: 3500 | AY28: 30720 | AZ28: 4000 | BA28: 26500 | BB28: 0 | BC28: 5280 | BD28: 68877 | BE28: 0 | BF28: 5000 | BG28: 0 | BH28: 5000 | BI28: 6700 | BJ28: 500 | BK28: 500 | BL28: 7216 | BM28: 0 | BN28: 12500 | BO28: 11389 | BP28: 0 | BQ28: 24969 | BR28: 0 | BS28: 19092 | BT28: 19413 | BU28: 0 | BV28: 0 | BW28: 0 | BX28: 0 | BY28: 0 | BZ28: 1467814 | CB28: 6520 | CC28: 0 | CD28: 0 | CE28: 6520 | CG28: 0 | CH28: 26577 | CI28: 0 | CJ28: 0 | CK28: 0 | CL28: 0 | CM28: 0 | CN28: 0 | CO28: 0 | CP28: 26577 | CR28: 63855.08 | CS28: 0 | CT28: 0 | CU28: -0.44 | CV28: 0 | CW28: 0 | CX28: 63854.64
A29: 862 | B29: 9162110 | C29: 2110 | E29: Yorkley Primary School | I29: 144983.1 | J29: 10904 | K29: 0 | L29: -1521.61 | M29: 0 | N29: 0 | O29: 154365.49 | P29: 965397 | Q29: 0 | R29: 13516 | S29: 0 | T29: 33630 | U29: 47155 | V29: 0 | W29: 0 | X29: 3850 | Y29: 1700 | Z29: 0 | AA29: 0 | AB29: 5000 | AC29: 0 | AD29: 0 | AE29: 0 | AF29: 0 | AG29: 0 | AH29: 0 | AI29: 0 | AJ29: 0 | AK29: 1070248 | AL29: 519387 | AM29: 1000 | AN29: 209988 | AO29: 9917 | AP29: 61227 | AQ29: 0 | AR29: 51488 | AS29: 3912 | AT29: 4299 | AU29: 509 | AV29: 4000 | AW29: 16688 | AX29: 2500 | AY29: 27269 | AZ29: 1546 | BA29: 26275 | BB29: 22829 | BC29: 1650 | BD29: 51744 | BE29: 0 | BF29: 3827 | BG29: 0 | BH29: 3090 | BI29: 2000 | BJ29: 0 | BK29: 0 | BL29: 1753 | BM29: 0 | BN29: 7502 | BO29: 9015 | BP29: 0 | BQ29: 45622 | BR29: 6000 | BS29: 30629 | BT29: 13394 | BU29: 0 | BV29: 0 | BW29: 0 | BX29: 0 | BY29: 0 | BZ29: 1139060 | CB29: 5845 | CC29: 0 | CD29: 0 | CE29: 5845 | CG29: 0 | CH29: 4323 | CI29: 0 | CJ29: 0 | CK29: 0 | CL29: 0 | CM29: 0 | CN29: 0 | CO29: 0 | CP29: 4323 | CR29: 87075.1 | CS29: 0 | CT29: 0 | CU29: 0.39 | CV29: 0 | CW29: 0 | CX29: 87075.49
A30: 612 | B30: 9162053 | C30: 2053 | E30: Churchdown Village Junior School | I30: -55660.32 | J30: 584.41 | K30: 0 | L30: 13395.8 | M30: 0 | N30: 0 | O30: -41680.11 | P30: 1187547 | Q30: 0 | R30: 103098 | S30: 0 | T30: 40340 | U30: 17694 | V30: 0 | W30: 0 | X30: 138968 | Y30: 0 | Z30: 0 | AA30: 3820 | AB30: 11500 | AC30: 0 | AD30: 0 | AE30: 0 | AF30: 0 | AG30: 0 | AH30: 0 | AI30: 0 | AJ30: 0 | AK30: 1502967 | AL30: 803221 | AM30: 22886 | AN30: 271199 | AO30: 25913 | AP30: 89576 | AQ30: 0 | AR30: 64728 | AS30: 7331 | AT30: 6220 | AU30: 6924 | AV30: 0 | AW30: 12437 | AX30: 3240 | AY30: 32311 | AZ30: 5160 | BA30: 36000 | BB30: 18837 | BC30: 5109 | BD30: 57608 | BE30: 0 | BF30: 3380 | BG30: 0 | BH30: 0 | BI30: 385 | BJ30: 6000 | BK30: 0 | BL30: 6989 | BM30: 0 | BN30: 8136 | BO30: 12469 | BP30: 0 | BQ30: 12873 | BR30: 5600 | BS30: 35040 | BT30: 16327 | BU30: 0 | BV30: 0 | BW30: 0 | BX30: 0 | BY30: 0 | BZ30: 1575899 | CB30: 6599 | CC30: 0 | CD30: 0 | CE30: 6599 | CG30: 0 | CH30: 19995 | CI30: 0 | CJ30: 0 | CK30: 0 | CL30: 0 | CM30: 0 | CN30: 0 | CO30: 0 | CP30: 19995 | CR30: -128007.91 | CS30: 0 | CT30: 0 | CU30: -0.2 | CV30: 0 | CW30: 0 | CX30: -128008.11
A31: 829 | B31: 9163076 | C31: 3076 | E31: Uley Church of England Primary School | I31: 200036.32 | J31: 21956.21 | K31: 0 | L31: 18965.1 | M31: 0 | N31: 0 | O31: 240957.63 | P31: 612479 | Q31: 0 | R31: 35693 | S31: 0 | T31: 15465 | U31: 33353 | V31: 0 | W31: 0 | X31: 38000 | Y31: 0 | Z31: 0 | AA31: 0 | AB31: 8500 | AC31: 0 | AD31: 0 | AE31: 0 | AF31: 0 | AG31: 0 | AH31: 0 | AI31: 0 | AJ31: 0 | AK31: 743490 | AL31: 396186 | AM31: 0 | AN31: 159393 | AO31: 0 | AP31: 40129 | AQ31: 0 | AR31: 109277 | AS31: 2800 | AT31: 3697 | AU31: 8283 | AV31: 0 | AW31: 13235 | AX31: 4984 | AY31: 21249 | AZ31: 2400 | BA31: 12500 | BB31: 14595 | BC31: 2200 | BD31: 33570 | BE31: 0 | BF31: 2300 | BG31: 0 | BH31: 2170 | BI31: 900 | BJ31: 1500 | BK31: 2000 | BL31: 3977 | BM31: 0 | BN31: 1675 | BO31: 5019 | BP31: 0 | BQ31: 20843 | BR31: 3000 | BS31: 16527 | BT31: 13349 | BU31: 0 | BV31: 0 | BW31: 0 | BX31: 0 | BY31: 0 | BZ31: 897758 | CB31: 5046 | CC31: 0 | CD31: 0 | CE31: 5046 | CG31: 0 | CH31: 24011 | CI31: 0 | CJ31: 0 | CK31: 0 | CL31: 0 | CM31: 0 | CN31: 0 | CO31: 0 | CP31: 24011 | CR31: 67724.53 | CS31: 0 | CT31: 0 | CU31: 0.1 | CV31: 0 | CW31: 0 | CX31: 67724.63
A32: 793 | B32: 9162067 | C32: 2067 | E32: Steam Mills Primary School | I32: 240864.91 | J32: 18042.68 | K32: 0 | L32: 4689.25 | M32: 0 | N32: 37169.63 | O32: 300766.47 | P32: 718776 | Q32: 0 | R32: 30443 | S32: 0 | T32: 40270 | U32: 37340 | V32: 0 | W32: 0 | X32: 29361 | Y32: 6500 | Z32: 4500 | AA32: 0 | AB32: 0 | AC32: 0 | AD32: 0 | AE32: 52000 | AF32: 2500 | AG32: 0 | AH32: 0 | AI32: 0 | AJ32: 0 | AK32: 921690 | AL32: 425806 | AM32: 2500 | AN32: 147065 | AO32: 26061 | AP32: 56995 | AQ32: 0 | AR32: 51692 | AS32: 3750 | AT32: 2250 | AU32: 6848 | AV32: 2251 | AW32: 11342 | AX32: 3162 | AY32: 5500 | AZ32: 5500 | BA32: 17000 | BB32: 9731 | BC32: 3750 | BD32: 37337 | BE32: 0 | BF32: 7350 | BG32: 0 | BH32: 6500 | BI32: 8500 | BJ32: 2000 | BK32: 500 | BL32: 3697 | BM32: 0 | BN32: 5170 | BO32: 6153 | BP32: 0 | BQ32: 26650 | BR32: 7500 | BS32: 24893 | BT32: 11521 | BU32: 0 | BV32: 0 | BW32: 0 | BX32: 56582 | BY32: 1000 | BZ32: 986556 | CB32: 5305 | CC32: 0 | CD32: 0 | CE32: 5305 | CG32: 0 | CH32: 5305 | CI32: 0 | CJ32: 0 | CK32: 0 | CL32: 0 | CM32: 0 | CN32: 4689 | CO32: 0 | CP32: 9994 | CR32: 197123.59 | CS32: 0 | CT32: 0 | CU32: 0.25 | CV32: 0 | CW32: 34087.63 | CX32: 231211.47
A33: 920 | B33: 9163365 | C33: 3365 | E33: Barnwood Church of England Primary School | I33: 156896.69 | J33: 2468 | K33: 0 | L33: 0 | M33: 0 | N33: 0 | O33: 159364.69 | P33: 986421 | Q33: 0 | R33: 69496 | S33: 0 | T33: 54740 | U33: 36427 | V33: 0 | W33: 0 | X33: 500 | Y33: 20000 | Z33: 0 | AA33: 0 | AB33: 15000 | AC33: 0 | AD33: 0 | AE33: 0 | AF33: 0 | AG33: 0 | AH33: 0 | AI33: 0 | AJ33: 0 | AK33: 1182584 | AL33: 628252 | AM33: 27554 | AN33: 267031 | AO33: 45054 | AP33: 65707 | AQ33: 43649 | AR33: 37743 | AS33: 0 | AT33: 2901 | AU33: 4420 | AV33: 0 | AW33: 20000 | AX33: 2096 | AY33: 3000 | AZ33: 5300 | BA33: 22140 | BB33: 6191 | BC33: 2198 | BD33: 43771 | BE33: 0 | BF33: 2395 | BG33: 0 | BH33: 7985 | BI33: 4074 | BJ33: 0 | BK33: 0 | BL33: 9302 | BM33: 0 | BN33: 1820 | BO33: 9284 | BP33: 0 | BQ33: 16410 | BR33: 0 | BS33: 16287 | BT33: 16032 | BU33: 0 | BV33: 0 | BW33: 0 | BX33: 0 | BY33: 0 | BZ33: 1310596 | CB33: 0 | CC33: 0 | CD33: 0 | CE33: 0 | CG33: 0 | CH33: 0 | CI33: 0 | CJ33: 0 | CK33: 0 | CL33: 0 | CM33: 0 | CN33: 0 | CO33: 0 | CP33: 0 | CR33: 31352.69 | CS33: 0 | CT33: 0 | CU33: 0 | CV33: 0 | CW33: 0 | CX33: 31352.69
A34: 838 | B34: 9163350 | C34: 3350 | E34: Westbury-on-Severn Church of England Primary School | I34: 156708.33 | J34: 3266.64 | K34: 0 | L34: 0 | M34: 0 | N34: -3462.03 | O34: 156512.94 | P34: 452571 | Q34: 0 | R34: 27032 | S34: 0 | T34: 4895 | U34: 23950 | V34: 0 | W34: 0 | X34: 4000 | Y34: 0 | Z34: 1485 | AA34: 0 | AB34: 0 | AC34: 0 | AD34: 0 | AE34: 23500 | AF34: 2700 | AG34: 0 | AH34: 0 | AI34: 0 | AJ34: 0 | AK34: 540133 | AL34: 352437 | AM34: 12000 | AN34: 89115 | AO34: 1157 | AP34: 37980 | AQ34: 0 | AR34: 5370 | AS34: 350 | AT34: 3750 | AU34: 4671 | AV34: 0 | AW34: 10000 | AX34: 3897 | AY34: 900 | AZ34: 850 | BA34: 20000 | BB34: 2295 | BC34: 12850 | BD34: 31030 | BE34: 0 | BF34: 2750 | BG34: 0 | BH34: 0 | BI34: 1000 | BJ34: 0 | BK34: 0 | BL34: 3205 | BM34: 0 | BN34: 2175 | BO34: 2861 | BP34: 0 | BQ34: 9550 | BR34: 3000 | BS34: 21918 | BT34: 12777 | BU34: 0 | BV34: 0 | BW34: 3000 | BX34: 26092 | BY34: 0 | BZ34: 676980 | CB34: 0 | CC34: 0 | CD34: 0 | CE34: 0 | CG34: 0 | CH34: 0 | CI34: 0 | CJ34: 0 | CK34: 0 | CL34: 0 | CM34: 0 | CN34: 0 | CO34: 0 | CP34: 0 | CR34: 23019.97 | CS34: 0 | CT34: 0 | CU34: 0 | CV34: 0 | CW34: -3354.03 | CX34: 19665.94
A35: 657 | B35: 9162070 | C35: 2070 | E35: The Rissington School | I35: 109689.47 | J35: 12157.3 | K35: 0 | L35: 7321.07 | M35: 0 | N35: 18167.82 | O35: 147335.66 | P35: 1421873 | Q35: 0 | R35: 156695 | S35: 0 | T35: 50240 | U35: 54545 | V35: 14043 | W35: 1580 | X35: 45000 | Y35: 0 | Z35: 3500 | AA35: 0 | AB35: 27500 | AC35: 1000 | AD35: 0 | AE35: 86000 | AF35: 5000 | AG35: 0 | AH35: 0 | AI35: 0 | AJ35: 0 | AK35: 1866976 | AL35: 871986 | AM35: 500 | AN35: 324380 | AO35: 11172 | AP35: 97125 | AQ35: 0 | AR35: 94753 | AS35: 7326 | AT35: 12804 | AU35: 14297 | AV35: 0 | AW35: 25849 | AX35: 7019 | AY35: 47133 | AZ35: 4456 | BA35: 33863 | BB35: 54721 | BC35: 6479 | BD35: 117732 | BE35: 0 | BF35: 5074 | BG35: 0 | BH35: 10483 | BI35: 8117 | BJ35: 500 | BK35: 0 | BL35: 8736 | BM35: 0 | BN35: 8592 | BO35: 7897 | BP35: 0 | BQ35: 61330 | BR35: 4500 | BS35: 18959 | BT35: 25633 | BU35: 0 | BV35: 0 | BW35: 0 | BX35: 91854 | BY35: 4500 | BZ35: 1987770 | CB35: 6858 | CC35: 0 | CD35: 0 | CE35: 6858 | CG35: 0 | CH35: 14179 | CI35: 0 | CJ35: 0 | CK35: 0 | CL35: 0 | CM35: 0 | CN35: 0 | CO35: 0 | CP35: 14179 | CR35: 6406.77 | CS35: 0 | CT35: 0 | CU35: 0.07 | CV35: 0 | CW35: 12813.82 | CX35: 19220.66
A36: 765 | B36: 9163065 | C36: 3065 | E36: Ruardean Church of England Primary School | I36: 71355.86 | J36: 52383.19 | K36: 0 | L36: 25.78 | M36: 26302 | N36: 0 | O36: 150066.83 | P36: 587426 | Q36: 0 | R36: 79671 | S36: 0 | T36: 24590 | U36: 30439 | V36: 0 | W36: 386 | X36: 6800 | Y36: 0 | Z36: 0 | AA36: 0 | AB36: 0 | AC36: 772 | AD36: 0 | AE36: 0 | AF36: 0 | AG36: 0 | AH36: 0 | AI36: 0 | AJ36: 0 | AK36: 730084 | AL36: 360395 | AM36: 10500 | AN36: 155600 | AO36: 7016 | AP36: 51138 | AQ36: 0 | AR36: 54583 | AS36: 3300 | AT36: 2200 | AU36: 4214 | AV36: 0 | AW36: 12657 | AX36: 4160 | AY36: 16016 | AZ36: 4000 | BA36: 25000 | BB36: 8857 | BC36: 1800 | BD36: 24646 | BE36: 0 | BF36: 5500 | BG36: 0 | BH36: 0 | BI36: 3620 | BJ36: 0 | BK36: 0 | BL36: 3290 | BM36: 0 | BN36: 3900 | BO36: 3778 | BP36: 0 | BQ36: 22729 | BR36: 4450 | BS36: 11657 | BT36: 16696 | BU36: 0 | BV36: 0 | BW36: 0 | BX36: 0 | BY36: 0 | BZ36: 821702 | CB36: 4979 | CC36: 0 | CD36: 0 | CE36: 4979 | CG36: 0 | CH36: 31307 | CI36: 0 | CJ36: 0 | CK36: 0 | CL36: 0 | CM36: 0 | CN36: 0 | CO36: 0 | CP36: 31307 | CR36: 32121.05 | CS36: 0 | CT36: 0 | CU36: -0.22 | CV36: 0 | CW36: 0 | CX36: 32120.83
A37: 893 | B37: 9163094 | C37: 3094 | E37: Leckhampton Church of England Primary School | I37: 719687.6 | J37: 24124.02 | K37: 0 | L37: 8252.47 | M37: 0 | N37: 0 | O37: 752064.09 | P37: 3169029 | Q37: 0 | R37: 55772 | S37: 0 | T37: 19695 | U37: 133794 | V37: 52624 | W37: 10400 | X37: 1070 | Y37: 0 | Z37: 7200 | AA37: 0 | AB37: 61914 | AC37: 0 | AD37: 0 | AE37: 0 | AF37: 0 | AG37: 0 | AH37: 0 | AI37: 0 | AJ37: 0 | AK37: 3511498 | AL37: 2030673 | AM37: 50000 | AN37: 465791 | AO37: 31316 | AP37: 133845 | AQ37: 0 | AR37: 48890 | AS37: 19502 | AT37: 12202 | AU37: 25021 | AV37: 0 | AW37: 141416 | AX37: 55683 | AY37: 65251 | AZ37: 5500 | BA37: 54000 | BB37: 62244 | BC37: 6000 | BD37: 154533 | BE37: 0 | BF37: 0 | BG37: 0 | BH37: 0 | BI37: 11000 | BJ37: 0 | BK37: 0 | BL37: 11354 | BM37: 0 | BN37: 20470 | BO37: 33846 | BP37: 0 | BQ37: 122467 | BR37: 15000 | BS37: 28767 | BT37: 21814 | BU37: 0 | BV37: 0 | BW37: 0 | BX37: 0 | BY37: 0 | BZ37: 3626585 | CB37: 10728 | CC37: 0 | CD37: 0 | CE37: 10728 | CG37: 0 | CH37: 0 | CI37: 0 | CJ37: 0 | CK37: 0 | CL37: 0 | CM37: 0 | CN37: 18980 | CO37: 0 | CP37: 18980 | CR37: 628724.62 | CS37: 0 | CT37: 0 | CU37: 0.47 | CV37: 0 | CW37: 0 | CX37: 628725.09
A38: 766 | B38: 9162064 | C38: 2064 | E38: Woodside Primary School | I38: 7235.03 | J38: 185.4 | K38: 0 | L38: 8.16 | M38: 0 | N38: -3510.44 | O38: 3918.15 | P38: 682490 | Q38: 0 | R38: 23987 | S38: 0 | T38: 19645 | U38: 40705 | V38: 0 | W38: 0 | X38: -9650 | Y38: 0 | Z38: 17280 | AA38: 0 | AB38: 0 | AC38: 200 | AD38: 0 | AE38: 78000 | AF38: 1500 | AG38: 0 | AH38: 0 | AI38: 0 | AJ38: 0 | AK38: 854157 | AL38: 389254 | AM38: 15400 | AN38: 116632 | AO38: 0 | AP38: 77180 | AQ38: 0 | AR38: 19552 | AS38: 4400 | AT38: 2000 | AU38: 9110 | AV38: 2192 | AW38: 7311 | AX38: 2169 | AY38: 25528 | AZ38: 2750 | BA38: 16000 | BB38: 12725 | BC38: 3750 | BD38: 22691 | BE38: 0 | BF38: 4250 | BG38: 0 | BH38: 4350 | BI38: 529 | BJ38: 2000 | BK38: 0 | BL38: 3676 | BM38: 0 | BN38: 2550 | BO38: 6046 | BP38: 0 | BQ38: 32158 | BR38: 0 | BS38: 8703 | BT38: 10211 | BU38: 0 | BV38: 0 | BW38: 0 | BX38: 69638 | BY38: 1500 | BZ38: 874255 | CB38: 5204 | CC38: 0 | CD38: 0 | CE38: 5204 | CG38: 0 | CH38: 5212 | CI38: 0 | CJ38: 0 | CK38: 0 | CL38: 0 | CM38: 0 | CN38: 0 | CO38: 0 | CP38: 5212 | CR38: -21039.57 | CS38: 0 | CT38: 0 | CU38: 0.16 | CV38: 0 | CW38: 4851.56 | CX38: -16187.85
A39: 775 | B39: 9162072 | C39: 2072 | E39: Sharpness Primary School | I39: 119525.84 | J39: 15994.29 | K39: 0 | L39: 29428.22 | M39: 0 | N39: 0 | O39: 164948.35 | P39: 712796 | Q39: 0 | R39: 73548 | S39: 0 | T39: 30300 | U39: 38898 | V39: 0 | W39: 0 | X39: 0 | Y39: 0 | Z39: 0 | AA39: 0 | AB39: 14000 | AC39: 17565 | AD39: 0 | AE39: 0 | AF39: 0 | AG39: 0 | AH39: 0 | AI39: 0 | AJ39: 0 | AK39: 887107 | AL39: 422261 | AM39: 2973 | AN39: 203431 | AO39: 21979 | AP39: 38166 | AQ39: 0 | AR39: 20127 | AS39: 4158 | AT39: 5250 | AU39: 351 | AV39: 0 | AW39: 7265 | AX39: 4709 | AY39: 1092 | AZ39: 4389 | BA39: 9230 | BB39: 14346 | BC39: 2163 | BD39: 80778 | BE39: 0 | BF39: 5000 | BG39: 0 | BH39: 0 | BI39: 0 | BJ39: 2983 | BK39: 0 | BL39: 362 | BM39: 0 | BN39: 2617 | BO39: 3072 | BP39: 0 | BQ39: 21861 | BR39: 12000 | BS39: 11861 | BT39: 14767 | BU39: 0 | BV39: 0 | BW39: 0 | BX39: 0 | BY39: 0 | BZ39: 917191 | CB39: 5283 | CC39: 0 | CD39: 0 | CE39: 5283 | CG39: 0 | CH39: 34711 | CI39: 0 | CJ39: 0 | CK39: 0 | CL39: 0 | CM39: 0 | CN39: 0 | CO39: 0 | CP39: 34711 | CR39: 105436.13 | CS39: 0 | CT39: 0 | CU39: 0.22 | CV39: 0 | CW39: 0 | CX39: 105436.35
A40: 546 | B40: 9162103 | C40: 2103 | E40: Berry Hill Primary School | I40: 19297.24 | J40: 21330 | K40: 0 | L40: -4952.75 | M40: 0 | N40: -67718.58 | O40: -32044.09 | P40: 1124978 | Q40: 0 | R40: 19258 | S40: 0 | T40: 55240 | U40: 52259 | V40: 0 | W40: 13500 | X40: 15000 | Y40: 24179 | Z40: 0 | AA40: 0 | AB40: 0 | AC40: 0 | AD40: 0 | AE40: 0 | AF40: 0 | AG40: 0 | AH40: 0 | AI40: 0 | AJ40: 0 | AK40: 1304414 | AL40: 648474 | AM40: 11000 | AN40: 234767 | AO40: 47553 | AP40: 64890 | AQ40: 38622 | AR40: 27619 | AS40: 0 | AT40: 6440 | AU40: 12116 | AV40: 0 | AW40: 16588 | AX40: 2756 | AY40: 3800 | AZ40: 5500 | BA40: 19000 | BB40: 3643 | BC40: 2985 | BD40: 72310 | BE40: 0 | BF40: 3278 | BG40: 0 | BH40: 1300 | BI40: 6500 | BJ40: 0 | BK40: 2000 | BL40: 4300 | BM40: 0 | BN40: 3858 | BO40: 10904 | BP40: 0 | BQ40: 47500 | BR40: 11000 | BS40: 7000 | BT40: 20915 | BU40: 0 | BV40: 0 | BW40: 0 | BX40: 0 | BY40: 0 | BZ40: 1336618 | CB40: 6194 | CC40: 0 | CD40: 0 | CE40: 6194 | CG40: 0 | CH40: 1241 | CI40: 0 | CJ40: 0 | CK40: 0 | CL40: 0 | CM40: 0 | CN40: 0 | CO40: 0 | CP40: 1241 | CR40: 8423.24 | CS40: 0 | CT40: 0 | CU40: 0.25 | CV40: 0 | CW40: -67718.58 | CX40: -59295.09
A41: 582 | B41: 9163313 | C41: 3313 | E41: Cam Hopton Church of England Primary School | I41: 29682.69 | J41: 19900.47 | K41: 0 | L41: 0 | M41: 0 | N41: 0 | O41: 49583.16 | P41: 1110603 | Q41: 0 | R41: 48581 | S41: 0 | T41: 44600 | U41: 50869 | V41: 0 | W41: 0 | X41: 0 | Y41: 0 | Z41: 0 | AA41: 0 | AB41: 0 | AC41: 1000 | AD41: 0 | AE41: 0 | AF41: 0 | AG41: 0 | AH41: 0 | AI41: 0 | AJ41: 0 | AK41: 1255653 | AL41: 617381 | AM41: 5950 | AN41: 236785 | AO41: 27459 | AP41: 56036 | AQ41: 0 | AR41: 35810 | AS41: 300 | AT41: 2071 | AU41: 2684 | AV41: 0 | AW41: 19836 | AX41: 3899 | AY41: 13975 | AZ41: 3700 | BA41: 12000 | BB41: 2146 | BC41: 3815 | BD41: 81754 | BE41: 0 | BF41: 4332 | BG41: 0 | BH41: 8145 | BI41: 0 | BJ41: 6850 | BK41: 0 | BL41: 6716 | BM41: 0 | BN41: 10925 | BO41: 10334 | BP41: 0 | BQ41: 48482 | BR41: 4750 | BS41: 18219 | BT41: 13523 | BU41: 0 | BV41: 0 | BW41: 0 | BX41: 0 | BY41: 0 | BZ41: 1257877 | CB41: 0 | CC41: 0 | CD41: 0 | CE41: 0 | CG41: 0 | CH41: 0 | CI41: 0 | CJ41: 0 | CK41: 0 | CL41: 0 | CM41: 0 | CN41: 0 | CO41: 0 | CP41: 0 | CR41: 47359.16 | CS41: 0 | CT41: 0 | CU41: 0 | CV41: 0 | CW41: 0 | CX41: 47359.16
A42: 374 | B42: 9164032 | C42: 4032 | E42: Archway School | I42: 520342.08 | J42: 28263.77 | K42: 0 | L42: 33032.8 | M42: 169808.24 | N42: 0 | O42: 751446.89 | P42: 6687623 | Q42: 700294 | R42: 177843 | S42: 0 | T42: 272315 | U42: 0 | V42: 11670 | W42: 120400 | X42: 16000 | Y42: 0 | Z42: 0 | AA42: 0 | AB42: 0 | AC42: 1000 | AD42: 0 | AE42: 0 | AF42: 0 | AG42: 0 | AH42: 0 | AI42: 0 | AJ42: 0 | AK42: 7987145 | AL42: 4797618 | AM42: 15000 | AN42: 1160041 | AO42: 266541 | AP42: 431940 | AQ42: 0 | AR42: 44900 | AS42: 41593 | AT42: 18510 | AU42: 3205 | AV42: 0 | AW42: 93850 | AX42: 20000 | AY42: 28000 | AZ42: 29000 | BA42: 240000 | BB42: 144690 | BC42: 30000 | BD42: 195625 | BE42: 0 | BF42: 13000 | BG42: 4500 | BH42: 30500 | BI42: 12000 | BJ42: 50000 | BK42: 14000 | BL42: 3714 | BM42: 128000 | BN42: 31400 | BO42: 39663 | BP42: 0 | BQ42: 78165 | BR42: 81100 | BS42: 108643 | BT42: 48269 | BU42: 0 | BV42: 0 | BW42: 0 | BX42: 0 | BY42: 0 | BZ42: 8203467 | CB42: 21480 | CC42: 0 | CD42: 0 | CE42: 21480 | CG42: 0 | CH42: 224321 | CI42: 0 | CJ42: 0 | CK42: 0 | CL42: 0 | CM42: 0 | CN42: 0 | CO42: 0 | CP42: 224321 | CR42: 332283.85 | CS42: 0 | CT42: 0 | CU42: 0.03999999998 | CV42: 0 | CW42: 0 | CX42: 332283.89
A43: 825 | B43: 9163074 | C43: 3074 | E43: Tutshill Church of England Primary School | I43: 114856.31 | J43: 17338.44 | K43: 0 | L43: 15181.53 | M43: 0 | N43: 0 | O43: 147376.28 | P43: 1099062 | Q43: 0 | R43: 30454 | S43: 0 | T43: 36425 | U43: 53765 | V43: 0 | W43: 6000 | X43: 0 | Y43: 0 | Z43: 0 | AA43: 0 | AB43: 15000 | AC43: 0 | AD43: 0 | AE43: 0 | AF43: 0 | AG43: 0 | AH43: 0 | AI43: 0 | AJ43: 0 | AK43: 1240706 | AL43: 691632 | AM43: 9600 | AN43: 178848 | AO43: 50580 | AP43: 55763 | AQ43: 0 | AR43: 26682 | AS43: 5878 | AT43: 6735 | AU43: 647 | AV43: 1092 | AW43: 11136 | AX43: 19898 | AY43: 5607 | AZ43: 3000 | BA43: 21500 | BB43: 28665 | BC43: 5900 | BD43: 67104 | BE43: 0 | BF43: 4500 | BG43: 0 | BH43: 4000 | BI43: 6009 | BJ43: 200 | BK43: 100 | BL43: 2226 | BM43: 0 | BN43: 3820 | BO43: 11444 | BP43: 0 | BQ43: 44758 | BR43: 28500 | BS43: 39706 | BT43: 24067 | BU43: 0 | BV43: 0 | BW43: 0 | BX43: 0 | BY43: 0 | BZ43: 1359597 | CB43: 6396 | CC43: 0 | CD43: 0 | CE43: 6396 | CG43: 0 | CH43: 21578 | CI43: 0 | CJ43: 0 | CK43: 0 | CL43: 0 | CM43: 0 | CN43: 0 | CO43: 0 | CP43: 21578 | CR43: 13303.75 | CS43: 0 | CT43: 0 | CU43: -0.47 | CV43: 0 | CW43: 0 | CX43: 13303.28
A44: 852 | B44: 9162114 | C44: 2114 | E44: Woolaston Primary School | I44: 51755.19 | J44: 8265.74 | K44: 0 | L44: 1490.91 | M44: 0 | N44: 0 | O44: 61511.84 | P44: 800520 | Q44: 0 | R44: 44134 | S44: 0 | T44: 29920 | U44: 35137 | V44: 0 | W44: 6000 | X44: 0 | Y44: 0 | Z44: 0 | AA44: 0 | AB44: 10000 | AC44: 0 | AD44: 0 | AE44: 0 | AF44: 0 | AG44: 0 | AH44: 0 | AI44: 0 | AJ44: 0 | AK44: 925711 | AL44: 448942 | AM44: 13000 | AN44: 142797 | AO44: 16415 | AP44: 57497 | AQ44: 0 | AR44: 22367 | AS44: 4488 | AT44: 2350 | AU44: 412 | AV44: 780 | AW44: 7135 | AX44: 5301 | AY44: 23037 | AZ44: 3780 | BA44: 21910 | BB44: 16467 | BC44: 14150 | BD44: 41964 | BE44: 0 | BF44: 2850 | BG44: 0 | BH44: 1925 | BI44: 6650 | BJ44: 0 | BK44: 75 | BL44: 1417 | BM44: 0 | BN44: 1400 | BO44: 7286 | BP44: 0 | BQ44: 26125 | BR44: 16000 | BS44: 40445 | BT44: 17906 | BU44: 0 | BV44: 0 | BW44: 0 | BX44: 0 | BY44: 0 | BZ44: 964871 | CB44: 5428 | CC44: 0 | CD44: 0 | CE44: 5428 | CG44: 0 | CH44: 6919 | CI44: 0 | CJ44: 0 | CK44: 0 | CL44: 0 | CM44: 0 | CN44: 0 | CO44: 0 | CP44: 6919 | CR44: 20860.93 | CS44: 0 | CT44: 0 | CU44: -0.09 | CV44: 0 | CW44: 0 | CX44: 20860.84
A45: 603 | B45: 9163375 | C45: 3375 | E45: Cirencester Primary School | I45: 276000.91 | J45: 3401 | K45: 0 | L45: -1.818989404e-12 | M45: 0 | N45: 15595 | O45: 294996.91 | P45: 1747558 | Q45: 0 | R45: 98108 | S45: 0 | T45: 161660 | U45: 57337 | V45: 7086 | W45: 9681 | X45: 31500 | Y45: 1500 | Z45: 0 | AA45: 0 | AB45: 19759 | AC45: 29 | AD45: 0 | AE45: 124056 | AF45: 50000 | AG45: 0 | AH45: 0 | AI45: 0 | AJ45: 0 | AK45: 2308274 | AL45: 1036010 | AM45: 14000 | AN45: 429889 | AO45: 5743 | AP45: 119698 | AQ45: 0 | AR45: 56602 | AS45: 9724 | AT45: 7750 | AU45: 952 | AV45: 8000 | AW45: 12222 | AX45: 9520 | AY45: 44724 | AZ45: 7350 | BA45: 33500 | BB45: 36855 | BC45: 11314 | BD45: 77547 | BE45: 0 | BF45: 2389 | BG45: 0 | BH45: 5903 | BI45: 8689 | BJ45: 1500 | BK45: 3750 | BL45: 8311 | BM45: 0 | BN45: 16250 | BO45: 16842 | BP45: 0 | BQ45: 82371 | BR45: 21000 | BS45: 7294 | BT45: 88122 | BU45: 0 | BV45: 0 | BW45: 3000 | BX45: 151930 | BY45: 25721 | BZ45: 2364472 | CB45: 7356 | CC45: 0 | CD45: 3000 | CE45: 10356 | CG45: 0 | CH45: 10356 | CI45: 0 | CJ45: 0 | CK45: 0 | CL45: 0 | CM45: 0 | CN45: 0 | CO45: 0 | CP45: 10356 | CR45: 226798.91 | CS45: 0 | CT45: 0 | CU45: -1.818989404e-12 | CV45: 0 | CW45: 12000 | CX45: 238798.91
A46: 616 | B46: 9163322 | C46: 3322 | E46: Cranham Church of England Primary School | I46: 80744.26 | J46: 32122.12 | K46: 0 | L46: 2286.14 | M46: 0 | N46: 0 | O46: 115152.52 | P46: 431689 | Q46: 0 | R46: 23391 | S46: 0 | T46: 5245 | U46: 26798 | V46: 0 | W46: 0 | X46: 11700 | Y46: 3500 | Z46: 0 | AA46: 0 | AB46: 0 | AC46: 0 | AD46: 0 | AE46: 0 | AF46: 0 | AG46: 0 | AH46: 0 | AI46: 0 | AJ46: 0 | AK46: 502323 | AL46: 253601 | AM46: 1600 | AN46: 113360 | AO46: 0 | AP46: 33601 | AQ46: 0 | AR46: 41061 | AS46: 500 | AT46: 3100 | AU46: 2083 | AV46: 0 | AW46: 5500 | AX46: 0 | AY46: 13446 | AZ46: 1800 | BA46: 6500 | BB46: 928 | BC46: 1050 | BD46: 22114 | BE46: 0 | BF46: 2200 | BG46: 0 | BH46: 2500 | BI46: 4500 | BJ46: 0 | BK46: 0 | BL46: 790 | BM46: 0 | BN46: 3430 | BO46: 2753 | BP46: 0 | BQ46: 18473 | BR46: 400 | BS46: 9997 | BT46: 8529 | BU46: 0 | BV46: 0 | BW46: 0 | BX46: 0 | BY46: 0 | BZ46: 553816 | CB46: 0 | CC46: 0 | CD46: 0 | CE46: 0 | CG46: 0 | CH46: 2286 | CI46: 0 | CJ46: 0 | CK46: 0 | CL46: 0 | CM46: 0 | CN46: 0 | CO46: 0 | CP46: 2286 | CR46: 61373.38 | CS46: 0 | CT46: 0 | CU46: 0.14 | CV46: 0 | CW46: 0 | CX46: 61373.52
A47: 695 | B47: 9163044 | C47: 3044 | E47: Littledean Church of England Primary School | I47: 41336.58 | J47: 5686.58 | K47: 0 | L47: 9048.61 | M47: 0 | N47: 1029.99 | O47: 57101.76 | P47: 540665 | Q47: 0 | R47: 36996 | S47: 0 | T47: 31000 | U47: 25239 | V47: 0 | W47: 0 | X47: 3000 | Y47: 0 | Z47: 0 | AA47: 0 | AB47: 500 | AC47: 4000 | AD47: 0 | AE47: 40211 | AF47: 0 | AG47: 0 | AH47: 0 | AI47: 0 | AJ47: 0 | AK47: 681611 | AL47: 343440 | AM47: 0 | AN47: 167251 | AO47: 4472 | AP47: 42978 | AQ47: 0 | AR47: 22879 | AS47: 3597 | AT47: 4465 | AU47: 223 | AV47: 0 | AW47: 6551 | AX47: 2868 | AY47: 27063 | AZ47: 1500 | BA47: 10100 | BB47: 12974 | BC47: 2114 | BD47: 15638 | BE47: 0 | BF47: 4311 | BG47: 0 | BH47: 0 | BI47: 0 | BJ47: 0 | BK47: 0 | BL47: 3090 | BM47: 0 | BN47: 1050 | BO47: 3940 | BP47: 0 | BQ47: 18525 | BR47: 3552 | BS47: 16008 | BT47: 12495 | BU47: 0 | BV47: 0 | BW47: 0 | BX47: 44111 | BY47: 250 | BZ47: 775445 | CB47: 4900 | CC47: 0 | CD47: 0 | CE47: 4900 | CG47: 0 | CH47: 13949 | CI47: 0 | CJ47: 0 | CK47: 0 | CL47: 0 | CM47: 0 | CN47: 0 | CO47: 0 | CP47: 13949 | CR47: -42660.84 | CS47: 0 | CT47: 0 | CU47: -0.39 | CV47: 0 | CW47: -3120.01 | CX47: -45781.24
A48: 547 | B48: 9162141 | C48: 2141 | E48: Woodmancote School | I48: 419298.8 | J48: 14033.84 | K48: 0 | L48: 0 | M48: 0 | N48: 42223.9 | O48: 475556.54 | P48: 2149347 | Q48: 0 | R48: 138105 | S48: 0 | T48: 113490 | U48: 90189 | V48: 0 | W48: 0 | X48: 208800 | Y48: 0 | Z48: 0 | AA48: 0 | AB48: 0 | AC48: 14200 | AD48: 0 | AE48: 150849 | AF48: 0 | AG48: 0 | AH48: 0 | AI48: 0 | AJ48: 0 | AK48: 2864980 | AL48: 1375190 | AM48: 5000 | AN48: 385338 | AO48: 20754 | AP48: 142282 | AQ48: 0 | AR48: 165232 | AS48: 11069 | AT48: 8446 | AU48: 1278 | AV48: 0 | AW48: 50185 | AX48: 14495 | AY48: 48446 | AZ48: 5652 | BA48: 26480 | BB48: 32756 | BC48: 8300 | BD48: 127294 | BE48: 0 | BF48: 4386 | BG48: 0 | BH48: 2000 | BI48: 0 | BJ48: 19706 | BK48: 0 | BL48: 19473 | BM48: 0 | BN48: 13148 | BO48: 22617 | BP48: 0 | BQ48: 116331 | BR48: 23500 | BS48: 50070 | BT48: 24105 | BU48: 0 | BV48: 0 | BW48: 0 | BX48: 132353 | BY48: 18884 | BZ48: 2874770 | CB48: 8658 | CC48: 0 | CD48: 0 | CE48: 8658 | CG48: 0 | CH48: 8658 | CI48: 0 | CJ48: 0 | CK48: 0 | CL48: 0 | CM48: 0 | CN48: 0 | CO48: 0 | CP48: 8658 | CR48: 423930.64 | CS48: 0 | CT48: 0 | CU48: 0 | CV48: 0 | CW48: 41835.9 | CX48: 465766.54
A49: 733 | B49: 9163057 | C49: 3057 | E49: Norton Church of England Primary School | I49: 106836.18 | J49: 878.37 | K49: 0 | L49: 11423.39 | M49: 0 | N49: 22557.42 | O49: 141695.36 | P49: 825700 | Q49: 0 | R49: 52478 | S49: 0 | T49: 17710 | U49: 38210 | V49: 0 | W49: 0 | X49: 23000 | Y49: 0 | Z49: 0 | AA49: 0 | AB49: 0 | AC49: 0 | AD49: 0 | AE49: 62373 | AF49: 24422 | AG49: 0 | AH49: 0 | AI49: 0 | AJ49: 0 | AK49: 1043893 | AL49: 570435 | AM49: 0 | AN49: 211615 | AO49: 0 | AP49: 58923 | AQ49: 0 | AR49: 35214 | AS49: 4801 | AT49: 4200 | AU49: 454 | AV49: 0 | AW49: 3554 | AX49: 1263 | AY49: 18188 | AZ49: 2499 | BA49: 6803 | BB49: 4890 | BC49: 12243 | BD49: 41679 | BE49: 0 | BF49: 3000 | BG49: 0 | BH49: 2446 | BI49: 0 | BJ49: 0 | BK49: 0 | BL49: 0 | BM49: 0 | BN49: 5427 | BO49: 8044 | BP49: 0 | BQ49: 27610 | BR49: 0 | BS49: 0 | BT49: 12262 | BU49: 0 | BV49: 0 | BW49: 0 | BX49: 76386 | BY49: 4441 | BZ49: 1116377 | CB49: 5721 | CC49: 0 | CD49: 0 | CE49: 5721 | CG49: 0 | CH49: 17145 | CI49: 0 | CJ49: 0 | CK49: 0 | CL49: 0 | CM49: 0 | CN49: 0 | CO49: 0 | CP49: 17145 | CR49: 29262.55 | CS49: 0 | CT49: 0 | CU49: -0.61 | CV49: 0 | CW49: 28525.42 | CX49: 57787.36
A50: 691 | B50: 9162075 | C50: 2075 | E50: Kingswood Primary School | I50: 55106.55 | J50: 29325.46 | K50: 0 | L50: -1352.67 | M50: 0 | N50: 0 | O50: 83079.34 | P50: 594374 | Q50: 0 | R50: 36196 | S50: 0 | T50: 27870 | U50: 40965 | V50: 0 | W50: 0 | X50: 55189 | Y50: 0 | Z50: 0 | AA50: 0 | AB50: 2000 | AC50: 2270 | AD50: 0 | AE50: 0 | AF50: 0 | AG50: 0 | AH50: 0 | AI50: 0 | AJ50: 0 | AK50: 758864 | AL50: 422748 | AM50: 1000 | AN50: 159076 | AO50: 3958 | AP50: 66047 | AQ50: 0 | AR50: 10767 | AS50: 3816 | AT50: 4775 | AU50: 2297 | AV50: 0 | AW50: 10290 | AX50: 600 | AY50: 10973 | AZ50: 1200 | BA50: 6300 | BB50: 12191 | BC50: 1000 | BD50: 54280 | BE50: 0 | BF50: 3300 | BG50: 0 | BH50: 0 | BI50: 0 | BJ50: 0 | BK50: 0 | BL50: 2500 | BM50: 0 | BN50: 710 | BO50: 5020 | BP50: 0 | BQ50: 26668 | BR50: 15745 | BS50: 16241 | BT50: 32834 | BU50: 0 | BV50: 0 | BW50: 0 | BX50: 0 | BY50: 0 | BZ50: 874336 | CB50: 5114 | CC50: 0 | CD50: 0 | CE50: 5114 | CG50: 0 | CH50: 3761 | CI50: 0 | CJ50: 0 | CK50: 0 | CL50: 0 | CM50: 0 | CN50: 0 | CO50: 0 | CP50: 3761 | CR50: -31039.99 | CS50: 0 | CT50: 0 | CU50: 0.33 | CV50: 0 | CW50: 0 | CX50: -31039.66
A51: 936 | B51: 9163011 | C51: 3011 | E51: Hempsted Church of England Primary School | I51: -43155.63 | J51: 7611 | K51: 0 | L51: 3767.06 | M51: 0 | N51: 0 | O51: -31777.57 | P51: 1213773 | Q51: 0 | R51: 113833 | S51: 0 | T51: 66995 | U51: 50398 | V51: 0 | W51: 0 | X51: 50860 | Y51: 20000 | Z51: 525 | AA51: 0 | AB51: 0 | AC51: 0 | AD51: 0 | AE51: 0 | AF51: 0 | AG51: 0 | AH51: 0 | AI51: 0 | AJ51: 0 | AK51: 1516384 | AL51: 679880 | AM51: 5700 | AN51: 420991 | AO51: 24139 | AP51: 74499 | AQ51: 0 | AR51: 48638 | AS51: 5891 | AT51: 1500 | AU51: 647 | AV51: 8000 | AW51: 9633 | AX51: 3600 | AY51: 28918 | AZ51: 4434 | BA51: 17125 | BB51: 12556 | BC51: 2869 | BD51: 52639 | BE51: 0 | BF51: 5165 | BG51: 0 | BH51: 0 | BI51: 0 | BJ51: 0 | BK51: 0 | BL51: 5485 | BM51: 0 | BN51: 5998 | BO51: 11444 | BP51: 0 | BQ51: 68758 | BR51: 40424 | BS51: 170 | BT51: 16885 | BU51: 0 | BV51: 0 | BW51: 0 | BX51: 0 | BY51: 0 | BZ51: 1555988 | CB51: 6373 | CC51: 0 | CD51: 0 | CE51: 6373 | CG51: 0 | CH51: 6373 | CI51: 0 | CJ51: 0 | CK51: 0 | CL51: 0 | CM51: 0 | CN51: 0 | CO51: 0 | CP51: 6373 | CR51: -75148.63 | CS51: 0 | CT51: 0 | CU51: 3767.06 | CV51: 0 | CW51: 0 | CX51: -71381.57
A52: 940 | B52: 9162004 | C52: 2004 | E52: Linden Primary School | I52: 103453.24 | J52: 0 | K52: 0 | L52: 2547.4 | M52: 0 | N52: 0 | O52: 106000.64 | P52: 2242735 | Q52: 0 | R52: 81000 | S52: 0 | T52: 166380 | U52: 134425 | V52: 12000 | W52: 3000 | X52: 48000 | Y52: 16000 | Z52: 0 | AA52: 0 | AB52: 21000 | AC52: 0 | AD52: 0 | AE52: 0 | AF52: 0 | AG52: 0 | AH52: 0 | AI52: 0 | AJ52: 0 | AK52: 2724540 | AL52: 1312577 | AM52: 0 | AN52: 669823 | AO52: 55365 | AP52: 117569 | AQ52: 99503 | AR52: 121130 | AS52: 8000 | AT52: 5900 | AU52: 1269 | AV52: 0 | AW52: 11878 | AX52: 3788 | AY52: 28500 | AZ52: 8000 | BA52: 33000 | BB52: 42588 | BC52: 6500 | BD52: 78240 | BE52: 0 | BF52: 4980 | BG52: 0 | BH52: 0 | BI52: 4377 | BJ52: 0 | BK52: 0 | BL52: 9940 | BM52: 0 | BN52: 9680 | BO52: 22455 | BP52: 0 | BQ52: 57235 | BR52: 8000 | BS52: 23550 | BT52: 27373 | BU52: 0 | BV52: 0 | BW52: 0 | BX52: 0 | BY52: 0 | BZ52: 2771220 | CB52: 8713 | CC52: 0 | CD52: 0 | CE52: 8713 | CG52: 0 | CH52: 2000 | CI52: 0 | CJ52: 0 | CK52: 0 | CL52: 0 | CM52: 2547 | CN52: 6713 | CO52: 0 | CP52: 11260 | CR52: 56773.24 | CS52: 0 | CT52: 0 | CU52: 0.4 | CV52: 0 | CW52: 0 | CX52: 56773.64
A53: 886 | B53: 9162177 | C53: 2177 | E53: Gardners Lane Primary School | I53: 271266.7 | J53: 42552.26 | K53: 0 | L53: 6816.57 | M53: 0 | N53: 0 | O53: 320635.53 | P53: 1722126 | Q53: 0 | R53: 113321 | S53: 0 | T53: 167110 | U53: 44916 | V53: 0 | W53: 0 | X53: 10000 | Y53: 6000 | Z53: 0 | AA53: 0 | AB53: 8000 | AC53: 200 | AD53: 0 | AE53: 0 | AF53: 0 | AG53: 0 | AH53: 0 | AI53: 0 | AJ53: 0 | AK53: 2071673 | AL53: 1010488 | AM53: 10000 | AN53: 498274 | AO53: 91095 | AP53: 82845 | AQ53: 0 | AR53: 47674 | AS53: 400 | AT53: 4100 | AU53: 857 | AV53: 0 | AW53: 45880 | AX53: 4724 | AY53: 7007 | AZ53: 6000 | BA53: 46000 | BB53: 7153 | BC53: 4200 | BD53: 115621 | BE53: 0 | BF53: 3400 | BG53: 0 | BH53: 13000 | BI53: 9000 | BJ53: 1000 | BK53: 1500 | BL53: 2951 | BM53: 0 | BN53: 10475 | BO53: 15168 | BP53: 0 | BQ53: 75598 | BR53: 40200 | BS53: 5000 | BT53: 112258 | BU53: 0 | BV53: 0 | BW53: 0 | BX53: 0 | BY53: 0 | BZ53: 2271868 | CB53: 7037 | CC53: 0 | CD53: 0 | CE53: 7037 | CG53: 0 | CH53: 0 | CI53: 0 | CJ53: 0 | CK53: 0 | CL53: 0 | CM53: 0 | CN53: 13854 | CO53: 0 | CP53: 13854 | CR53: 113623.96 | CS53: 0 | CT53: 0 | CU53: -0.43 | CV53: 0 | CW53: 0 | CX53: 113623.53
A54: 887 | B54: 9162150 | C54: 2150 | E54: Gloucester Road Primary School | I54: 110200.82 | J54: 19733.46 | K54: 0 | L54: 15497.19 | M54: 0 | N54: 66377.9 | O54: 211809.37 | P54: 1229701 | Q54: 0 | R54: 183059 | S54: 0 | T54: 79920 | U54: 55031 | V54: 0 | W54: 0 | X54: 53145 | Y54: 0 | Z54: 0 | AA54: 0 | AB54: 9000 | AC54: 0 | AD54: 0 | AE54: 90000 | AF54: 5000 | AG54: 0 | AH54: 0 | AI54: 0 | AJ54: 0 | AK54: 1704856 | AL54: 871649 | AM54: 0 | AN54: 305404 | AO54: 47159 | AP54: 111117 | AQ54: 0 | AR54: 42994 | AS54: 5650 | AT54: 11500 | AU54: 638 | AV54: 0 | AW54: 17239 | AX54: 1974 | AY54: 6007 | AZ54: 4500 | BA54: 19500 | BB54: 15594 | BC54: 3500 | BD54: 82819 | BE54: 0 | BF54: 1500 | BG54: 0 | BH54: 250 | BI54: 750 | BJ54: 0 | BK54: 0 | BL54: 201 | BM54: 0 | BN54: 6600 | BO54: 11282 | BP54: 2450 | BQ54: 64708 | BR54: 20000 | BS54: 40850 | BT54: 28148 | BU54: 0 | BV54: 0 | BW54: 25000 | BX54: 65221 | BY54: 4750 | BZ54: 1818954 | CB54: 25013 | CC54: 0 | CD54: 25000 | CE54: 50013 | CG54: 0 | CH54: 65510 | CI54: 0 | CJ54: 0 | CK54: 0 | CL54: 0 | CM54: 0 | CN54: 0 | CO54: 0 | CP54: 65510 | CR54: -9192.72 | CS54: 0 | CT54: 0 | CU54: 0.19 | CV54: 0 | CW54: 91406.9 | CX54: 82214.37
A55: 808 | B55: 9163072 | C55: 3072 | E55: Temple Guiting Church of England School | I55: 106267.39 | J55: 4887.69 | K55: 0 | L55: 0 | M55: 0 | N55: 0 | O55: 111155.08 | P55: 638551 | Q55: 0 | R55: 5888 | S55: 0 | T55: 12120 | U55: 39521 | V55: 0 | W55: 0 | X55: 69652 | Y55: 0 | Z55: 0 | AA55: 0 | AB55: 0 | AC55: 0 | AD55: 0 | AE55: 0 | AF55: 0 | AG55: 0 | AH55: 0 | AI55: 0 | AJ55: 0 | AK55: 765732 | AL55: 342983 | AM55: 9000 | AN55: 121122 | AO55: 17562 | AP55: 33709 | AQ55: 0 | AR55: 19050 | AS55: 3109 | AT55: 1800 | AU55: 6233 | AV55: 0 | AW55: 51800 | AX55: 6011 | AY55: 2000 | AZ55: 2980 | BA55: 11659 | BB55: 5739 | BC55: 7900 | BD55: 29161 | BE55: 0 | BF55: 1850 | BG55: 0 | BH55: 150 | BI55: 0 | BJ55: 1500 | BK55: 0 | BL55: 4039 | BM55: 0 | BN55: 3800 | BO55: 5345 | BP55: 0 | BQ55: 28737 | BR55: 2500 | BS55: 10620 | BT55: 36806 | BU55: 0 | BV55: 0 | BW55: 0 | BX55: 0 | BY55: 0 | BZ55: 767165 | CB55: 5035 | CC55: 0 | CD55: 0 | CE55: 5035 | CG55: 0 | CH55: 5035 | CI55: 0 | CJ55: 0 | CK55: 0 | CL55: 0 | CM55: 0 | CN55: 0 | CO55: 0 | CP55: 5035 | CR55: 109722.08 | CS55: 0 | CT55: 0 | CU55: 0 | CV55: 0 | CW55: 0 | CX55: 109722.08
A56: 892 | B56: 9162160 | C56: 2160 | E56: Lakeside Primary School | I56: 107627.26 | J56: 96841 | K56: 0 | L56: -0.13 | M56: 15882 | N56: 0 | O56: 220350.13 | P56: 2680830 | Q56: 0 | R56: 158309 | S56: 0 | T56: 111080 | U56: 143367 | V56: 3500 | W56: 30014 | X56: 4720 | Y56: 0 | Z56: 10000 | AA56: 0 | AB56: 56000 | AC56: 71510 | AD56: 0 | AE56: 0 | AF56: 0 | AG56: 0 | AH56: 0 | AI56: 0 | AJ56: 0 | AK56: 3269330 | AL56: 1701923 | AM56: 460 | AN56: 454418 | AO56: 87866 | AP56: 182532 | AQ56: 0 | AR56: 50095 | AS56: 7365 | AT56: 10204 | AU56: 20135 | AV56: 0 | AW56: 26326 | AX56: 8880 | AY56: 68854 | AZ56: 9057 | BA56: 69825 | BB56: 24950 | BC56: 18277 | BD56: 155835 | BE56: 0 | BF56: 5000 | BG56: 0 | BH56: 10490 | BI56: 3725 | BJ56: 0 | BK56: 0 | BL56: 3600 | BM56: 0 | BN56: 7876 | BO56: 28036 | BP56: 0 | BQ56: 124673 | BR56: 47312 | BS56: 179049 | BT56: 15641 | BU56: 0 | BV56: 0 | BW56: 27670 | BX56: 0 | BY56: 0 | BZ56: 3350074 | CB56: 153106 | CC56: 0 | CD56: 27670 | CE56: 180776 | CG56: 0 | CH56: 187926 | CI56: 0 | CJ56: 0 | CK56: 0 | CL56: 0 | CM56: 0 | CN56: 5670 | CO56: 3000 | CP56: 196596 | CR56: 76842.26 | CS56: 46882 | CT56: 0 | CU56: 61.87 | CV56: 0 | CW56: 0 | CX56: 123786.13
A57: 724 | B57: 9163052 | C57: 3052 | E57: Nailsworth Church of England Primary School | I57: 3993.79 | J57: 8856.78 | K57: 0 | L57: 6488.91 | M57: 0 | N57: 0 | O57: 19339.48 | P57: 1038934 | Q57: 0 | R57: 115515 | S57: 0 | T57: 59085 | U57: 50081 | V57: 0 | W57: 13000 | X57: 61460 | Y57: 20000 | Z57: 6000 | AA57: 0 | AB57: 32000 | AC57: 22879 | AD57: 0 | AE57: 0 | AF57: 0 | AG57: 0 | AH57: 0 | AI57: 0 | AJ57: 0 | AK57: 1418954 | AL57: 628262 | AM57: 0 | AN57: 281162 | AO57: 47073 | AP57: 78269 | AQ57: 38089 | AR57: 73532 | AS57: 6265 | AT57: 5150 | AU57: 4170 | AV57: 0 | AW57: 8584 | AX57: 2500 | AY57: 1247 | AZ57: 3516 | BA57: 26135 | BB57: 17091 | BC57: 4195 | BD57: 127624 | BE57: 0 | BF57: 2095 | BG57: 0 | BH57: 2832 | BI57: 0 | BJ57: 0 | BK57: 1811 | BL57: 5518 | BM57: 0 | BN57: 7019 | BO57: 10094 | BP57: 0 | BQ57: 20648 | BR57: 8000 | BS57: 4500 | BT57: 15927 | BU57: 0 | BV57: 0 | BW57: 0 | BX57: 0 | BY57: 0 | BZ57: 1431308 | CB57: 6239 | CC57: 0 | CD57: 0 | CE57: 6239 | CG57: 0 | CH57: 12728 | CI57: 0 | CJ57: 0 | CK57: 0 | CL57: 0 | CM57: 0 | CN57: 0 | CO57: 0 | CP57: 12728 | CR57: 496.57 | CS57: 0 | CT57: 0 | CU57: -0.09 | CV57: 0 | CW57: 0 | CX57: 496.48
A58: 857 | B58: 9162136 | C58: 2136 | E58: Foxmoor Primary School | I58: 72964.74 | J58: 27540.71 | K58: 0 | L58: 19763.64 | M58: 0 | N58: 3321.81 | O58: 123590.9 | P58: 1263675 | Q58: 0 | R58: 40658 | S58: 0 | T58: 58950 | U58: 61365 | V58: 0 | W58: 1750 | X58: 106688 | Y58: 0 | Z58: 0 | AA58: 0 | AB58: 42906 | AC58: 0 | AD58: 0 | AE58: 63134 | AF58: 53000 | AG58: 0 | AH58: 0 | AI58: 0 | AJ58: 0 | AK58: 1692126 | AL58: 815732 | AM58: 11500 | AN58: 283165 | AO58: 35412 | AP58: 67701 | AQ58: 0 | AR58: 83007 | AS58: 7828 | AT58: 9182 | AU58: 735 | AV58: 0 | AW58: 29319 | AX58: 11640 | AY58: 5283 | AZ58: 2431 | BA58: 18882 | BB58: 34055 | BC58: 11682 | BD58: 92477 | BE58: 0 | BF58: 500 | BG58: 0 | BH58: 8291 | BI58: 4439 | BJ58: 0 | BK58: 0 | BL58: 17755 | BM58: 0 | BN58: 5209 | BO58: 13009 | BP58: 9500 | BQ58: 38038 | BR58: 3623 | BS58: 16261 | BT58: 15780 | BU58: 0 | BV58: 0 | BW58: 0 | BX58: 106396 | BY58: 13060 | BZ58: 1771892 | CB58: 6947 | CC58: 0 | CD58: 0 | CE58: 6947 | CG58: 0 | CH58: 26711 | CI58: 0 | CJ58: 0 | CK58: 0 | CL58: 0 | CM58: 0 | CN58: 0 | CO58: 0 | CP58: 26711 | CR58: 18158.45 | CS58: 5903 | CT58: 0 | CU58: -0.36 | CV58: 0 | CW58: -0.19 | CX58: 24060.9
A59: 665 | B59: 9163039 | C59: 3039 | E59: Haresfield Church of England Primary School | I59: 210948.19 | J59: 0 | K59: 0 | L59: 11897.17 | M59: 0 | N59: 0 | O59: 222845.36 | P59: 657869 | Q59: 0 | R59: 0 | S59: 0 | T59: 14750 | U59: 37440 | V59: 0 | W59: 0 | X59: 12000 | Y59: 0 | Z59: 0 | AA59: 0 | AB59: 2000 | AC59: 0 | AD59: 0 | AE59: 0 | AF59: 0 | AG59: 0 | AH59: 0 | AI59: 0 | AJ59: 0 | AK59: 724059 | AL59: 367141 | AM59: 6000 | AN59: 177121 | AO59: 0 | AP59: 46523 | AQ59: 0 | AR59: 23948 | AS59: 2900 | AT59: 14905 | AU59: 317 | AV59: 0 | AW59: 10196 | AX59: 2600 | AY59: 18000 | AZ59: 3500 | BA59: 18500 | BB59: 3593 | BC59: 2600 | BD59: 56979 | BE59: 0 | BF59: 5500 | BG59: 0 | BH59: 4500 | BI59: 6725 | BJ59: 0 | BK59: 0 | BL59: 1092 | BM59: 0 | BN59: 3300 | BO59: 5614 | BP59: 0 | BQ59: 25152 | BR59: 6000 | BS59: 23750 | BT59: 21674 | BU59: 0 | BV59: 0 | BW59: 0 | BX59: 0 | BY59: 0 | BZ59: 858130 | CB59: 5125 | CC59: 0 | CD59: 0 | CE59: 5125 | CG59: 0 | CH59: 10022 | CI59: 0 | CJ59: 0 | CK59: 0 | CL59: 0 | CM59: 0 | CN59: 7000 | CO59: 0 | CP59: 17022 | CR59: 76877.19 | CS59: 0 | CT59: 0 | CU59: 0.17 | CV59: 0 | CW59: 0 | CX59: 76877.36
A60: 957 | B60: 9165219 | C60: 5219 | E60: Heron Primary School | I60: 240235.51 | J60: 57515.2 | K60: 0 | L60: 15385.77 | M60: 0 | N60: 0 | O60: 313136.48 | P60: 2057654 | Q60: 0 | R60: 70415 | S60: 0 | T60: 100775 | U60: 84937 | V60: 0 | W60: 20125 | X60: 41970 | Y60: 49790 | Z60: 0 | AA60: 0 | AB60: 3850 | AC60: 0 | AD60: 0 | AE60: 0 | AF60: 0 | AG60: 0 | AH60: 0 | AI60: 0 | AJ60: 0 | AK60: 2429516 | AL60: 1274669 | AM60: 20437 | AN60: 465811 | AO60: 89229 | AP60: 166953 | AQ60: 77448 | AR60: 99585 | AS60: 2700 | AT60: 7182 | AU60: 1223 | AV60: 0 | AW60: 23590 | AX60: 10585 | AY60: 6207 | AZ60: 8600 | BA60: 32000 | BB60: 8170 | BC60: 6105 | BD60: 47433 | BE60: 0 | BF60: 1724 | BG60: 0 | BH60: 10189 | BI60: 20326 | BJ60: 1000 | BK60: 0 | BL60: 10597 | BM60: 0 | BN60: 4075 | BO60: 19084 | BP60: 0 | BQ60: 37810 | BR60: 27000 | BS60: 8915 | BT60: 19448 | BU60: 0 | BV60: 0 | BW60: 0 | BX60: 0 | BY60: 0 | BZ60: 2508095 | CB60: 8646 | CC60: 0 | CD60: 0 | CE60: 8646 | CG60: 0 | CH60: 24032 | CI60: 0 | CJ60: 0 | CK60: 0 | CL60: 0 | CM60: 0 | CN60: 0 | CO60: 0 | CP60: 24032 | CR60: 219171.71 | CS60: 0 | CT60: 0 | CU60: -0.23 | CV60: 0 | CW60: 0 | CX60: 219171.48
A61: 798 | B61: 9162091 | C61: 2091 | E61: Stow-on-the-Wold Primary School | I61: -127760.8 | J61: -1933.58 | K61: 0 | L61: 15676.33 | M61: 0 | N61: -33955.63 | O61: -147973.68 | P61: 632731 | Q61: 0 | R61: 60000 | S61: 0 | T61: 18180 | U61: 34215 | V61: 0 | W61: 2000 | X61: 10000 | Y61: 0 | Z61: 0 | AA61: 0 | AB61: 10000 | AC61: 0 | AD61: 0 | AE61: 0 | AF61: 7000 | AG61: 0 | AH61: 0 | AI61: 0 | AJ61: 0 | AK61: 774126 | AL61: 402289 | AM61: 20601 | AN61: 136743 | AO61: 26026 | AP61: 45782 | AQ61: 0 | AR61: 26166 | AS61: 3121 | AT61: 2000 | AU61: 7055 | AV61: 0 | AW61: 12588 | AX61: 6125 | AY61: 2704 | AZ61: 3850 | BA61: 16776 | BB61: 23827 | BC61: 2812 | BD61: 28709 | BE61: 0 | BF61: 0 | BG61: 0 | BH61: 6000 | BI61: 5697 | BJ61: 0 | BK61: 0 | BL61: 0 | BM61: 0 | BN61: 5215 | BO61: 5182 | BP61: 0 | BQ61: 26114 | BR61: 0 | BS61: 19580 | BT61: 11615 | BU61: 0 | BV61: 0 | BW61: 0 | BX61: 0 | BY61: 0 | BZ61: 846577 | CB61: 5069 | CC61: 0 | CD61: 0 | CE61: 5069 | CG61: 0 | CH61: 20745 | CI61: 0 | CJ61: 0 | CK61: 0 | CL61: 0 | CM61: 0 | CN61: 0 | CO61: 0 | CP61: 20745 | CR61: -209145.38 | CS61: 0 | CT61: 0 | CU61: 0.33 | CV61: 0 | CW61: -26955.63 | CX61: -236100.68
A62: 776 | B62: 9162084 | C62: 2084 | E62: Sheepscombe Primary School | I62: 11047.51 | J62: 9323.3 | K62: 0 | L62: 12966.82 | M62: 0 | N62: 0 | O62: 33337.63 | P62: 500190 | Q62: 0 | R62: 45471 | S62: 0 | T62: 4545 | U62: 29825 | V62: 0 | W62: 0 | X62: 34000 | Y62: 0 | Z62: 0 | AA62: 0 | AB62: 13500 | AC62: 9516 | AD62: 0 | AE62: 26500 | AF62: 6000 | AG62: 0 | AH62: 0 | AI62: 0 | AJ62: 0 | AK62: 669547 | AL62: 364344 | AM62: 12120 | AN62: 81985 | AO62: 0 | AP62: 39272 | AQ62: 0 | AR62: 3939 | AS62: 1750 | AT62: 1400 | AU62: 7210 | AV62: 0 | AW62: 5702 | AX62: 0 | AY62: 10804 | AZ62: 500 | BA62: 10625 | BB62: 3244 | BC62: 1250 | BD62: 45253 | BE62: 0 | BF62: 2580 | BG62: 0 | BH62: 2500 | BI62: 700 | BJ62: 0 | BK62: 0 | BL62: 1990 | BM62: 0 | BN62: 1410 | BO62: 3725 | BP62: 0 | BQ62: 19227 | BR62: 0 | BS62: 13699 | BT62: 13131 | BU62: 0 | BV62: 0 | BW62: 0 | BX62: 0 | BY62: 32500 | BZ62: 680860 | CB62: 4799 | CC62: 0 | CD62: 0 | CE62: 4799 | CG62: 0 | CH62: 17766 | CI62: 0 | CJ62: 0 | CK62: 0 | CL62: 0 | CM62: 0 | CN62: 0 | CO62: 0 | CP62: 17766 | CR62: 9057.81 | CS62: 0 | CT62: 0 | CU62: -0.18 | CV62: 0 | CW62: 0 | CX62: 9057.63
A63: 884 | B63: 9162147 | C63: 2147 | E63: Dunalley Primary School | I63: 390287.39 | J63: 14323.75 | K63: 0 | L63: 19452.59 | M63: 0 | N63: 145870.21 | O63: 569933.94 | P63: 2167923 | Q63: 0 | R63: 152758 | S63: 0 | T63: 89170 | U63: 98710 | V63: 0 | W63: 4600 | X63: 137889 | Y63: 0 | Z63: 0 | AA63: 0 | AB63: 0 | AC63: 10000 | AD63: 0 | AE63: 200000 | AF63: 25000 | AG63: 0 | AH63: 0 | AI63: 0 | AJ63: 0 | AK63: 2886050 | AL63: 1325219 | AM63: 0 | AN63: 580758 | AO63: 114439 | AP63: 155704 | AQ63: 0 | AR63: 114608 | AS63: 13267 | AT63: 5876 | AU63: 19269 | AV63: 0 | AW63: 11000 | AX63: 13089 | AY63: 9500 | AZ63: 8500 | BA63: 25000 | BB63: 43680 | BC63: 8600 | BD63: 226876 | BE63: 0 | BF63: 4820 | BG63: 0 | BH63: 0 | BI63: 5104 | BJ63: 0 | BK63: 0 | BL63: 0 | BM63: 0 | BN63: 8716 | BO63: 19065 | BP63: 0 | BQ63: 79167 | BR63: 22600 | BS63: 23750 | BT63: 28568 | BU63: 0 | BV63: 0 | BW63: 0 | BX63: 179424 | BY63: 74164 | BZ63: 3120763 | CB63: 8736 | CC63: 0 | CD63: 0 | CE63: 8736 | CG63: 0 | CH63: 28189 | CI63: 0 | CJ63: 0 | CK63: 0 | CL63: 0 | CM63: 0 | CN63: 0 | CO63: 0 | CP63: 28189 | CR63: 198486.14 | CS63: 0 | CT63: 0 | CU63: -0.41 | CV63: 0 | CW63: 117282.21 | CX63: 315767.94
A64: 346 | B64: 9165407 | C64: 5407 | E64: Rednock School | I64: 513583.05 | J64: 0 | K64: 0 | L64: 0 | M64: 0 | N64: 0 | O64: 513583.05 | P64: 7617150 | Q64: 793540 | R64: 351186 | S64: 0 | T64: 253360 | U64: 7200 | V64: 8750 | W64: 98000 | X64: 5000 | Y64: 0 | Z64: 0 | AA64: 0 | AB64: 315000 | AC64: 0 | AD64: 0 | AE64: 0 | AF64: 0 | AG64: 0 | AH64: 0 | AI64: 0 | AJ64: 0 | AK64: 9449186 | AL64: 5776315 | AM64: 25000 | AN64: 1339251 | AO64: 174034 | AP64: 554904 | AQ64: 0 | AR64: 83869 | AS64: 32836 | AT64: 21065 | AU64: 0 | AV64: 0 | AW64: 169451 | AX64: 23625 | AY64: 208180 | AZ64: 12000 | BA64: 236750 | BB64: 38211 | BC64: 21144 | BD64: 560404 | BE64: 0 | BF64: 2000 | BG64: 0 | BH64: 2200 | BI64: 42000 | BJ64: 13300 | BK64: 2500 | BL64: 2000 | BM64: 129800 | BN64: 50917 | BO64: 35478 | BP64: 0 | BQ64: 72604 | BR64: 25800 | BS64: 92716 | BT64: 52974 | BU64: 0 | BV64: 0 | BW64: 50000 | BX64: 0 | BY64: 0 | BZ64: 9851328 | CB64: 75600 | CC64: 0 | CD64: 50000 | CE64: 125600 | CG64: 0 | CH64: 100000 | CI64: 0 | CJ64: 0 | CK64: 0 | CL64: 10000 | CM64: 15600 | CN64: 0 | CO64: 0 | CP64: 125600 | CR64: 111441.05 | CS64: 0 | CT64: 0 | CU64: 0 | CV64: 0 | CW64: 0 | CX64: 111441.05
A65: 934 | B65: 9162026 | C65: 2026 | E65: Harewood Junior School | I65: 547388.21 | J65: 16229 | K65: 0 | L65: 0 | M65: 0 | N65: 0 | O65: 563617.21 | P65: 1907280 | Q65: 0 | R65: 25000 | S65: 0 | T65: 124765 | U65: 19000 | V65: 0 | W65: 3500 | X65: 1270 | Y65: 38000 | Z65: 0 | AA65: 0 | AB65: 31500 | AC65: 0 | AD65: 0 | AE65: 0 | AF65: 0 | AG65: 0 | AH65: 0 | AI65: 0 | AJ65: 0 | AK65: 2150315 | AL65: 1141688 | AM65: 60000 | AN65: 479196 | AO65: 75126 | AP65: 103357 | AQ65: 0 | AR65: 75457 | AS65: 3500 | AT65: 7000 | AU65: 1098 | AV65: 0 | AW65: 7571 | AX65: 10554 | AY65: 5000 | AZ65: 5700 | BA65: 40800 | BB65: 25172 | BC65: 9270 | BD65: 123200 | BE65: 0 | BF65: 6000 | BG65: 0 | BH65: 5000 | BI65: 6500 | BJ65: 0 | BK65: 0 | BL65: 3780 | BM65: 0 | BN65: 9700 | BO65: 19433 | BP65: 1000 | BQ65: 39000 | BR65: 0 | BS65: 29631 | BT65: 29651 | BU65: 0 | BV65: 500 | BW65: 340000 | BX65: 0 | BY65: 0 | BZ65: 2663884 | CB65: 7960 | CC65: 0 | CD65: 340000 | CE65: 347960 | CG65: 0 | CH65: 347960 | CI65: 0 | CJ65: 0 | CK65: 0 | CL65: 0 | CM65: 0 | CN65: 0 | CO65: 0 | CP65: 347960 | CR65: 50048.21 | CS65: 0 | CT65: 0 | CU65: 0 | CV65: 0 | CW65: 0 | CX65: 50048.21
A66: 355 | B66: 9165421 | C66: 5421 | E66: Pittville School | I66: 756568.29 | J66: 29407 | K66: 0 | L66: 670474.38 | M66: 0 | N66: 0 | O66: 1456449.67 | P66: 6637051 | Q66: 0 | R66: 500000 | S66: 0 | T66: 311000 | U66: 0 | V66: 15000 | W66: 0 | X66: 50000 | Y66: 190000 | Z66: 0 | AA66: 0 | AB66: 0 | AC66: 50000 | AD66: 0 | AE66: 0 | AF66: 0 | AG66: 0 | AH66: 0 | AI66: 0 | AJ66: 0 | AK66: 7753051 | AL66: 4518255 | AM66: 30000 | AN66: 1096381 | AO66: 307973 | AP66: 497004 | AQ66: 134492 | AR66: 0 | AS66: 35000 | AT66: 10000 | AU66: 0 | AV66: 0 | AW66: 80000 | AX66: 30000 | AY66: 10000 | AZ66: 10000 | BA66: 131000 | BB66: 35289 | BC66: 25000 | BD66: 250000 | BE66: 0 | BF66: 0 | BG66: 0 | BH66: 0 | BI66: 0 | BJ66: 187400 | BK66: 0 | BL66: 0 | BM66: 90000 | BN66: 20000 | BO66: 37325 | BP66: 0 | BQ66: 140000 | BR66: 0 | BS66: 15000 | BT66: 60000 | BU66: 0 | BV66: 0 | BW66: 0 | BX66: 0 | BY66: 0 | BZ66: 7750119 | CB66: 19000 | CC66: 6322500 | CD66: 0 | CE66: 6341500 | CG66: 0 | CH66: 4105000 | CI66: 19000 | CJ66: 0 | CK66: 0 | CL66: 0 | CM66: 0 | CN66: 0 | CO66: 0 | CP66: 4124000 | CR66: 788907.29 | CS66: 0 | CT66: 0 | CU66: 2887974.38 | CV66: 0 | CW66: 0 | CX66: 3676881.67
A67: 942 | B67: 9162031 | C67: 2031 | E67: Longlevens Infants and Junior School from 01/04/2024 | I67: 498424.78 | J67: 16946 | K67: 0 | L67: 31574.07 | M67: 0 | N67: 20738.31 | O67: 567683.16 | P67: 4201748 | Q67: 0 | R67: 82582 | S67: 0 | T67: 160980 | U67: 177525 | V67: 0 | W67: 16000 | X67: 209500 | Y67: 0 | Z67: 0 | AA67: 0 | AB67: 86000 | AC67: 0 | AD67: 0 | AE67: 151560 | AF67: 20000 | AG67: 0 | AH67: 0 | AI67: 0 | AJ67: 0 | AK67: 5105895 | AL67: 2567280 | AM67: 19000 | AN67: 862649 | AO67: 146783 | AP67: 313182 | AQ67: 0 | AR67: 292631 | AS67: 18700 | AT67: 15500 | AU67: 2477 | AV67: 0 | AW67: 56233 | AX67: 7100 | AY67: 63050 | AZ67: 10150 | BA67: 60359 | BB67: 108683 | BC67: 11000 | BD67: 165528 | BE67: 0 | BF67: 5000 | BG67: 1000 | BH67: 2500 | BI67: 27080 | BJ67: 5000 | BK67: 0 | BL67: 19413 | BM67: 0 | BN67: 21000 | BO67: 38719 | BP67: 18600 | BQ67: 185742 | BR67: 22000 | BS67: 75243 | BT67: 39476 | BU67: 0 | BV67: 0 | BW67: 23999 | BX67: 146660 | BY67: 12600 | BZ67: 5364337 | CB67: 17270 | CC67: 0 | CD67: 23999 | CE67: 41269 | CG67: 0 | CH67: 38821 | CI67: 0 | CJ67: 0 | CK67: 0 | CL67: 0 | CM67: 10500 | CN67: 18522 | CO67: 5000 | CP67: 72843 | CR67: 244628.78 | CS67: 0 | CT67: 0 | CU67: 0.07 | CV67: 0 | CW67: 33038.31 | CX67: 277667.16
A68: 952 | B68: 9162002 | C68: 2002 | E68: Tredworth Junior School | I68: 352085.33 | J68: 7945.31 | K68: 0 | L68: -2575.25 | M68: 0 | N68: 0 | O68: 357455.39 | P68: 1997402 | Q68: 0 | R68: 104112 | S68: 0 | T68: 256040 | U68: 19111 | V68: 0 | W68: 0 | X68: 14367 | Y68: 0 | Z68: 0 | AA68: 0 | AB68: 4500 | AC68: 0 | AD68: 0 | AE68: 0 | AF68: 0 | AG68: 0 | AH68: 0 | AI68: 0 | AJ68: 0 | AK68: 2395532 | AL68: 1332965 | AM68: 15000 | AN68: 469231 | AO68: 51696 | AP68: 154114 | AQ68: 0 | AR68: 31457 | AS68: 10132 | AT68: 2987 | AU68: 952 | AV68: 0 | AW68: 29043 | AX68: 528 | AY68: 16789 | AZ68: 7352 | BA68: 31500 | BB68: 22705 | BC68: 7356 | BD68: 83057 | BE68: 0 | BF68: 2837 | BG68: 7000 | BH68: 8570 | BI68: 5412 | BJ68: 28090 | BK68: 0 | BL68: 9381 | BM68: 0 | BN68: 4864 | BO68: 16842 | BP68: 0 | BQ68: 94901 | BR68: 10000 | BS68: 66064 | BT68: 18565 | BU68: 0 | BV68: 0 | BW68: 3000 | BX68: 0 | BY68: 0 | BZ68: 2542390 | CB68: 7453 | CC68: 0 | CD68: 3000 | CE68: 10453 | CG68: 0 | CH68: 7878 | CI68: 0 | CJ68: 0 | CK68: 0 | CL68: 0 | CM68: 0 | CN68: 0 | CO68: 0 | CP68: 7878 | CR68: 213172.64 | CS68: 0 | CT68: 0 | CU68: -0.25 | CV68: 0 | CW68: 0 | CX68: 213172.39
A69: 805 | B69: 9162097 | C69: 2097 | E69: Uplands Community Primary School | I69: 44544.37 | J69: 0 | K69: 0 | L69: 11060.74 | M69: 11264.75 | N69: 45903.66 | O69: 112773.52 | P69: 641489 | Q69: 0 | R69: 74635 | S69: 0 | T69: 46745 | U69: 34565 | V69: 0 | W69: 0 | X69: 15750 | Y69: 0 | Z69: 0 | AA69: 0 | AB69: 1500 | AC69: 5000 | AD69: 0 | AE69: 67479 | AF69: 2827 | AG69: 0 | AH69: 0 | AI69: 0 | AJ69: 0 | AK69: 889990 | AL69: 407696 | AM69: 2000 | AN69: 206576 | AO69: 1834 | AP69: 58601 | AQ69: 0 | AR69: 22942 | AS69: 4069 | AT69: 5350 | AU69: 5179 | AV69: 1619 | AW69: 15583 | AX69: 1800 | AY69: 19330 | AZ69: 3475 | BA69: 13900 | BB69: 12475 | BC69: 2100 | BD69: 52934 | BE69: 0 | BF69: 2600 | BG69: 0 | BH69: 2800 | BI69: 0 | BJ69: 0 | BK69: 0 | BL69: 2782 | BM69: 0 | BN69: 2150 | BO69: 5668 | BP69: 0 | BQ69: 34628 | BR69: 4000 | BS69: 14612 | BT69: 10293 | BU69: 0 | BV69: 0 | BW69: 0 | BX69: 70667 | BY69: 13795 | BZ69: 1001458 | CB69: 5170 | CC69: 0 | CD69: 0 | CE69: 5170 | CG69: 0 | CH69: 27495 | CI69: 0 | CJ69: 0 | CK69: 0 | CL69: 0 | CM69: 0 | CN69: 0 | CO69: 0 | CP69: 27495 | CR69: -52767.63 | CS69: 0 | CT69: 0 | CU69: 0.49 | CV69: 0 | CW69: 31747.66 | CX69: -21019.48
A70: 726 | B70: 9165203 | C70: 5203 | E70: Picklenash Junior School | I70: 177167.75 | J70: 27664.79 | K70: 0 | L70: 19908.51 | M70: 0 | N70: 0 | O70: 224741.05 | P70: 1813685 | Q70: 0 | R70: 68234 | S70: 0 | T70: 138050 | U70: 72004 | V70: 0 | W70: 0 | X70: 20258 | Y70: 18000 | Z70: 0 | AA70: 0 | AB70: 18000 | AC70: 0 | AD70: 0 | AE70: 0 | AF70: 0 | AG70: 0 | AH70: 0 | AI70: 0 | AJ70: 0 | AK70: 2148231 | AL70: 960693 | AM70: 7500 | AN70: 433654 | AO70: 85202 | AP70: 86163 | AQ70: 69449 | AR70: 51493 | AS70: 758 | AT70: 6000 | AU70: 14370 | AV70: 3358 | AW70: 22899 | AX70: 7595 | AY70: 6164 | AZ70: 5150 | BA70: 25160 | BB70: 9742 | BC70: 3925 | BD70: 105246 | BE70: 0 | BF70: 2575 | BG70: 0 | BH70: 0 | BI70: 500 | BJ70: 4360 | BK70: 2000 | BL70: 9234 | BM70: 0 | BN70: 3424 | BO70: 16626 | BP70: 0 | BQ70: 27660 | BR70: 45000 | BS70: 59315 | BT70: 28444 | BU70: 0 | BV70: 0 | BW70: 0 | BX70: 0 | BY70: 0 | BZ70: 2103659 | CB70: 11679 | CC70: 0 | CD70: 0 | CE70: 11679 | CG70: 0 | CH70: 31588 | CI70: 0 | CJ70: 0 | CK70: 0 | CL70: 0 | CM70: 0 | CN70: 0 | CO70: 0 | CP70: 31588 | CR70: 249404.54 | CS70: 0 | CT70: 0 | CU70: -0.49 | CV70: 0 | CW70: 0 | CX70: 249404.05
A71: 906 | B71: 9163097 | C71: 3097 | E71: St John's Church of England Primary School | I71: 101994.62 | J71: 11330.74 | K71: 0 | L71: 3042.05 | M71: 0 | N71: 0 | O71: 116367.41 | P71: 1149156 | Q71: 0 | R71: 87981 | S71: 0 | T71: 58030 | U71: 45654 | V71: 0 | W71: 0 | X71: 0 | Y71: 0 | Z71: 0 | AA71: 0 | AB71: 7500 | AC71: 5100 | AD71: 0 | AE71: 0 | AF71: 0 | AG71: 0 | AH71: 0 | AI71: 0 | AJ71: 0 | AK71: 1353421 | AL71: 760879 | AM71: 5000 | AN71: 289905 | AO71: 40838 | AP71: 63335 | AQ71: 0 | AR71: 3649 | AS71: 4700 | AT71: 12510 | AU71: 604 | AV71: 6500 | AW71: 7088 | AX71: 362 | AY71: 2800 | AZ71: 4500 | BA71: 15250 | BB71: 17340 | BC71: 1500 | BD71: 86821 | BE71: 0 | BF71: 5250 | BG71: 0 | BH71: 1000 | BI71: 1900 | BJ71: 3000 | BK71: 0 | BL71: 5579 | BM71: 0 | BN71: 3600 | BO71: 11588 | BP71: 0 | BQ71: 51932 | BR71: 5000 | BS71: 24183 | BT71: 15217 | BU71: 0 | BV71: 0 | BW71: 0 | BX71: 0 | BY71: 0 | BZ71: 1451830 | CB71: 6228 | CC71: 0 | CD71: 0 | CE71: 6228 | CG71: 0 | CH71: 6228 | CI71: 0 | CJ71: 0 | CK71: 0 | CL71: 0 | CM71: 0 | CN71: 3042 | CO71: 0 | CP71: 9270 | CR71: 14916.36 | CS71: 0 | CT71: 0 | CU71: 0.05 | CV71: 0 | CW71: 0 | CX71: 14916.41
A72: 529 | B72: 9162172 | C72: 2172 | E72: Abbeymead Primary School | I72: 76255.4 | J72: 26165 | K72: 0 | L72: 2402.17 | M72: 0 | N72: 0 | O72: 104822.57 | P72: 2170213 | Q72: 0 | R72: 137177 | S72: 0 | T72: 85455 | U72: 83931 | V72: 0 | W72: 15000 | X72: 17000 | Y72: 0 | Z72: 0 | AA72: 0 | AB72: 0 | AC72: 0 | AD72: 0 | AE72: 0 | AF72: 0 | AG72: 0 | AH72: 0 | AI72: 0 | AJ72: 0 | AK72: 2508776 | AL72: 1441368 | AM72: 21600 | AN72: 493354 | AO72: 92001 | AP72: 153029 | AQ72: 0 | AR72: 90442 | AS72: 11378 | AT72: 5100 | AU72: 3401 | AV72: 530 | AW72: 20359 | AX72: 3500 | AY72: 8000 | AZ72: 13553 | BA72: 46000 | BB72: 49721 | BC72: 7700 | BD72: 60083 | BE72: 0 | BF72: 5100 | BG72: 0 | BH72: 14500 | BI72: 1846 | BJ72: 0 | BK72: 0 | BL72: 3780 | BM72: 0 | BN72: 4075 | BO72: 19148 | BP72: 0 | BQ72: 83214 | BR72: 4400 | BS72: 21099 | BT72: 19887 | BU72: 0 | BV72: 0 | BW72: 0 | BX72: 0 | BY72: 0 | BZ72: 2698168 | CB72: 9051 | CC72: 0 | CD72: 0 | CE72: 9051 | CG72: 0 | CH72: 11453 | CI72: 0 | CJ72: 0 | CK72: 0 | CL72: 0 | CM72: 0 | CN72: 0 | CO72: 0 | CP72: 11453 | CR72: -86971.6 | CS72: 0 | CT72: 0 | CU72: 0.17 | CV72: 0 | CW72: 0 | CX72: -86971.43
A73: 730 | B73: 9163056 | C73: 3056 | E73: Northleach Church of England Primary School | I73: -125912.35 | J73: 13720.24 | K73: 0 | L73: 8001.58 | M73: 0 | N73: 0 | O73: -104190.53 | P73: 725158 | Q73: 0 | R73: 12694 | S73: 0 | T73: 29600 | U73: 32441 | V73: 0 | W73: 0 | X73: 20700 | Y73: 1500 | Z73: 0 | AA73: 0 | AB73: 7000 | AC73: 0 | AD73: 0 | AE73: 0 | AF73: 0 | AG73: 0 | AH73: 0 | AI73: 0 | AJ73: 0 | AK73: 829093 | AL73: 471518 | AM73: 5000 | AN73: 96492 | AO73: 36085 | AP73: 50468 | AQ73: 0 | AR73: 38687 | AS73: 3000 | AT73: 4900 | AU73: 3983 | AV73: 0 | AW73: 11360 | AX73: 3428 | AY73: 4700 | AZ73: 4000 | BA73: 25000 | BB73: 22206 | BC73: 300 | BD73: 30116 | BE73: 0 | BF73: 3000 | BG73: 0 | BH73: 5500 | BI73: 7000 | BJ73: 0 | BK73: 0 | BL73: 3707 | BM73: 0 | BN73: 5000 | BO73: 6208 | BP73: 0 | BQ73: 26473 | BR73: 5000 | BS73: 21284 | BT73: 11323 | BU73: 0 | BV73: 0 | BW73: 0 | BX73: 0 | BY73: 0 | BZ73: 905738 | CB73: 5350 | CC73: 0 | CD73: 0 | CE73: 5350 | CG73: 0 | CH73: 13352 | CI73: 0 | CJ73: 0 | CK73: 0 | CL73: 0 | CM73: 0 | CN73: 0 | CO73: 0 | CP73: 13352 | CR73: -188837.11 | CS73: 0 | CT73: 0 | CU73: -0.42 | CV73: 0 | CW73: 0 | CX73: -188837.53
A74: 816 | B74: 9162179 | C74: 2179 | E74: Meadowside Primary School | I74: -24141.74 | J74: 11525.89 | K74: 0 | L74: 2455.15 | M74: 0 | N74: 0 | O74: -10160.7 | P74: 1134135 | Q74: 0 | R74: 48963 | S74: 0 | T74: 38190 | U74: 50893 | V74: 0 | W74: 1950 | X74: -7750 | Y74: 0 | Z74: 0 | AA74: 0 | AB74: 0 | AC74: 0 | AD74: 0 | AE74: 0 | AF74: 0 | AG74: 0 | AH74: 0 | AI74: 0 | AJ74: 0 | AK74: 1266381 | AL74: 648913 | AM74: 19000 | AN74: 225844 | AO74: 44652 | AP74: 50967 | AQ74: 0 | AR74: 29908 | AS74: 5141 | AT74: 3200 | AU74: 3300 | AV74: 666 | AW74: 7448 | AX74: 3000 | AY74: 3315 | AZ74: 1925 | BA74: 18247 | BB74: 38185 | BC74: 3095 | BD74: 37362 | BE74: 0 | BF74: 2900 | BG74: 0 | BH74: 2500 | BI74: 1089 | BJ74: 0 | BK74: 1200 | BL74: 5500 | BM74: 0 | BN74: 4105 | BO74: 11282 | BP74: 0 | BQ74: 46303 | BR74: 1000 | BS74: 24095 | BT74: 26714 | BU74: 0 | BV74: 0 | BW74: 0 | BX74: 0 | BY74: 0 | BZ74: 1270856 | CB74: 6363 | CC74: 0 | CD74: 0 | CE74: 6363 | CG74: 0 | CH74: 6363 | CI74: 0 | CJ74: 0 | CK74: 0 | CL74: 0 | CM74: 0 | CN74: 2455 | CO74: 0 | CP74: 8818 | CR74: -17090.85 | CS74: 0 | CT74: 0 | CU74: 0.15 | CV74: 0 | CW74: 0 | CX74: -17090.7
A75: 769 | B75: 9163344 | C75: 3344 | E75: St Briavels Parochial Church of England Primary School | I75: 125593.75 | J75: 13250.74 | K75: 0 | L75: 550.66 | M75: 0 | N75: 25289 | O75: 164684.15 | P75: 1085996 | Q75: 0 | R75: 33934 | S75: 0 | T75: 29850 | U75: 60665 | V75: 0 | W75: 0 | X75: 20400 | Y75: 13000 | Z75: 0 | AA75: 0 | AB75: 10000 | AC75: 0 | AD75: 0 | AE75: 60000 | AF75: 15000 | AG75: 0 | AH75: 0 | AI75: 0 | AJ75: 0 | AK75: 1328845 | AL75: 643853 | AM75: 15000 | AN75: 229152 | AO75: 30463 | AP75: 79605 | AQ75: 37864 | AR75: 41316 | AS75: 1250 | AT75: 5200 | AU75: 485 | AV75: 0 | AW75: 23858 | AX75: 3222 | AY75: 11050 | AZ75: 4027 | BA75: 25000 | BB75: 5190 | BC75: 5875 | BD75: 48676 | BE75: 0 | BF75: 5000 | BG75: 0 | BH75: 0 | BI75: 1500 | BJ75: 14180 | BK75: 0 | BL75: 13343 | BM75: 0 | BN75: 9805 | BO75: 8583 | BP75: 0 | BQ75: 36914 | BR75: 0 | BS75: 30135 | BT75: 16156 | BU75: 0 | BV75: 0 | BW75: 2840 | BX75: 95011 | BY75: 5231 | BZ75: 1449784 | CB75: 4371 | CC75: 0 | CD75: 0 | CE75: 4371 | CG75: 0 | CH75: 4922 | CI75: 0 | CJ75: 0 | CK75: 0 | CL75: 0 | CM75: 0 | CN75: 0 | CO75: 0 | CP75: 4922 | CR75: 43147.49 | CS75: 0 | CT75: 0 | CU75: -0.34 | CV75: 0 | CW75: 47 | CX75: 43194.15
A76: 532 | B76: 9165205 | C76: 5205 | E76: Andoversford Primary School | I76: -16717.65 | J76: 0 | K76: 0 | L76: 1.818989404e-12 | M76: 0 | N76: 0 | O76: -16717.65 | P76: 521210 | Q76: 0 | R76: 9563 | S76: 0 | T76: 19645 | U76: 29115 | V76: 0 | W76: 0 | X76: 39517 | Y76: 0 | Z76: 0 | AA76: 0 | AB76: 0 | AC76: 250 | AD76: 0 | AE76: 14500 | AF76: 8610 | AG76: 0 | AH76: 0 | AI76: 0 | AJ76: 0 | AK76: 642410 | AL76: 331274 | AM76: 0 | AN76: 91190 | AO76: 0 | AP76: 37623 | AQ76: 0 | AR76: 18497 | AS76: 100 | AT76: 2125 | AU76: 3963 | AV76: 0 | AW76: 8514 | AX76: 4688 | AY76: 23480 | AZ76: 1700 | BA76: 15750 | BB76: 1896 | BC76: 2750 | BD76: 35959 | BE76: 0 | BF76: 3100 | BG76: 0 | BH76: 0 | BI76: 0 | BJ76: 0 | BK76: 0 | BL76: 8402 | BM76: 0 | BN76: 3950 | BO76: 2212 | BP76: 0 | BQ76: 21793 | BR76: 8000 | BS76: 17811 | BT76: 29606 | BU76: 0 | BV76: 0 | BW76: 0 | BX76: 19875 | BY76: 3235 | BZ76: 697493 | CB76: 4821 | CC76: 0 | CD76: 0 | CE76: 4821 | CG76: 0 | CH76: 4821 | CI76: 0 | CJ76: 0 | CK76: 0 | CL76: 0 | CM76: 0 | CN76: 0 | CO76: 0 | CP76: 4821 | CR76: -71800.65 | CS76: 0 | CT76: 0 | CU76: 1.818989404e-12 | CV76: 0 | CW76: 0 | CX76: -71800.65
A77: 853 | B77: 9163353 | C77: 3353 | E77: Woodchester Endowed Church of England Aided Primary School | I77: 76061.65 | J77: 13130.98 | K77: 0 | L77: 0 | M77: 0 | N77: 0 | O77: 89192.63 | P77: 741737 | Q77: 0 | R77: 7846 | S77: 0 | T77: 13575 | U77: 39450 | V77: 0 | W77: 500 | X77: 0 | Y77: 0 | Z77: 0 | AA77: 0 | AB77: 8500 | AC77: 0 | AD77: 0 | AE77: 0 | AF77: 0 | AG77: 0 | AH77: 0 | AI77: 0 | AJ77: 0 | AK77: 811608 | AL77: 425506 | AM77: 9800 | AN77: 144095 | AO77: 500 | AP77: 48608 | AQ77: 0 | AR77: 22694 | AS77: 0 | AT77: 3715 | AU77: 6715 | AV77: 1327 | AW77: 5395 | AX77: 3562 | AY77: 15800 | AZ77: 2000 | BA77: 10000 | BB77: 2620 | BC77: 2200 | BD77: 48757 | BE77: 0 | BF77: 0 | BG77: 0 | BH77: 1500 | BI77: 0 | BJ77: 1625 | BK77: 0 | BL77: 0 | BM77: 0 | BN77: 4928 | BO77: 2250 | BP77: 7341 | BQ77: 0 | BR77: 22996 | BS77: 18033 | BT77: 17265 | BU77: 0 | BV77: 0 | BW77: 3779 | BX77: 0 | BY77: 0 | BZ77: 833011 | CB77: 0 | CC77: 0 | CD77: 3779 | CE77: 3779 | CG77: 0 | CH77: 3779 | CI77: 0 | CJ77: 0 | CK77: 0 | CL77: 0 | CM77: 0 | CN77: 0 | CO77: 0 | CP77: 3779 | CR77: 67789.63 | CS77: 0 | CT77: 0 | CU77: 0 | CV77: 0 | CW77: 0 | CX77: 67789.63
A78: 787 | B78: 9163070 | C78: 3070 | E78: Southrop Church of England Primary School | I78: -14098.18 | J78: 10314.24 | K78: 0 | L78: 8655.75 | M78: 0 | N78: 0 | O78: 4871.81 | P78: 379564 | Q78: 0 | R78: 35294 | S78: 0 | T78: 17270 | U78: 21248 | V78: 0 | W78: 0 | X78: 7500 | Y78: 0 | Z78: 0 | AA78: 0 | AB78: 12000 | AC78: 2000 | AD78: 0 | AE78: 0 | AF78: 0 | AG78: 0 | AH78: 0 | AI78: 0 | AJ78: 0 | AK78: 474876 | AL78: 284913 | AM78: 6000 | AN78: 69106 | AO78: 0 | AP78: 21209 | AQ78: 0 | AR78: 19070 | AS78: 2643 | AT78: 2500 | AU78: 113 | AV78: 0 | AW78: 4901 | AX78: 1100 | AY78: 8961 | AZ78: 484 | BA78: 3885 | BB78: 2844 | BC78: 3536 | BD78: 27147 | BE78: 0 | BF78: 0 | BG78: 0 | BH78: 583 | BI78: 2500 | BJ78: 1545 | BK78: 0 | BL78: 0 | BM78: 0 | BN78: 11551 | BO78: 1052 | BP78: 1997 | BQ78: 0 | BR78: 8844 | BS78: 7680 | BT78: 15541 | BU78: 0 | BV78: 0 | BW78: 0 | BX78: 0 | BY78: 0 | BZ78: 509705 | CB78: 4416 | CC78: 0 | CD78: 0 | CE78: 4416 | CG78: 0 | CH78: 13072 | CI78: 0 | CJ78: 0 | CK78: 0 | CL78: 0 | CM78: 0 | CN78: 0 | CO78: 0 | CP78: 13072 | CR78: -38612.94 | CS78: 0 | CT78: 0 | CU78: -0.25 | CV78: 0 | CW78: 0 | CX78: -38613.19
A79: 682 | B79: 9163042 | C79: 3042 | E79: Kempsford Church of England Primary School | I79: 98684.15 | J79: 15269.6 | K79: 0 | L79: 13339.53 | M79: 0 | N79: 24927.5 | O79: 152220.78 | P79: 558167 | Q79: 0 | R79: 22600 | S79: 0 | T79: 20645 | U79: 24348 | V79: 0 | W79: 0 | X79: 36267 | Y79: -55 | Z79: 0 | AA79: 0 | AB79: 0 | AC79: 0 | AD79: 0 | AE79: 18000 | AF79: 4000 | AG79: 0 | AH79: 0 | AI79: 0 | AJ79: 0 | AK79: 683972 | AL79: 328409 | AM79: 0 | AN79: 149651 | AO79: 6056 | AP79: 34497 | AQ79: 0 | AR79: 19361 | AS79: 2300 | AT79: 6000 | AU79: 1220 | AV79: 0 | AW79: 10797 | AX79: 1000 | AY79: 15564 | AZ79: 2000 | BA79: 16500 | BB79: 16342 | BC79: 5575 | BD79: 21172 | BE79: 0 | BF79: 0 | BG79: 0 | BH79: 2000 | BI79: 0 | BJ79: 0 | BK79: 1500 | BL79: 0 | BM79: 0 | BN79: 6290 | BO79: 4600 | BP79: 3886 | BQ79: 0 | BR79: 13175 | BS79: 3000 | BT79: 16902 | BU79: 0 | BV79: 0 | BW79: 0 | BX79: 0 | BY79: 25000 | BZ79: 712797 | CB79: 4884 | CC79: 0 | CD79: 0 | CE79: 4884 | CG79: 0 | CH79: 18224 | CI79: 0 | CJ79: 0 | CK79: 0 | CL79: 0 | CM79: 0 | CN79: 0 | CO79: 0 | CP79: 18224 | CR79: 88128.75 | CS79: 0 | CT79: 0 | CU79: -0.47 | CV79: 0 | CW79: 21927.5 | CX79: 110055.78
A80: 598 | B80: 9162051 | C80: 2051 | E80: Churcham Primary School | I80: 317554.07 | J80: 18974.77 | K80: 0 | L80: 5598.83 | M80: 0 | N80: 0 | O80: 342127.67 | P80: 439643 | Q80: 0 | R80: 15437 | S80: 0 | T80: 18180 | U80: 23048 | V80: 0 | W80: 0 | X80: 6000 | Y80: 0 | Z80: 0 | AA80: 0 | AB80: 500 | AC80: 0 | AD80: 0 | AE80: 0 | AF80: 0 | AG80: 0 | AH80: 0 | AI80: 0 | AJ80: 0 | AK80: 502808 | AL80: 229544 | AM80: 10000 | AN80: 91639 | AO80: 0 | AP80: 36378 | AQ80: 0 | AR80: 8994 | AS80: 1750 | AT80: 3360 | AU80: 3108 | AV80: 743 | AW80: 9141 | AX80: 3362 | AY80: 15752 | AZ80: 1200 | BA80: 10000 | BB80: 3923 | BC80: 11031 | BD80: 43649 | BE80: 0 | BF80: 2500 | BG80: 0 | BH80: 900 | BI80: 253 | BJ80: 0 | BK80: 0 | BL80: 3490 | BM80: 0 | BN80: 1940 | BO80: 2430 | BP80: 0 | BQ80: 13072 | BR80: 2000 | BS80: 8465 | BT80: 12545 | BU80: 0 | BV80: 0 | BW80: 0 | BX80: 0 | BY80: 0 | BZ80: 531169 | CB80: 4562 | CC80: 0 | CD80: 0 | CE80: 4562 | CG80: 0 | CH80: 10161 | CI80: 0 | CJ80: 0 | CK80: 0 | CL80: 0 | CM80: 0 | CN80: 0 | CO80: 0 | CP80: 10161 | CR80: 308167.84 | CS80: 0 | CT80: 0 | CU80: -0.17 | CV80: 0 | CW80: 0 | CX80: 308167.67
A81: 749 | B81: 9163060 | C81: 3060 | E81: Pauntley Church of England Primary School | I81: 203868.64 | J81: 7807.1 | K81: 0 | L81: 4322.13 | M81: 0 | N81: 0.36 | O81: 215998.23 | P81: 344352 | Q81: 0 | R81: 10481 | S81: 0 | T81: 7575 | U81: 20725 | V81: 0 | W81: 0 | X81: 9953 | Y81: 0 | Z81: 0 | AA81: 0 | AB81: 0 | AC81: 0 | AD81: 0 | AE81: 0 | AF81: 0 | AG81: 0 | AH81: 0 | AI81: 0 | AJ81: 0 | AK81: 393086 | AL81: 179925 | AM81: 0 | AN81: 51352 | AO81: 13673 | AP81: 32242 | AQ81: 11415 | AR81: 3847 | AS81: 1435 | AT81: 2060 | AU81: 1318 | AV81: 0 | AW81: 5149 | AX81: 2976 | AY81: 1501 | AZ81: 350 | BA81: 11620 | BB81: 7353 | BC81: 463 | BD81: 37691 | BE81: 0 | BF81: 5150 | BG81: 0 | BH81: 0 | BI81: 0 | BJ81: 0 | BK81: 0 | BL81: 2790 | BM81: 0 | BN81: 2130 | BO81: 577 | BP81: 0 | BQ81: 710 | BR81: 15000 | BS81: 2190 | BT81: 19971 | BU81: 0 | BV81: 0 | BW81: 0 | BX81: 0 | BY81: 0 | BZ81: 412888 | CB81: 4349 | CC81: 0 | CD81: 0 | CE81: 4349 | CG81: 0 | CH81: 8671 | CI81: 0 | CJ81: 0 | CK81: 0 | CL81: 0 | CM81: 0 | CN81: 0 | CO81: 0 | CP81: 8671 | CR81: 191873.74 | CS81: 0 | CT81: 0 | CU81: 0.13 | CV81: 0 | CW81: 0.36 | CX81: 191874.23
A82: 763 | B82: 9162123 | C82: 2123 | E82: Rodborough Community Primary School | I82: 45300.87 | J82: -2556 | K82: 0 | L82: 7420.77 | M82: 0 | N82: 0 | O82: 50165.64 | P82: 933059 | Q82: 0 | R82: 59620 | S82: 0 | T82: 26005 | U82: 48999 | V82: 0 | W82: 0 | X82: 10900 | Y82: 1800 | Z82: 0 | AA82: 0 | AB82: 0 | AC82: 31850 | AD82: 0 | AE82: 0 | AF82: 0 | AG82: 0 | AH82: 0 | AI82: 0 | AJ82: 0 | AK82: 1112233 | AL82: 639900 | AM82: 32880 | AN82: 194573 | AO82: 24700 | AP82: 73200 | AQ82: 0 | AR82: 35200 | AS82: 3842 | AT82: 4325 | AU82: 3649 | AV82: 500 | AW82: 13547 | AX82: 15295 | AY82: 3507 | AZ82: 3726 | BA82: 20600 | BB82: 11352 | BC82: 9602 | BD82: 37277 | BE82: 0 | BF82: 2740 | BG82: 0 | BH82: 11192 | BI82: 7270 | BJ82: 25000 | BK82: 500 | BL82: 5880 | BM82: 0 | BN82: 3231 | BO82: 9716 | BP82: 0 | BQ82: 37804 | BR82: 3200 | BS82: 35104 | BT82: 12718 | BU82: 0 | BV82: 0 | BW82: 0 | BX82: 0 | BY82: 0 | BZ82: 1282030 | CB82: 6025 | CC82: 0 | CD82: 0 | CE82: 6025 | CG82: 0 | CH82: 13446 | CI82: 0 | CJ82: 0 | CK82: 0 | CL82: 0 | CM82: 0 | CN82: 0 | CO82: 0 | CP82: 13446 | CR82: -127052.13 | CS82: 0 | CT82: 0 | CU82: -0.23 | CV82: 0 | CW82: 0 | CX82: -127052.36
A83: 855 | B83: 9165204 | C83: 5204 | E83: Blue Coat CofE Primary School | I83: 190534.05 | J83: 0 | K83: 0 | L83: 0 | M83: 0 | N83: 0 | O83: 190534.05 | P83: 1561125.2 | Q83: 0 | R83: 73002 | S83: 0 | T83: 54283.68 | U83: 108042.78 | V83: 17175 | W83: 11498 | X83: 3936 | Y83: 0 | Z83: 0 | AA83: 0 | AB83: 0 | AC83: 6000 | AD83: 0 | AE83: 0 | AF83: 0 | AG83: 0 | AH83: 0 | AI83: 0 | AJ83: 0 | AK83: 1835062.66 | AL83: 1011519.56 | AM83: 10905 | AN83: 287759.01 | AO83: 86209.86 | AP83: 124512.97 | AQ83: 0 | AR83: 49684.38 | AS83: 1202 | AT83: 0 | AU83: 7454.65 | AV83: 8202 | AW83: 13950 | AX83: 5920 | AY83: 6000 | AZ83: 5680 | BA83: 12610 | BB83: 10210 | BC83: 6143.8 | BD83: 27829 | BE83: 0 | BF83: 5800 | BG83: 1250 | BH83: 3598 | BI83: 6489.31 | BJ83: 7300 | BK83: 350 | BL83: 4811 | BM83: 0 | BN83: 6125 | BO83: 15049 | BP83: 0 | BQ83: 70849 | BR83: 4000 | BS83: 9660 | BT83: 21243 | BU83: 0 | BV83: 0 | BW83: 0 | BX83: 0 | BY83: 0 | BZ83: 1832316.54 | CB83: 0 | CC83: 0 | CD83: 0 | CE83: 0 | CG83: 0 | CH83: 0 | CI83: 0 | CJ83: 0 | CK83: 0 | CL83: 0 | CM83: 0 | CN83: 0 | CO83: 0 | CP83: 0 | CR83: 193280.17 | CS83: 0 | CT83: 0 | CU83: 0 | CV83: 0 | CW83: 0 | CX83: 193280.17
A84: 891 | B84: 9162151 | C84: 2151 | E84: Greatfield Park Primary School | I84: 43472.33 | J84: 13444.18 | K84: 0 | L84: 2864.26 | M84: 0 | N84: 0 | O84: 59780.77 | P84: 1025365 | Q84: 0 | R84: 86005 | S84: 0 | T84: 73700 | U84: 48413 | V84: 0 | W84: 6000 | X84: 6000 | Y84: 0 | Z84: 0 | AA84: 0 | AB84: 0 | AC84: 0 | AD84: 0 | AE84: 0 | AF84: 0 | AG84: 0 | AH84: 0 | AI84: 0 | AJ84: 0 | AK84: 1245483 | AL84: 687951 | AM84: 25000 | AN84: 256473 | AO84: 6328 | AP84: 84565 | AQ84: 0 | AR84: 28551 | AS84: 5555 | AT84: 2300 | AU84: 570 | AV84: 0 | AW84: 17179 | AX84: 5285 | AY84: 26359 | AZ84: 5990 | BA84: 16905 | BB84: 24825 | BC84: 1950 | BD84: 52451 | BE84: 0 | BF84: 2900 | BG84: 0 | BH84: 0 | BI84: 400 | BJ84: 600 | BK84: 0 | BL84: 3800 | BM84: 0 | BN84: 5506 | BO84: 10094 | BP84: 0 | BQ84: 47912 | BR84: 5000 | BS84: 19764 | BT84: 15980 | BU84: 0 | BV84: 0 | BW84: 0 | BX84: 0 | BY84: 0 | BZ84: 1360193 | CB84: 6565 | CC84: 0 | CD84: 0 | CE84: 6565 | CG84: 0 | CH84: 9429 | CI84: 0 | CJ84: 0 | CK84: 0 | CL84: 0 | CM84: 0 | CN84: 0 | CO84: 0 | CP84: 9429 | CR84: -57793.49 | CS84: 0 | CT84: 0 | CU84: 0.26 | CV84: 0 | CW84: 0 | CX84: -57793.23
A85: 645 | B85: 9163035 | C85: 3035 | E85: Fairford Church of England Primary School | I85: 107386.97 | J85: 4375.89 | K85: 0 | L85: 17081.31 | M85: 0 | N85: 0 | O85: 128844.17 | P85: 1659979 | Q85: 0 | R85: 65301 | S85: 0 | T85: 75080 | U85: 103704 | V85: 33519 | W85: 3500 | X85: 80212 | Y85: 0 | Z85: 5940 | AA85: 0 | AB85: 42000 | AC85: 0 | AD85: 0 | AE85: 215000 | AF85: 36717 | AG85: 0 | AH85: 0 | AI85: 0 | AJ85: 0 | AK85: 2320952 | AL85: 993394 | AM85: 1500 | AN85: 462661 | AO85: 12261 | AP85: 104644 | AQ85: 0 | AR85: 99596 | AS85: 10225 | AT85: 4250 | AU85: 9760 | AV85: 0 | AW85: 27811 | AX85: 4876 | AY85: 51177 | AZ85: 8000 | BA85: 33000 | BB85: 53585 | BC85: 7325 | BD85: 78005 | BE85: 0 | BF85: 5328 | BG85: 0 | BH85: 7718 | BI85: 11335 | BJ85: 2000 | BK85: 0 | BL85: 21297 | BM85: 0 | BN85: 5286 | BO85: 17166 | BP85: 29052 | BQ85: 70650 | BR85: 1500 | BS85: 35258 | BT85: 27065 | BU85: 0 | BV85: 0 | BW85: 0 | BX85: 212670 | BY85: 39047 | BZ85: 2447442 | CB85: 10078 | CC85: 0 | CD85: 0 | CE85: 10078 | CG85: 0 | CH85: 27159 | CI85: 0 | CJ85: 0 | CK85: 0 | CL85: 0 | CM85: 0 | CN85: 0 | CO85: 0 | CP85: 27159 | CR85: -14727.14 | CS85: 0 | CT85: 0 | CU85: 0.31 | CV85: 0 | CW85: 0 | CX85: -14726.83
A86: 717 | B86: 9162081 | C86: 2081 | E86: Mickleton Primary School | I86: 127814.63 | J86: 16387.19 | K86: 0 | L86: 2723.09 | M86: 0 | N86: 0 | O86: 146924.91 | P86: 1091708 | Q86: 0 | R86: 67606 | S86: 0 | T86: 62815 | U86: 46142 | V86: 0 | W86: 0 | X86: 34000 | Y86: 0 | Z86: 0 | AA86: 0 | AB86: 7000 | AC86: 500 | AD86: 0 | AE86: 0 | AF86: 0 | AG86: 0 | AH86: 0 | AI86: 0 | AJ86: 0 | AK86: 1309771 | AL86: 705285 | AM86: 11000 | AN86: 284499 | AO86: 29999 | AP86: 39345 | AQ86: 0 | AR86: 0 | AS86: 5801 | AT86: 8785 | AU86: 4595 | AV86: 0 | AW86: 19582 | AX86: 9667 | AY86: 3000 | AZ86: 5000 | BA86: 17500 | BB86: 28938 | BC86: 3600 | BD86: 61912 | BE86: 0 | BF86: 3300 | BG86: 0 | BH86: 6000 | BI86: 2550 | BJ86: 2000 | BK86: 0 | BL86: 5363 | BM86: 0 | BN86: 1850 | BO86: 10526 | BP86: 0 | BQ86: 51749 | BR86: 500 | BS86: 42074 | BT86: 25101 | BU86: 0 | BV86: 0 | BW86: 0 | BX86: 0 | BY86: 0 | BZ86: 1389521 | CB86: 6222 | CC86: 0 | CD86: 0 | CE86: 6222 | CG86: 0 | CH86: 6222 | CI86: 0 | CJ86: 0 | CK86: 0 | CL86: 0 | CM86: 0 | CN86: 0 | CO86: 2723 | CP86: 8945 | CR86: 64451.82 | CS86: 0 | CT86: 0 | CU86: 0.09 | CV86: 0 | CW86: 0 | CX86: 64451.91
A87: 667 | B87: 9163041 | C87: 3041 | E87: Hatherop Church of England Primary School | I87: 86482.25 | J87: 3084 | K87: 0 | L87: 13944.87 | M87: 0 | N87: 0 | O87: 103511.12 | P87: 568155 | Q87: 0 | R87: 9563 | S87: 0 | T87: 12820 | U87: 31911 | V87: 0 | W87: 0 | X87: 19000 | Y87: 0 | Z87: 0 | AA87: 0 | AB87: 6000 | AC87: 0 | AD87: 0 | AE87: 0 | AF87: 0 | AG87: 0 | AH87: 0 | AI87: 0 | AJ87: 0 | AK87: 647449 | AL87: 326289 | AM87: 11980 | AN87: 94724 | AO87: 9305 | AP87: 39740 | AQ87: 0 | AR87: 23151 | AS87: 2000 | AT87: 5600 | AU87: 1529 | AV87: 317 | AW87: 11247 | AX87: 3944 | AY87: 21764 | AZ87: 1400 | BA87: 15000 | BB87: 8234 | BC87: 4000 | BD87: 22481 | BE87: 0 | BF87: 2800 | BG87: 0 | BH87: 7900 | BI87: 0 | BJ87: 0 | BK87: 0 | BL87: 5147 | BM87: 0 | BN87: 3600 | BO87: 4643 | BP87: 0 | BQ87: 20017 | BR87: 1800 | BS87: 5620 | BT87: 9453 | BU87: 0 | BV87: 0 | BW87: 0 | BX87: 0 | BY87: 0 | BZ87: 663685 | CB87: 4900 | CC87: 0 | CD87: 0 | CE87: 4900 | CG87: 0 | CH87: 18845 | CI87: 0 | CJ87: 0 | CK87: 0 | CL87: 0 | CM87: 0 | CN87: 0 | CO87: 0 | CP87: 18845 | CR87: 73330.25 | CS87: 0 | CT87: 0 | CU87: -0.13 | CV87: 0 | CW87: 0 | CX87: 73330.12
A88: 640 | B88: 9162107 | C88: 2107 | E88: Ellwood Primary School | I88: 115357.34 | J88: 5087.55 | K88: 0 | L88: 1859.25 | M88: 0 | N88: 0 | O88: 122304.14 | P88: 821509 | Q88: 0 | R88: 10581 | S88: 0 | T88: 52940 | U88: 38013 | V88: 0 | W88: 0 | X88: 5500 | Y88: 0 | Z88: 0 | AA88: 0 | AB88: 11652 | AC88: 6500 | AD88: 0 | AE88: 0 | AF88: 0 | AG88: 0 | AH88: 0 | AI88: 0 | AJ88: 0 | AK88: 946695 | AL88: 529767 | AM88: 11000 | AN88: 154763 | AO88: 22005 | AP88: 46232 | AQ88: 0 | AR88: 20805 | AS88: 4700 | AT88: 9900 | AU88: 424 | AV88: 0 | AW88: 16909 | AX88: 4935 | AY88: 2750 | AZ88: 5000 | BA88: 12000 | BB88: 14222 | BC88: 3250 | BD88: 40871 | BE88: 0 | BF88: 0 | BG88: 0 | BH88: 4000 | BI88: 0 | BJ88: 5250 | BK88: 5500 | BL88: 1000 | BM88: 0 | BN88: 6460 | BO88: 15500 | BP88: 7503 | BQ88: 0 | BR88: 37645 | BS88: 9555 | BT88: 14723 | BU88: 0 | BV88: 0 | BW88: 0 | BX88: 0 | BY88: 0 | BZ88: 1006669 | CB88: 5553 | CC88: 0 | CD88: 0 | CE88: 5553 | CG88: 0 | CH88: 7412 | CI88: 0 | CJ88: 0 | CK88: 0 | CL88: 0 | CM88: 0 | CN88: 0 | CO88: 0 | CP88: 7412 | CR88: 60470.89 | CS88: 0 | CT88: 0 | CU88: 0.25 | CV88: 0 | CW88: 0 | CX88: 60471.14
A89: 633 | B89: 9162044 | C89: 2044 | E89: Eastcombe Primary School | I89: 122424.21 | J89: 38953.86 | K89: 0 | L89: 16965.71 | M89: 0 | N89: 0 | O89: 178343.78 | P89: 410238 | Q89: 0 | R89: 9563 | S89: 0 | T89: 10360 | U89: 19997 | V89: 0 | W89: 0 | X89: 7000 | Y89: 0 | Z89: 0 | AA89: 0 | AB89: 0 | AC89: 0 | AD89: 0 | AE89: 0 | AF89: 0 | AG89: 0 | AH89: 0 | AI89: 0 | AJ89: 0 | AK89: 457158 | AL89: 288249 | AM89: 1900 | AN89: 87854 | AO89: 0 | AP89: 31182 | AQ89: 0 | AR89: 26325 | AS89: 2358 | AT89: 2040 | AU89: 1950 | AV89: 0 | AW89: 2888 | AX89: 0 | AY89: 8100 | AZ89: 800 | BA89: 6200 | BB89: 4192 | BC89: 1550 | BD89: 32448 | BE89: 0 | BF89: 1400 | BG89: 0 | BH89: 0 | BI89: 0 | BJ89: 0 | BK89: 0 | BL89: 790 | BM89: 0 | BN89: 1010 | BO89: 2807 | BP89: 0 | BQ89: 8991 | BR89: 600 | BS89: 4420 | BT89: 10210 | BU89: 0 | BV89: 0 | BW89: 0 | BX89: 0 | BY89: 0 | BZ89: 528264 | CB89: 4551 | CC89: 0 | CD89: 0 | CE89: 4551 | CG89: 0 | CH89: 21517 | CI89: 0 | CJ89: 0 | CK89: 0 | CL89: 0 | CM89: 0 | CN89: 0 | CO89: 0 | CP89: 21517 | CR89: 90272.07 | CS89: 0 | CT89: 0 | CU89: -0.29 | CV89: 0 | CW89: 0 | CX89: 90271.78
A90: 907 | B90: 9163363 | C90: 3363 | E90: St Mark's Church of England Junior School | I90: -41995.97 | J90: 4525.31 | K90: 0 | L90: 0 | M90: 0 | N90: 0 | O90: -37470.66 | P90: 1224970 | Q90: 0 | R90: 73143 | S90: 0 | T90: 54090 | U90: 18350 | V90: 1000 | W90: 0 | X90: 17500 | Y90: 0 | Z90: 0 | AA90: 0 | AB90: 30000 | AC90: 0 | AD90: 0 | AE90: 0 | AF90: 0 | AG90: 0 | AH90: 0 | AI90: 0 | AJ90: 0 | AK90: 1419053 | AL90: 757597 | AM90: 5000 | AN90: 304115 | AO90: 55580 | AP90: 99248 | AQ90: 0 | AR90: 27576 | AS90: 200 | AT90: 5775 | AU90: 711 | AV90: 0 | AW90: 19297 | AX90: 8788 | AY90: 3500 | AZ90: 3100 | BA90: 16000 | BB90: 3468 | BC90: 5050 | BD90: 80614 | BE90: 0 | BF90: 2500 | BG90: 0 | BH90: 2500 | BI90: 7000 | BJ90: 7000 | BK90: 0 | BL90: 9893 | BM90: 0 | BN90: 4800 | BO90: 10972 | BP90: 0 | BQ90: 17820 | BR90: 5000 | BS90: 36020 | BT90: 15685 | BU90: 0 | BV90: 0 | BW90: 5000 | BX90: 0 | BY90: 0 | BZ90: 1519809 | CB90: 0 | CC90: 0 | CD90: 0 | CE90: 0 | CG90: 0 | CH90: 0 | CI90: 0 | CJ90: 0 | CK90: 0 | CL90: 0 | CM90: 0 | CN90: 0 | CO90: 0 | CP90: 0 | CR90: -138226.66 | CS90: 0 | CT90: 0 | CU90: 0 | CV90: 0 | CW90: 0 | CX90: -138226.66
A91: 938 | B91: 9163010 | C91: 3010 | E91: Kingsholm Church of England Primary School | I91: 139568.27 | J91: 9713.24 | K91: 0 | L91: 26707.13 | M91: 0 | N91: 34281.87 | O91: 210270.51 | P91: 3485925 | Q91: 0 | R91: 203531 | S91: 0 | T91: 315615 | U91: 101354 | V91: 1200 | W91: 0 | X91: 56050 | Y91: 52000 | Z91: 1760 | AA91: 0 | AB91: 20000 | AC91: 25000 | AD91: 0 | AE91: 165000 | AF91: 10000 | AG91: 0 | AH91: 0 | AI91: 0 | AJ91: 0 | AK91: 4437435 | AL91: 1946128 | AM91: 20000 | AN91: 784095 | AO91: 132047 | AP91: 293111 | AQ91: 137518 | AR91: 87837 | AS91: 20000 | AT91: 21500 | AU91: 26906 | AV91: 0 | AW91: 23151 | AX91: 7000 | AY91: 20507 | AZ91: 10000 | BA91: 55000 | BB91: 28392 | BC91: 15250 | BD91: 145176 | BE91: 0 | BF91: 5000 | BG91: 0 | BH91: 14000 | BI91: 11000 | BJ91: 30000 | BK91: 1000 | BL91: 13780 | BM91: 0 | BN91: 21000 | BO91: 33738 | BP91: 0 | BQ91: 102300 | BR91: 55000 | BS91: 74106 | BT91: 44414 | BU91: 0 | BV91: 0 | BW91: 0 | BX91: 165734 | BY91: 5750 | BZ91: 4350440 | CB91: 11054 | CC91: 0 | CD91: 0 | CE91: 11054 | CG91: 0 | CH91: 37761 | CI91: 0 | CJ91: 0 | CK91: 0 | CL91: 0 | CM91: 0 | CN91: 0 | CO91: 0 | CP91: 37761 | CR91: 232760.51 | CS91: 0 | CT91: 0 | CU91: 0.13 | CV91: 0 | CW91: 37797.87 | CX91: 270558.51
A92: 559 | B92: 9162045 | C92: 2045 | E92: Bledington Primary School | I92: 213688.23 | J92: 8106 | K92: 0 | L92: 19276.31 | M92: 0 | N92: 0 | O92: 241070.54 | P92: 585192 | Q92: 0 | R92: 5415 | S92: 0 | T92: 8255 | U92: 33004 | V92: 0 | W92: 0 | X92: 6580 | Y92: 0 | Z92: 0 | AA92: 0 | AB92: 0 | AC92: 0 | AD92: 0 | AE92: 0 | AF92: 0 | AG92: 0 | AH92: 0 | AI92: 0 | AJ92: 0 | AK92: 638446 | AL92: 361589 | AM92: 0 | AN92: 97854 | AO92: 11666 | AP92: 30126 | AQ92: 0 | AR92: 17983 | AS92: 1875 | AT92: 3530 | AU92: 1938 | AV92: 0 | AW92: 9000 | AX92: 4176 | AY92: 3517 | AZ92: 2500 | BA92: 11047 | BB92: 9731 | BC92: 0 | BD92: 23124 | BE92: 0 | BF92: 1200 | BG92: 0 | BH92: 0 | BI92: 3417 | BJ92: 0 | BK92: 0 | BL92: 3500 | BM92: 0 | BN92: 1500 | BO92: 14404 | BP92: 0 | BQ92: 19666 | BR92: 4500 | BS92: 4435 | BT92: 11700 | BU92: 0 | BV92: 0 | BW92: 0 | BX92: 0 | BY92: 0 | BZ92: 653978 | CB92: 4911 | CC92: 0 | CD92: 0 | CE92: 4911 | CG92: 0 | CH92: 4911 | CI92: 0 | CJ92: 0 | CK92: 0 | CL92: 0 | CM92: 0 | CN92: 19276 | CO92: 0 | CP92: 24187 | CR92: 206262.23 | CS92: 0 | CT92: 0 | CU92: 0.31 | CV92: 0 | CW92: 0 | CX92: 206262.54
A93: 554 | B93: 9162171 | C93: 2171 | E93: Beech Green Primary School | I93: 61968.54 | J93: 9921.25 | K93: 0 | L93: 1382.22 | M93: 0 | N93: 0 | O93: 73272.01 | P93: 1855536 | Q93: 0 | R93: 155082 | S93: 0 | T93: 80295 | U93: 58543 | V93: 1500 | W93: 0 | X93: 115144 | Y93: 0 | Z93: 0 | AA93: 0 | AB93: 27840 | AC93: 0 | AD93: 0 | AE93: 0 | AF93: 0 | AG93: 0 | AH93: 0 | AI93: 0 | AJ93: 0 | AK93: 2293940 | AL93: 1124254 | AM93: 0 | AN93: 626503 | AO93: 68046 | AP93: 111783 | AQ93: 0 | AR93: 142049 | AS93: 11000 | AT93: 9618 | AU93: 1086 | AV93: 0 | AW93: 15717 | AX93: 3354 | AY93: 3644 | AZ93: 2820 | BA93: 36988 | BB93: 34676 | BC93: 5501 | BD93: 89366 | BE93: 0 | BF93: 3500 | BG93: 0 | BH93: 2455 | BI93: 3324 | BJ93: 0 | BK93: 0 | BL93: 6910 | BM93: 0 | BN93: 2163 | BO93: 16942 | BP93: 0 | BQ93: 62271 | BR93: 16330 | BS93: 13657 | BT93: 17479 | BU93: 0 | BV93: 0 | BW93: 0 | BX93: 0 | BY93: 0 | BZ93: 2431436 | CB93: 8005 | CC93: 0 | CD93: 0 | CE93: 8005 | CG93: 0 | CH93: 9387 | CI93: 0 | CJ93: 0 | CK93: 0 | CL93: 0 | CM93: 0 | CN93: 0 | CO93: 0 | CP93: 9387 | CR93: -65606.21 | CS93: 0 | CT93: 0 | CU93: 0.22 | CV93: 0 | CW93: 0 | CX93: -65605.99
A94: 1106 | B94: 9161106 | C94: 1106 | E94: The Altus School | I94: 770543.81 | J94: 9578 | K94: 0 | L94: 14938.73 | M94: 0 | N94: 0 | O94: 795060.54 | P94: 3335989 | Q94: 0 | R94: 3715280 | S94: 0 | T94: 140000 | U94: 17890 | V94: 15000 | W94: 0 | X94: 100000 | Y94: 0 | Z94: 3000 | AA94: 0 | AB94: 0 | AC94: 0 | AD94: 0 | AE94: 0 | AF94: 0 | AG94: 0 | AH94: 0 | AI94: 0 | AJ94: 0 | AK94: 7327159 | AL94: 2988139 | AM94: 0 | AN94: 2096367 | AO94: 45210 | AP94: 493535 | AQ94: 84905 | AR94: 0 | AS94: 53760 | AT94: 20600 | AU94: 0 | AV94: 20000 | AW94: 111233 | AX94: 2560 | AY94: 84250 | AZ94: 15000 | BA94: 112000 | BB94: 20000 | BC94: 50800 | BD94: 242356 | BE94: 0 | BF94: 35000 | BG94: 0 | BH94: 33500 | BI94: 0 | BJ94: 51672 | BK94: 0 | BL94: 76925 | BM94: 22500 | BN94: 39060 | BO94: 36154 | BP94: 0 | BQ94: 127602 | BR94: 0 | BS94: 590027 | BT94: 40688 | BU94: 0 | BV94: 0 | BW94: 0 | BX94: 0 | BY94: 0 | BZ94: 7493843 | CB94: 10952 | CC94: 0 | CD94: 0 | CE94: 10952 | CG94: 0 | CH94: 25891 | CI94: 0 | CJ94: 0 | CK94: 0 | CL94: 0 | CM94: 0 | CN94: 0 | CO94: 0 | CP94: 25891 | CR94: 613437.81 | CS94: 0 | CT94: 0 | CU94: -0.27 | CV94: 0 | CW94: 0 | CX94: 613437.54
A95: 818 | B95: 9162098 | C95: 2098 | E95: Thrupp School | I95: -47601 | J95: 10026.63 | K95: 0 | L95: 14028.78 | M95: 0 | N95: -3517.19 | O95: -27062.78 | P95: 800579 | Q95: 0 | R95: 127395 | S95: 0 | T95: 26520 | U95: 43474 | V95: 0 | W95: 0 | X95: 32865 | Y95: 0 | Z95: 0 | AA95: 0 | AB95: 0 | AC95: 2000 | AD95: 0 | AE95: 0 | AF95: 108670 | AG95: 0 | AH95: 0 | AI95: 0 | AJ95: 0 | AK95: 1141503 | AL95: 513824 | AM95: 10000 | AN95: 309176 | AO95: 765 | AP95: 49553 | AQ95: 0 | AR95: 49286 | AS95: 4892 | AT95: 3200 | AU95: 4718 | AV95: 2155 | AW95: 9915 | AX95: 9362 | AY95: 23875 | AZ95: 2000 | BA95: 11000 | BB95: 15469 | BC95: 4200 | BD95: 18684 | BE95: 0 | BF95: 3000 | BG95: 0 | BH95: 5750 | BI95: 4552 | BJ95: 0 | BK95: 0 | BL95: 1439 | BM95: 0 | BN95: 5650 | BO95: 7395 | BP95: 0 | BQ95: 35462 | BR95: 0 | BS95: 12225 | BT95: 18707 | BU95: 0 | BV95: 0 | BW95: 0 | BX95: 101511 | BY95: 3642 | BZ95: 1241407 | CB95: 5553 | CC95: 0 | CD95: 0 | CE95: 5553 | CG95: 0 | CH95: 19582 | CI95: 0 | CJ95: 0 | CK95: 0 | CL95: 0 | CM95: 0 | CN95: 0 | CO95: 0 | CP95: 19582 | CR95: -140995.37 | CS95: 0 | CT95: 0 | CU95: -0.22 | CV95: 0 | CW95: -0.19 | CX95: -140995.78
A96: 781 | B96: 9162137 | C96: 2137 | E96: Gastrells Community Primary School | I96: 159555.45 | J96: 47 | K96: 0 | L96: 101.5 | M96: 0 | N96: 0 | O96: 159703.95 | P96: 1091308 | Q96: 0 | R96: 186280 | S96: 0 | T96: 28585 | U96: 44747 | V96: 0 | W96: -1278 | X96: 21141 | Y96: 0 | Z96: 0 | AA96: 0 | AB96: 20000 | AC96: 0 | AD96: 0 | AE96: 0 | AF96: 0 | AG96: 0 | AH96: 0 | AI96: 0 | AJ96: 0 | AK96: 1390783 | AL96: 657915 | AM96: 7600 | AN96: 357885 | AO96: 0 | AP96: 59773 | AQ96: 0 | AR96: 59156 | AS96: 5890 | AT96: 8051 | AU96: 6862 | AV96: 3158 | AW96: 23350 | AX96: 19213 | AY96: 44783 | AZ96: 5693 | BA96: 20776 | BB96: 23703 | BC96: 5411 | BD96: 63714 | BE96: 0 | BF96: 2426 | BG96: 0 | BH96: 2160 | BI96: 6075 | BJ96: 0 | BK96: 0 | BL96: 3840 | BM96: 0 | BN96: 7994 | BO96: 9663 | BP96: 0 | BQ96: 36253 | BR96: 7600 | BS96: 10612 | BT96: 41722 | BU96: 0 | BV96: 0 | BW96: 0 | BX96: 0 | BY96: 0 | BZ96: 1501278 | CB96: 6092 | CC96: 0 | CD96: 0 | CE96: 6092 | CG96: 0 | CH96: 6193 | CI96: 0 | CJ96: 0 | CK96: 0 | CL96: 0 | CM96: 0 | CN96: 0 | CO96: 0 | CP96: 6193 | CR96: 49107.45 | CS96: 0 | CT96: 0 | CU96: 0.5 | CV96: 0 | CW96: 0 | CX96: 49107.95
A97: 534 | B97: 9162040 | C97: 2040 | E97: Ashchurch Primary School | I97: 69147.84 | J97: 7659.45 | K97: 0 | L97: -1.818989404e-12 | M97: 0 | N97: 0 | O97: 76807.29 | P97: 817553 | Q97: 0 | R97: 53844 | S97: 0 | T97: 41975 | U97: 82233 | V97: 0 | W97: 1700 | X97: 28500 | Y97: 0 | Z97: 0 | AA97: 0 | AB97: 2179 | AC97: 1300 | AD97: 0 | AE97: 0 | AF97: 0 | AG97: 0 | AH97: 0 | AI97: 0 | AJ97: 0 | AK97: 1029284 | AL97: 561309 | AM97: 3000 | AN97: 163063 | AO97: 0 | AP97: 46553 | AQ97: 0 | AR97: 51330 | AS97: 3000 | AT97: 1621 | AU97: 424 | AV97: 0 | AW97: 11911 | AX97: 7000 | AY97: 30800 | AZ97: 6500 | BA97: 16000 | BB97: 9481 | BC97: 1500 | BD97: 42461 | BE97: 0 | BF97: 0 | BG97: 0 | BH97: 4750 | BI97: 0 | BJ97: 2790 | BK97: 2750 | BL97: 2200 | BM97: 2000 | BN97: 3894 | BO97: 6850 | BP97: 7503 | BQ97: 0 | BR97: 35274 | BS97: 12280 | BT97: 13209 | BU97: 0 | BV97: 0 | BW97: 0 | BX97: 0 | BY97: 0 | BZ97: 1049453 | CB97: 5553 | CC97: 0 | CD97: 0 | CE97: 5553 | CG97: 0 | CH97: 5553 | CI97: 0 | CJ97: 0 | CK97: 0 | CL97: 0 | CM97: 0 | CN97: 0 | CO97: 0 | CP97: 5553 | CR97: 56638.29 | CS97: 0 | CT97: 0 | CU97: -1.818989404e-12 | CV97: 0 | CW97: 0 | CX97: 56638.29
A98: 709 | B98: 9162077 | C98: 2077 | E98: Lydbrook Primary School | I98: -19850.94 | J98: 12776.3 | K98: 0 | L98: 2017.88 | M98: 0 | N98: -14508.23 | O98: -19564.99 | P98: 604376 | Q98: 0 | R98: 39672 | S98: 0 | T98: 27510 | U98: 30330 | V98: 0 | W98: 0 | X98: 4500 | Y98: 0 | Z98: 0 | AA98: 0 | AB98: 422 | AC98: 0 | AD98: 0 | AE98: 20000 | AF98: 1000 | AG98: 0 | AH98: 0 | AI98: 0 | AJ98: 0 | AK98: 727810 | AL98: 429623 | AM98: 10500 | AN98: 104849 | AO98: 0 | AP98: 46276 | AQ98: 0 | AR98: 33020 | AS98: 3200 | AT98: 4250 | AU98: 254 | AV98: 0 | AW98: 11266 | AX98: 4612 | AY98: 22318 | AZ98: 3250 | BA98: 22000 | BB98: 15941 | BC98: 2000 | BD98: 57863 | BE98: 0 | BF98: 2000 | BG98: 0 | BH98: 0 | BI98: 0 | BJ98: 0 | BK98: 0 | BL98: 7871 | BM98: 0 | BN98: 700 | BO98: 4479 | BP98: 500 | BQ98: 22610 | BR98: 0 | BS98: 0 | BT98: 12023 | BU98: 0 | BV98: 0 | BW98: 0 | BX98: 42953 | BY98: 500 | BZ98: 864858 | CB98: 5035 | CC98: 0 | CD98: 0 | CE98: 5035 | CG98: 0 | CH98: 7053 | CI98: 0 | CJ98: 0 | CK98: 0 | CL98: 0 | CM98: 0 | CN98: 0 | CO98: 0 | CP98: 7053 | CR98: -121669.64 | CS98: 0 | CT98: 0 | CU98: -0.12 | CV98: 0 | CW98: -36961.23 | CX98: -158630.99
A99: 694 | B99: 9163331 | C99: 3331 | E99: Leonard Stanley Church of England Primary School | I99: 45634.66 | J99: 180 | K99: 0 | L99: 3.637978807e-12 | M99: 0 | N99: -1896.18 | O99: 43918.48 | P99: 1051889 | Q99: 0 | R99: 54235 | S99: 0 | T99: 46515 | U99: 46373 | V99: 0 | W99: 4700 | X99: 34272 | Y99: 6897 | Z99: 0 | AA99: 0 | AB99: 16000 | AC99: 0 | AD99: 0 | AE99: 113883 | AF99: 12674 | AG99: 0 | AH99: 0 | AI99: 0 | AJ99: 0 | AK99: 1387438 | AL99: 706236 | AM99: 0 | AN99: 242281 | AO99: 14722 | AP99: 69066 | AQ99: 4439 | AR99: 42850 | AS99: 0 | AT99: 5500 | AU99: 7007 | AV99: 1600 | AW99: 18064 | AX99: 4000 | AY99: 20000 | AZ99: 4750 | BA99: 18700 | BB99: 3219 | BC99: 8200 | BD99: 54871 | BE99: 0 | BF99: 2500 | BG99: 0 | BH99: 16744 | BI99: 0 | BJ99: 3500 | BK99: 0 | BL99: 8702 | BM99: 0 | BN99: 3550 | BO99: 10742 | BP99: 0 | BQ99: 42759 | BR99: 9500 | BS99: 4200 | BT99: 15381 | BU99: 0 | BV99: 0 | BW99: 1500 | BX99: 106331 | BY99: 6873 | BZ99: 1457787 | CB99: 0 | CC99: 0 | CD99: 1500 | CE99: 1500 | CG99: 0 | CH99: 1500 | CI99: 0 | CJ99: 0 | CK99: 0 | CL99: 0 | CM99: 0 | CN99: 0 | CO99: 0 | CP99: 1500 | CR99: -37887.34 | CS99: 0 | CT99: 0 | CU99: 3.637978807e-12 | CV99: 0 | CW99: 11456.82 | CX99: -26430.52
A100: 928 | B100: 9162013 | C100: 2013 | E100: Elmbridge Primary School | I100: -34541.9 | J100: 33733 | K100: 0 | L100: 14547.31 | M100: 0 | N100: 0 | O100: 13738.41 | P100: 3261375 | Q100: 0 | R100: 105164 | S100: 0 | T100: 142140 | U100: 115714 | V100: 6000 | W100: 15000 | X100: 15200 | Y100: 1600 | Z100: 0 | AA100: 0 | AB100: 55000 | AC100: 0 | AD100: 0 | AE100: 0 | AF100: 0 | AG100: 0 | AH100: 0 | AI100: 0 | AJ100: 0 | AK100: 3717193 | AL100: 2015794 | AM100: 42000 | AN100: 723095 | AO100: 150613 | AP100: 149162 | AQ100: 0 | AR100: 83235 | AS100: 15426 | AT100: 11000 | AU100: 1909 | AV100: 0 | AW100: 30519 | AX100: 9202 | AY100: 12037 | AZ100: 10000 | BA100: 65500 | BB100: 62517 | BC100: 6780 | BD100: 186205 | BE100: 0 | BF100: 3000 | BG100: 0 | BH100: 16400 | BI100: 2250 | BJ100: 5000 | BK100: 0 | BL100: 11242 | BM100: 0 | BN100: 23640 | BO100: 33791 | BP100: 0 | BQ100: 139673 | BR100: 10000 | BS100: 1764 | BT100: 26143 | BU100: 0 | BV100: 0 | BW100: 0 | BX100: 0 | BY100: 0 | BZ100: 3847897 | CB100: 11026 | CC100: 0 | CD100: 0 | CE100: 11026 | CG100: 0 | CH100: 25573 | CI100: 0 | CJ100: 0 | CK100: 0 | CL100: 0 | CM100: 0 | CN100: 0 | CO100: 0 | CP100: 25573 | CR100: -131512.9 | CS100: 0 | CT100: 0 | CU100: 0.31 | CV100: 0 | CW100: 0 | CX100: -131512.59
A101: 842 | B101: 9163080 | C101: 3080 | E101: Whitminster Endowed Church of England Primary School | I101: 140680.52 | J101: 1266.67 | K101: 0 | L101: 12494.13 | M101: 0 | N101: 0 | O101: 154441.32 | P101: 643517 | Q101: 0 | R101: 25379 | S101: 0 | T101: 18850 | U101: 43270 | V101: 0 | W101: 0 | X101: 0 | Y101: 0 | Z101: 0 | AA101: 0 | AB101: 13000 | AC101: 0 | AD101: 0 | AE101: 0 | AF101: 0 | AG101: 0 | AH101: 0 | AI101: 0 | AJ101: 0 | AK101: 744016 | AL101: 394818 | AM101: 6000 | AN101: 137718 | AO101: 15576 | AP101: 37736 | AQ101: 0 | AR101: 13318 | AS101: 3051 | AT101: 3000 | AU101: 6803 | AV101: 1250 | AW101: 9417 | AX101: 1600 | AY101: 3000 | AZ101: 5698 | BA101: 11000 | BB101: 12600 | BC101: 16069 | BD101: 29528 | BE101: 0 | BF101: 0 | BG101: 0 | BH101: 2600 | BI101: 0 | BJ101: 2500 | BK101: 4325 | BL101: 0 | BM101: 1098 | BN101: 6951 | BO101: 2250 | BP101: 5506 | BQ101: 0 | BR101: 26990 | BS101: 18649 | BT101: 15873 | BU101: 0 | BV101: 0 | BW101: 0 | BX101: 0 | BY101: 0 | BZ101: 794924 | CB101: 5238 | CC101: 0 | CD101: 0 | CE101: 5238 | CG101: 0 | CH101: 17732 | CI101: 0 | CJ101: 0 | CK101: 0 | CL101: 0 | CM101: 0 | CN101: 0 | CO101: 0 | CP101: 17732 | CR101: 91039.19 | CS101: 0 | CT101: 0 | CU101: 0.13 | CV101: 0 | CW101: 0 | CX101: 91039.32
A102: 586 | B102: 9162050 | C102: 2050 | E102: Chalford Hill Primary School | I102: -59136.91 | J102: 11870.97 | K102: 0 | L102: 1239.87 | M102: 0 | N102: 0 | O102: -46026.07 | P102: 977078 | Q102: 0 | R102: 25502 | S102: 0 | T102: 20670 | U102: 54457 | V102: 0 | W102: 0 | X102: 14000 | Y102: 0 | Z102: 0 | AA102: 0 | AB102: 0 | AC102: 0 | AD102: 0 | AE102: 0 | AF102: 0 | AG102: 0 | AH102: 0 | AI102: 0 | AJ102: 0 | AK102: 1091707 | AL102: 648621 | AM102: 6250 | AN102: 195975 | AO102: 8759 | AP102: 67317 | AQ102: 0 | AR102: 18358 | AS102: 4788 | AT102: 4700 | AU102: 4168 | AV102: 898 | AW102: 8594 | AX102: 2000 | AY102: 27758 | AZ102: 2500 | BA102: 19800 | BB102: 5610 | BC102: 7487 | BD102: 27284 | BE102: 0 | BF102: 4464 | BG102: 0 | BH102: 0 | BI102: 736 | BJ102: 0 | BK102: 0 | BL102: 1985 | BM102: 0 | BN102: 2698 | BO102: 8995 | BP102: 0 | BQ102: 47030 | BR102: 1250 | BS102: 29930 | BT102: 13005 | BU102: 0 | BV102: 0 | BW102: 0 | BX102: 0 | BY102: 0 | BZ102: 1170960 | CB102: 6227 | CC102: 0 | CD102: 0 | CE102: 6227 | CG102: 0 | CH102: 4859 | CI102: 0 | CJ102: 0 | CK102: 0 | CL102: 2608 | CM102: 0 | CN102: 0 | CO102: 0 | CP102: 7467 | CR102: -126518.94 | CS102: 0 | CT102: 0 | CU102: -0.13 | CV102: 0 | CW102: 0 | CX102: -126519.07
A103: 811 | B103: 9163073 | C103: 3073 | E103: Tewkesbury Church of England Primary School | I103: 5340.4 | J103: 456.65 | K103: 0 | L103: 9378.22 | M103: 0 | N103: 22237.09 | O103: 37412.36 | P103: 1444686 | Q103: 0 | R103: 58352 | S103: 0 | T103: 90335 | U103: 69250 | V103: 0 | W103: 0 | X103: 38000 | Y103: 25000 | Z103: 0 | AA103: 0 | AB103: 27105 | AC103: 5000 | AD103: 0 | AE103: 138000 | AF103: 12450 | AG103: 0 | AH103: 0 | AI103: 0 | AJ103: 0 | AK103: 1908178 | AL103: 942538 | AM103: 0 | AN103: 258627 | AO103: 90099 | AP103: 101093 | AQ103: 47484 | AR103: 59526 | AS103: 8044 | AT103: 3250 | AU103: 753 | AV103: 0 | AW103: 8000 | AX103: 2250 | AY103: 5900 | AZ103: 3386 | BA103: 30000 | BB103: 54030 | BC103: 7000 | BD103: 54648 | BE103: 0 | BF103: 6426 | BG103: 0 | BH103: 17000 | BI103: 4000 | BJ103: 0 | BK103: 0 | BL103: 0 | BM103: 0 | BN103: 5525 | BO103: 13333 | BP103: 0 | BQ103: 47000 | BR103: 6000 | BS103: 0 | BT103: 16973 | BU103: 0 | BV103: 0 | BW103: 0 | BX103: 121619 | BY103: 14124 | BZ103: 1928628 | CB103: 7004 | CC103: 0 | CD103: 0 | CE103: 7004 | CG103: 0 | CH103: 16382 | CI103: 0 | CJ103: 0 | CK103: 0 | CL103: 0 | CM103: 0 | CN103: 0 | CO103: 0 | CP103: 16382 | CR103: -29359.95 | CS103: 0 | CT103: 0 | CU103: 0.22 | CV103: 0 | CW103: 36944.09 | CX103: 7584.36
A104: 948 | B104: 9163004 | C104: 3004 | E104: St Paul's Church of England Primary School | I104: 304232.24 | J104: 47821.18 | K104: 0 | L104: 5168.33 | M104: 0 | N104: 31917.67 | O104: 389139.42 | P104: 1390627 | Q104: 0 | R104: 101552 | S104: 0 | T104: 138580 | U104: 43996 | V104: 0 | W104: 0 | X104: 0 | Y104: 5000 | Z104: 0 | AA104: 0 | AB104: 4335 | AC104: 0 | AD104: 0 | AE104: 95000 | AF104: 5000 | AG104: 0 | AH104: 0 | AI104: 0 | AJ104: 0 | AK104: 1784090 | AL104: 777063 | AM104: 0 | AN104: 376439 | AO104: 59524 | AP104: 75876 | AQ104: 0 | AR104: 35725 | AS104: 6500 | AT104: 12400 | AU104: 647 | AV104: 0 | AW104: 23968 | AX104: 1000 | AY104: 4700 | AZ104: 3000 | BA104: 19000 | BB104: 16093 | BC104: 20265 | BD104: 99413 | BE104: 0 | BF104: 6700 | BG104: 10000 | BH104: 2600 | BI104: 9200 | BJ104: 6270 | BK104: 695 | BL104: 13761 | BM104: 0 | BN104: 7300 | BO104: 11444 | BP104: 0 | BQ104: 73651 | BR104: 37857 | BS104: 69348 | BT104: 72065 | BU104: 0 | BV104: 0 | BW104: 0 | BX104: 100563 | BY104: 7500 | BZ104: 1960567 | CB104: 6284 | CC104: 0 | CD104: 0 | CE104: 6284 | CG104: 0 | CH104: 11452 | CI104: 0 | CJ104: 0 | CK104: 0 | CL104: 0 | CM104: 0 | CN104: 0 | CO104: 0 | CP104: 11452 | CR104: 183639.42 | CS104: 0 | CT104: 0 | CU104: 0.33 | CV104: 0 | CW104: 23854.67 | CX104: 207494.42
A105: 656 | B105: 9162181 | C105: 2181 | E105: Grangefield Primary School | I105: 139401.19 | J105: 12288.95 | K105: 0 | L105: 6762.83 | M105: 0 | N105: 0 | O105: 158452.97 | P105: 2189579 | Q105: 0 | R105: 78126 | S105: 0 | T105: 93750 | U105: 75238 | V105: 0 | W105: 0 | X105: 9000 | Y105: 0 | Z105: 0 | AA105: 0 | AB105: 0 | AC105: 0 | AD105: 0 | AE105: 0 | AF105: 0 | AG105: 0 | AH105: 0 | AI105: 0 | AJ105: 0 | AK105: 2445693 | AL105: 1331404 | AM105: 3000 | AN105: 502794 | AO105: 69382 | AP105: 86738 | AQ105: 0 | AR105: 57524 | AS105: 11480 | AT105: 10407 | AU105: 23627 | AV105: 5586 | AW105: 19887 | AX105: 9589 | AY105: 7017 | AZ105: 6300 | BA105: 32110 | BB105: 68483 | BC105: 2625 | BD105: 80104 | BE105: 0 | BF105: 9420 | BG105: 0 | BH105: 0 | BI105: 0 | BJ105: 10000 | BK105: 0 | BL105: 3780 | BM105: 0 | BN105: 8836 | BO105: 22672 | BP105: 0 | BQ105: 89334 | BR105: 18000 | BS105: 8175 | BT105: 25279 | BU105: 0 | BV105: 0 | BW105: 5000 | BX105: 0 | BY105: 0 | BZ105: 2528553 | CB105: 8725 | CC105: 0 | CD105: 5000 | CE105: 13725 | CG105: 0 | CH105: 15488 | CI105: 0 | CJ105: 0 | CK105: 0 | CL105: 0 | CM105: 0 | CN105: 5000 | CO105: 0 | CP105: 20488 | CR105: 68830.14 | CS105: 0 | CT105: 0 | CU105: -0.17 | CV105: 0 | CW105: 0 | CX105: 68829.97
A106: 671 | B106: 9163367 | C106: 3367 | E106: Hillesley Church of England Primary School | I106: -72264.45 | J106: 6239 | K106: 5024.2 | L106: 0 | M106: 0 | N106: 0 | O106: -61001.25 | P106: 365402 | Q106: 0 | R106: 4009 | S106: 0 | T106: 6760 | U106: 21487 | V106: 0 | W106: 150 | X106: 17500 | Y106: 0 | Z106: 0 | AA106: 0 | AB106: 1000 | AC106: 7000 | AD106: 0 | AE106: 0 | AF106: 0 | AG106: 0 | AH106: 0 | AI106: 0 | AJ106: 0 | AK106: 423308 | AL106: 213689 | AM106: 1238 | AN106: 69519 | AO106: 10810 | AP106: 26384 | AQ106: 0 | AR106: 14871 | AS106: 200 | AT106: 500 | AU106: 2113 | AV106: 0 | AW106: 6000 | AX106: 600 | AY106: 1000 | AZ106: 1200 | BA106: 13500 | BB106: 699 | BC106: 525 | BD106: 23616 | BE106: 0 | BF106: 0 | BG106: 0 | BH106: 2500 | BI106: 0 | BJ106: 2030 | BK106: 0 | BL106: 0 | BM106: 0 | BN106: 1500 | BO106: 1950 | BP106: 1997 | BQ106: 0 | BR106: 7723 | BS106: 12201 | BT106: 11799 | BU106: 0 | BV106: 0 | BW106: 2039 | BX106: 0 | BY106: 0 | BZ106: 430203 | CB106: 0 | CC106: 0 | CD106: 0 | CE106: 0 | CG106: 0 | CH106: 0 | CI106: 0 | CJ106: 0 | CK106: 0 | CL106: 0 | CM106: 0 | CN106: 0 | CO106: 0 | CP106: 0 | CR106: -67896.25 | CS106: 0 | CT106: 0 | CU106: 0 | CV106: 0 | CW106: 0 | CX106: -67896.25
A107: 803 | B107: 9162094 | C107: 2094 | E107: Stroud Valley Community Primary School | I107: 211213.8 | J107: 0 | K107: 0 | L107: 0 | M107: 0 | N107: 0 | O107: 211213.8 | P107: 1430999 | Q107: 0 | R107: 41545 | S107: 0 | T107: 109080 | U107: 55286 | V107: 0 | W107: 0 | X107: 52627 | Y107: 12700 | Z107: 0 | AA107: 4000 | AB107: 27000 | AC107: 0 | AD107: 0 | AE107: 0 | AF107: 0 | AG107: 0 | AH107: 0 | AI107: 0 | AJ107: 0 | AK107: 1733237 | AL107: 792036 | AM107: 0 | AN107: 447158 | AO107: 15359 | AP107: 50969 | AQ107: 35185 | AR107: 56972 | AS107: 6909 | AT107: 6054 | AU107: 18049 | AV107: 0 | AW107: 32572 | AX107: 550 | AY107: 44948 | AZ107: 6113 | BA107: 27653 | BB107: 36855 | BC107: 4960 | BD107: 115668 | BE107: 0 | BF107: 0 | BG107: 0 | BH107: 4305 | BI107: 0 | BJ107: 3605 | BK107: 0 | BL107: 13000 | BM107: 0 | BN107: 14625 | BO107: 10706 | BP107: 13496 | BQ107: 0 | BR107: 54342 | BS107: 48563 | BT107: 21999 | BU107: 0 | BV107: 0 | BW107: 0 | BX107: 0 | BY107: 0 | BZ107: 1882651 | CB107: 6869 | CC107: 0 | CD107: 0 | CE107: 6869 | CG107: 0 | CH107: 6869 | CI107: 0 | CJ107: 0 | CK107: 0 | CL107: 0 | CM107: 0 | CN107: 0 | CO107: 0 | CP107: 6869 | CR107: 61799.8 | CS107: 0 | CT107: 0 | CU107: 0 | CV107: 0 | CW107: 0 | CX107: 61799.8
A108: 578 | B108: 9163315 | C108: 3315 | E108: Bussage Church of England Primary School | I108: 8832.75 | J108: 11039.96 | K108: 0 | L108: 0.48 | M108: 0 | N108: 0 | O108: 19873.19 | P108: 986104 | Q108: 0 | R108: 32698 | S108: 0 | T108: 27120 | U108: 42035 | V108: 0 | W108: 0 | X108: 32274 | Y108: 0 | Z108: 0 | AA108: 0 | AB108: 0 | AC108: 2150 | AD108: 0 | AE108: 0 | AF108: 0 | AG108: 0 | AH108: 0 | AI108: 0 | AJ108: 0 | AK108: 1122381 | AL108: 597600 | AM108: 10250 | AN108: 206453 | AO108: 25066 | AP108: 61998 | AQ108: 0 | AR108: 63949 | AS108: 300 | AT108: 3080 | AU108: 5972 | AV108: 1350 | AW108: 14051 | AX108: 12905 | AY108: 3000 | AZ108: 5000 | BA108: 16925 | BB108: 3568 | BC108: 3500 | BD108: 40020 | BE108: 0 | BF108: 1934 | BG108: 0 | BH108: 6250 | BI108: 4079 | BJ108: 0 | BK108: 0 | BL108: 4964 | BM108: 0 | BN108: 3860 | BO108: 10094 | BP108: 0 | BQ108: 33611 | BR108: 3300 | BS108: 18496 | BT108: 16217 | BU108: 0 | BV108: 0 | BW108: 0 | BX108: 0 | BY108: 0 | BZ108: 1177792 | CB108: 0 | CC108: 0 | CD108: 0 | CE108: 0 | CG108: 0 | CH108: 0 | CI108: 0 | CJ108: 0 | CK108: 0 | CL108: 0 | CM108: 0 | CN108: 0 | CO108: 0 | CP108: 0 | CR108: -35538.29 | CS108: 0 | CT108: 0 | CU108: 0.48 | CV108: 0 | CW108: 0 | CX108: -35537.81
A109: 817 | B109: 9163373 | C109: 3373 | E109: Kingsway Primary School | I109: 43118.11 | J109: 18535.86 | K109: 0 | L109: 482.17 | M109: 0 | N109: -5452.65 | O109: 56683.49 | P109: 2243126 | Q109: 0 | R109: 213412 | S109: 0 | T109: 133910 | U109: 90037 | V109: 10500 | W109: 8528 | X109: 38200 | Y109: 0 | Z109: 0 | AA109: 0 | AB109: 30000 | AC109: 4000 | AD109: 0 | AE109: 248441 | AF109: 18000 | AG109: 0 | AH109: 0 | AI109: 0 | AJ109: 0 | AK109: 3038154 | AL109: 1355278 | AM109: 5000 | AN109: 499916 | AO109: 42738 | AP109: 130013 | AQ109: 0 | AR109: 105953 | AS109: 9500 | AT109: 8280 | AU109: 1262 | AV109: 0 | AW109: 33809 | AX109: 652 | AY109: 38000 | AZ109: 5000 | BA109: 50000 | BB109: 80775 | BC109: 6500 | BD109: 160010 | BE109: 0 | BF109: 5300 | BG109: 0 | BH109: 1000 | BI109: 0 | BJ109: 0 | BK109: 0 | BL109: 3780 | BM109: 0 | BN109: 14400 | BO109: 22348 | BP109: 0 | BQ109: 119063 | BR109: 21087 | BS109: 270260 | BT109: 31383 | BU109: 0 | BV109: 0 | BW109: 0 | BX109: 217049 | BY109: 43776 | BZ109: 3282132 | CB109: 8657 | CC109: 0 | CD109: 0 | CE109: 8657 | CG109: 0 | CH109: 7482 | CI109: 0 | CJ109: 0 | CK109: 0 | CL109: 0 | CM109: 0 | CN109: 1657 | CO109: 0 | CP109: 9139 | CR109: -187940.03 | CS109: 0 | CT109: 0 | CU109: 0.17 | CV109: 0 | CW109: 163.35 | CX109: -187776.51
A110: 593 | B110: 9162142 | C110: 2142 | E110: Glenfall Community Primary School | I110: -21643.86 | J110: 2956.42 | K110: 0 | L110: -8353.61 | M110: 0 | N110: 0 | O110: -27041.05 | P110: 1088717 | Q110: 0 | R110: 180914 | S110: 0 | T110: 54180 | U110: 85788 | V110: 2000 | W110: 10000 | X110: 1500 | Y110: 41420 | Z110: 1500 | AA110: 2000 | AB110: 32727 | AC110: 11780 | AD110: 0 | AE110: 0 | AF110: 0 | AG110: 0 | AH110: 0 | AI110: 0 | AJ110: 0 | AK110: 1512526 | AL110: 761781 | AM110: 12400 | AN110: 365572 | AO110: 17655 | AP110: 57213 | AQ110: 66571 | AR110: 39241 | AS110: 5680 | AT110: 2420 | AU110: 7828 | AV110: 1800 | AW110: 14842 | AX110: 5474 | AY110: 26887 | AZ110: 5000 | BA110: 22251 | BB110: 14959 | BC110: 4405 | BD110: 52572 | BE110: 0 | BF110: 2400 | BG110: 0 | BH110: 4005 | BI110: 0 | BJ110: 0 | BK110: 3700 | BL110: 4663 | BM110: 0 | BN110: 1273 | BO110: 11120 | BP110: 0 | BQ110: 37320 | BR110: 200 | BS110: 23746 | BT110: 17435 | BU110: 0 | BV110: 0 | BW110: 0 | BX110: 0 | BY110: 0 | BZ110: 1590413 | CB110: 6329 | CC110: 0 | CD110: 0 | CE110: 6329 | CG110: 0 | CH110: -7341 | CI110: 0 | CJ110: 0 | CK110: 0 | CL110: 0 | CM110: 0 | CN110: 5316 | CO110: 0 | CP110: -2025 | CR110: -96574.44 | CS110: 0 | CT110: 0 | CU110: 0.39 | CV110: 0 | CW110: 0 | CX110: -96574.05
A111: 779 | B111: 9163068 | C111: 3068 | E111: Shurdington Church of England Primary School | I111: -83901.93 | J111: 4899.37 | K111: 0 | L111: 253.02 | M111: 0 | N111: 0 | O111: -78749.54 | P111: 1131565 | Q111: 0 | R111: 66897 | S111: 0 | T111: 74026 | U111: 51079 | V111: 0 | W111: 2000 | X111: 33500 | Y111: 3000 | Z111: 0 | AA111: 6000 | AB111: 3000 | AC111: 4000 | AD111: 0 | AE111: 0 | AF111: 0 | AG111: 0 | AH111: 0 | AI111: 0 | AJ111: 0 | AK111: 1375067 | AL111: 685283 | AM111: 26000 | AN111: 265026 | AO111: 22419 | AP111: 43764 | AQ111: 0 | AR111: 59468 | AS111: 6129 | AT111: 2674 | AU111: 6613 | AV111: 3437 | AW111: 7109 | AX111: 9606 | AY111: 3707 | AZ111: 7470 | BA111: 17877 | BB111: 26817 | BC111: 4242 | BD111: 41871 | BE111: 0 | BF111: 2562 | BG111: 0 | BH111: 2000 | BI111: 2632 | BJ111: 0 | BK111: 0 | BL111: 900 | BM111: 0 | BN111: 2900 | BO111: 11111 | BP111: 0 | BQ111: 54337 | BR111: 4000 | BS111: 4431 | BT111: 32967 | BU111: 0 | BV111: 0 | BW111: 0 | BX111: 0 | BY111: 0 | BZ111: 1357352 | CB111: 6278 | CC111: 0 | CD111: 0 | CE111: 6278 | CG111: 0 | CH111: 6531 | CI111: 0 | CJ111: 0 | CK111: 0 | CL111: 0 | CM111: 0 | CN111: 0 | CO111: 0 | CP111: 6531 | CR111: -61287.56 | CS111: 0 | CT111: 0 | CU111: 0.02 | CV111: 0 | CW111: 0 | CX111: -61287.54
A112: 768 | B112: 9163360 | C112: 3360 | E112: St Mary's Church of England Infant School | I112: 60412.64 | J112: 0 | K112: 0 | L112: -1617.08 | M112: 0 | N112: 0 | O112: 58795.56 | P112: 951668 | Q112: 0 | R112: 36445 | S112: 0 | T112: 29160 | U112: 81661 | V112: 0 | W112: 0 | X112: 48000 | Y112: 4000 | Z112: 0 | AA112: 0 | AB112: 2500 | AC112: 2000 | AD112: 0 | AE112: 0 | AF112: 0 | AG112: 0 | AH112: 0 | AI112: 0 | AJ112: 0 | AK112: 1155434 | AL112: 562268 | AM112: 12000 | AN112: 250530 | AO112: 0 | AP112: 42431 | AQ112: 0 | AR112: 34344 | AS112: 400 | AT112: 3600 | AU112: 540 | AV112: 0 | AW112: 17533 | AX112: 6159 | AY112: 28900 | AZ112: 4000 | BA112: 32000 | BB112: 3343 | BC112: 0 | BD112: 35256 | BE112: 0 | BF112: 2250 | BG112: 0 | BH112: 2000 | BI112: 6000 | BJ112: 0 | BK112: 0 | BL112: 1850 | BM112: 0 | BN112: 7200 | BO112: 9554 | BP112: 0 | BQ112: 74067 | BR112: 2000 | BS112: 3540 | BT112: 8683 | BU112: 0 | BV112: 0 | BW112: 0 | BX112: 0 | BY112: 0 | BZ112: 1150448 | CB112: 0 | CC112: 0 | CD112: 0 | CE112: 0 | CG112: 0 | CH112: 0 | CI112: 0 | CJ112: 0 | CK112: 0 | CL112: 0 | CM112: 0 | CN112: 0 | CO112: 0 | CP112: 0 | CR112: 65398.64 | CS112: 0 | CT112: 0 | CU112: -1617.08 | CV112: 0 | CW112: 0 | CX112: 63781.56
A113: 754 | B113: 9163343 | C113: 3343 | E113: Prestbury St Mary's Church of England Junior School | I113: 20350.74 | J113: 3217 | K113: 0 | L113: 0 | M113: 0 | N113: 0 | O113: 23567.74 | P113: 1387319 | Q113: 0 | R113: 79055 | S113: 0 | T113: 69440 | U113: 18650 | V113: 0 | W113: 0 | X113: 35000 | Y113: 0 | Z113: 0 | AA113: 0 | AB113: 0 | AC113: 0 | AD113: 0 | AE113: 0 | AF113: 0 | AG113: 0 | AH113: 0 | AI113: 0 | AJ113: 0 | AK113: 1589464 | AL113: 900404 | AM113: 10000 | AN113: 292013 | AO113: 9761 | AP113: 73417 | AQ113: 0 | AR113: 70547 | AS113: 500 | AT113: 4018 | AU113: 808 | AV113: 0 | AW113: 13807 | AX113: 10507 | AY113: 20900 | AZ113: 5000 | BA113: 18000 | BB113: 5039 | BC113: 0 | BD113: 59729 | BE113: 0 | BF113: 0 | BG113: 0 | BH113: 0 | BI113: 10000 | BJ113: 0 | BK113: 0 | BL113: 2750 | BM113: 0 | BN113: 2000 | BO113: 14304 | BP113: 0 | BQ113: 26090 | BR113: 11000 | BS113: 0 | BT113: 13505 | BU113: 0 | BV113: 0 | BW113: 0 | BX113: 0 | BY113: 0 | BZ113: 1574099 | CB113: 0 | CC113: 0 | CD113: 0 | CE113: 0 | CG113: 0 | CH113: 0 | CI113: 0 | CJ113: 0 | CK113: 0 | CL113: 0 | CM113: 0 | CN113: 0 | CO113: 0 | CP113: 0 | CR113: 38932.74 | CS113: 0 | CT113: 0 | CU113: 0 | CV113: 0 | CW113: 0 | CX113: 38932.74
A114: 735 | B114: 9163310 | C114: 3310 | E114: Oakridge Parochial School | I114: 38148.58 | J114: 3817 | K114: 0 | L114: 0 | M114: 0 | N114: 0 | O114: 41965.58 | P114: 366456 | Q114: 0 | R114: 0 | S114: 0 | T114: 9090 | U114: 19701 | V114: 0 | W114: 0 | X114: 1000 | Y114: 0 | Z114: 0 | AA114: 0 | AB114: 0 | AC114: 0 | AD114: 0 | AE114: 0 | AF114: 0 | AG114: 0 | AH114: 0 | AI114: 0 | AJ114: 0 | AK114: 396247 | AL114: 196321 | AM114: 10000 | AN114: 81887 | AO114: 0 | AP114: 23645 | AQ114: 0 | AR114: 12481 | AS114: 300 | AT114: 1300 | AU114: 1165 | AV114: 582 | AW114: 4845 | AX114: 0 | AY114: 7271 | AZ114: 600 | BA114: 8900 | BB114: 558 | BC114: 1200 | BD114: 14872 | BE114: 0 | BF114: 0 | BG114: 0 | BH114: 2500 | BI114: 0 | BJ114: 0 | BK114: 0 | BL114: 0 | BM114: 0 | BN114: 3874 | BO114: 500 | BP114: 1763 | BQ114: 0 | BR114: 9335 | BS114: 13005 | BT114: 9739 | BU114: 0 | BV114: 0 | BW114: 0 | BX114: 0 | BY114: 0 | BZ114: 406643 | CB114: 0 | CC114: 0 | CD114: 0 | CE114: 0 | CG114: 0 | CH114: 0 | CI114: 0 | CJ114: 0 | CK114: 0 | CL114: 0 | CM114: 0 | CN114: 0 | CO114: 0 | CP114: 0 | CR114: 31569.58 | CS114: 0 | CT114: 0 | CU114: 0 | CV114: 0 | CW114: 0 | CX114: 31569.58
A115: 833 | B115: 9163077 | C115: 3077 | E115: Upton St Leonards Church of England Primary School | I115: 199653.31 | J115: 7657.57 | K115: 0 | L115: 6566.21 | M115: 0 | N115: 0 | O115: 213877.09 | P115: 2172002 | Q115: 0 | R115: 170192 | S115: 0 | T115: 82221 | U115: 95280 | V115: 1000 | W115: 0 | X115: 128112 | Y115: 46700 | Z115: 0 | AA115: 0 | AB115: 5784 | AC115: 1760 | AD115: 0 | AE115: 0 | AF115: 0 | AG115: 0 | AH115: 0 | AI115: 0 | AJ115: 0 | AK115: 2703051 | AL115: 1176674 | AM115: 27287 | AN115: 615317 | AO115: 90633 | AP115: 109512 | AQ115: 75410 | AR115: 161059 | AS115: 12586 | AT115: 13700 | AU115: 7921 | AV115: 1659 | AW115: 22042 | AX115: 15000 | AY115: 39922 | AZ115: 8000 | BA115: 29000 | BB115: 41896 | BC115: 11500 | BD115: 124455 | BE115: 0 | BF115: 2000 | BG115: 0 | BH115: 1750 | BI115: 5900 | BJ115: 0 | BK115: 2000 | BL115: 23280 | BM115: 0 | BN115: 8410 | BO115: 22780 | BP115: 0 | BQ115: 55012 | BR115: 19900 | BS115: 18749 | BT115: 18632 | BU115: 0 | BV115: 0 | BW115: 0 | BX115: 0 | BY115: 0 | BZ115: 2761986 | CB115: 6275 | CC115: 0 | CD115: 0 | CE115: 6275 | CG115: 0 | CH115: 12841 | CI115: 0 | CJ115: 0 | CK115: 0 | CL115: 0 | CM115: 0 | CN115: 0 | CO115: 0 | CP115: 12841 | CR115: 148375.88 | CS115: 0 | CT115: 0 | CU115: 0.21 | CV115: 0 | CW115: 0 | CX115: 148376.09
A116: 604 | B116: 9163319 | C116: 3319 | E116: Powell's Church of England Primary School | I116: 383719.38 | J116: 15761.57 | K116: 0 | L116: 1.136868377e-13 | M116: 0 | N116: 0 | O116: 399480.95 | P116: 2143723 | Q116: 0 | R116: 128873 | S116: 0 | T116: 45460 | U116: 90679 | V116: 1709 | W116: 2000 | X116: 9063 | Y116: 0 | Z116: 0 | AA116: 0 | AB116: 39400 | AC116: 6000 | AD116: 0 | AE116: 0 | AF116: 0 | AG116: 0 | AH116: 0 | AI116: 0 | AJ116: 0 | AK116: 2466907 | AL116: 1147254 | AM116: 32500 | AN116: 570798 | AO116: 90443 | AP116: 123082 | AQ116: 0 | AR116: 86070 | AS116: 1300 | AT116: 7500 | AU116: 7579 | AV116: 0 | AW116: 31269 | AX116: 8362 | AY116: 6500 | AZ116: 5831 | BA116: 42000 | BB116: 8299 | BC116: 6500 | BD116: 183113 | BE116: 0 | BF116: 5500 | BG116: 0 | BH116: 3000 | BI116: 7000 | BJ116: 0 | BK116: 0 | BL116: 3780 | BM116: 0 | BN116: 12300 | BO116: 22672 | BP116: 0 | BQ116: 85377 | BR116: 4800 | BS116: 11000 | BT116: 30735 | BU116: 0 | BV116: 0 | BW116: 10000 | BX116: 0 | BY116: 0 | BZ116: 2554564 | CB116: 0 | CC116: 0 | CD116: 0 | CE116: 0 | CG116: 0 | CH116: 0 | CI116: 0 | CJ116: 0 | CK116: 0 | CL116: 0 | CM116: 0 | CN116: 0 | CO116: 0 | CP116: 0 | CR116: 311823.95 | CS116: 0 | CT116: 0 | CU116: 1.136868377e-13 | CV116: 0 | CW116: 0 | CX116: 311823.95
A117: 720 | B117: 9163337 | C117: 3337 | E117: Miserden Church of England Primary School | I117: -97492.35 | J117: 3056.06 | K117: 0 | L117: 0 | M117: 0 | N117: -2713.87 | O117: -97150.16 | P117: 350381 | Q117: 0 | R117: 635 | S117: 0 | T117: 8490 | U117: 23608 | V117: 0 | W117: 0 | X117: 6000 | Y117: 0 | Z117: 13500 | AA117: 0 | AB117: 0 | AC117: 0 | AD117: 0 | AE117: 18000 | AF117: 0 | AG117: 0 | AH117: 0 | AI117: 0 | AJ117: 0 | AK117: 420614 | AL117: 245226 | AM117: 800 | AN117: 40812 | AO117: 0 | AP117: 39954 | AQ117: 0 | AR117: 18669 | AS117: 250 | AT117: 1200 | AU117: 9844 | AV117: 770 | AW117: 6826 | AX117: 4045 | AY117: 10500 | AZ117: 1300 | BA117: 17665 | BB117: 1529 | BC117: 1770 | BD117: 13182 | BE117: 0 | BF117: 2400 | BG117: 0 | BH117: 2100 | BI117: 0 | BJ117: 0 | BK117: 0 | BL117: 3290 | BM117: 0 | BN117: 4800 | BO117: 1566 | BP117: 0 | BQ117: 10766 | BR117: 3500 | BS117: 600 | BT117: 10726 | BU117: 0 | BV117: 0 | BW117: 0 | BX117: 17250 | BY117: 0 | BZ117: 471340 | CB117: 0 | CC117: 0 | CD117: 0 | CE117: 0 | CG117: 0 | CH117: 0 | CI117: 0 | CJ117: 0 | CK117: 0 | CL117: 0 | CM117: 0 | CN117: 0 | CO117: 0 | CP117: 0 | CR117: -145912.29 | CS117: 0 | CT117: 0 | CU117: 0 | CV117: 0 | CW117: -1963.87 | CX117: -147876.16
A118: 620 | B118: 9162106 | C118: 2106 | E118: Coalway Community Infant School | I118: -18991.82 | J118: 12267.4 | K118: 0 | L118: 14922.26 | M118: 0 | N118: 0 | O118: 8197.84 | P118: 659541 | Q118: 0 | R118: 70053 | S118: 0 | T118: 26152 | U118: 51953 | V118: 0 | W118: 0 | X118: 500 | Y118: 0 | Z118: 6000 | AA118: 0 | AB118: 0 | AC118: 0 | AD118: 0 | AE118: 0 | AF118: 0 | AG118: 0 | AH118: 0 | AI118: 0 | AJ118: 0 | AK118: 814199 | AL118: 485269 | AM118: 10000 | AN118: 215359 | AO118: 765 | AP118: 55726 | AQ118: 0 | AR118: 17601 | AS118: 3714 | AT118: 3150 | AU118: 15302 | AV118: 0 | AW118: 15339 | AX118: 1362 | AY118: 25584 | AZ118: 4000 | BA118: 18000 | BB118: 21332 | BC118: 1250 | BD118: 28739 | BE118: 0 | BF118: 1750 | BG118: 500 | BH118: 6000 | BI118: 7000 | BJ118: 2500 | BK118: 2500 | BL118: 2500 | BM118: 0 | BN118: 8500 | BO118: 5344 | BP118: 0 | BQ118: 44614 | BR118: 5000 | BS118: 7326 | BT118: 14982 | BU118: 0 | BV118: 0 | BW118: 0 | BX118: 0 | BY118: 0 | BZ118: 1031008 | CB118: 5283 | CC118: 0 | CD118: 0 | CE118: 5283 | CG118: 0 | CH118: 20205 | CI118: 0 | CJ118: 0 | CK118: 0 | CL118: 0 | CM118: 0 | CN118: 0 | CO118: 0 | CP118: 20205 | CR118: -223533.42 | CS118: 0 | CT118: 0 | CU118: 0.26 | CV118: 0 | CW118: 0 | CX118: -223533.16
A119: 937 | B119: 9162028 | C119: 2028 | E119: Hillview Primary School | I119: 53385.65 | J119: 2834.53 | K119: 0 | L119: 2988.77 | M119: 0 | N119: 16018.64 | O119: 75227.59 | P119: 1137906 | Q119: 0 | R119: 73054 | S119: 0 | T119: 51545 | U119: 36428 | V119: 0 | W119: 1000 | X119: 55000 | Y119: 0 | Z119: 8000 | AA119: 0 | AB119: 24790 | AC119: 1000 | AD119: 0 | AE119: 120000 | AF119: 10000 | AG119: 0 | AH119: 0 | AI119: 0 | AJ119: 0 | AK119: 1518723 | AL119: 702638 | AM119: 2000 | AN119: 325204 | AO119: 42207 | AP119: 55465 | AQ119: 0 | AR119: 66166 | AS119: 6000 | AT119: 1955 | AU119: 0 | AV119: 12136 | AW119: 7339 | AX119: 2862 | AY119: 2000 | AZ119: 6000 | BA119: 17500 | BB119: 20334 | BC119: 4100 | BD119: 77575 | BE119: 0 | BF119: 2000 | BG119: 0 | BH119: 2250 | BI119: 5000 | BJ119: 0 | BK119: 0 | BL119: 8649 | BM119: 0 | BN119: 3322 | BO119: 11918 | BP119: 0 | BQ119: 34910 | BR119: 2000 | BS119: 0 | BT119: 22173 | BU119: 0 | BV119: 0 | BW119: 0 | BX119: 119252 | BY119: 8176 | BZ119: 1571131 | CB119: 6362 | CC119: 0 | CD119: 0 | CE119: 6362 | CG119: 0 | CH119: 9351 | CI119: 0 | CJ119: 0 | CK119: 0 | CL119: 0 | CM119: 0 | CN119: 0 | CO119: 0 | CP119: 9351 | CR119: 1240.18 | CS119: 0 | CT119: 0 | CU119: -0.23 | CV119: 0 | CW119: 18590.64 | CX119: 19830.59
A120: 683 | B120: 9162145 | C120: 2145 | E120: Innsworth Infant School | I120: 220790.55 | J120: 17775.65 | K120: 0 | L120: 25763.06 | M120: 0 | N120: 0 | O120: 264329.26 | P120: 807088 | Q120: 0 | R120: 64871 | S120: 0 | T120: 46496 | U120: 61024 | V120: 0 | W120: 0 | X120: 450 | Y120: 0 | Z120: 0 | AA120: 0 | AB120: 0 | AC120: 0 | AD120: 0 | AE120: 0 | AF120: 0 | AG120: 0 | AH120: 0 | AI120: 0 | AJ120: 0 | AK120: 979929 | AL120: 499461 | AM120: 0 | AN120: 236612 | AO120: 15564 | AP120: 38381 | AQ120: 0 | AR120: 15760 | AS120: 4270 | AT120: 2515 | AU120: 400 | AV120: 0 | AW120: 29969 | AX120: 4082 | AY120: 18097 | AZ120: 3808 | BA120: 14400 | BB120: 15095 | BC120: 4030 | BD120: 51681 | BE120: 0 | BF120: 4675 | BG120: 0 | BH120: 500 | BI120: 16910 | BJ120: 0 | BK120: 0 | BL120: 3126 | BM120: 0 | BN120: 3716 | BO120: 2697 | BP120: 0 | BQ120: 63423 | BR120: 8500 | BS120: 17020 | BT120: 11411 | BU120: 0 | BV120: 0 | BW120: 0 | BX120: 0 | BY120: 0 | BZ120: 1086103 | CB120: 5406 | CC120: 0 | CD120: 0 | CE120: 5406 | CG120: 0 | CH120: 31169 | CI120: 0 | CJ120: 0 | CK120: 0 | CL120: 0 | CM120: 0 | CN120: 0 | CO120: 0 | CP120: 31169 | CR120: 132392.2 | CS120: 0 | CT120: 0 | CU120: 0.06 | CV120: 0 | CW120: 0 | CX120: 132392.26
A121: 767 | B121: 9162065 | C121: 2065 | E121: St White's Primary School | I121: 586601.81 | J121: 21497 | K121: 0 | L121: 17105.62 | M121: 0 | N121: 0 | O121: 625204.43 | P121: 1450970 | Q121: 0 | R121: 87872 | S121: 0 | T121: 101340 | U121: 45755 | V121: 1000 | W121: 0 | X121: 50800 | Y121: 4000 | Z121: 0 | AA121: 0 | AB121: 0 | AC121: 0 | AD121: 0 | AE121: 0 | AF121: 0 | AG121: 0 | AH121: 0 | AI121: 0 | AJ121: 0 | AK121: 1741737 | AL121: 860959 | AM121: 0 | AN121: 393540 | AO121: 54800 | AP121: 99966 | AQ121: 0 | AR121: 70836 | AS121: 8000 | AT121: 7750 | AU121: 3013 | AV121: 0 | AW121: 17292 | AX121: 3255 | AY121: 4000 | AZ121: 5000 | BA121: 37000 | BB121: 61255 | BC121: 5000 | BD121: 87296 | BE121: 0 | BF121: 3150 | BG121: 0 | BH121: 8500 | BI121: 6000 | BJ121: 0 | BK121: 0 | BL121: 6679 | BM121: 0 | BN121: 8450 | BO121: 13495 | BP121: 0 | BQ121: 70958 | BR121: 18000 | BS121: 12500 | BT121: 22571 | BU121: 0 | BV121: 0 | BW121: 6803 | BX121: 0 | BY121: 0 | BZ121: 1896068 | CB121: 7038 | CC121: 0 | CD121: 6803 | CE121: 13841 | CG121: 0 | CH121: 265947 | CI121: 0 | CJ121: 0 | CK121: 0 | CL121: 0 | CM121: 0 | CN121: 15000 | CO121: 0 | CP121: 280947 | CR121: 453767.81 | CS121: 0 | CT121: 0 | CU121: -250000.38 | CV121: 0 | CW121: 0 | CX121: 203767.43
A122: 881 | B122: 9162165 | C122: 2165 | E122: Benhall Infant School | I122: -90755.1 | J122: 0 | K122: 0 | L122: 14102.76 | M122: 0 | N122: 69122.94 | O122: -7529.4 | P122: 998266 | Q122: 0 | R122: 57965 | S122: 0 | T122: 25655 | U122: 96088 | V122: 0 | W122: 2600 | X122: 43475 | Y122: 0 | Z122: 0 | AA122: 0 | AB122: 0 | AC122: 1100 | AD122: 0 | AE122: 180000 | AF122: 15000 | AG122: 0 | AH122: 0 | AI122: 0 | AJ122: 0 | AK122: 1420149 | AL122: 579460 | AM122: 7000 | AN122: 245390 | AO122: 26869 | AP122: 70415 | AQ122: 0 | AR122: 58249 | AS122: 5000 | AT122: 3000 | AU122: 552 | AV122: 0 | AW122: 13718 | AX122: 1050 | AY122: 2500 | AZ122: 2500 | BA122: 13600 | BB122: 20709 | BC122: 1500 | BD122: 15600 | BE122: 0 | BF122: 3000 | BG122: 0 | BH122: 6000 | BI122: 7950 | BJ122: 0 | BK122: 1500 | BL122: 1901 | BM122: 0 | BN122: 1800 | BO122: 9771 | BP122: 0 | BQ122: 89935 | BR122: 6500 | BS122: 34809 | BT122: 30191 | BU122: 0 | BV122: 0 | BW122: 0 | BX122: 171268 | BY122: 25280 | BZ122: 1457017 | CB122: 6014 | CC122: 0 | CD122: 0 | CE122: 6014 | CG122: 0 | CH122: 20117 | CI122: 0 | CJ122: 0 | CK122: 0 | CL122: 0 | CM122: 0 | CN122: 0 | CO122: 0 | CP122: 20117 | CR122: -126075.1 | CS122: 0 | CT122: 0 | CU122: -0.24 | CV122: 0 | CW122: 67574.94 | CX122: -58500.4
A123: 900 | B123: 9165221 | C123: 5221 | E123: Oakwood Primary School | I123: 208581.73 | J123: 6690.55 | K123: 0 | L123: 11200 | M123: 0 | N123: 0 | O123: 226472.28 | P123: 2175979 | Q123: 0 | R123: 170456 | S123: 0 | T123: 209380 | U123: 45436 | V123: 0 | W123: 0 | X123: 10500 | Y123: 4000 | Z123: 0 | AA123: 0 | AB123: 0 | AC123: 10000 | AD123: 0 | AE123: 0 | AF123: 0 | AG123: 0 | AH123: 0 | AI123: 0 | AJ123: 0 | AK123: 2625751 | AL123: 1214619 | AM123: 6997 | AN123: 874808 | AO123: 39492 | AP123: 80796 | AQ123: 0 | AR123: 71671 | AS123: 400 | AT123: 10000 | AU123: 1077 | AV123: 0 | AW123: 29689 | AX123: 8362 | AY123: 48059 | AZ123: 14500 | BA123: 68000 | BB123: 13432 | BC123: 5100 | BD123: 113055 | BE123: 0 | BF123: 3500 | BG123: 0 | BH123: 2500 | BI123: 2000 | BJ123: 0 | BK123: 0 | BL123: 3707 | BM123: 0 | BN123: 12050 | BO123: 19055 | BP123: 0 | BQ123: 100324 | BR123: 49364 | BS123: 1690 | BT123: 130713 | BU123: 0 | BV123: 0 | BW123: 0 | BX123: 0 | BY123: 0 | BZ123: 2924960 | CB123: 8005 | CC123: 0 | CD123: 0 | CE123: 8005 | CG123: 0 | CH123: 19205 | CI123: 0 | CJ123: 0 | CK123: 0 | CL123: 0 | CM123: 0 | CN123: 0 | CO123: 0 | CP123: 19205 | CR123: -83936.72 | CS123: 0 | CT123: 0 | CU123: 0 | CV123: 0 | CW123: 0 | CX123: -83936.72
A124: 610 | B124: 9162122 | C124: 2122 | E124: Churchdown Parton Manor Junior School | I124: -171680.98 | J124: 0 | K124: 0 | L124: 2329.97 | M124: 0 | N124: -24303.18 | O124: -193654.19 | P124: 2094691 | Q124: 0 | R124: 214312 | S124: 0 | T124: 125820 | U124: 124033 | V124: 0 | W124: 0 | X124: 52000 | Y124: 94842 | Z124: 0 | AA124: 0 | AB124: 24000 | AC124: 7000 | AD124: 0 | AE124: 123539 | AF124: 15718 | AG124: 0 | AH124: 0 | AI124: 0 | AJ124: 0 | AK124: 2875955 | AL124: 1268835 | AM124: 6000 | AN124: 710531 | AO124: 42578 | AP124: 152472 | AQ124: 0 | AR124: 90162 | AS124: 12988 | AT124: 2413 | AU124: 1202 | AV124: 0 | AW124: 30369 | AX124: 16929 | AY124: 74345 | AZ124: 7900 | BA124: 47000 | BB124: 20318 | BC124: 8000 | BD124: 68763 | BE124: 0 | BF124: 4420 | BG124: 0 | BH124: 1500 | BI124: 0 | BJ124: 0 | BK124: 0 | BL124: 9515 | BM124: 0 | BN124: 18872 | BO124: 21268 | BP124: 0 | BQ124: 168759 | BR124: 56030 | BS124: 83434 | BT124: 30699 | BU124: 0 | BV124: 0 | BW124: 0 | BX124: 103968 | BY124: 16200 | BZ124: 3075470 | CB124: 12432 | CC124: 0 | CD124: 0 | CE124: 12432 | CG124: 0 | CH124: 14762 | CI124: 0 | CJ124: 0 | CK124: 0 | CL124: 0 | CM124: 0 | CN124: 0 | CO124: 0 | CP124: 14762 | CR124: -390284.98 | CS124: 0 | CT124: 0 | CU124: -0.03 | CV124: 0 | CW124: -5214.18 | CX124: -395499.19
A125: 553 | B125: 9163020 | C125: 3020 | E125: Bisley Blue Coat Church of England Primary School | I125: 95580.76 | J125: 14030 | K125: 0 | L125: 410.07 | M125: 0 | N125: 25866.35 | O125: 135887.18 | P125: 475433 | Q125: 0 | R125: 12233 | S125: 0 | T125: 16965 | U125: 21594 | V125: 0 | W125: 0 | X125: 17500 | Y125: 0 | Z125: 0 | AA125: 0 | AB125: 0 | AC125: 0 | AD125: 0 | AE125: 0 | AF125: 30284 | AG125: 0 | AH125: 0 | AI125: 0 | AJ125: 0 | AK125: 574009 | AL125: 280926 | AM125: 4295 | AN125: 91624 | AO125: 0 | AP125: 37927 | AQ125: 0 | AR125: 40805 | AS125: 3346 | AT125: 5400 | AU125: 3256 | AV125: 772 | AW125: 33143 | AX125: 2825 | AY125: 16273 | AZ125: 1300 | BA125: 14095 | BB125: 3842 | BC125: 1475 | BD125: 38362 | BE125: 0 | BF125: 2743 | BG125: 0 | BH125: 550 | BI125: 0 | BJ125: 600 | BK125: 0 | BL125: 2494 | BM125: 0 | BN125: 3482 | BO125: 2915 | BP125: 0 | BQ125: 10189 | BR125: 10000 | BS125: 28490 | BT125: 12207 | BU125: 0 | BV125: 0 | BW125: 0 | BX125: 38752 | BY125: 17398 | BZ125: 709486 | CB125: 4743 | CC125: 0 | CD125: 0 | CE125: 4743 | CG125: 0 | CH125: 5153 | CI125: 0 | CJ125: 0 | CK125: 0 | CL125: 0 | CM125: 0 | CN125: 0 | CO125: 0 | CP125: 5153 | CR125: -0.2400000002 | CS125: 0 | CT125: 0 | CU125: 0.07 | CV125: 0 | CW125: 0.35 | CX125: 0.1799999998
A126: 686 | B126: 9163372 | C126: 3372 | E126: King's Stanley CofE Primary School | I126: 106754.46 | J126: 2368.37 | K126: 0 | L126: 9703.82 | M126: 0 | N126: 0 | O126: 118826.65 | P126: 1059224 | Q126: 0 | R126: 84508 | S126: 0 | T126: 21395 | U126: 67546 | V126: 0 | W126: 0 | X126: 59156 | Y126: 2500 | Z126: 13885 | AA126: 0 | AB126: 14000 | AC126: 1000 | AD126: 0 | AE126: 0 | AF126: 0 | AG126: 0 | AH126: 0 | AI126: 0 | AJ126: 0 | AK126: 1323214 | AL126: 700058 | AM126: 8200 | AN126: 232765 | AO126: 46325 | AP126: 71541 | AQ126: 0 | AR126: 80848 | AS126: 4750 | AT126: 5700 | AU126: 8916 | AV126: 0 | AW126: 13150 | AX126: 2943 | AY126: 2700 | AZ126: 920 | BA126: 25333 | BB126: 7485 | BC126: 5250 | BD126: 77865 | BE126: 0 | BF126: 2650 | BG126: 0 | BH126: 5492 | BI126: 0 | BJ126: 0 | BK126: 700 | BL126: 5235 | BM126: 0 | BN126: 3450 | BO126: 11805 | BP126: 0 | BQ126: 41831 | BR126: 10300 | BS126: 13406 | BT126: 23882 | BU126: 0 | BV126: 0 | BW126: 0 | BX126: 0 | BY126: 0 | BZ126: 1413500 | CB126: 6328 | CC126: 0 | CD126: 0 | CE126: 6328 | CG126: 0 | CH126: 9328 | CI126: 0 | CJ126: 0 | CK126: 0 | CL126: 0 | CM126: 0 | CN126: 6704 | CO126: 0 | CP126: 16032 | CR126: 18836.83 | CS126: 0 | CT126: 0 | CU126: -0.18 | CV126: 0 | CW126: 0 | CX126: 18836.65
A127: 678 | B127: 9162118 | C127: 2118 | E127: Innsworth Junior School | I127: 273622.06 | J127: 24491.69 | K127: 0 | L127: 12734.62 | M127: 0 | N127: 0 | O127: 310848.37 | P127: 1192324 | Q127: 0 | R127: 35537 | S127: 0 | T127: 108260 | U127: 17950 | V127: 0 | W127: 0 | X127: 64838 | Y127: 5040 | Z127: 0 | AA127: 0 | AB127: 24460 | AC127: 1131 | AD127: 0 | AE127: 0 | AF127: 0 | AG127: 0 | AH127: 0 | AI127: 0 | AJ127: 0 | AK127: 1449540 | AL127: 773472 | AM127: 22500 | AN127: 255094 | AO127: 41932 | AP127: 52660 | AQ127: 0 | AR127: 48977 | AS127: 6109 | AT127: 3775 | AU127: 601 | AV127: 0 | AW127: 13194 | AX127: 4586 | AY127: 2575 | AZ127: 4340 | BA127: 21500 | BB127: 15095 | BC127: 5553 | BD127: 144917 | BE127: 0 | BF127: 4540 | BG127: 0 | BH127: 16000 | BI127: 721 | BJ127: 0 | BK127: 0 | BL127: 2500 | BM127: 0 | BN127: 1906 | BO127: 10409 | BP127: 0 | BQ127: 31803 | BR127: 22500 | BS127: 25021 | BT127: 15113 | BU127: 0 | BV127: 0 | BW127: 0 | BX127: 0 | BY127: 0 | BZ127: 1547393 | CB127: 5958 | CC127: 0 | CD127: 0 | CE127: 5958 | CG127: 0 | CH127: 18693 | CI127: 0 | CJ127: 0 | CK127: 0 | CL127: 0 | CM127: 0 | CN127: 0 | CO127: 0 | CP127: 18693 | CR127: 200260.75 | CS127: 0 | CT127: 0 | CU127: -0.38 | CV127: 0 | CW127: 0 | CX127: 200260.37
A128: 789 | B128: 9163374 | C128: 3374 | E128: Isbourne Valley School | I128: 2174.56 | J128: 1399.44 | K128: 0 | L128: 14580.17 | M128: 0 | N128: 0 | O128: 18154.17 | P128: 572386 | Q128: 0 | R128: 24667 | S128: 0 | T128: 13635 | U128: 32346 | V128: 0 | W128: 0 | X128: 0 | Y128: 0 | Z128: 0 | AA128: 0 | AB128: 11000 | AC128: 2000 | AD128: 0 | AE128: 0 | AF128: 0 | AG128: 0 | AH128: 0 | AI128: 0 | AJ128: 0 | AK128: 656034 | AL128: 369936 | AM128: 0 | AN128: 101189 | AO128: 0 | AP128: 36622 | AQ128: 0 | AR128: 16423 | AS128: 2686 | AT128: 4900 | AU128: 247 | AV128: 0 | AW128: 3804 | AX128: 4181 | AY128: 18919 | AZ128: 1943 | BA128: 21000 | BB128: 13224 | BC128: 3266 | BD128: 21740 | BE128: 0 | BF128: 1500 | BG128: 0 | BH128: 3500 | BI128: 3000 | BJ128: 0 | BK128: 0 | BL128: 4451 | BM128: 0 | BN128: 1729 | BO128: 4373 | BP128: 0 | BQ128: 21031 | BR128: 9471 | BS128: 11075 | BT128: 9378 | BU128: 0 | BV128: 0 | BW128: 0 | BX128: 0 | BY128: 0 | BZ128: 689588 | CB128: 4945 | CC128: 0 | CD128: 0 | CE128: 4945 | CG128: 0 | CH128: 19525 | CI128: 0 | CJ128: 0 | CK128: 0 | CL128: 0 | CM128: 0 | CN128: 0 | CO128: 0 | CP128: 19525 | CR128: -29980 | CS128: 0 | CT128: 0 | CU128: 0.17 | CV128: 0 | CW128: 0 | CX128: -29979.83
A129: 127 | B129: 9167015 | C129: 7015 | E129: Bettridge School | I129: -376687.13 | J129: -9240.5 | K129: 0 | L129: 26984.19 | M129: 0 | N129: 0 | O129: -358943.44 | P129: 2004465 | Q129: 0 | R129: 2802151 | S129: 0 | T129: 75360 | U129: 20106 | V129: 0 | W129: 57500 | X129: 32175 | Y129: -200 | Z129: 8448 | AA129: 26500 | AB129: 0 | AC129: 0 | AD129: 0 | AE129: 0 | AF129: 0 | AG129: 0 | AH129: 0 | AI129: 0 | AJ129: 0 | AK129: 5026505 | AL129: 1926773 | AM129: 12000 | AN129: 2068761 | AO129: 206611 | AP129: 239976 | AQ129: 0 | AR129: 18982 | AS129: 19000 | AT129: 19533 | AU129: 42086 | AV129: 10653 | AW129: 91981 | AX129: 0 | AY129: 14200 | AZ129: 8500 | BA129: 85000 | BB129: 0 | BC129: 2750 | BD129: 194866 | BE129: 0 | BF129: 0 | BG129: 0 | BH129: 0 | BI129: 27610 | BJ129: 1500 | BK129: 14400 | BL129: 0 | BM129: 20000 | BN129: 4562 | BO129: 32200 | BP129: 25597 | BQ129: 0 | BR129: 17421 | BS129: 271166 | BT129: 32527 | BU129: 0 | BV129: 0 | BW129: 0 | BX129: 0 | BY129: 0 | BZ129: 5408655 | CB129: 11239 | CC129: 0 | CD129: 0 | CE129: 11239 | CG129: 0 | CH129: 38223 | CI129: 0 | CJ129: 0 | CK129: 0 | CL129: 0 | CM129: 0 | CN129: 0 | CO129: 0 | CP129: 38223 | CR129: -768077.63 | CS129: 0 | CT129: 0 | CU129: 0.19 | CV129: 0 | CW129: 0 | CX129: -768077.44
A130: 771 | B130: 9163345 | C130: 3345 | E130: Sapperton Church of England Primary School | I130: 83788.73 | J130: 11445.07 | K130: 0 | L130: 0 | M130: 0 | N130: 0 | O130: 95233.8 | P130: 452838 | Q130: 0 | R130: 7313 | S130: 0 | T130: 21200 | U130: 21871 | V130: 0 | W130: 0 | X130: 11000 | Y130: 0 | Z130: 0 | AA130: 0 | AB130: 0 | AC130: 0 | AD130: 0 | AE130: 0 | AF130: 0 | AG130: 0 | AH130: 0 | AI130: 0 | AJ130: 0 | AK130: 514222 | AL130: 274526 | AM130: 12600 | AN130: 80318 | AO130: 2007 | AP130: 49087 | AQ130: 0 | AR130: 17737 | AS130: 2213 | AT130: 6250 | AU130: 155 | AV130: 2725 | AW130: 5780 | AX130: 4638 | AY130: 1245 | AZ130: 667 | BA130: 10151 | BB130: 938 | BC130: 4000 | BD130: 37501 | BE130: 0 | BF130: 0 | BG130: 0 | BH130: 840 | BI130: 0 | BJ130: 1500 | BK130: 0 | BL130: 0 | BM130: 0 | BN130: 790 | BO130: 2655 | BP130: 2753 | BQ130: 0 | BR130: 15447 | BS130: 1600 | BT130: 20921 | BU130: 0 | BV130: 0 | BW130: 500 | BX130: 0 | BY130: 0 | BZ130: 559544 | CB130: 0 | CC130: 0 | CD130: 0 | CE130: 0 | CG130: 0 | CH130: 0 | CI130: 0 | CJ130: 0 | CK130: 0 | CL130: 0 | CM130: 0 | CN130: 0 | CO130: 0 | CP130: 0 | CR130: 49911.8 | CS130: 0 | CT130: 0 | CU130: 0 | CV130: 0 | CW130: 0 | CX130: 49911.8
A131: 958 | B131: 9162185 | C131: 2185 | E131: Coopers Edge School | I131: 248211.18 | J131: 21586.65 | K131: 0 | L131: 13300.09 | M131: 0 | N131: 9548.47 | O131: 292646.39 | P131: 2258554 | Q131: 0 | R131: 220000 | S131: 0 | T131: 102410 | U131: 90324 | V131: 0 | W131: 10000 | X131: 67250 | Y131: 23687 | Z131: 19400 | AA131: 0 | AB131: 46500 | AC131: 0 | AD131: 0 | AE131: 49920 | AF131: 0 | AG131: 0 | AH131: 0 | AI131: 0 | AJ131: 0 | AK131: 2888045 | AL131: 1372525 | AM131: 5000 | AN131: 773349 | AO131: 81942 | AP131: 154013 | AQ131: 71748 | AR131: 136572 | AS131: 400 | AT131: 7450 | AU131: 24882 | AV131: 0 | AW131: 22000 | AX131: 5000 | AY131: 38000 | AZ131: 5000 | BA131: 44000 | BB131: 14355 | BC131: 11000 | BD131: 121676 | BE131: 0 | BF131: 1250 | BG131: 0 | BH131: 15000 | BI131: 4000 | BJ131: 11000 | BK131: 0 | BL131: 14000 | BM131: 0 | BN131: 9450 | BO131: 21967 | BP131: 0 | BQ131: 36800 | BR131: 5000 | BS131: 11566 | BT131: 62203 | BU131: 0 | BV131: 0 | BW131: 0 | BX131: 49920 | BY131: 0 | BZ131: 3131068 | CB131: 8523 | CC131: 0 | CD131: 0 | CE131: 8523 | CG131: 0 | CH131: 13300 | CI131: 0 | CJ131: 0 | CK131: 0 | CL131: 0 | CM131: 0 | CN131: 8523 | CO131: 0 | CP131: 21823 | CR131: 26774.83 | CS131: 0 | CT131: 0 | CU131: 0.09 | CV131: 0 | CW131: 9548.47 | CX131: 36323.39
A132: 830 | B132: 9165208 | C132: 5208 | E132: Tirlebrook Primary School | I132: -31007.71 | J132: 2386.73 | K132: 0 | L132: 17330.98 | M132: 0 | N132: -18219.54 | O132: -29509.54 | P132: 1016959 | Q132: 0 | R132: 76340 | S132: 0 | T132: 46410 | U132: 56055 | V132: 0 | W132: 0 | X132: 33770 | Y132: 13000 | Z132: 0 | AA132: 0 | AB132: 0 | AC132: 0 | AD132: 0 | AE132: 77532 | AF132: 1000 | AG132: 0 | AH132: 0 | AI132: 0 | AJ132: 0 | AK132: 1321066 | AL132: 691227 | AM132: 10000 | AN132: 222637 | AO132: 34680 | AP132: 79687 | AQ132: 43267 | AR132: 51051 | AS132: 600 | AT132: 4500 | AU132: 12902 | AV132: 2092 | AW132: 6621 | AX132: 4474 | AY132: 2000 | AZ132: 6000 | BA132: 48000 | BB132: 4441 | BC132: 3000 | BD132: 65822 | BE132: 0 | BF132: 4500 | BG132: 0 | BH132: 0 | BI132: 0 | BJ132: 1500 | BK132: 0 | BL132: 5204 | BM132: 0 | BN132: 6450 | BO132: 7070 | BP132: 0 | BQ132: 21965 | BR132: 20000 | BS132: 11155 | BT132: 21722 | BU132: 0 | BV132: 0 | BW132: 0 | BX132: 78406 | BY132: 8100 | BZ132: 1479073 | CB132: 6396 | CC132: 0 | CD132: 0 | CE132: 6396 | CG132: 0 | CH132: 23727 | CI132: 0 | CJ132: 0 | CK132: 0 | CL132: 0 | CM132: 0 | CN132: 0 | CO132: 0 | CP132: 23727 | CR132: -178653.98 | CS132: 0 | CT132: 0 | CU132: -0.02 | CV132: 0 | CW132: -26193.54 | CX132: -204847.54
A133: 888 | B133: 9162178 | C133: 2178 | E133: Hesters Way Primary School | I133: 167274.29 | J133: 3809.93 | K133: 0 | L133: 6137.08 | M133: 0 | N133: 0 | O133: 177221.3 | P133: 1262084 | Q133: 0 | R133: 132535 | S133: 0 | T133: 140410 | U133: 35446 | V133: 0 | W133: 0 | X133: 10500 | Y133: 10000 | Z133: 0 | AA133: 0 | AB133: 0 | AC133: 0 | AD133: 0 | AE133: 0 | AF133: 0 | AG133: 0 | AH133: 0 | AI133: 0 | AJ133: 0 | AK133: 1590975 | AL133: 743697 | AM133: 40000 | AN133: 455279 | AO133: 61005 | AP133: 67336 | AQ133: 52541 | AR133: 10191 | AS133: 6852 | AT133: 5015 | AU133: 561 | AV133: 0 | AW133: 14169 | AX133: 6462 | AY133: 4900 | AZ133: 5520 | BA133: 37710 | BB133: 18504 | BC133: 3400 | BD133: 67258 | BE133: 0 | BF133: 2579 | BG133: 0 | BH133: 9000 | BI133: 1900 | BJ133: 500 | BK133: 0 | BL133: 6432 | BM133: 0 | BN133: 3850 | BO133: 9933 | BP133: 0 | BQ133: 33600 | BR133: 32000 | BS133: 31234 | BT133: 17155 | BU133: 0 | BV133: 0 | BW133: 0 | BX133: 0 | BY133: 0 | BZ133: 1748583 | CB133: 6036 | CC133: 0 | CD133: 0 | CE133: 6036 | CG133: 0 | CH133: 12173 | CI133: 0 | CJ133: 0 | CK133: 0 | CL133: 0 | CM133: 0 | CN133: 0 | CO133: 0 | CP133: 12173 | CR133: 13476.22 | CS133: 0 | CT133: 0 | CU133: 0.08 | CV133: 0 | CW133: 0 | CX133: 13476.3
A134: 551 | B134: 9162056 | C134: 2056 | E134: Birdlip Primary School | I134: 121049.09 | J134: 2681 | K134: 0 | L134: 162.84 | M134: 0 | N134: 0 | O134: 123892.93 | P134: 641610 | Q134: 0 | R134: 0 | S134: 0 | T134: 14700 | U134: 31381 | V134: 0 | W134: 0 | X134: 2400 | Y134: 0 | Z134: 0 | AA134: 0 | AB134: 0 | AC134: 6162 | AD134: 0 | AE134: 0 | AF134: 0 | AG134: 0 | AH134: 0 | AI134: 0 | AJ134: 0 | AK134: 696253 | AL134: 334398 | AM134: 1200 | AN134: 108032 | AO134: 0 | AP134: 53095 | AQ134: 0 | AR134: 0 | AS134: 2391 | AT134: 4340 | AU134: 311 | AV134: 2500 | AW134: 7287 | AX134: 4700 | AY134: 9800 | AZ134: 3500 | BA134: 19371 | BB134: 4691 | BC134: 14556 | BD134: 27184 | BE134: 0 | BF134: 0 | BG134: 0 | BH134: 3000 | BI134: 0 | BJ134: 10080 | BK134: 1250 | BL134: 1250 | BM134: 0 | BN134: 3571 | BO134: 6062 | BP134: 5506 | BQ134: 0 | BR134: 18244 | BS134: 18496 | BT134: 14802 | BU134: 0 | BV134: 0 | BW134: 0 | BX134: 0 | BY134: 0 | BZ134: 679617 | CB134: 5136 | CC134: 0 | CD134: 0 | CE134: 5136 | CG134: 0 | CH134: 36923 | CI134: 0 | CJ134: 0 | CK134: 0 | CL134: 0 | CM134: 0 | CN134: 0 | CO134: 0 | CP134: 36923 | CR134: 140366.09 | CS134: 0 | CT134: 0 | CU134: -31624.16 | CV134: 0 | CW134: 0 | CX134: 108741.93
A135: 786 | B135: 9163069 | C135: 3069 | E135: Ann Edwards Church of England Primary School | I135: -477547.99 | J135: 12020.68 | K135: 0 | L135: 7398.48 | M135: 0 | N135: 0 | O135: -458128.83 | P135: 1199973 | Q135: 0 | R135: 96108 | S135: 0 | T135: 68640 | U135: 46637 | V135: 0 | W135: 500 | X135: 43049 | Y135: 1500 | Z135: 0 | AA135: 0 | AB135: 25000 | AC135: 500 | AD135: 0 | AE135: 0 | AF135: 0 | AG135: 0 | AH135: 0 | AI135: 0 | AJ135: 0 | AK135: 1481907 | AL135: 781762 | AM135: 1200 | AN135: 345551 | AO135: 26878 | AP135: 98673 | AQ135: 0 | AR135: 83851 | AS135: 6739 | AT135: 2000 | AU135: 8675 | AV135: 2000 | AW135: 11194 | AX135: 3277 | AY135: 37000 | AZ135: 2310 | BA135: 27200 | BB135: 24326 | BC135: 4400 | BD135: 58119 | BE135: 0 | BF135: 5205 | BG135: 0 | BH135: 6500 | BI135: 1457 | BJ135: 500 | BK135: 100 | BL135: 4263 | BM135: 0 | BN135: 1748 | BO135: 12146 | BP135: 0 | BQ135: 42400 | BR135: 1200 | BS135: 8411 | BT135: 26299 | BU135: 0 | BV135: 0 | BW135: 0 | BX135: 0 | BY135: 0 | BZ135: 1635384 | CB135: 6621 | CC135: 0 | CD135: 0 | CE135: 6621 | CG135: 0 | CH135: 7398 | CI135: 0 | CJ135: 0 | CK135: 0 | CL135: 0 | CM135: 0 | CN135: 6621 | CO135: 0 | CP135: 14019 | CR135: -619004.31 | CS135: 0 | CT135: 0 | CU135: 0.48 | CV135: 0 | CW135: 0 | CX135: -619003.83
A136: 764 | B136: 9162085 | C136: 2085 | E136: Rodmarton School | I136: -154172.22 | J136: 5182.54 | K136: 0 | L136: 28630.37 | M136: 0 | N136: 0 | O136: -120359.31 | P136: 525582 | Q136: 0 | R136: 25868 | S136: 0 | T136: 9805 | U136: 29303 | V136: 0 | W136: 0 | X136: 23000 | Y136: 0 | Z136: 0 | AA136: 0 | AB136: 7000 | AC136: 0 | AD136: 0 | AE136: 0 | AF136: 0 | AG136: 0 | AH136: 0 | AI136: 0 | AJ136: 0 | AK136: 620558 | AL136: 308233 | AM136: 4000 | AN136: 108237 | AO136: 0 | AP136: 32108 | AQ136: 0 | AR136: 31719 | AS136: 2671 | AT136: 2584 | AU136: 405 | AV136: 0 | AW136: 2892 | AX136: 2384 | AY136: 12592 | AZ136: 959 | BA136: 6857 | BB136: 5364 | BC136: 32878 | BD136: 24055 | BE136: 0 | BF136: 0 | BG136: 0 | BH136: 0 | BI136: 0 | BJ136: 6848 | BK136: 1612 | BL136: 1396 | BM136: 0 | BN136: 2790 | BO136: 1695 | BP136: 3380 | BQ136: 0 | BR136: 15982 | BS136: 22652 | BT136: 10434 | BU136: 0 | BV136: 0 | BW136: 0 | BX136: 0 | BY136: 0 | BZ136: 644727 | CB136: 4765 | CC136: 0 | CD136: 0 | CE136: 4765 | CG136: 0 | CH136: 33395 | CI136: 0 | CJ136: 0 | CK136: 0 | CL136: 0 | CM136: 0 | CN136: 0 | CO136: 0 | CP136: 33395 | CR136: -173158.68 | CS136: 0 | CT136: 0 | CU136: 0.37 | CV136: 0 | CW136: 0 | CX136: -173158.31
A137: 851 | B137: 9163352 | C137: 3352 | E137: Withington Church of England Primary School | I137: 77612.81 | J137: 4670.21 | K137: 0 | L137: 0 | M137: 0 | N137: -2821.42 | O137: 79461.6 | P137: 268998 | Q137: 0 | R137: 13040 | S137: 0 | T137: 7575 | U137: 15412 | V137: 0 | W137: 0 | X137: 0 | Y137: 0 | Z137: 0 | AA137: 0 | AB137: 6500 | AC137: 0 | AD137: 0 | AE137: 38591 | AF137: 16500 | AG137: 0 | AH137: 0 | AI137: 0 | AJ137: 0 | AK137: 366616 | AL137: 126127 | AM137: 6000 | AN137: 49143 | AO137: 8704 | AP137: 25803 | AQ137: 0 | AR137: 0 | AS137: 500 | AT137: 2100 | AU137: 37 | AV137: 3994 | AW137: 4386 | AX137: 525 | AY137: 1000 | AZ137: 867 | BA137: 8400 | BB137: 778 | BC137: 2000 | BD137: 30771 | BE137: 0 | BF137: 3700 | BG137: 0 | BH137: 5550 | BI137: 1850 | BJ137: 0 | BK137: 0 | BL137: 0 | BM137: 0 | BN137: 2719 | BO137: 467 | BP137: 0 | BQ137: 7334 | BR137: 12545 | BS137: 8030 | BT137: 15865 | BU137: 0 | BV137: 0 | BW137: 0 | BX137: 67334 | BY137: 733 | BZ137: 397262 | CB137: 0 | CC137: 0 | CD137: 0 | CE137: 0 | CG137: 0 | CH137: 0 | CI137: 0 | CJ137: 0 | CK137: 0 | CL137: 0 | CM137: 0 | CN137: 0 | CO137: 0 | CP137: 0 | CR137: 64613.02 | CS137: 0 | CT137: 0 | CU137: 0 | CV137: 0 | CW137: -15797.42 | CX137: 48815.6
A138: 567 | B138: 9163335 | C138: 3335 | E138: Brimscombe Church of England (VA) Primary School | I138: -29664.98 | J138: 3009.95 | K138: 0 | L138: 0 | M138: 0 | N138: 23986.05 | O138: -2668.98 | P138: 621820 | Q138: 0 | R138: 25750 | S138: 0 | T138: 25775 | U138: 37589 | V138: 0 | W138: 2700 | X138: 20888 | Y138: 7435 | Z138: 0 | AA138: 0 | AB138: 17500 | AC138: 2600 | AD138: 0 | AE138: 61000 | AF138: 0 | AG138: 0 | AH138: 0 | AI138: 0 | AJ138: 0 | AK138: 823057 | AL138: 343407 | AM138: 1368 | AN138: 161243 | AO138: 0 | AP138: 34665 | AQ138: 0 | AR138: 21536 | AS138: 3140 | AT138: 3000 | AU138: 1809 | AV138: 0 | AW138: 19972 | AX138: 6741 | AY138: 18573 | AZ138: 1158 | BA138: 12606 | BB138: 2894 | BC138: 547 | BD138: 47932 | BE138: 0 | BF138: 3245 | BG138: 0 | BH138: 196 | BI138: 0 | BJ138: 0 | BK138: 0 | BL138: 0 | BM138: 0 | BN138: 3508 | BO138: 5355 | BP138: 0 | BQ138: 28652 | BR138: 1000 | BS138: 20202 | BT138: 26260 | BU138: 0 | BV138: 0 | BW138: 0 | BX138: 50399 | BY138: 700 | BZ138: 820108 | CB138: 0 | CC138: 0 | CD138: 0 | CE138: 0 | CG138: 0 | CH138: 0 | CI138: 0 | CJ138: 0 | CK138: 0 | CL138: 0 | CM138: 0 | CN138: 0 | CO138: 0 | CP138: 0 | CR138: -33607.03 | CS138: 0 | CT138: 0 | CU138: 0 | CV138: 0 | CW138: 33887.05 | CX138: 280.02
A139: 373 | B139: 9165424 | C139: 5424 | E139: Maidenhill School | I139: 899174.22 | J139: 236223.08 | K139: 0 | L139: -8.731149137e-11 | M139: 0 | N139: 0 | O139: 1135397.3 | P139: 5180560 | Q139: 0 | R139: 379146 | S139: 0 | T139: 212830 | U139: 0 | V139: 6000 | W139: 7500 | X139: 25000 | Y139: 0 | Z139: 0 | AA139: 0 | AB139: 29349 | AC139: 0 | AD139: 0 | AE139: 0 | AF139: 0 | AG139: 0 | AH139: 0 | AI139: 0 | AJ139: 0 | AK139: 5840385 | AL139: 3146609 | AM139: 15000 | AN139: 1014713 | AO139: 93661 | AP139: 425338 | AQ139: 0 | AR139: 19200 | AS139: 38543 | AT139: 12000 | AU139: 0 | AV139: 498 | AW139: 112256 | AX139: 14984 | AY139: 93988 | AZ139: 9000 | BA139: 131618 | BB139: 24590 | BC139: 28962 | BD139: 501989 | BE139: 0 | BF139: 18074 | BG139: 0 | BH139: 6896 | BI139: 35230 | BJ139: 27500 | BK139: 10000 | BL139: 15900 | BM139: 60600 | BN139: 26470 | BO139: 27641 | BP139: 0 | BQ139: 92860 | BR139: 90382 | BS139: 166235 | BT139: 34259 | BU139: 0 | BV139: 0 | BW139: 113034 | BX139: 0 | BY139: 0 | BZ139: 6408030 | CB139: 16234 | CC139: 0 | CD139: 0 | CE139: 16234 | CG139: 0 | CH139: 16234 | CI139: 0 | CJ139: 0 | CK139: 0 | CL139: 0 | CM139: 0 | CN139: 0 | CO139: 0 | CP139: 16234 | CR139: 567752.3 | CS139: 0 | CT139: 0 | CU139: -8.731149137e-11 | CV139: 0 | CW139: 0 | CX139: 567752.3
A140: 635 | B140: 9162068 | C140: 2068 | E140: Eastington Primary School | I140: 83793.53 | J140: 4264.65 | K140: 0 | L140: 3613.19 | M140: 0 | N140: 0 | O140: 91671.37 | P140: 780857 | Q140: 0 | R140: 30668 | S140: 0 | T140: 10955 | U140: 36070 | V140: 0 | W140: 0 | X140: 0 | Y140: 0 | Z140: 0 | AA140: 0 | AB140: 13000 | AC140: 0 | AD140: 0 | AE140: 0 | AF140: 0 | AG140: 0 | AH140: 0 | AI140: 0 | AJ140: 0 | AK140: 871550 | AL140: 481533 | AM140: 22347 | AN140: 124853 | AO140: 17416 | AP140: 42767 | AQ140: 0 | AR140: 13693 | AS140: 2600 | AT140: 4580 | AU140: 11631 | AV140: 0 | AW140: 7420 | AX140: 2000 | AY140: 1800 | AZ140: 3700 | BA140: 13000 | BB140: 14190 | BC140: 21500 | BD140: 34906 | BE140: 0 | BF140: 0 | BG140: 0 | BH140: 2364 | BI140: 0 | BJ140: 3000 | BK140: 0 | BL140: 3000 | BM140: 0 | BN140: 6298 | BO140: 5880 | BP140: 7681 | BQ140: 0 | BR140: 23604 | BS140: 12490 | BT140: 18516 | BU140: 0 | BV140: 0 | BW140: 0 | BX140: 0 | BY140: 0 | BZ140: 902769 | CB140: 5575 | CC140: 0 | CD140: 0 | CE140: 5575 | CG140: 0 | CH140: 9188 | CI140: 0 | CJ140: 0 | CK140: 0 | CL140: 0 | CM140: 0 | CN140: 0 | CO140: 0 | CP140: 9188 | CR140: 56839.18 | CS140: 0 | CT140: 0 | CU140: 0.19 | CV140: 0 | CW140: 0 | CX140: 56839.37
A141: 807 | B141: 9165214 | C141: 5214 | E141: Swindon Village Primary School | I141: 74983.95 | J141: 7847 | K141: 0 | L141: 8327.81 | M141: 0 | N141: 0 | O141: 91158.76 | P141: 2147856 | Q141: 0 | R141: 128500 | S141: 0 | T141: 113625 | U141: 88760 | V141: 15158 | W141: 38000 | X141: 10200 | Y141: 21906 | Z141: 0 | AA141: 0 | AB141: 47525 | AC141: 3044 | AD141: 0 | AE141: 0 | AF141: 0 | AG141: 0 | AH141: 0 | AI141: 0 | AJ141: 0 | AK141: 2614574 | AL141: 1300576 | AM141: 4250 | AN141: 581231 | AO141: 33148 | AP141: 123226 | AQ141: 0 | AR141: 48323 | AS141: 850 | AT141: 4732 | AU141: 1287 | AV141: 0 | AW141: 28378 | AX141: 3591 | AY141: 44500 | AZ141: 8500 | BA141: 43000 | BB141: 10538 | BC141: 8750 | BD141: 120608 | BE141: 0 | BF141: 300 | BG141: 0 | BH141: 3000 | BI141: 2000 | BJ141: 700 | BK141: 0 | BL141: 22430 | BM141: 0 | BN141: 17800 | BO141: 22780 | BP141: 0 | BQ141: 131225 | BR141: 3000 | BS141: 2000 | BT141: 18485 | BU141: 0 | BV141: 0 | BW141: 0 | BX141: 0 | BY141: 0 | BZ141: 2589208 | CB141: 8770 | CC141: 0 | CD141: 0 | CE141: 8770 | CG141: 0 | CH141: 17098 | CI141: 0 | CJ141: 0 | CK141: 0 | CL141: 0 | CM141: 0 | CN141: 0 | CO141: 0 | CP141: 17098 | CR141: 108196.95 | CS141: 0 | CT141: 0 | CU141: -0.19 | CV141: 0 | CW141: 0 | CX141: 108196.76
A142: 926 | B142: 9162030 | C142: 2030 | E142: Dinglewell Junior School | I142: 20303.17 | J142: 12507.88 | K142: 0 | L142: 9292.07 | M142: 0 | N142: 0 | O142: 42103.12 | P142: 1840739 | Q142: 0 | R142: 135942 | S142: 0 | T142: 58505 | U142: 19593 | V142: 0 | W142: 8100 | X142: 81000 | Y142: 5000 | Z142: 0 | AA142: 0 | AB142: 15000 | AC142: 0 | AD142: 0 | AE142: 0 | AF142: 0 | AG142: 0 | AH142: 0 | AI142: 0 | AJ142: 0 | AK142: 2163879 | AL142: 1135440 | AM142: 12000 | AN142: 529973 | AO142: 20133 | AP142: 87733 | AQ142: 0 | AR142: 32565 | AS142: 7100 | AT142: 6291 | AU142: 6730 | AV142: 1409 | AW142: 9842 | AX142: 362 | AY142: 32280 | AZ142: 11500 | BA142: 28500 | BB142: 33382 | BC142: 3000 | BD142: 109959 | BE142: 0 | BF142: 2300 | BG142: 0 | BH142: 1187 | BI142: 5000 | BJ142: 0 | BK142: 0 | BL142: 6259 | BM142: 0 | BN142: 4454 | BO142: 19325 | BP142: 0 | BQ142: 26446 | BR142: 14000 | BS142: 4250 | BT142: 17848 | BU142: 0 | BV142: 0 | BW142: 0 | BX142: 0 | BY142: 0 | BZ142: 2169268 | CB142: 8061 | CC142: 0 | CD142: 0 | CE142: 8061 | CG142: 0 | CH142: 0 | CI142: 0 | CJ142: 0 | CK142: 0 | CL142: 0 | CM142: 5953 | CN142: 5700 | CO142: 5700 | CP142: 17353 | CR142: 27422.05 | CS142: 0 | CT142: 0 | CU142: 0.07 | CV142: 0 | CW142: 0 | CX142: 27422.12
A143: 856 | B143: 9165209 | C143: 5209 | E143: The British School | I143: 67829.43 | J143: 14917.8 | K143: 0 | L143: 667.15 | M143: 0 | N143: 0 | O143: 83414.38 | P143: 925422 | Q143: 0 | R143: 70720 | S143: 0 | T143: 35445 | U143: 50171 | V143: 0 | W143: 10000 | X143: 0 | Y143: 11000 | Z143: 0 | AA143: 0 | AB143: 0 | AC143: 0 | AD143: 0 | AE143: 0 | AF143: 0 | AG143: 0 | AH143: 0 | AI143: 0 | AJ143: 0 | AK143: 1102758 | AL143: 552672 | AM143: 15000 | AN143: 240126 | AO143: 34147 | AP143: 63115 | AQ143: 31418 | AR143: 24004 | AS143: 750 | AT143: 3000 | AU143: 6565 | AV143: 0 | AW143: 9002 | AX143: 8362 | AY143: 3000 | AZ143: 6000 | BA143: 27000 | BB143: 5678 | BC143: 2750 | BD143: 21403 | BE143: 0 | BF143: 0 | BG143: 0 | BH143: 2000 | BI143: 0 | BJ143: 12000 | BK143: 4714 | BL143: 4000 | BM143: 0 | BN143: 4774 | BO143: 2130 | BP143: 9126 | BQ143: 0 | BR143: 19960 | BS143: 41656 | BT143: 23305 | BU143: 0 | BV143: 0 | BW143: 0 | BX143: 0 | BY143: 0 | BZ143: 1177657 | CB143: 5913 | CC143: 0 | CD143: 0 | CE143: 5913 | CG143: 0 | CH143: 6580 | CI143: 0 | CJ143: 0 | CK143: 0 | CL143: 0 | CM143: 0 | CN143: 0 | CO143: 0 | CP143: 6580 | CR143: 7848.23 | CS143: 0 | CT143: 0 | CU143: 0.15 | CV143: 0 | CW143: 0 | CX143: 7848.38
A144: 933 | B144: 9162025 | C144: 2025 | E144: Harewood Infant School | I144: 185083.48 | J144: 22089.3 | K144: 0 | L144: 16946.07 | M144: 0 | N144: 0 | O144: 224118.85 | P144: 1268276 | Q144: 0 | R144: 8511 | S144: 0 | T144: 61265 | U144: 97899 | V144: 0 | W144: 0 | X144: 6708 | Y144: 0 | Z144: 0 | AA144: 0 | AB144: 4000 | AC144: 0 | AD144: 0 | AE144: 0 | AF144: 0 | AG144: 0 | AH144: 0 | AI144: 0 | AJ144: 0 | AK144: 1446659 | AL144: 749147 | AM144: 5275 | AN144: 333683 | AO144: 68290 | AP144: 60905 | AQ144: 0 | AR144: 40265 | AS144: 7005 | AT144: 2695 | AU144: 720 | AV144: 0 | AW144: 9769 | AX144: 2813 | AY144: 2500 | AZ144: 1348 | BA144: 24736 | BB144: 0 | BC144: 1950 | BD144: 65514 | BE144: 0 | BF144: 1797 | BG144: 0 | BH144: 0 | BI144: 0 | BJ144: 0 | BK144: 0 | BL144: 2478 | BM144: 0 | BN144: 7835 | BO144: 12739 | BP144: 0 | BQ144: 81248 | BR144: 1269 | BS144: 15216 | BT144: 24184 | BU144: 0 | BV144: 0 | BW144: 0 | BX144: 0 | BY144: 0 | BZ144: 1523381 | CB144: 6903 | CC144: 0 | CD144: 0 | CE144: 6903 | CG144: 0 | CH144: 23849 | CI144: 0 | CJ144: 0 | CK144: 0 | CL144: 0 | CM144: 0 | CN144: 0 | CO144: 0 | CP144: 23849 | CR144: 130450.78 | CS144: 0 | CT144: 0 | CU144: 0.07 | CV144: 0 | CW144: 0 | CX144: 130450.85
A145: 693 | B145: 9165210 | C145: 5210 | E145: Warden Hill Primary School | I145: 112611.74 | J145: 4698.8 | K145: 0 | L145: 19177.27 | M145: 0 | N145: 0 | O145: 136487.81 | P145: 2128314 | Q145: 0 | R145: 100869 | S145: 0 | T145: 93315 | U145: 89453 | V145: 0 | W145: 0 | X145: 128842 | Y145: 0 | Z145: 0 | AA145: 0 | AB145: 33054 | AC145: 5000 | AD145: 0 | AE145: 0 | AF145: 0 | AG145: 0 | AH145: 0 | AI145: 0 | AJ145: 0 | AK145: 2578847 | AL145: 1337284 | AM145: 48500 | AN145: 373895 | AO145: 98068 | AP145: 138117 | AQ145: 0 | AR145: 191696 | AS145: 0 | AT145: 5380 | AU145: 1281 | AV145: 0 | AW145: 18200 | AX145: 11600 | AY145: 0 | AZ145: 4400 | BA145: 55000 | BB145: 7822 | BC145: 5500 | BD145: 132790 | BE145: 0 | BF145: 0 | BG145: 0 | BH145: 5051 | BI145: 0 | BJ145: 6750 | BK145: 5500 | BL145: 500 | BM145: 3200 | BN145: 3500 | BO145: 8200 | BP145: 22971 | BQ145: 0 | BR145: 99658 | BS145: 5500 | BT145: 14995 | BU145: 0 | BV145: 0 | BW145: 0 | BX145: 0 | BY145: 0 | BZ145: 2605358 | CB145: 8691 | CC145: 0 | CD145: 0 | CE145: 8691 | CG145: 0 | CH145: 27868 | CI145: 0 | CJ145: 0 | CK145: 0 | CL145: 0 | CM145: 0 | CN145: 0 | CO145: 0 | CP145: 27868 | CR145: 90799.54 | CS145: 0 | CT145: 0 | CU145: 0.27 | CV145: 0 | CW145: 0 | CX145: 90799.81
A146: 585 | B146: 9162117 | C146: 2117 | E146: Cashes Green Primary School | I146: 259195.72 | J146: 17653 | K146: 0 | L146: 0 | M146: 0 | N146: 0.08 | O146: 276848.8 | P146: 1235528 | Q146: 0 | R146: 176821 | S146: 0 | T146: 100305 | U146: 32980 | V146: 0 | W146: 12000 | X146: 50000 | Y146: 0 | Z146: 0 | AA146: 0 | AB146: 0 | AC146: 3000 | AD146: 0 | AE146: 0 | AF146: 0 | AG146: 0 | AH146: 0 | AI146: 0 | AJ146: 0 | AK146: 1610634 | AL146: 843499 | AM146: 31000 | AN146: 336950 | AO146: 37674 | AP146: 70298 | AQ146: 0 | AR146: 38222 | AS146: 6049 | AT146: 5000 | AU146: 1643 | AV146: 0 | AW146: 9550 | AX146: 5013 | AY146: 3700 | AZ146: 10000 | BA146: 32518 | BB146: 19386 | BC146: 5750 | BD146: 76995 | BE146: 0 | BF146: 0 | BG146: 0 | BH146: 2200 | BI146: 0 | BJ146: 13750 | BK146: 0 | BL146: 0 | BM146: 0 | BN146: 0 | BO146: 3000 | BP146: 10014 | BQ146: 38030 | BR146: 38567 | BS146: 54056 | BT146: 18911 | BU146: 0 | BV146: 0 | BW146: 0 | BX146: -0.28 | BY146: 0.2 | BZ146: 1711774.92 | CB146: 6306 | CC146: 0 | CD146: 0 | CE146: 6306 | CG146: 0 | CH146: 6306 | CI146: 0 | CJ146: 0 | CK146: 0 | CL146: 0 | CM146: 0 | CN146: 0 | CO146: 0 | CP146: 6306 | CR146: 175707.72 | CS146: 0 | CT146: 0 | CU146: 0 | CV146: 0 | CW146: 0.08 | CX146: 175707.8
A147: 535 | B147: 9163086 | C147: 3086 | E147: Ashleworth Church of England Primary School | I147: 52548.79 | J147: 26586.83 | K147: 0 | L147: 9736.14 | M147: 0 | N147: 0 | O147: 88871.76 | P147: 271496 | Q147: 0 | R147: 47057 | S147: 0 | T147: 16665 | U147: 17270 | V147: 0 | W147: 0 | X147: 3500 | Y147: 0 | Z147: 0 | AA147: 0 | AB147: 750 | AC147: 0 | AD147: 0 | AE147: 0 | AF147: 0 | AG147: 0 | AH147: 0 | AI147: 0 | AJ147: 0 | AK147: 356738 | AL147: 171817 | AM147: 1600 | AN147: 41956 | AO147: 0 | AP147: 19328 | AQ147: 0 | AR147: 6860 | AS147: 950 | AT147: 1400 | AU147: 1464 | AV147: 0 | AW147: 2661 | AX147: 1771 | AY147: 8918 | AZ147: 650 | BA147: 11500 | BB147: 2794 | BC147: 1680 | BD147: 27758 | BE147: 0 | BF147: 2500 | BG147: 0 | BH147: 400 | BI147: 510 | BJ147: 0 | BK147: 0 | BL147: 2800 | BM147: 0 | BN147: 1100 | BO147: 1133 | BP147: 0 | BQ147: 9125 | BR147: 1900 | BS147: 74105 | BT147: 11092 | BU147: 0 | BV147: 0 | BW147: 0 | BX147: 0 | BY147: 0 | BZ147: 407772 | CB147: 4248 | CC147: 0 | CD147: 0 | CE147: 4248 | CG147: 0 | CH147: 13984 | CI147: 0 | CJ147: 0 | CK147: 0 | CL147: 0 | CM147: 0 | CN147: 0 | CO147: 0 | CP147: 13984 | CR147: 28101.62 | CS147: 0 | CT147: 0 | CU147: 0.14 | CV147: 0 | CW147: 0 | CX147: 28101.76
A148: 731 | B148: 9163341 | C148: 3341 | E148: North Nibley CofE Primary School | I148: 148549.94 | J148: 0 | K148: 0 | L148: 0 | M148: 0 | N148: 0 | O148: 148549.94 | P148: 656932 | Q148: 0 | R148: 31460 | S148: 0 | T148: 9090 | U148: 34338 | V148: 0 | W148: 0 | X148: 32000 | Y148: 0 | Z148: 5000 | AA148: 0 | AB148: 31600 | AC148: 0 | AD148: 0 | AE148: 0 | AF148: 0 | AG148: 0 | AH148: 0 | AI148: 0 | AJ148: 0 | AK148: 800420 | AL148: 367046 | AM148: 11176 | AN148: 111249 | AO148: 17901 | AP148: 49256 | AQ148: 0 | AR148: 37296 | AS148: 1157 | AT148: 8740 | AU148: 6026 | AV148: 0 | AW148: 16317 | AX148: 1367 | AY148: 1940 | AZ148: 2236 | BA148: 6200 | BB148: 1621 | BC148: 2009 | BD148: 79073 | BE148: 0 | BF148: 0 | BG148: 0 | BH148: 10000 | BI148: 0 | BJ148: 0 | BK148: 9901 | BL148: 9000 | BM148: 0 | BN148: 1712 | BO148: 1289 | BP148: 5722 | BQ148: 0 | BR148: 23686 | BS148: 22000 | BT148: 21905 | BU148: 0 | BV148: 0 | BW148: 0 | BX148: 0 | BY148: 0 | BZ148: 825825 | CB148: 0 | CC148: 0 | CD148: 0 | CE148: 0 | CG148: 0 | CH148: 0 | CI148: 0 | CJ148: 0 | CK148: 0 | CL148: 0 | CM148: 0 | CN148: 0 | CO148: 0 | CP148: 0 | CR148: 123144.94 | CS148: 0 | CT148: 0 | CU148: 0 | CV148: 0 | CW148: 0 | CX148: 123144.94
A149: 845 | B149: 9163081 | C149: 3081 | E149: Willersey Church of England Primary School | I149: 127966.05 | J149: 19526 | K149: 0 | L149: 13060.49 | M149: 0 | N149: 0 | O149: 160552.54 | P149: 436540 | Q149: 0 | R149: 6589 | S149: 0 | T149: 28785 | U149: 22802 | V149: 0 | W149: 0 | X149: 500 | Y149: 0 | Z149: 0 | AA149: 0 | AB149: 800 | AC149: 0 | AD149: 0 | AE149: 0 | AF149: 0 | AG149: 0 | AH149: 0 | AI149: 0 | AJ149: 0 | AK149: 496016 | AL149: 222564 | AM149: 7000 | AN149: 89789 | AO149: 8723 | AP149: 31650 | AQ149: 0 | AR149: 20135 | AS149: 2300 | AT149: 3800 | AU149: 3915 | AV149: 942 | AW149: 8000 | AX149: 0 | AY149: 2007 | AZ149: 500 | BA149: 6000 | BB149: 5115 | BC149: 2850 | BD149: 34263 | BE149: 0 | BF149: 0 | BG149: 0 | BH149: 3300 | BI149: 0 | BJ149: 0 | BK149: 0 | BL149: 0 | BM149: 0 | BN149: 2690 | BO149: 4900 | BP149: 2591 | BQ149: 0 | BR149: 16729 | BS149: 7000 | BT149: 27582 | BU149: 0 | BV149: 0 | BW149: 0 | BX149: 0 | BY149: 0 | BZ149: 514345 | CB149: 4563 | CC149: 0 | CD149: 0 | CE149: 4563 | CG149: 0 | CH149: 17623 | CI149: 0 | CJ149: 0 | CK149: 0 | CL149: 0 | CM149: 0 | CN149: 0 | CO149: 0 | CP149: 17623 | CR149: 129163.05 | CS149: 0 | CT149: 0 | CU149: 0.49 | CV149: 0 | CW149: 0 | CX149: 129163.54
A150: 580 | B150: 9162143 | C150: 2143 | E150: Cam Everlands Primary School | I150: 103870.88 | J150: 18646.72 | K150: 0 | L150: -6000 | M150: 0 | N150: 0 | O150: 116517.6 | P150: 1153412 | Q150: 0 | R150: 128916 | S150: 0 | T150: 86655 | U150: 40839 | V150: 0 | W150: 4000 | X150: 51386 | Y150: 0 | Z150: 0 | AA150: 0 | AB150: 0 | AC150: 0 | AD150: 0 | AE150: 0 | AF150: 0 | AG150: 0 | AH150: 0 | AI150: 0 | AJ150: 0 | AK150: 1465208 | AL150: 686849 | AM150: 15500 | AN150: 419013 | AO150: 27871 | AP150: 65892 | AQ150: 0 | AR150: 95004 | AS150: 5897 | AT150: 5190 | AU150: 14635 | AV150: 3501 | AW150: 17574 | AX150: 6762 | AY150: 4032 | AZ150: 2000 | BA150: 25230 | BB150: 15206 | BC150: 6450 | BD150: 60796 | BE150: 0 | BF150: 4000 | BG150: 0 | BH150: 3110 | BI150: 1000 | BJ150: 0 | BK150: 0 | BL150: 3174 | BM150: 0 | BN150: 6160 | BO150: 11174 | BP150: 0 | BQ150: 56482 | BR150: 5000 | BS150: 17962 | BT150: 23792 | BU150: 0 | BV150: 0 | BW150: 0 | BX150: 0 | BY150: 0 | BZ150: 1609256 | CB150: 6362 | CC150: 0 | CD150: 0 | CE150: 6362 | CG150: 0 | CH150: 362 | CI150: 0 | CJ150: 0 | CK150: 0 | CL150: 0 | CM150: 0 | CN150: 0 | CO150: 0 | CP150: 362 | CR150: -21530.4 | CS150: 0 | CT150: 0 | CU150: 3.637978807e-12 | CV150: 0 | CW150: 0 | CX150: -21530.4
A151: 791 | B151: 9162146 | C151: 2146 | E151: Stonehouse Park Infant School | I151: -168205.3 | J151: 601.39 | K151: 0 | L151: 1574.38 | M151: 0 | N151: -19474.25 | O151: -185503.78 | P151: 731563 | Q151: 0 | R151: 21534 | S151: 0 | T151: 46965 | U151: 54749 | V151: 0 | W151: 0 | X151: 40782 | Y151: 0 | Z151: 0 | AA151: 0 | AB151: 0 | AC151: 0 | AD151: 0 | AE151: 226731 | AF151: 3500 | AG151: 0 | AH151: 0 | AI151: 0 | AJ151: 0 | AK151: 1125824 | AL151: 361085 | AM151: 0 | AN151: 148320 | AO151: 55012 | AP151: 64898 | AQ151: 0 | AR151: 42412 | AS151: 4820 | AT151: 2041 | AU151: 339 | AV151: 0 | AW151: 16326 | AX151: 2060 | AY151: 3605 | AZ151: 4120 | BA151: 32960 | BB151: 16947 | BC151: 3151 | BD151: 11938 | BE151: 0 | BF151: 6000 | BG151: 0 | BH151: 0 | BI151: 2000 | BJ151: 0 | BK151: 0 | BL151: 2915 | BM151: 0 | BN151: 4639 | BO151: 5958 | BP151: 0 | BQ151: 59045 | BR151: 6000 | BS151: 5443 | BT151: 15992 | BU151: 0 | BV151: 0 | BW151: 0 | BX151: 227195 | BY151: 2000 | BZ151: 1107221 | CB151: 5316 | CC151: 0 | CD151: 0 | CE151: 5316 | CG151: 0 | CH151: 6890 | CI151: 0 | CJ151: 0 | CK151: 0 | CL151: 0 | CM151: 0 | CN151: 0 | CO151: 0 | CP151: 6890 | CR151: -150036.91 | CS151: 0 | CT151: 0 | CU151: 0.38 | CV151: 0 | CW151: -18438.25 | CX151: -168474.78
A152: 797 | B152: 9162090 | C152: 2090 | E152: Park Junior School | I152: 268759.79 | J152: 0 | K152: 0 | L152: -0.22 | M152: 0 | N152: 0 | O152: 268759.57 | P152: 1083902 | Q152: 0 | R152: 151688 | S152: 0 | T152: 114220 | U152: 18035 | V152: 0 | W152: 6000 | X152: 0 | Y152: 0 | Z152: 0 | AA152: 0 | AB152: 14000 | AC152: 0 | AD152: 0 | AE152: 0 | AF152: 0 | AG152: 0 | AH152: 0 | AI152: 0 | AJ152: 0 | AK152: 1387845 | AL152: 539755 | AM152: 0 | AN152: 332313 | AO152: 58379 | AP152: 59745 | AQ152: 0 | AR152: 43997 | AS152: 6151 | AT152: 5974 | AU152: 519 | AV152: 11496 | AW152: 18665 | AX152: 2318 | AY152: 3090 | AZ152: 5665 | BA152: 24320 | BB152: 19960 | BC152: 2575 | BD152: 61688 | BE152: 0 | BF152: 2575 | BG152: 0 | BH152: 14935 | BI152: 6480 | BJ152: 0 | BK152: 0 | BL152: 1785 | BM152: 0 | BN152: 5047 | BO152: 9176 | BP152: 0 | BQ152: 35008 | BR152: 28500 | BS152: 76000 | BT152: 18856 | BU152: 0 | BV152: 0 | BW152: 0 | BX152: 0 | BY152: 0 | BZ152: 1394972 | CB152: 6329 | CC152: 0 | CD152: 0 | CE152: 6329 | CG152: 0 | CH152: 6329 | CI152: 0 | CJ152: 0 | CK152: 0 | CL152: 0 | CM152: 0 | CN152: 0 | CO152: 0 | CP152: 6329 | CR152: 261632.79 | CS152: 0 | CT152: 0 | CU152: -0.22 | CV152: 0 | CW152: 0 | CX152: 261632.57
A153: 609 | B153: 9163027 | C153: 3027 | E153: Coberley Church of England Primary School | I153: 83478.65 | J153: 5216.08 | K153: 0 | L153: -7.275957614e-12 | M153: 0 | N153: 0 | O153: 88694.73 | P153: 519628 | Q153: 0 | R153: 0 | S153: 0 | T153: 2960 | U153: 28549 | V153: 0 | W153: 0 | X153: 5000 | Y153: 0 | Z153: 0 | AA153: 0 | AB153: 9500 | AC153: 0 | AD153: 0 | AE153: 0 | AF153: 0 | AG153: 0 | AH153: 0 | AI153: 0 | AJ153: 0 | AK153: 565637 | AL153: 295614 | AM153: 1800 | AN153: 77563 | AO153: 0 | AP153: 53223 | AQ153: 0 | AR153: 4928 | AS153: 2307 | AT153: 3500 | AU153: 2010 | AV153: 0 | AW153: 9202 | AX153: 4000 | AY153: 18054 | AZ153: 2000 | BA153: 15000 | BB153: 4990 | BC153: 11500 | BD153: 43266 | BE153: 0 | BF153: 0 | BG153: 0 | BH153: 1500 | BI153: 0 | BJ153: 2000 | BK153: 2000 | BL153: 0 | BM153: 1000 | BN153: 3995 | BO153: 3800 | BP153: 3725 | BQ153: 0 | BR153: 13914 | BS153: 16500 | BT153: 19418 | BU153: 0 | BV153: 0 | BW153: 0 | BX153: 0 | BY153: 0 | BZ153: 616809 | CB153: 4787 | CC153: 0 | CD153: 0 | CE153: 4787 | CG153: 0 | CH153: 4787 | CI153: 0 | CJ153: 0 | CK153: 0 | CL153: 0 | CM153: 0 | CN153: 0 | CO153: 0 | CP153: 4787 | CR153: 37522.73 | CS153: 0 | CT153: 0 | CU153: -7.275957614e-12 | CV153: 0 | CW153: 0 | CX153: 37522.73
A154: 800 | B154: 9163025 | C154: 3025 | E154: Stratton Church of England Primary School | I154: -344600.45 | J154: 0 | K154: 0 | L154: 27162.64 | M154: 0 | N154: 0 | O154: -317437.81 | P154: 1046252 | Q154: 0 | R154: 97767 | S154: 0 | T154: 16550 | U154: 52795 | V154: 0 | W154: 1500 | X154: 54393 | Y154: 2500 | Z154: 0 | AA154: 0 | AB154: 17000 | AC154: 0 | AD154: 0 | AE154: 0 | AF154: 0 | AG154: 0 | AH154: 0 | AI154: 0 | AJ154: 0 | AK154: 1288757 | AL154: 620030 | AM154: 3000 | AN154: 280216 | AO154: 29296 | AP154: 65280 | AQ154: 0 | AR154: 65222 | AS154: 5209 | AT154: 6000 | AU154: 610 | AV154: 0 | AW154: 16576 | AX154: 5162 | AY154: 3100 | AZ154: 2900 | BA154: 20285 | BB154: 15594 | BC154: 2100 | BD154: 51600 | BE154: 0 | BF154: 0 | BG154: 0 | BH154: 3426 | BI154: 0 | BJ154: 3500 | BK154: 996 | BL154: 0 | BM154: 0 | BN154: 5500 | BO154: 1625 | BP154: 10796 | BQ154: 8000 | BR154: 43851 | BS154: 24600 | BT154: 14809 | BU154: 0 | BV154: 0 | BW154: 0 | BX154: 0 | BY154: 0 | BZ154: 1309283 | CB154: 6216 | CC154: 0 | CD154: 0 | CE154: 6216 | CG154: 0 | CH154: 33378 | CI154: 0 | CJ154: 0 | CK154: 0 | CL154: 0 | CM154: 0 | CN154: 0 | CO154: 0 | CP154: 33378 | CR154: -365126.45 | CS154: 0 | CT154: 0 | CU154: 0.64 | CV154: 0 | CW154: 0 | CX154: -365125.81
